Workbook

Sheet Cerramiento
C3: Tipo de cerramiento | E3: Datos necesarios
C8: Solución de Proyecto
C9: Grupo de material | D9: Material | E9: Espesor (m) | F9: Espesor de cálculo (m) | G9: Conductividad térmica (W/mK) | H9: Resistencia térmica (m²K/W)
F10: =IF((IFERROR((IF((VLOOKUP(Tabla1[[#This Row],[Material]],T_BaseDatos[[Material]:[Factor de resistencia a la difusión del vapor de agua]],2,FALSE))=0,Tabla1[[#This Row],[Espesor (m)]],(VLOOKUP(Tabla1[[#This Row],[Material]],T_BaseDatos[[Material]:[Factor de resistencia a la difusión del vapor de agua]],2,FALSE)))),""))=0,"",(IFERROR((IF((VLOOKUP(Tabla1[[#This Row],[Material]],T_BaseDatos[[Material]:[Factor de resistencia a la difusión del vapor de agua]],2,FALSE))=0,Tabla1[[#This Row],[Espesor (m)]],(VLOOKUP(Tabla1[[#This Row],[Material]],T_BaseDatos[[Material]:[Factor de resistencia a la difusión del vapor de agua]],2,FALSE)))),""))) ->  | G10: =IF((IFERROR((VLOOKUP(Tabla1[[#This Row],[Material]],T_BaseDatos[[Material]:[Factor de resistencia a la difusión del vapor de agua]],3,FALSE)),""))=0,"",(IFERROR((VLOOKUP(Tabla1[[#This Row],[Material]],T_BaseDatos[[Material]:[Factor de resistencia a la difusión del vapor de agua]],3,FALSE)),""))) ->  | H10: =IF((IFERROR((IF((VLOOKUP(Tabla1[[#This Row],[Material]],T_BaseDatos[[Material]:[Factor de resistencia a la difusión del vapor de agua]],4,FALSE))=0,(Tabla1[[#This Row],[Espesor de cálculo (m)]]/Tabla1[[#This Row],[Conductividad térmica (W/mK)]]),(VLOOKUP(Tabla1[[#This Row],[Material]],T_BaseDatos[[Material]:[Factor de resistencia a la difusión del vapor de agua]],4,FALSE)))),""))=0,"",(IFERROR((IF((VLOOKUP(Tabla1[[#This Row],[Material]],T_BaseDatos[[Material]:[Factor de resistencia a la difusión del vapor de agua]],4,FALSE))=0,(Tabla1[[#This Row],[Espesor de cálculo (m)]]/Tabla1[[#This Row],[Conductividad térmica (W/mK)]]),(VLOOKUP(Tabla1[[#This Row],[Material]],T_BaseDatos[[Material]:[Factor de resistencia a la difusión del vapor de agua]],4,FALSE)))),""))) -> 
F11: =IF((IFERROR((IF((VLOOKUP(Tabla1[[#This Row],[Material]],T_BaseDatos[[Material]:[Factor de resistencia a la difusión del vapor de agua]],2,FALSE))=0,Tabla1[[#This Row],[Espesor (m)]],(VLOOKUP(Tabla1[[#This Row],[Material]],T_BaseDatos[[Material]:[Factor de resistencia a la difusión del vapor de agua]],2,FALSE)))),""))=0,"",(IFERROR((IF((VLOOKUP(Tabla1[[#This Row],[Material]],T_BaseDatos[[Material]:[Factor de resistencia a la difusión del vapor de agua]],2,FALSE))=0,Tabla1[[#This Row],[Espesor (m)]],(VLOOKUP(Tabla1[[#This Row],[Material]],T_BaseDatos[[Material]:[Factor de resistencia a la difusión del vapor de agua]],2,FALSE)))),""))) ->  | G11: =IF((IFERROR((VLOOKUP(Tabla1[[#This Row],[Material]],T_BaseDatos[[Material]:[Factor de resistencia a la difusión del vapor de agua]],3,FALSE)),""))=0,"",(IFERROR((VLOOKUP(Tabla1[[#This Row],[Material]],T_BaseDatos[[Material]:[Factor de resistencia a la difusión del vapor de agua]],3,FALSE)),""))) ->  | H11: =IF((IFERROR((IF((VLOOKUP(Tabla1[[#This Row],[Material]],T_BaseDatos[[Material]:[Factor de resistencia a la difusión del vapor de agua]],4,FALSE))=0,(Tabla1[[#This Row],[Espesor de cálculo (m)]]/Tabla1[[#This Row],[Conductividad térmica (W/mK)]]),(VLOOKUP(Tabla1[[#This Row],[Material]],T_BaseDatos[[Material]:[Factor de resistencia a la difusión del vapor de agua]],4,FALSE)))),""))=0,"",(IFERROR((IF((VLOOKUP(Tabla1[[#This Row],[Material]],T_BaseDatos[[Material]:[Factor de resistencia a la difusión del vapor de agua]],4,FALSE))=0,(Tabla1[[#This Row],[Espesor de cálculo (m)]]/Tabla1[[#This Row],[Conductividad térmica (W/mK)]]),(VLOOKUP(Tabla1[[#This Row],[Material]],T_BaseDatos[[Material]:[Factor de resistencia a la difusión del vapor de agua]],4,FALSE)))),""))) -> 
F12: =IF((IFERROR((IF((VLOOKUP(Tabla1[[#This Row],[Material]],T_BaseDatos[[Material]:[Factor de resistencia a la difusión del vapor de agua]],2,FALSE))=0,Tabla1[[#This Row],[Espesor (m)]],(VLOOKUP(Tabla1[[#This Row],[Material]],T_BaseDatos[[Material]:[Factor de resistencia a la difusión del vapor de agua]],2,FALSE)))),""))=0,"",(IFERROR((IF((VLOOKUP(Tabla1[[#This Row],[Material]],T_BaseDatos[[Material]:[Factor de resistencia a la difusión del vapor de agua]],2,FALSE))=0,Tabla1[[#This Row],[Espesor (m)]],(VLOOKUP(Tabla1[[#This Row],[Material]],T_BaseDatos[[Material]:[Factor de resistencia a la difusión del vapor de agua]],2,FALSE)))),""))) ->  | G12: =IF((IFERROR((VLOOKUP(Tabla1[[#This Row],[Material]],T_BaseDatos[[Material]:[Factor de resistencia a la difusión del vapor de agua]],3,FALSE)),""))=0,"",(IFERROR((VLOOKUP(Tabla1[[#This Row],[Material]],T_BaseDatos[[Material]:[Factor de resistencia a la difusión del vapor de agua]],3,FALSE)),""))) ->  | H12: =IF((IFERROR((IF((VLOOKUP(Tabla1[[#This Row],[Material]],T_BaseDatos[[Material]:[Factor de resistencia a la difusión del vapor de agua]],4,FALSE))=0,(Tabla1[[#This Row],[Espesor de cálculo (m)]]/Tabla1[[#This Row],[Conductividad térmica (W/mK)]]),(VLOOKUP(Tabla1[[#This Row],[Material]],T_BaseDatos[[Material]:[Factor de resistencia a la difusión del vapor de agua]],4,FALSE)))),""))=0,"",(IFERROR((IF((VLOOKUP(Tabla1[[#This Row],[Material]],T_BaseDatos[[Material]:[Factor de resistencia a la difusión del vapor de agua]],4,FALSE))=0,(Tabla1[[#This Row],[Espesor de cálculo (m)]]/Tabla1[[#This Row],[Conductividad térmica (W/mK)]]),(VLOOKUP(Tabla1[[#This Row],[Material]],T_BaseDatos[[Material]:[Factor de resistencia a la difusión del vapor de agua]],4,FALSE)))),""))) -> 
F13: =IF((IFERROR((IF((VLOOKUP(Tabla1[[#This Row],[Material]],T_BaseDatos[[Material]:[Factor de resistencia a la difusión del vapor de agua]],2,FALSE))=0,Tabla1[[#This Row],[Espesor (m)]],(VLOOKUP(Tabla1[[#This Row],[Material]],T_BaseDatos[[Material]:[Factor de resistencia a la difusión del vapor de agua]],2,FALSE)))),""))=0,"",(IFERROR((IF((VLOOKUP(Tabla1[[#This Row],[Material]],T_BaseDatos[[Material]:[Factor de resistencia a la difusión del vapor de agua]],2,FALSE))=0,Tabla1[[#This Row],[Espesor (m)]],(VLOOKUP(Tabla1[[#This Row],[Material]],T_BaseDatos[[Material]:[Factor de resistencia a la difusión del vapor de agua]],2,FALSE)))),""))) ->  | G13: =IF((IFERROR((VLOOKUP(Tabla1[[#This Row],[Material]],T_BaseDatos[[Material]:[Factor de resistencia a la difusión del vapor de agua]],3,FALSE)),""))=0,"",(IFERROR((VLOOKUP(Tabla1[[#This Row],[Material]],T_BaseDatos[[Material]:[Factor de resistencia a la difusión del vapor de agua]],3,FALSE)),""))) ->  | H13: =IF((IFERROR((IF((VLOOKUP(Tabla1[[#This Row],[Material]],T_BaseDatos[[Material]:[Factor de resistencia a la difusión del vapor de agua]],4,FALSE))=0,(Tabla1[[#This Row],[Espesor de cálculo (m)]]/Tabla1[[#This Row],[Conductividad térmica (W/mK)]]),(VLOOKUP(Tabla1[[#This Row],[Material]],T_BaseDatos[[Material]:[Factor de resistencia a la difusión del vapor de agua]],4,FALSE)))),""))=0,"",(IFERROR((IF((VLOOKUP(Tabla1[[#This Row],[Material]],T_BaseDatos[[Material]:[Factor de resistencia a la difusión del vapor de agua]],4,FALSE))=0,(Tabla1[[#This Row],[Espesor de cálculo (m)]]/Tabla1[[#This Row],[Conductividad térmica (W/mK)]]),(VLOOKUP(Tabla1[[#This Row],[Material]],T_BaseDatos[[Material]:[Factor de resistencia a la difusión del vapor de agua]],4,FALSE)))),""))) -> 
F14: =IF((IFERROR((IF((VLOOKUP(Tabla1[[#This Row],[Material]],T_BaseDatos[[Material]:[Factor de resistencia a la difusión del vapor de agua]],2,FALSE))=0,Tabla1[[#This Row],[Espesor (m)]],(VLOOKUP(Tabla1[[#This Row],[Material]],T_BaseDatos[[Material]:[Factor de resistencia a la difusión del vapor de agua]],2,FALSE)))),""))=0,"",(IFERROR((IF((VLOOKUP(Tabla1[[#This Row],[Material]],T_BaseDatos[[Material]:[Factor de resistencia a la difusión del vapor de agua]],2,FALSE))=0,Tabla1[[#This Row],[Espesor (m)]],(VLOOKUP(Tabla1[[#This Row],[Material]],T_BaseDatos[[Material]:[Factor de resistencia a la difusión del vapor de agua]],2,FALSE)))),""))) ->  | G14: =IF((IFERROR((VLOOKUP(Tabla1[[#This Row],[Material]],T_BaseDatos[[Material]:[Factor de resistencia a la difusión del vapor de agua]],3,FALSE)),""))=0,"",(IFERROR((VLOOKUP(Tabla1[[#This Row],[Material]],T_BaseDatos[[Material]:[Factor de resistencia a la difusión del vapor de agua]],3,FALSE)),""))) ->  | H14: =IF((IFERROR((IF((VLOOKUP(Tabla1[[#This Row],[Material]],T_BaseDatos[[Material]:[Factor de resistencia a la difusión del vapor de agua]],4,FALSE))=0,(Tabla1[[#This Row],[Espesor de cálculo (m)]]/Tabla1[[#This Row],[Conductividad térmica (W/mK)]]),(VLOOKUP(Tabla1[[#This Row],[Material]],T_BaseDatos[[Material]:[Factor de resistencia a la difusión del vapor de agua]],4,FALSE)))),""))=0,"",(IFERROR((IF((VLOOKUP(Tabla1[[#This Row],[Material]],T_BaseDatos[[Material]:[Factor de resistencia a la difusión del vapor de agua]],4,FALSE))=0,(Tabla1[[#This Row],[Espesor de cálculo (m)]]/Tabla1[[#This Row],[Conductividad térmica (W/mK)]]),(VLOOKUP(Tabla1[[#This Row],[Material]],T_BaseDatos[[Material]:[Factor de resistencia a la difusión del vapor de agua]],4,FALSE)))),""))) -> 
F15: =IF((IFERROR((IF((VLOOKUP(Tabla1[[#This Row],[Material]],T_BaseDatos[[Material]:[Factor de resistencia a la difusión del vapor de agua]],2,FALSE))=0,Tabla1[[#This Row],[Espesor (m)]],(VLOOKUP(Tabla1[[#This Row],[Material]],T_BaseDatos[[Material]:[Factor de resistencia a la difusión del vapor de agua]],2,FALSE)))),""))=0,"",(IFERROR((IF((VLOOKUP(Tabla1[[#This Row],[Material]],T_BaseDatos[[Material]:[Factor de resistencia a la difusión del vapor de agua]],2,FALSE))=0,Tabla1[[#This Row],[Espesor (m)]],(VLOOKUP(Tabla1[[#This Row],[Material]],T_BaseDatos[[Material]:[Factor de resistencia a la difusión del vapor de agua]],2,FALSE)))),""))) ->  | G15: =IF((IFERROR((VLOOKUP(Tabla1[[#This Row],[Material]],T_BaseDatos[[Material]:[Factor de resistencia a la difusión del vapor de agua]],3,FALSE)),""))=0,"",(IFERROR((VLOOKUP(Tabla1[[#This Row],[Material]],T_BaseDatos[[Material]:[Factor de resistencia a la difusión del vapor de agua]],3,FALSE)),""))) ->  | H15: =IF((IFERROR((IF((VLOOKUP(Tabla1[[#This Row],[Material]],T_BaseDatos[[Material]:[Factor de resistencia a la difusión del vapor de agua]],4,FALSE))=0,(Tabla1[[#This Row],[Espesor de cálculo (m)]]/Tabla1[[#This Row],[Conductividad térmica (W/mK)]]),(VLOOKUP(Tabla1[[#This Row],[Material]],T_BaseDatos[[Material]:[Factor de resistencia a la difusión del vapor de agua]],4,FALSE)))),""))=0,"",(IFERROR((IF((VLOOKUP(Tabla1[[#This Row],[Material]],T_BaseDatos[[Material]:[Factor de resistencia a la difusión del vapor de agua]],4,FALSE))=0,(Tabla1[[#This Row],[Espesor de cálculo (m)]]/Tabla1[[#This Row],[Conductividad térmica (W/mK)]]),(VLOOKUP(Tabla1[[#This Row],[Material]],T_BaseDatos[[Material]:[Factor de resistencia a la difusión del vapor de agua]],4,FALSE)))),""))) -> 
F16: =IF((IFERROR((IF((VLOOKUP(Tabla1[[#This Row],[Material]],T_BaseDatos[[Material]:[Factor de resistencia a la difusión del vapor de agua]],2,FALSE))=0,Tabla1[[#This Row],[Espesor (m)]],(VLOOKUP(Tabla1[[#This Row],[Material]],T_BaseDatos[[Material]:[Factor de resistencia a la difusión del vapor de agua]],2,FALSE)))),""))=0,"",(IFERROR((IF((VLOOKUP(Tabla1[[#This Row],[Material]],T_BaseDatos[[Material]:[Factor de resistencia a la difusión del vapor de agua]],2,FALSE))=0,Tabla1[[#This Row],[Espesor (m)]],(VLOOKUP(Tabla1[[#This Row],[Material]],T_BaseDatos[[Material]:[Factor de resistencia a la difusión del vapor de agua]],2,FALSE)))),""))) ->  | G16: =IF((IFERROR((VLOOKUP(Tabla1[[#This Row],[Material]],T_BaseDatos[[Material]:[Factor de resistencia a la difusión del vapor de agua]],3,FALSE)),""))=0,"",(IFERROR((VLOOKUP(Tabla1[[#This Row],[Material]],T_BaseDatos[[Material]:[Factor de resistencia a la difusión del vapor de agua]],3,FALSE)),""))) ->  | H16: =IF((IFERROR((IF((VLOOKUP(Tabla1[[#This Row],[Material]],T_BaseDatos[[Material]:[Factor de resistencia a la difusión del vapor de agua]],4,FALSE))=0,(Tabla1[[#This Row],[Espesor de cálculo (m)]]/Tabla1[[#This Row],[Conductividad térmica (W/mK)]]),(VLOOKUP(Tabla1[[#This Row],[Material]],T_BaseDatos[[Material]:[Factor de resistencia a la difusión del vapor de agua]],4,FALSE)))),""))=0,"",(IFERROR((IF((VLOOKUP(Tabla1[[#This Row],[Material]],T_BaseDatos[[Material]:[Factor de resistencia a la difusión del vapor de agua]],4,FALSE))=0,(Tabla1[[#This Row],[Espesor de cálculo (m)]]/Tabla1[[#This Row],[Conductividad térmica (W/mK)]]),(VLOOKUP(Tabla1[[#This Row],[Material]],T_BaseDatos[[Material]:[Factor de resistencia a la difusión del vapor de agua]],4,FALSE)))),""))) -> 
F17: =IF((IFERROR((IF((VLOOKUP(Tabla1[[#This Row],[Material]],T_BaseDatos[[Material]:[Factor de resistencia a la difusión del vapor de agua]],2,FALSE))=0,Tabla1[[#This Row],[Espesor (m)]],(VLOOKUP(Tabla1[[#This Row],[Material]],T_BaseDatos[[Material]:[Factor de resistencia a la difusión del vapor de agua]],2,FALSE)))),""))=0,"",(IFERROR((IF((VLOOKUP(Tabla1[[#This Row],[Material]],T_BaseDatos[[Material]:[Factor de resistencia a la difusión del vapor de agua]],2,FALSE))=0,Tabla1[[#This Row],[Espesor (m)]],(VLOOKUP(Tabla1[[#This Row],[Material]],T_BaseDatos[[Material]:[Factor de resistencia a la difusión del vapor de agua]],2,FALSE)))),""))) ->  | G17: =IF((IFERROR((VLOOKUP(Tabla1[[#This Row],[Material]],T_BaseDatos[[Material]:[Factor de resistencia a la difusión del vapor de agua]],3,FALSE)),""))=0,"",(IFERROR((VLOOKUP(Tabla1[[#This Row],[Material]],T_BaseDatos[[Material]:[Factor de resistencia a la difusión del vapor de agua]],3,FALSE)),""))) ->  | H17: =IF((IFERROR((IF((VLOOKUP(Tabla1[[#This Row],[Material]],T_BaseDatos[[Material]:[Factor de resistencia a la difusión del vapor de agua]],4,FALSE))=0,(Tabla1[[#This Row],[Espesor de cálculo (m)]]/Tabla1[[#This Row],[Conductividad térmica (W/mK)]]),(VLOOKUP(Tabla1[[#This Row],[Material]],T_BaseDatos[[Material]:[Factor de resistencia a la difusión del vapor de agua]],4,FALSE)))),""))=0,"",(IFERROR((IF((VLOOKUP(Tabla1[[#This Row],[Material]],T_BaseDatos[[Material]:[Factor de resistencia a la difusión del vapor de agua]],4,FALSE))=0,(Tabla1[[#This Row],[Espesor de cálculo (m)]]/Tabla1[[#This Row],[Conductividad térmica (W/mK)]]),(VLOOKUP(Tabla1[[#This Row],[Material]],T_BaseDatos[[Material]:[Factor de resistencia a la difusión del vapor de agua]],4,FALSE)))),""))) -> 
F18: =IF((IFERROR((IF((VLOOKUP(Tabla1[[#This Row],[Material]],T_BaseDatos[[Material]:[Factor de resistencia a la difusión del vapor de agua]],2,FALSE))=0,Tabla1[[#This Row],[Espesor (m)]],(VLOOKUP(Tabla1[[#This Row],[Material]],T_BaseDatos[[Material]:[Factor de resistencia a la difusión del vapor de agua]],2,FALSE)))),""))=0,"",(IFERROR((IF((VLOOKUP(Tabla1[[#This Row],[Material]],T_BaseDatos[[Material]:[Factor de resistencia a la difusión del vapor de agua]],2,FALSE))=0,Tabla1[[#This Row],[Espesor (m)]],(VLOOKUP(Tabla1[[#This Row],[Material]],T_BaseDatos[[Material]:[Factor de resistencia a la difusión del vapor de agua]],2,FALSE)))),""))) ->  | G18: =IF((IFERROR((VLOOKUP(Tabla1[[#This Row],[Material]],T_BaseDatos[[Material]:[Factor de resistencia a la difusión del vapor de agua]],3,FALSE)),""))=0,"",(IFERROR((VLOOKUP(Tabla1[[#This Row],[Material]],T_BaseDatos[[Material]:[Factor de resistencia a la difusión del vapor de agua]],3,FALSE)),""))) ->  | H18: =IF((IFERROR((IF((VLOOKUP(Tabla1[[#This Row],[Material]],T_BaseDatos[[Material]:[Factor de resistencia a la difusión del vapor de agua]],4,FALSE))=0,(Tabla1[[#This Row],[Espesor de cálculo (m)]]/Tabla1[[#This Row],[Conductividad térmica (W/mK)]]),(VLOOKUP(Tabla1[[#This Row],[Material]],T_BaseDatos[[Material]:[Factor de resistencia a la difusión del vapor de agua]],4,FALSE)))),""))=0,"",(IFERROR((IF((VLOOKUP(Tabla1[[#This Row],[Material]],T_BaseDatos[[Material]:[Factor de resistencia a la difusión del vapor de agua]],4,FALSE))=0,(Tabla1[[#This Row],[Espesor de cálculo (m)]]/Tabla1[[#This Row],[Conductividad térmica (W/mK)]]),(VLOOKUP(Tabla1[[#This Row],[Material]],T_BaseDatos[[Material]:[Factor de resistencia a la difusión del vapor de agua]],4,FALSE)))),""))) -> 
F19: =IF((IFERROR((IF((VLOOKUP(Tabla1[[#This Row],[Material]],T_BaseDatos[[Material]:[Factor de resistencia a la difusión del vapor de agua]],2,FALSE))=0,Tabla1[[#This Row],[Espesor (m)]],(VLOOKUP(Tabla1[[#This Row],[Material]],T_BaseDatos[[Material]:[Factor de resistencia a la difusión del vapor de agua]],2,FALSE)))),""))=0,"",(IFERROR((IF((VLOOKUP(Tabla1[[#This Row],[Material]],T_BaseDatos[[Material]:[Factor de resistencia a la difusión del vapor de agua]],2,FALSE))=0,Tabla1[[#This Row],[Espesor (m)]],(VLOOKUP(Tabla1[[#This Row],[Material]],T_BaseDatos[[Material]:[Factor de resistencia a la difusión del vapor de agua]],2,FALSE)))),""))) ->  | G19: =IF((IFERROR((VLOOKUP(Tabla1[[#This Row],[Material]],T_BaseDatos[[Material]:[Factor de resistencia a la difusión del vapor de agua]],3,FALSE)),""))=0,"",(IFERROR((VLOOKUP(Tabla1[[#This Row],[Material]],T_BaseDatos[[Material]:[Factor de resistencia a la difusión del vapor de agua]],3,FALSE)),""))) ->  | H19: =IF((IFERROR((IF((VLOOKUP(Tabla1[[#This Row],[Material]],T_BaseDatos[[Material]:[Factor de resistencia a la difusión del vapor de agua]],4,FALSE))=0,(Tabla1[[#This Row],[Espesor de cálculo (m)]]/Tabla1[[#This Row],[Conductividad térmica (W/mK)]]),(VLOOKUP(Tabla1[[#This Row],[Material]],T_BaseDatos[[Material]:[Factor de resistencia a la difusión del vapor de agua]],4,FALSE)))),""))=0,"",(IFERROR((IF((VLOOKUP(Tabla1[[#This Row],[Material]],T_BaseDatos[[Material]:[Factor de resistencia a la difusión del vapor de agua]],4,FALSE))=0,(Tabla1[[#This Row],[Espesor de cálculo (m)]]/Tabla1[[#This Row],[Conductividad térmica (W/mK)]]),(VLOOKUP(Tabla1[[#This Row],[Material]],T_BaseDatos[[Material]:[Factor de resistencia a la difusión del vapor de agua]],4,FALSE)))),""))) -> 
F20: =IF((IFERROR((IF((VLOOKUP(Tabla1[[#This Row],[Material]],T_BaseDatos[[Material]:[Factor de resistencia a la difusión del vapor de agua]],2,FALSE))=0,Tabla1[[#This Row],[Espesor (m)]],(VLOOKUP(Tabla1[[#This Row],[Material]],T_BaseDatos[[Material]:[Factor de resistencia a la difusión del vapor de agua]],2,FALSE)))),""))=0,"",(IFERROR((IF((VLOOKUP(Tabla1[[#This Row],[Material]],T_BaseDatos[[Material]:[Factor de resistencia a la difusión del vapor de agua]],2,FALSE))=0,Tabla1[[#This Row],[Espesor (m)]],(VLOOKUP(Tabla1[[#This Row],[Material]],T_BaseDatos[[Material]:[Factor de resistencia a la difusión del vapor de agua]],2,FALSE)))),""))) ->  | G20: =IF((IFERROR((VLOOKUP(Tabla1[[#This Row],[Material]],T_BaseDatos[[Material]:[Factor de resistencia a la difusión del vapor de agua]],3,FALSE)),""))=0,"",(IFERROR((VLOOKUP(Tabla1[[#This Row],[Material]],T_BaseDatos[[Material]:[Factor de resistencia a la difusión del vapor de agua]],3,FALSE)),""))) ->  | H20: =IF((IFERROR((IF((VLOOKUP(Tabla1[[#This Row],[Material]],T_BaseDatos[[Material]:[Factor de resistencia a la difusión del vapor de agua]],4,FALSE))=0,(Tabla1[[#This Row],[Espesor de cálculo (m)]]/Tabla1[[#This Row],[Conductividad térmica (W/mK)]]),(VLOOKUP(Tabla1[[#This Row],[Material]],T_BaseDatos[[Material]:[Factor de resistencia a la difusión del vapor de agua]],4,FALSE)))),""))=0,"",(IFERROR((IF((VLOOKUP(Tabla1[[#This Row],[Material]],T_BaseDatos[[Material]:[Factor de resistencia a la difusión del vapor de agua]],4,FALSE))=0,(Tabla1[[#This Row],[Espesor de cálculo (m)]]/Tabla1[[#This Row],[Conductividad térmica (W/mK)]]),(VLOOKUP(Tabla1[[#This Row],[Material]],T_BaseDatos[[Material]:[Factor de resistencia a la difusión del vapor de agua]],4,FALSE)))),""))) -> 
F21: =IF((IFERROR((IF((VLOOKUP(Tabla1[[#This Row],[Material]],T_BaseDatos[[Material]:[Factor de resistencia a la difusión del vapor de agua]],2,FALSE))=0,Tabla1[[#This Row],[Espesor (m)]],(VLOOKUP(Tabla1[[#This Row],[Material]],T_BaseDatos[[Material]:[Factor de resistencia a la difusión del vapor de agua]],2,FALSE)))),""))=0,"",(IFERROR((IF((VLOOKUP(Tabla1[[#This Row],[Material]],T_BaseDatos[[Material]:[Factor de resistencia a la difusión del vapor de agua]],2,FALSE))=0,Tabla1[[#This Row],[Espesor (m)]],(VLOOKUP(Tabla1[[#This Row],[Material]],T_BaseDatos[[Material]:[Factor de resistencia a la difusión del vapor de agua]],2,FALSE)))),""))) ->  | G21: =IF((IFERROR((VLOOKUP(Tabla1[[#This Row],[Material]],T_BaseDatos[[Material]:[Factor de resistencia a la difusión del vapor de agua]],3,FALSE)),""))=0,"",(IFERROR((VLOOKUP(Tabla1[[#This Row],[Material]],T_BaseDatos[[Material]:[Factor de resistencia a la difusión del vapor de agua]],3,FALSE)),""))) ->  | H21: =IF((IFERROR((IF((VLOOKUP(Tabla1[[#This Row],[Material]],T_BaseDatos[[Material]:[Factor de resistencia a la difusión del vapor de agua]],4,FALSE))=0,(Tabla1[[#This Row],[Espesor de cálculo (m)]]/Tabla1[[#This Row],[Conductividad térmica (W/mK)]]),(VLOOKUP(Tabla1[[#This Row],[Material]],T_BaseDatos[[Material]:[Factor de resistencia a la difusión del vapor de agua]],4,FALSE)))),""))=0,"",(IFERROR((IF((VLOOKUP(Tabla1[[#This Row],[Material]],T_BaseDatos[[Material]:[Factor de resistencia a la difusión del vapor de agua]],4,FALSE))=0,(Tabla1[[#This Row],[Espesor de cálculo (m)]]/Tabla1[[#This Row],[Conductividad térmica (W/mK)]]),(VLOOKUP(Tabla1[[#This Row],[Material]],T_BaseDatos[[Material]:[Factor de resistencia a la difusión del vapor de agua]],4,FALSE)))),""))) -> 
F22: =IF((IFERROR((IF((VLOOKUP(Tabla1[[#This Row],[Material]],T_BaseDatos[[Material]:[Factor de resistencia a la difusión del vapor de agua]],2,FALSE))=0,Tabla1[[#This Row],[Espesor (m)]],(VLOOKUP(Tabla1[[#This Row],[Material]],T_BaseDatos[[Material]:[Factor de resistencia a la difusión del vapor de agua]],2,FALSE)))),""))=0,"",(IFERROR((IF((VLOOKUP(Tabla1[[#This Row],[Material]],T_BaseDatos[[Material]:[Factor de resistencia a la difusión del vapor de agua]],2,FALSE))=0,Tabla1[[#This Row],[Espesor (m)]],(VLOOKUP(Tabla1[[#This Row],[Material]],T_BaseDatos[[Material]:[Factor de resistencia a la difusión del vapor de agua]],2,FALSE)))),""))) ->  | G22: =IF((IFERROR((VLOOKUP(Tabla1[[#This Row],[Material]],T_BaseDatos[[Material]:[Factor de resistencia a la difusión del vapor de agua]],3,FALSE)),""))=0,"",(IFERROR((VLOOKUP(Tabla1[[#This Row],[Material]],T_BaseDatos[[Material]:[Factor de resistencia a la difusión del vapor de agua]],3,FALSE)),""))) ->  | H22: =IF((IFERROR((IF((VLOOKUP(Tabla1[[#This Row],[Material]],T_BaseDatos[[Material]:[Factor de resistencia a la difusión del vapor de agua]],4,FALSE))=0,(Tabla1[[#This Row],[Espesor de cálculo (m)]]/Tabla1[[#This Row],[Conductividad térmica (W/mK)]]),(VLOOKUP(Tabla1[[#This Row],[Material]],T_BaseDatos[[Material]:[Factor de resistencia a la difusión del vapor de agua]],4,FALSE)))),""))=0,"",(IFERROR((IF((VLOOKUP(Tabla1[[#This Row],[Material]],T_BaseDatos[[Material]:[Factor de resistencia a la difusión del vapor de agua]],4,FALSE))=0,(Tabla1[[#This Row],[Espesor de cálculo (m)]]/Tabla1[[#This Row],[Conductividad térmica (W/mK)]]),(VLOOKUP(Tabla1[[#This Row],[Material]],T_BaseDatos[[Material]:[Factor de resistencia a la difusión del vapor de agua]],4,FALSE)))),""))) -> 
F23: =IF((IFERROR((IF((VLOOKUP(Tabla1[[#This Row],[Material]],T_BaseDatos[[Material]:[Factor de resistencia a la difusión del vapor de agua]],2,FALSE))=0,Tabla1[[#This Row],[Espesor (m)]],(VLOOKUP(Tabla1[[#This Row],[Material]],T_BaseDatos[[Material]:[Factor de resistencia a la difusión del vapor de agua]],2,FALSE)))),""))=0,"",(IFERROR((IF((VLOOKUP(Tabla1[[#This Row],[Material]],T_BaseDatos[[Material]:[Factor de resistencia a la difusión del vapor de agua]],2,FALSE))=0,Tabla1[[#This Row],[Espesor (m)]],(VLOOKUP(Tabla1[[#This Row],[Material]],T_BaseDatos[[Material]:[Factor de resistencia a la difusión del vapor de agua]],2,FALSE)))),""))) ->  | G23: =IF((IFERROR((VLOOKUP(Tabla1[[#This Row],[Material]],T_BaseDatos[[Material]:[Factor de resistencia a la difusión del vapor de agua]],3,FALSE)),""))=0,"",(IFERROR((VLOOKUP(Tabla1[[#This Row],[Material]],T_BaseDatos[[Material]:[Factor de resistencia a la difusión del vapor de agua]],3,FALSE)),""))) ->  | H23: =IF((IFERROR((IF((VLOOKUP(Tabla1[[#This Row],[Material]],T_BaseDatos[[Material]:[Factor de resistencia a la difusión del vapor de agua]],4,FALSE))=0,(Tabla1[[#This Row],[Espesor de cálculo (m)]]/Tabla1[[#This Row],[Conductividad térmica (W/mK)]]),(VLOOKUP(Tabla1[[#This Row],[Material]],T_BaseDatos[[Material]:[Factor de resistencia a la difusión del vapor de agua]],4,FALSE)))),""))=0,"",(IFERROR((IF((VLOOKUP(Tabla1[[#This Row],[Material]],T_BaseDatos[[Material]:[Factor de resistencia a la difusión del vapor de agua]],4,FALSE))=0,(Tabla1[[#This Row],[Espesor de cálculo (m)]]/Tabla1[[#This Row],[Conductividad térmica (W/mK)]]),(VLOOKUP(Tabla1[[#This Row],[Material]],T_BaseDatos[[Material]:[Factor de resistencia a la difusión del vapor de agua]],4,FALSE)))),""))) -> 
F24: =IF((IFERROR((IF((VLOOKUP(Tabla1[[#This Row],[Material]],T_BaseDatos[[Material]:[Factor de resistencia a la difusión del vapor de agua]],2,FALSE))=0,Tabla1[[#This Row],[Espesor (m)]],(VLOOKUP(Tabla1[[#This Row],[Material]],T_BaseDatos[[Material]:[Factor de resistencia a la difusión del vapor de agua]],2,FALSE)))),""))=0,"",(IFERROR((IF((VLOOKUP(Tabla1[[#This Row],[Material]],T_BaseDatos[[Material]:[Factor de resistencia a la difusión del vapor de agua]],2,FALSE))=0,Tabla1[[#This Row],[Espesor (m)]],(VLOOKUP(Tabla1[[#This Row],[Material]],T_BaseDatos[[Material]:[Factor de resistencia a la difusión del vapor de agua]],2,FALSE)))),""))) ->  | G24: =IF((IFERROR((VLOOKUP(Tabla1[[#This Row],[Material]],T_BaseDatos[[Material]:[Factor de resistencia a la difusión del vapor de agua]],3,FALSE)),""))=0,"",(IFERROR((VLOOKUP(Tabla1[[#This Row],[Material]],T_BaseDatos[[Material]:[Factor de resistencia a la difusión del vapor de agua]],3,FALSE)),""))) ->  | H24: =IF((IFERROR((IF((VLOOKUP(Tabla1[[#This Row],[Material]],T_BaseDatos[[Material]:[Factor de resistencia a la difusión del vapor de agua]],4,FALSE))=0,(Tabla1[[#This Row],[Espesor de cálculo (m)]]/Tabla1[[#This Row],[Conductividad térmica (W/mK)]]),(VLOOKUP(Tabla1[[#This Row],[Material]],T_BaseDatos[[Material]:[Factor de resistencia a la difusión del vapor de agua]],4,FALSE)))),""))=0,"",(IFERROR((IF((VLOOKUP(Tabla1[[#This Row],[Material]],T_BaseDatos[[Material]:[Factor de resistencia a la difusión del vapor de agua]],4,FALSE))=0,(Tabla1[[#This Row],[Espesor de cálculo (m)]]/Tabla1[[#This Row],[Conductividad térmica (W/mK)]]),(VLOOKUP(Tabla1[[#This Row],[Material]],T_BaseDatos[[Material]:[Factor de resistencia a la difusión del vapor de agua]],4,FALSE)))),""))) -> 
F25: =IF((IFERROR((IF((VLOOKUP(Tabla1[[#This Row],[Material]],T_BaseDatos[[Material]:[Factor de resistencia a la difusión del vapor de agua]],2,FALSE))=0,Tabla1[[#This Row],[Espesor (m)]],(VLOOKUP(Tabla1[[#This Row],[Material]],T_BaseDatos[[Material]:[Factor de resistencia a la difusión del vapor de agua]],2,FALSE)))),""))=0,"",(IFERROR((IF((VLOOKUP(Tabla1[[#This Row],[Material]],T_BaseDatos[[Material]:[Factor de resistencia a la difusión del vapor de agua]],2,FALSE))=0,Tabla1[[#This Row],[Espesor (m)]],(VLOOKUP(Tabla1[[#This Row],[Material]],T_BaseDatos[[Material]:[Factor de resistencia a la difusión del vapor de agua]],2,FALSE)))),""))) ->  | G25: =IF((IFERROR((VLOOKUP(Tabla1[[#This Row],[Material]],T_BaseDatos[[Material]:[Factor de resistencia a la difusión del vapor de agua]],3,FALSE)),""))=0,"",(IFERROR((VLOOKUP(Tabla1[[#This Row],[Material]],T_BaseDatos[[Material]:[Factor de resistencia a la difusión del vapor de agua]],3,FALSE)),""))) ->  | H25: =IF((IFERROR((IF((VLOOKUP(Tabla1[[#This Row],[Material]],T_BaseDatos[[Material]:[Factor de resistencia a la difusión del vapor de agua]],4,FALSE))=0,(Tabla1[[#This Row],[Espesor de cálculo (m)]]/Tabla1[[#This Row],[Conductividad térmica (W/mK)]]),(VLOOKUP(Tabla1[[#This Row],[Material]],T_BaseDatos[[Material]:[Factor de resistencia a la difusión del vapor de agua]],4,FALSE)))),""))=0,"",(IFERROR((IF((VLOOKUP(Tabla1[[#This Row],[Material]],T_BaseDatos[[Material]:[Factor de resistencia a la difusión del vapor de agua]],4,FALSE))=0,(Tabla1[[#This Row],[Espesor de cálculo (m)]]/Tabla1[[#This Row],[Conductividad térmica (W/mK)]]),(VLOOKUP(Tabla1[[#This Row],[Material]],T_BaseDatos[[Material]:[Factor de resistencia a la difusión del vapor de agua]],4,FALSE)))),""))) -> 
F26: =IF((IFERROR((IF((VLOOKUP(Tabla1[[#This Row],[Material]],T_BaseDatos[[Material]:[Factor de resistencia a la difusión del vapor de agua]],2,FALSE))=0,Tabla1[[#This Row],[Espesor (m)]],(VLOOKUP(Tabla1[[#This Row],[Material]],T_BaseDatos[[Material]:[Factor de resistencia a la difusión del vapor de agua]],2,FALSE)))),""))=0,"",(IFERROR((IF((VLOOKUP(Tabla1[[#This Row],[Material]],T_BaseDatos[[Material]:[Factor de resistencia a la difusión del vapor de agua]],2,FALSE))=0,Tabla1[[#This Row],[Espesor (m)]],(VLOOKUP(Tabla1[[#This Row],[Material]],T_BaseDatos[[Material]:[Factor de resistencia a la difusión del vapor de agua]],2,FALSE)))),""))) ->  | G26: =IF((IFERROR((VLOOKUP(Tabla1[[#This Row],[Material]],T_BaseDatos[[Material]:[Factor de resistencia a la difusión del vapor de agua]],3,FALSE)),""))=0,"",(IFERROR((VLOOKUP(Tabla1[[#This Row],[Material]],T_BaseDatos[[Material]:[Factor de resistencia a la difusión del vapor de agua]],3,FALSE)),""))) ->  | H26: =IF((IFERROR((IF((VLOOKUP(Tabla1[[#This Row],[Material]],T_BaseDatos[[Material]:[Factor de resistencia a la difusión del vapor de agua]],4,FALSE))=0,(Tabla1[[#This Row],[Espesor de cálculo (m)]]/Tabla1[[#This Row],[Conductividad térmica (W/mK)]]),(VLOOKUP(Tabla1[[#This Row],[Material]],T_BaseDatos[[Material]:[Factor de resistencia a la difusión del vapor de agua]],4,FALSE)))),""))=0,"",(IFERROR((IF((VLOOKUP(Tabla1[[#This Row],[Material]],T_BaseDatos[[Material]:[Factor de resistencia a la difusión del vapor de agua]],4,FALSE))=0,(Tabla1[[#This Row],[Espesor de cálculo (m)]]/Tabla1[[#This Row],[Conductividad térmica (W/mK)]]),(VLOOKUP(Tabla1[[#This Row],[Material]],T_BaseDatos[[Material]:[Factor de resistencia a la difusión del vapor de agua]],4,FALSE)))),""))) -> 
F27: =IF((IFERROR((IF((VLOOKUP(Tabla1[[#This Row],[Material]],T_BaseDatos[[Material]:[Factor de resistencia a la difusión del vapor de agua]],2,FALSE))=0,Tabla1[[#This Row],[Espesor (m)]],(VLOOKUP(Tabla1[[#This Row],[Material]],T_BaseDatos[[Material]:[Factor de resistencia a la difusión del vapor de agua]],2,FALSE)))),""))=0,"",(IFERROR((IF((VLOOKUP(Tabla1[[#This Row],[Material]],T_BaseDatos[[Material]:[Factor de resistencia a la difusión del vapor de agua]],2,FALSE))=0,Tabla1[[#This Row],[Espesor (m)]],(VLOOKUP(Tabla1[[#This Row],[Material]],T_BaseDatos[[Material]:[Factor de resistencia a la difusión del vapor de agua]],2,FALSE)))),""))) ->  | G27: =IF((IFERROR((VLOOKUP(Tabla1[[#This Row],[Material]],T_BaseDatos[[Material]:[Factor de resistencia a la difusión del vapor de agua]],3,FALSE)),""))=0,"",(IFERROR((VLOOKUP(Tabla1[[#This Row],[Material]],T_BaseDatos[[Material]:[Factor de resistencia a la difusión del vapor de agua]],3,FALSE)),""))) ->  | H27: =IF((IFERROR((IF((VLOOKUP(Tabla1[[#This Row],[Material]],T_BaseDatos[[Material]:[Factor de resistencia a la difusión del vapor de agua]],4,FALSE))=0,(Tabla1[[#This Row],[Espesor de cálculo (m)]]/Tabla1[[#This Row],[Conductividad térmica (W/mK)]]),(VLOOKUP(Tabla1[[#This Row],[Material]],T_BaseDatos[[Material]:[Factor de resistencia a la difusión del vapor de agua]],4,FALSE)))),""))=0,"",(IFERROR((IF((VLOOKUP(Tabla1[[#This Row],[Material]],T_BaseDatos[[Material]:[Factor de resistencia a la difusión del vapor de agua]],4,FALSE))=0,(Tabla1[[#This Row],[Espesor de cálculo (m)]]/Tabla1[[#This Row],[Conductividad térmica (W/mK)]]),(VLOOKUP(Tabla1[[#This Row],[Material]],T_BaseDatos[[Material]:[Factor de resistencia a la difusión del vapor de agua]],4,FALSE)))),""))) -> 
F28: =IF((IFERROR((IF((VLOOKUP(Tabla1[[#This Row],[Material]],T_BaseDatos[[Material]:[Factor de resistencia a la difusión del vapor de agua]],2,FALSE))=0,Tabla1[[#This Row],[Espesor (m)]],(VLOOKUP(Tabla1[[#This Row],[Material]],T_BaseDatos[[Material]:[Factor de resistencia a la difusión del vapor de agua]],2,FALSE)))),""))=0,"",(IFERROR((IF((VLOOKUP(Tabla1[[#This Row],[Material]],T_BaseDatos[[Material]:[Factor de resistencia a la difusión del vapor de agua]],2,FALSE))=0,Tabla1[[#This Row],[Espesor (m)]],(VLOOKUP(Tabla1[[#This Row],[Material]],T_BaseDatos[[Material]:[Factor de resistencia a la difusión del vapor de agua]],2,FALSE)))),""))) ->  | G28: =IF((IFERROR((VLOOKUP(Tabla1[[#This Row],[Material]],T_BaseDatos[[Material]:[Factor de resistencia a la difusión del vapor de agua]],3,FALSE)),""))=0,"",(IFERROR((VLOOKUP(Tabla1[[#This Row],[Material]],T_BaseDatos[[Material]:[Factor de resistencia a la difusión del vapor de agua]],3,FALSE)),""))) ->  | H28: =IF((IFERROR((IF((VLOOKUP(Tabla1[[#This Row],[Material]],T_BaseDatos[[Material]:[Factor de resistencia a la difusión del vapor de agua]],4,FALSE))=0,(Tabla1[[#This Row],[Espesor de cálculo (m)]]/Tabla1[[#This Row],[Conductividad térmica (W/mK)]]),(VLOOKUP(Tabla1[[#This Row],[Material]],T_BaseDatos[[Material]:[Factor de resistencia a la difusión del vapor de agua]],4,FALSE)))),""))=0,"",(IFERROR((IF((VLOOKUP(Tabla1[[#This Row],[Material]],T_BaseDatos[[Material]:[Factor de resistencia a la difusión del vapor de agua]],4,FALSE))=0,(Tabla1[[#This Row],[Espesor de cálculo (m)]]/Tabla1[[#This Row],[Conductividad térmica (W/mK)]]),(VLOOKUP(Tabla1[[#This Row],[Material]],T_BaseDatos[[Material]:[Factor de resistencia a la difusión del vapor de agua]],4,FALSE)))),""))) -> 
F29: =IF((IFERROR((IF((VLOOKUP(Tabla1[[#This Row],[Material]],T_BaseDatos[[Material]:[Factor de resistencia a la difusión del vapor de agua]],2,FALSE))=0,Tabla1[[#This Row],[Espesor (m)]],(VLOOKUP(Tabla1[[#This Row],[Material]],T_BaseDatos[[Material]:[Factor de resistencia a la difusión del vapor de agua]],2,FALSE)))),""))=0,"",(IFERROR((IF((VLOOKUP(Tabla1[[#This Row],[Material]],T_BaseDatos[[Material]:[Factor de resistencia a la difusión del vapor de agua]],2,FALSE))=0,Tabla1[[#This Row],[Espesor (m)]],(VLOOKUP(Tabla1[[#This Row],[Material]],T_BaseDatos[[Material]:[Factor de resistencia a la difusión del vapor de agua]],2,FALSE)))),""))) ->  | G29: =IF((IFERROR((VLOOKUP(Tabla1[[#This Row],[Material]],T_BaseDatos[[Material]:[Factor de resistencia a la difusión del vapor de agua]],3,FALSE)),""))=0,"",(IFERROR((VLOOKUP(Tabla1[[#This Row],[Material]],T_BaseDatos[[Material]:[Factor de resistencia a la difusión del vapor de agua]],3,FALSE)),""))) ->  | H29: =IF((IFERROR((IF((VLOOKUP(Tabla1[[#This Row],[Material]],T_BaseDatos[[Material]:[Factor de resistencia a la difusión del vapor de agua]],4,FALSE))=0,(Tabla1[[#This Row],[Espesor de cálculo (m)]]/Tabla1[[#This Row],[Conductividad térmica (W/mK)]]),(VLOOKUP(Tabla1[[#This Row],[Material]],T_BaseDatos[[Material]:[Factor de resistencia a la difusión del vapor de agua]],4,FALSE)))),""))=0,"",(IFERROR((IF((VLOOKUP(Tabla1[[#This Row],[Material]],T_BaseDatos[[Material]:[Factor de resistencia a la difusión del vapor de agua]],4,FALSE))=0,(Tabla1[[#This Row],[Espesor de cálculo (m)]]/Tabla1[[#This Row],[Conductividad térmica (W/mK)]]),(VLOOKUP(Tabla1[[#This Row],[Material]],T_BaseDatos[[Material]:[Factor de resistencia a la difusión del vapor de agua]],4,FALSE)))),""))) -> 
F30: =IF((IFERROR((IF((VLOOKUP(Tabla1[[#This Row],[Material]],T_BaseDatos[[Material]:[Factor de resistencia a la difusión del vapor de agua]],2,FALSE))=0,Tabla1[[#This Row],[Espesor (m)]],(VLOOKUP(Tabla1[[#This Row],[Material]],T_BaseDatos[[Material]:[Factor de resistencia a la difusión del vapor de agua]],2,FALSE)))),""))=0,"",(IFERROR((IF((VLOOKUP(Tabla1[[#This Row],[Material]],T_BaseDatos[[Material]:[Factor de resistencia a la difusión del vapor de agua]],2,FALSE))=0,Tabla1[[#This Row],[Espesor (m)]],(VLOOKUP(Tabla1[[#This Row],[Material]],T_BaseDatos[[Material]:[Factor de resistencia a la difusión del vapor de agua]],2,FALSE)))),""))) ->  | G30: =IF((IFERROR((VLOOKUP(Tabla1[[#This Row],[Material]],T_BaseDatos[[Material]:[Factor de resistencia a la difusión del vapor de agua]],3,FALSE)),""))=0,"",(IFERROR((VLOOKUP(Tabla1[[#This Row],[Material]],T_BaseDatos[[Material]:[Factor de resistencia a la difusión del vapor de agua]],3,FALSE)),""))) ->  | H30: =IF((IFERROR((IF((VLOOKUP(Tabla1[[#This Row],[Material]],T_BaseDatos[[Material]:[Factor de resistencia a la difusión del vapor de agua]],4,FALSE))=0,(Tabla1[[#This Row],[Espesor de cálculo (m)]]/Tabla1[[#This Row],[Conductividad térmica (W/mK)]]),(VLOOKUP(Tabla1[[#This Row],[Material]],T_BaseDatos[[Material]:[Factor de resistencia a la difusión del vapor de agua]],4,FALSE)))),""))=0,"",(IFERROR((IF((VLOOKUP(Tabla1[[#This Row],[Material]],T_BaseDatos[[Material]:[Factor de resistencia a la difusión del vapor de agua]],4,FALSE))=0,(Tabla1[[#This Row],[Espesor de cálculo (m)]]/Tabla1[[#This Row],[Conductividad térmica (W/mK)]]),(VLOOKUP(Tabla1[[#This Row],[Material]],T_BaseDatos[[Material]:[Factor de resistencia a la difusión del vapor de agua]],4,FALSE)))),""))) -> 
F31: =IF((IFERROR((IF((VLOOKUP(Tabla1[[#This Row],[Material]],T_BaseDatos[[Material]:[Factor de resistencia a la difusión del vapor de agua]],2,FALSE))=0,Tabla1[[#This Row],[Espesor (m)]],(VLOOKUP(Tabla1[[#This Row],[Material]],T_BaseDatos[[Material]:[Factor de resistencia a la difusión del vapor de agua]],2,FALSE)))),""))=0,"",(IFERROR((IF((VLOOKUP(Tabla1[[#This Row],[Material]],T_BaseDatos[[Material]:[Factor de resistencia a la difusión del vapor de agua]],2,FALSE))=0,Tabla1[[#This Row],[Espesor (m)]],(VLOOKUP(Tabla1[[#This Row],[Material]],T_BaseDatos[[Material]:[Factor de resistencia a la difusión del vapor de agua]],2,FALSE)))),""))) ->  | G31: =IF((IFERROR((VLOOKUP(Tabla1[[#This Row],[Material]],T_BaseDatos[[Material]:[Factor de resistencia a la difusión del vapor de agua]],3,FALSE)),""))=0,"",(IFERROR((VLOOKUP(Tabla1[[#This Row],[Material]],T_BaseDatos[[Material]:[Factor de resistencia a la difusión del vapor de agua]],3,FALSE)),""))) ->  | H31: =IF((IFERROR((IF((VLOOKUP(Tabla1[[#This Row],[Material]],T_BaseDatos[[Material]:[Factor de resistencia a la difusión del vapor de agua]],4,FALSE))=0,(Tabla1[[#This Row],[Espesor de cálculo (m)]]/Tabla1[[#This Row],[Conductividad térmica (W/mK)]]),(VLOOKUP(Tabla1[[#This Row],[Material]],T_BaseDatos[[Material]:[Factor de resistencia a la difusión del vapor de agua]],4,FALSE)))),""))=0,"",(IFERROR((IF((VLOOKUP(Tabla1[[#This Row],[Material]],T_BaseDatos[[Material]:[Factor de resistencia a la difusión del vapor de agua]],4,FALSE))=0,(Tabla1[[#This Row],[Espesor de cálculo (m)]]/Tabla1[[#This Row],[Conductividad térmica (W/mK)]]),(VLOOKUP(Tabla1[[#This Row],[Material]],T_BaseDatos[[Material]:[Factor de resistencia a la difusión del vapor de agua]],4,FALSE)))),""))) -> 
C35: Solución Alternativa
C36: Grupo de material | D36: Material | E36: Espesor (m) | F36: Espesor de cálculo (m) | G36: Conductividad térmica (W/mK) | H36: Resistencia térmica (m²K/W)
F37: =IF((IFERROR((IF((VLOOKUP(Tabla13[[#This Row],[Material]],T_BaseDatos[[Material]:[Factor de resistencia a la difusión del vapor de agua]],2,FALSE))=0,Tabla13[[#This Row],[Espesor (m)]],(VLOOKUP(Tabla13[[#This Row],[Material]],T_BaseDatos[[Material]:[Factor de resistencia a la difusión del vapor de agua]],2,FALSE)))),""))=0,"",(IFERROR((IF((VLOOKUP(Tabla13[[#This Row],[Material]],T_BaseDatos[[Material]:[Factor de resistencia a la difusión del vapor de agua]],2,FALSE))=0,Tabla13[[#This Row],[Espesor (m)]],(VLOOKUP(Tabla13[[#This Row],[Material]],T_BaseDatos[[Material]:[Factor de resistencia a la difusión del vapor de agua]],2,FALSE)))),""))) ->  | G37: =IF((IFERROR((VLOOKUP(Tabla13[[#This Row],[Material]],T_BaseDatos[[Material]:[Factor de resistencia a la difusión del vapor de agua]],3,FALSE)),""))=0,"",(IFERROR((VLOOKUP(Tabla13[[#This Row],[Material]],T_BaseDatos[[Material]:[Factor de resistencia a la difusión del vapor de agua]],3,FALSE)),""))) ->  | H37: =IF((IFERROR((IF((VLOOKUP(Tabla13[[#This Row],[Material]],T_BaseDatos[[Material]:[Factor de resistencia a la difusión del vapor de agua]],4,FALSE))=0,(Tabla13[[#This Row],[Espesor de cálculo (m)]]/Tabla13[[#This Row],[Conductividad térmica (W/mK)]]),(VLOOKUP(Tabla13[[#This Row],[Material]],T_BaseDatos[[Material]:[Factor de resistencia a la difusión del vapor de agua]],4,FALSE)))),""))=0,"",(IFERROR((IF((VLOOKUP(Tabla13[[#This Row],[Material]],T_BaseDatos[[Material]:[Factor de resistencia a la difusión del vapor de agua]],4,FALSE))=0,(Tabla13[[#This Row],[Espesor de cálculo (m)]]/Tabla13[[#This Row],[Conductividad térmica (W/mK)]]),(VLOOKUP(Tabla13[[#This Row],[Material]],T_BaseDatos[[Material]:[Factor de resistencia a la difusión del vapor de agua]],4,FALSE)))),""))) -> 
F38: =IF((IFERROR((IF((VLOOKUP(Tabla13[[#This Row],[Material]],T_BaseDatos[[Material]:[Factor de resistencia a la difusión del vapor de agua]],2,FALSE))=0,Tabla13[[#This Row],[Espesor (m)]],(VLOOKUP(Tabla13[[#This Row],[Material]],T_BaseDatos[[Material]:[Factor de resistencia a la difusión del vapor de agua]],2,FALSE)))),""))=0,"",(IFERROR((IF((VLOOKUP(Tabla13[[#This Row],[Material]],T_BaseDatos[[Material]:[Factor de resistencia a la difusión del vapor de agua]],2,FALSE))=0,Tabla13[[#This Row],[Espesor (m)]],(VLOOKUP(Tabla13[[#This Row],[Material]],T_BaseDatos[[Material]:[Factor de resistencia a la difusión del vapor de agua]],2,FALSE)))),""))) ->  | G38: =IF((IFERROR((VLOOKUP(Tabla13[[#This Row],[Material]],T_BaseDatos[[Material]:[Factor de resistencia a la difusión del vapor de agua]],3,FALSE)),""))=0,"",(IFERROR((VLOOKUP(Tabla13[[#This Row],[Material]],T_BaseDatos[[Material]:[Factor de resistencia a la difusión del vapor de agua]],3,FALSE)),""))) ->  | H38: =IF((IFERROR((IF((VLOOKUP(Tabla13[[#This Row],[Material]],T_BaseDatos[[Material]:[Factor de resistencia a la difusión del vapor de agua]],4,FALSE))=0,(Tabla13[[#This Row],[Espesor de cálculo (m)]]/Tabla13[[#This Row],[Conductividad térmica (W/mK)]]),(VLOOKUP(Tabla13[[#This Row],[Material]],T_BaseDatos[[Material]:[Factor de resistencia a la difusión del vapor de agua]],4,FALSE)))),""))=0,"",(IFERROR((IF((VLOOKUP(Tabla13[[#This Row],[Material]],T_BaseDatos[[Material]:[Factor de resistencia a la difusión del vapor de agua]],4,FALSE))=0,(Tabla13[[#This Row],[Espesor de cálculo (m)]]/Tabla13[[#This Row],[Conductividad térmica (W/mK)]]),(VLOOKUP(Tabla13[[#This Row],[Material]],T_BaseDatos[[Material]:[Factor de resistencia a la difusión del vapor de agua]],4,FALSE)))),""))) -> 
F39: =IF((IFERROR((IF((VLOOKUP(Tabla13[[#This Row],[Material]],T_BaseDatos[[Material]:[Factor de resistencia a la difusión del vapor de agua]],2,FALSE))=0,Tabla13[[#This Row],[Espesor (m)]],(VLOOKUP(Tabla13[[#This Row],[Material]],T_BaseDatos[[Material]:[Factor de resistencia a la difusión del vapor de agua]],2,FALSE)))),""))=0,"",(IFERROR((IF((VLOOKUP(Tabla13[[#This Row],[Material]],T_BaseDatos[[Material]:[Factor de resistencia a la difusión del vapor de agua]],2,FALSE))=0,Tabla13[[#This Row],[Espesor (m)]],(VLOOKUP(Tabla13[[#This Row],[Material]],T_BaseDatos[[Material]:[Factor de resistencia a la difusión del vapor de agua]],2,FALSE)))),""))) ->  | G39: =IF((IFERROR((VLOOKUP(Tabla13[[#This Row],[Material]],T_BaseDatos[[Material]:[Factor de resistencia a la difusión del vapor de agua]],3,FALSE)),""))=0,"",(IFERROR((VLOOKUP(Tabla13[[#This Row],[Material]],T_BaseDatos[[Material]:[Factor de resistencia a la difusión del vapor de agua]],3,FALSE)),""))) ->  | H39: =IF((IFERROR((IF((VLOOKUP(Tabla13[[#This Row],[Material]],T_BaseDatos[[Material]:[Factor de resistencia a la difusión del vapor de agua]],4,FALSE))=0,(Tabla13[[#This Row],[Espesor de cálculo (m)]]/Tabla13[[#This Row],[Conductividad térmica (W/mK)]]),(VLOOKUP(Tabla13[[#This Row],[Material]],T_BaseDatos[[Material]:[Factor de resistencia a la difusión del vapor de agua]],4,FALSE)))),""))=0,"",(IFERROR((IF((VLOOKUP(Tabla13[[#This Row],[Material]],T_BaseDatos[[Material]:[Factor de resistencia a la difusión del vapor de agua]],4,FALSE))=0,(Tabla13[[#This Row],[Espesor de cálculo (m)]]/Tabla13[[#This Row],[Conductividad térmica (W/mK)]]),(VLOOKUP(Tabla13[[#This Row],[Material]],T_BaseDatos[[Material]:[Factor de resistencia a la difusión del vapor de agua]],4,FALSE)))),""))) -> 
F40: =IF((IFERROR((IF((VLOOKUP(Tabla13[[#This Row],[Material]],T_BaseDatos[[Material]:[Factor de resistencia a la difusión del vapor de agua]],2,FALSE))=0,Tabla13[[#This Row],[Espesor (m)]],(VLOOKUP(Tabla13[[#This Row],[Material]],T_BaseDatos[[Material]:[Factor de resistencia a la difusión del vapor de agua]],2,FALSE)))),""))=0,"",(IFERROR((IF((VLOOKUP(Tabla13[[#This Row],[Material]],T_BaseDatos[[Material]:[Factor de resistencia a la difusión del vapor de agua]],2,FALSE))=0,Tabla13[[#This Row],[Espesor (m)]],(VLOOKUP(Tabla13[[#This Row],[Material]],T_BaseDatos[[Material]:[Factor de resistencia a la difusión del vapor de agua]],2,FALSE)))),""))) ->  | G40: =IF((IFERROR((VLOOKUP(Tabla13[[#This Row],[Material]],T_BaseDatos[[Material]:[Factor de resistencia a la difusión del vapor de agua]],3,FALSE)),""))=0,"",(IFERROR((VLOOKUP(Tabla13[[#This Row],[Material]],T_BaseDatos[[Material]:[Factor de resistencia a la difusión del vapor de agua]],3,FALSE)),""))) ->  | H40: =IF((IFERROR((IF((VLOOKUP(Tabla13[[#This Row],[Material]],T_BaseDatos[[Material]:[Factor de resistencia a la difusión del vapor de agua]],4,FALSE))=0,(Tabla13[[#This Row],[Espesor de cálculo (m)]]/Tabla13[[#This Row],[Conductividad térmica (W/mK)]]),(VLOOKUP(Tabla13[[#This Row],[Material]],T_BaseDatos[[Material]:[Factor de resistencia a la difusión del vapor de agua]],4,FALSE)))),""))=0,"",(IFERROR((IF((VLOOKUP(Tabla13[[#This Row],[Material]],T_BaseDatos[[Material]:[Factor de resistencia a la difusión del vapor de agua]],4,FALSE))=0,(Tabla13[[#This Row],[Espesor de cálculo (m)]]/Tabla13[[#This Row],[Conductividad térmica (W/mK)]]),(VLOOKUP(Tabla13[[#This Row],[Material]],T_BaseDatos[[Material]:[Factor de resistencia a la difusión del vapor de agua]],4,FALSE)))),""))) -> 
F41: =IF((IFERROR((IF((VLOOKUP(Tabla13[[#This Row],[Material]],T_BaseDatos[[Material]:[Factor de resistencia a la difusión del vapor de agua]],2,FALSE))=0,Tabla13[[#This Row],[Espesor (m)]],(VLOOKUP(Tabla13[[#This Row],[Material]],T_BaseDatos[[Material]:[Factor de resistencia a la difusión del vapor de agua]],2,FALSE)))),""))=0,"",(IFERROR((IF((VLOOKUP(Tabla13[[#This Row],[Material]],T_BaseDatos[[Material]:[Factor de resistencia a la difusión del vapor de agua]],2,FALSE))=0,Tabla13[[#This Row],[Espesor (m)]],(VLOOKUP(Tabla13[[#This Row],[Material]],T_BaseDatos[[Material]:[Factor de resistencia a la difusión del vapor de agua]],2,FALSE)))),""))) ->  | G41: =IF((IFERROR((VLOOKUP(Tabla13[[#This Row],[Material]],T_BaseDatos[[Material]:[Factor de resistencia a la difusión del vapor de agua]],3,FALSE)),""))=0,"",(IFERROR((VLOOKUP(Tabla13[[#This Row],[Material]],T_BaseDatos[[Material]:[Factor de resistencia a la difusión del vapor de agua]],3,FALSE)),""))) ->  | H41: =IF((IFERROR((IF((VLOOKUP(Tabla13[[#This Row],[Material]],T_BaseDatos[[Material]:[Factor de resistencia a la difusión del vapor de agua]],4,FALSE))=0,(Tabla13[[#This Row],[Espesor de cálculo (m)]]/Tabla13[[#This Row],[Conductividad térmica (W/mK)]]),(VLOOKUP(Tabla13[[#This Row],[Material]],T_BaseDatos[[Material]:[Factor de resistencia a la difusión del vapor de agua]],4,FALSE)))),""))=0,"",(IFERROR((IF((VLOOKUP(Tabla13[[#This Row],[Material]],T_BaseDatos[[Material]:[Factor de resistencia a la difusión del vapor de agua]],4,FALSE))=0,(Tabla13[[#This Row],[Espesor de cálculo (m)]]/Tabla13[[#This Row],[Conductividad térmica (W/mK)]]),(VLOOKUP(Tabla13[[#This Row],[Material]],T_BaseDatos[[Material]:[Factor de resistencia a la difusión del vapor de agua]],4,FALSE)))),""))) -> 
F42: =IF((IFERROR((IF((VLOOKUP(Tabla13[[#This Row],[Material]],T_BaseDatos[[Material]:[Factor de resistencia a la difusión del vapor de agua]],2,FALSE))=0,Tabla13[[#This Row],[Espesor (m)]],(VLOOKUP(Tabla13[[#This Row],[Material]],T_BaseDatos[[Material]:[Factor de resistencia a la difusión del vapor de agua]],2,FALSE)))),""))=0,"",(IFERROR((IF((VLOOKUP(Tabla13[[#This Row],[Material]],T_BaseDatos[[Material]:[Factor de resistencia a la difusión del vapor de agua]],2,FALSE))=0,Tabla13[[#This Row],[Espesor (m)]],(VLOOKUP(Tabla13[[#This Row],[Material]],T_BaseDatos[[Material]:[Factor de resistencia a la difusión del vapor de agua]],2,FALSE)))),""))) ->  | G42: =IF((IFERROR((VLOOKUP(Tabla13[[#This Row],[Material]],T_BaseDatos[[Material]:[Factor de resistencia a la difusión del vapor de agua]],3,FALSE)),""))=0,"",(IFERROR((VLOOKUP(Tabla13[[#This Row],[Material]],T_BaseDatos[[Material]:[Factor de resistencia a la difusión del vapor de agua]],3,FALSE)),""))) ->  | H42: =IF((IFERROR((IF((VLOOKUP(Tabla13[[#This Row],[Material]],T_BaseDatos[[Material]:[Factor de resistencia a la difusión del vapor de agua]],4,FALSE))=0,(Tabla13[[#This Row],[Espesor de cálculo (m)]]/Tabla13[[#This Row],[Conductividad térmica (W/mK)]]),(VLOOKUP(Tabla13[[#This Row],[Material]],T_BaseDatos[[Material]:[Factor de resistencia a la difusión del vapor de agua]],4,FALSE)))),""))=0,"",(IFERROR((IF((VLOOKUP(Tabla13[[#This Row],[Material]],T_BaseDatos[[Material]:[Factor de resistencia a la difusión del vapor de agua]],4,FALSE))=0,(Tabla13[[#This Row],[Espesor de cálculo (m)]]/Tabla13[[#This Row],[Conductividad térmica (W/mK)]]),(VLOOKUP(Tabla13[[#This Row],[Material]],T_BaseDatos[[Material]:[Factor de resistencia a la difusión del vapor de agua]],4,FALSE)))),""))) -> 
F43: =IF((IFERROR((IF((VLOOKUP(Tabla13[[#This Row],[Material]],T_BaseDatos[[Material]:[Factor de resistencia a la difusión del vapor de agua]],2,FALSE))=0,Tabla13[[#This Row],[Espesor (m)]],(VLOOKUP(Tabla13[[#This Row],[Material]],T_BaseDatos[[Material]:[Factor de resistencia a la difusión del vapor de agua]],2,FALSE)))),""))=0,"",(IFERROR((IF((VLOOKUP(Tabla13[[#This Row],[Material]],T_BaseDatos[[Material]:[Factor de resistencia a la difusión del vapor de agua]],2,FALSE))=0,Tabla13[[#This Row],[Espesor (m)]],(VLOOKUP(Tabla13[[#This Row],[Material]],T_BaseDatos[[Material]:[Factor de resistencia a la difusión del vapor de agua]],2,FALSE)))),""))) ->  | G43: =IF((IFERROR((VLOOKUP(Tabla13[[#This Row],[Material]],T_BaseDatos[[Material]:[Factor de resistencia a la difusión del vapor de agua]],3,FALSE)),""))=0,"",(IFERROR((VLOOKUP(Tabla13[[#This Row],[Material]],T_BaseDatos[[Material]:[Factor de resistencia a la difusión del vapor de agua]],3,FALSE)),""))) ->  | H43: =IF((IFERROR((IF((VLOOKUP(Tabla13[[#This Row],[Material]],T_BaseDatos[[Material]:[Factor de resistencia a la difusión del vapor de agua]],4,FALSE))=0,(Tabla13[[#This Row],[Espesor de cálculo (m)]]/Tabla13[[#This Row],[Conductividad térmica (W/mK)]]),(VLOOKUP(Tabla13[[#This Row],[Material]],T_BaseDatos[[Material]:[Factor de resistencia a la difusión del vapor de agua]],4,FALSE)))),""))=0,"",(IFERROR((IF((VLOOKUP(Tabla13[[#This Row],[Material]],T_BaseDatos[[Material]:[Factor de resistencia a la difusión del vapor de agua]],4,FALSE))=0,(Tabla13[[#This Row],[Espesor de cálculo (m)]]/Tabla13[[#This Row],[Conductividad térmica (W/mK)]]),(VLOOKUP(Tabla13[[#This Row],[Material]],T_BaseDatos[[Material]:[Factor de resistencia a la difusión del vapor de agua]],4,FALSE)))),""))) -> 
F44: =IF((IFERROR((IF((VLOOKUP(Tabla13[[#This Row],[Material]],T_BaseDatos[[Material]:[Factor de resistencia a la difusión del vapor de agua]],2,FALSE))=0,Tabla13[[#This Row],[Espesor (m)]],(VLOOKUP(Tabla13[[#This Row],[Material]],T_BaseDatos[[Material]:[Factor de resistencia a la difusión del vapor de agua]],2,FALSE)))),""))=0,"",(IFERROR((IF((VLOOKUP(Tabla13[[#This Row],[Material]],T_BaseDatos[[Material]:[Factor de resistencia a la difusión del vapor de agua]],2,FALSE))=0,Tabla13[[#This Row],[Espesor (m)]],(VLOOKUP(Tabla13[[#This Row],[Material]],T_BaseDatos[[Material]:[Factor de resistencia a la difusión del vapor de agua]],2,FALSE)))),""))) ->  | G44: =IF((IFERROR((VLOOKUP(Tabla13[[#This Row],[Material]],T_BaseDatos[[Material]:[Factor de resistencia a la difusión del vapor de agua]],3,FALSE)),""))=0,"",(IFERROR((VLOOKUP(Tabla13[[#This Row],[Material]],T_BaseDatos[[Material]:[Factor de resistencia a la difusión del vapor de agua]],3,FALSE)),""))) ->  | H44: =IF((IFERROR((IF((VLOOKUP(Tabla13[[#This Row],[Material]],T_BaseDatos[[Material]:[Factor de resistencia a la difusión del vapor de agua]],4,FALSE))=0,(Tabla13[[#This Row],[Espesor de cálculo (m)]]/Tabla13[[#This Row],[Conductividad térmica (W/mK)]]),(VLOOKUP(Tabla13[[#This Row],[Material]],T_BaseDatos[[Material]:[Factor de resistencia a la difusión del vapor de agua]],4,FALSE)))),""))=0,"",(IFERROR((IF((VLOOKUP(Tabla13[[#This Row],[Material]],T_BaseDatos[[Material]:[Factor de resistencia a la difusión del vapor de agua]],4,FALSE))=0,(Tabla13[[#This Row],[Espesor de cálculo (m)]]/Tabla13[[#This Row],[Conductividad térmica (W/mK)]]),(VLOOKUP(Tabla13[[#This Row],[Material]],T_BaseDatos[[Material]:[Factor de resistencia a la difusión del vapor de agua]],4,FALSE)))),""))) -> 
F45: =IF((IFERROR((IF((VLOOKUP(Tabla13[[#This Row],[Material]],T_BaseDatos[[Material]:[Factor de resistencia a la difusión del vapor de agua]],2,FALSE))=0,Tabla13[[#This Row],[Espesor (m)]],(VLOOKUP(Tabla13[[#This Row],[Material]],T_BaseDatos[[Material]:[Factor de resistencia a la difusión del vapor de agua]],2,FALSE)))),""))=0,"",(IFERROR((IF((VLOOKUP(Tabla13[[#This Row],[Material]],T_BaseDatos[[Material]:[Factor de resistencia a la difusión del vapor de agua]],2,FALSE))=0,Tabla13[[#This Row],[Espesor (m)]],(VLOOKUP(Tabla13[[#This Row],[Material]],T_BaseDatos[[Material]:[Factor de resistencia a la difusión del vapor de agua]],2,FALSE)))),""))) ->  | G45: =IF((IFERROR((VLOOKUP(Tabla13[[#This Row],[Material]],T_BaseDatos[[Material]:[Factor de resistencia a la difusión del vapor de agua]],3,FALSE)),""))=0,"",(IFERROR((VLOOKUP(Tabla13[[#This Row],[Material]],T_BaseDatos[[Material]:[Factor de resistencia a la difusión del vapor de agua]],3,FALSE)),""))) ->  | H45: =IF((IFERROR((IF((VLOOKUP(Tabla13[[#This Row],[Material]],T_BaseDatos[[Material]:[Factor de resistencia a la difusión del vapor de agua]],4,FALSE))=0,(Tabla13[[#This Row],[Espesor de cálculo (m)]]/Tabla13[[#This Row],[Conductividad térmica (W/mK)]]),(VLOOKUP(Tabla13[[#This Row],[Material]],T_BaseDatos[[Material]:[Factor de resistencia a la difusión del vapor de agua]],4,FALSE)))),""))=0,"",(IFERROR((IF((VLOOKUP(Tabla13[[#This Row],[Material]],T_BaseDatos[[Material]:[Factor de resistencia a la difusión del vapor de agua]],4,FALSE))=0,(Tabla13[[#This Row],[Espesor de cálculo (m)]]/Tabla13[[#This Row],[Conductividad térmica (W/mK)]]),(VLOOKUP(Tabla13[[#This Row],[Material]],T_BaseDatos[[Material]:[Factor de resistencia a la difusión del vapor de agua]],4,FALSE)))),""))) -> 
F46: =IF((IFERROR((IF((VLOOKUP(Tabla13[[#This Row],[Material]],T_BaseDatos[[Material]:[Factor de resistencia a la difusión del vapor de agua]],2,FALSE))=0,Tabla13[[#This Row],[Espesor (m)]],(VLOOKUP(Tabla13[[#This Row],[Material]],T_BaseDatos[[Material]:[Factor de resistencia a la difusión del vapor de agua]],2,FALSE)))),""))=0,"",(IFERROR((IF((VLOOKUP(Tabla13[[#This Row],[Material]],T_BaseDatos[[Material]:[Factor de resistencia a la difusión del vapor de agua]],2,FALSE))=0,Tabla13[[#This Row],[Espesor (m)]],(VLOOKUP(Tabla13[[#This Row],[Material]],T_BaseDatos[[Material]:[Factor de resistencia a la difusión del vapor de agua]],2,FALSE)))),""))) ->  | G46: =IF((IFERROR((VLOOKUP(Tabla13[[#This Row],[Material]],T_BaseDatos[[Material]:[Factor de resistencia a la difusión del vapor de agua]],3,FALSE)),""))=0,"",(IFERROR((VLOOKUP(Tabla13[[#This Row],[Material]],T_BaseDatos[[Material]:[Factor de resistencia a la difusión del vapor de agua]],3,FALSE)),""))) ->  | H46: =IF((IFERROR((IF((VLOOKUP(Tabla13[[#This Row],[Material]],T_BaseDatos[[Material]:[Factor de resistencia a la difusión del vapor de agua]],4,FALSE))=0,(Tabla13[[#This Row],[Espesor de cálculo (m)]]/Tabla13[[#This Row],[Conductividad térmica (W/mK)]]),(VLOOKUP(Tabla13[[#This Row],[Material]],T_BaseDatos[[Material]:[Factor de resistencia a la difusión del vapor de agua]],4,FALSE)))),""))=0,"",(IFERROR((IF((VLOOKUP(Tabla13[[#This Row],[Material]],T_BaseDatos[[Material]:[Factor de resistencia a la difusión del vapor de agua]],4,FALSE))=0,(Tabla13[[#This Row],[Espesor de cálculo (m)]]/Tabla13[[#This Row],[Conductividad térmica (W/mK)]]),(VLOOKUP(Tabla13[[#This Row],[Material]],T_BaseDatos[[Material]:[Factor de resistencia a la difusión del vapor de agua]],4,FALSE)))),""))) -> 
F47: =IF((IFERROR((IF((VLOOKUP(Tabla13[[#This Row],[Material]],T_BaseDatos[[Material]:[Factor de resistencia a la difusión del vapor de agua]],2,FALSE))=0,Tabla13[[#This Row],[Espesor (m)]],(VLOOKUP(Tabla13[[#This Row],[Material]],T_BaseDatos[[Material]:[Factor de resistencia a la difusión del vapor de agua]],2,FALSE)))),""))=0,"",(IFERROR((IF((VLOOKUP(Tabla13[[#This Row],[Material]],T_BaseDatos[[Material]:[Factor de resistencia a la difusión del vapor de agua]],2,FALSE))=0,Tabla13[[#This Row],[Espesor (m)]],(VLOOKUP(Tabla13[[#This Row],[Material]],T_BaseDatos[[Material]:[Factor de resistencia a la difusión del vapor de agua]],2,FALSE)))),""))) ->  | G47: =IF((IFERROR((VLOOKUP(Tabla13[[#This Row],[Material]],T_BaseDatos[[Material]:[Factor de resistencia a la difusión del vapor de agua]],3,FALSE)),""))=0,"",(IFERROR((VLOOKUP(Tabla13[[#This Row],[Material]],T_BaseDatos[[Material]:[Factor de resistencia a la difusión del vapor de agua]],3,FALSE)),""))) ->  | H47: =IF((IFERROR((IF((VLOOKUP(Tabla13[[#This Row],[Material]],T_BaseDatos[[Material]:[Factor de resistencia a la difusión del vapor de agua]],4,FALSE))=0,(Tabla13[[#This Row],[Espesor de cálculo (m)]]/Tabla13[[#This Row],[Conductividad térmica (W/mK)]]),(VLOOKUP(Tabla13[[#This Row],[Material]],T_BaseDatos[[Material]:[Factor de resistencia a la difusión del vapor de agua]],4,FALSE)))),""))=0,"",(IFERROR((IF((VLOOKUP(Tabla13[[#This Row],[Material]],T_BaseDatos[[Material]:[Factor de resistencia a la difusión del vapor de agua]],4,FALSE))=0,(Tabla13[[#This Row],[Espesor de cálculo (m)]]/Tabla13[[#This Row],[Conductividad térmica (W/mK)]]),(VLOOKUP(Tabla13[[#This Row],[Material]],T_BaseDatos[[Material]:[Factor de resistencia a la difusión del vapor de agua]],4,FALSE)))),""))) -> 
F48: =IF((IFERROR((IF((VLOOKUP(Tabla13[[#This Row],[Material]],T_BaseDatos[[Material]:[Factor de resistencia a la difusión del vapor de agua]],2,FALSE))=0,Tabla13[[#This Row],[Espesor (m)]],(VLOOKUP(Tabla13[[#This Row],[Material]],T_BaseDatos[[Material]:[Factor de resistencia a la difusión del vapor de agua]],2,FALSE)))),""))=0,"",(IFERROR((IF((VLOOKUP(Tabla13[[#This Row],[Material]],T_BaseDatos[[Material]:[Factor de resistencia a la difusión del vapor de agua]],2,FALSE))=0,Tabla13[[#This Row],[Espesor (m)]],(VLOOKUP(Tabla13[[#This Row],[Material]],T_BaseDatos[[Material]:[Factor de resistencia a la difusión del vapor de agua]],2,FALSE)))),""))) ->  | G48: =IF((IFERROR((VLOOKUP(Tabla13[[#This Row],[Material]],T_BaseDatos[[Material]:[Factor de resistencia a la difusión del vapor de agua]],3,FALSE)),""))=0,"",(IFERROR((VLOOKUP(Tabla13[[#This Row],[Material]],T_BaseDatos[[Material]:[Factor de resistencia a la difusión del vapor de agua]],3,FALSE)),""))) ->  | H48: =IF((IFERROR((IF((VLOOKUP(Tabla13[[#This Row],[Material]],T_BaseDatos[[Material]:[Factor de resistencia a la difusión del vapor de agua]],4,FALSE))=0,(Tabla13[[#This Row],[Espesor de cálculo (m)]]/Tabla13[[#This Row],[Conductividad térmica (W/mK)]]),(VLOOKUP(Tabla13[[#This Row],[Material]],T_BaseDatos[[Material]:[Factor de resistencia a la difusión del vapor de agua]],4,FALSE)))),""))=0,"",(IFERROR((IF((VLOOKUP(Tabla13[[#This Row],[Material]],T_BaseDatos[[Material]:[Factor de resistencia a la difusión del vapor de agua]],4,FALSE))=0,(Tabla13[[#This Row],[Espesor de cálculo (m)]]/Tabla13[[#This Row],[Conductividad térmica (W/mK)]]),(VLOOKUP(Tabla13[[#This Row],[Material]],T_BaseDatos[[Material]:[Factor de resistencia a la difusión del vapor de agua]],4,FALSE)))),""))) -> 
F49: =IF((IFERROR((IF((VLOOKUP(Tabla13[[#This Row],[Material]],T_BaseDatos[[Material]:[Factor de resistencia a la difusión del vapor de agua]],2,FALSE))=0,Tabla13[[#This Row],[Espesor (m)]],(VLOOKUP(Tabla13[[#This Row],[Material]],T_BaseDatos[[Material]:[Factor de resistencia a la difusión del vapor de agua]],2,FALSE)))),""))=0,"",(IFERROR((IF((VLOOKUP(Tabla13[[#This Row],[Material]],T_BaseDatos[[Material]:[Factor de resistencia a la difusión del vapor de agua]],2,FALSE))=0,Tabla13[[#This Row],[Espesor (m)]],(VLOOKUP(Tabla13[[#This Row],[Material]],T_BaseDatos[[Material]:[Factor de resistencia a la difusión del vapor de agua]],2,FALSE)))),""))) ->  | G49: =IF((IFERROR((VLOOKUP(Tabla13[[#This Row],[Material]],T_BaseDatos[[Material]:[Factor de resistencia a la difusión del vapor de agua]],3,FALSE)),""))=0,"",(IFERROR((VLOOKUP(Tabla13[[#This Row],[Material]],T_BaseDatos[[Material]:[Factor de resistencia a la difusión del vapor de agua]],3,FALSE)),""))) ->  | H49: =IF((IFERROR((IF((VLOOKUP(Tabla13[[#This Row],[Material]],T_BaseDatos[[Material]:[Factor de resistencia a la difusión del vapor de agua]],4,FALSE))=0,(Tabla13[[#This Row],[Espesor de cálculo (m)]]/Tabla13[[#This Row],[Conductividad térmica (W/mK)]]),(VLOOKUP(Tabla13[[#This Row],[Material]],T_BaseDatos[[Material]:[Factor de resistencia a la difusión del vapor de agua]],4,FALSE)))),""))=0,"",(IFERROR((IF((VLOOKUP(Tabla13[[#This Row],[Material]],T_BaseDatos[[Material]:[Factor de resistencia a la difusión del vapor de agua]],4,FALSE))=0,(Tabla13[[#This Row],[Espesor de cálculo (m)]]/Tabla13[[#This Row],[Conductividad térmica (W/mK)]]),(VLOOKUP(Tabla13[[#This Row],[Material]],T_BaseDatos[[Material]:[Factor de resistencia a la difusión del vapor de agua]],4,FALSE)))),""))) -> 
F50: =IF((IFERROR((IF((VLOOKUP(Tabla13[[#This Row],[Material]],T_BaseDatos[[Material]:[Factor de resistencia a la difusión del vapor de agua]],2,FALSE))=0,Tabla13[[#This Row],[Espesor (m)]],(VLOOKUP(Tabla13[[#This Row],[Material]],T_BaseDatos[[Material]:[Factor de resistencia a la difusión del vapor de agua]],2,FALSE)))),""))=0,"",(IFERROR((IF((VLOOKUP(Tabla13[[#This Row],[Material]],T_BaseDatos[[Material]:[Factor de resistencia a la difusión del vapor de agua]],2,FALSE))=0,Tabla13[[#This Row],[Espesor (m)]],(VLOOKUP(Tabla13[[#This Row],[Material]],T_BaseDatos[[Material]:[Factor de resistencia a la difusión del vapor de agua]],2,FALSE)))),""))) ->  | G50: =IF((IFERROR((VLOOKUP(Tabla13[[#This Row],[Material]],T_BaseDatos[[Material]:[Factor de resistencia a la difusión del vapor de agua]],3,FALSE)),""))=0,"",(IFERROR((VLOOKUP(Tabla13[[#This Row],[Material]],T_BaseDatos[[Material]:[Factor de resistencia a la difusión del vapor de agua]],3,FALSE)),""))) ->  | H50: =IF((IFERROR((IF((VLOOKUP(Tabla13[[#This Row],[Material]],T_BaseDatos[[Material]:[Factor de resistencia a la difusión del vapor de agua]],4,FALSE))=0,(Tabla13[[#This Row],[Espesor de cálculo (m)]]/Tabla13[[#This Row],[Conductividad térmica (W/mK)]]),(VLOOKUP(Tabla13[[#This Row],[Material]],T_BaseDatos[[Material]:[Factor de resistencia a la difusión del vapor de agua]],4,FALSE)))),""))=0,"",(IFERROR((IF((VLOOKUP(Tabla13[[#This Row],[Material]],T_BaseDatos[[Material]:[Factor de resistencia a la difusión del vapor de agua]],4,FALSE))=0,(Tabla13[[#This Row],[Espesor de cálculo (m)]]/Tabla13[[#This Row],[Conductividad térmica (W/mK)]]),(VLOOKUP(Tabla13[[#This Row],[Material]],T_BaseDatos[[Material]:[Factor de resistencia a la difusión del vapor de agua]],4,FALSE)))),""))) -> 
F51: =IF((IFERROR((IF((VLOOKUP(Tabla13[[#This Row],[Material]],T_BaseDatos[[Material]:[Factor de resistencia a la difusión del vapor de agua]],2,FALSE))=0,Tabla13[[#This Row],[Espesor (m)]],(VLOOKUP(Tabla13[[#This Row],[Material]],T_BaseDatos[[Material]:[Factor de resistencia a la difusión del vapor de agua]],2,FALSE)))),""))=0,"",(IFERROR((IF((VLOOKUP(Tabla13[[#This Row],[Material]],T_BaseDatos[[Material]:[Factor de resistencia a la difusión del vapor de agua]],2,FALSE))=0,Tabla13[[#This Row],[Espesor (m)]],(VLOOKUP(Tabla13[[#This Row],[Material]],T_BaseDatos[[Material]:[Factor de resistencia a la difusión del vapor de agua]],2,FALSE)))),""))) ->  | G51: =IF((IFERROR((VLOOKUP(Tabla13[[#This Row],[Material]],T_BaseDatos[[Material]:[Factor de resistencia a la difusión del vapor de agua]],3,FALSE)),""))=0,"",(IFERROR((VLOOKUP(Tabla13[[#This Row],[Material]],T_BaseDatos[[Material]:[Factor de resistencia a la difusión del vapor de agua]],3,FALSE)),""))) ->  | H51: =IF((IFERROR((IF((VLOOKUP(Tabla13[[#This Row],[Material]],T_BaseDatos[[Material]:[Factor de resistencia a la difusión del vapor de agua]],4,FALSE))=0,(Tabla13[[#This Row],[Espesor de cálculo (m)]]/Tabla13[[#This Row],[Conductividad térmica (W/mK)]]),(VLOOKUP(Tabla13[[#This Row],[Material]],T_BaseDatos[[Material]:[Factor de resistencia a la difusión del vapor de agua]],4,FALSE)))),""))=0,"",(IFERROR((IF((VLOOKUP(Tabla13[[#This Row],[Material]],T_BaseDatos[[Material]:[Factor de resistencia a la difusión del vapor de agua]],4,FALSE))=0,(Tabla13[[#This Row],[Espesor de cálculo (m)]]/Tabla13[[#This Row],[Conductividad térmica (W/mK)]]),(VLOOKUP(Tabla13[[#This Row],[Material]],T_BaseDatos[[Material]:[Factor de resistencia a la difusión del vapor de agua]],4,FALSE)))),""))) -> 
F52: =IF((IFERROR((IF((VLOOKUP(Tabla13[[#This Row],[Material]],T_BaseDatos[[Material]:[Factor de resistencia a la difusión del vapor de agua]],2,FALSE))=0,Tabla13[[#This Row],[Espesor (m)]],(VLOOKUP(Tabla13[[#This Row],[Material]],T_BaseDatos[[Material]:[Factor de resistencia a la difusión del vapor de agua]],2,FALSE)))),""))=0,"",(IFERROR((IF((VLOOKUP(Tabla13[[#This Row],[Material]],T_BaseDatos[[Material]:[Factor de resistencia a la difusión del vapor de agua]],2,FALSE))=0,Tabla13[[#This Row],[Espesor (m)]],(VLOOKUP(Tabla13[[#This Row],[Material]],T_BaseDatos[[Material]:[Factor de resistencia a la difusión del vapor de agua]],2,FALSE)))),""))) ->  | G52: =IF((IFERROR((VLOOKUP(Tabla13[[#This Row],[Material]],T_BaseDatos[[Material]:[Factor de resistencia a la difusión del vapor de agua]],3,FALSE)),""))=0,"",(IFERROR((VLOOKUP(Tabla13[[#This Row],[Material]],T_BaseDatos[[Material]:[Factor de resistencia a la difusión del vapor de agua]],3,FALSE)),""))) ->  | H52: =IF((IFERROR((IF((VLOOKUP(Tabla13[[#This Row],[Material]],T_BaseDatos[[Material]:[Factor de resistencia a la difusión del vapor de agua]],4,FALSE))=0,(Tabla13[[#This Row],[Espesor de cálculo (m)]]/Tabla13[[#This Row],[Conductividad térmica (W/mK)]]),(VLOOKUP(Tabla13[[#This Row],[Material]],T_BaseDatos[[Material]:[Factor de resistencia a la difusión del vapor de agua]],4,FALSE)))),""))=0,"",(IFERROR((IF((VLOOKUP(Tabla13[[#This Row],[Material]],T_BaseDatos[[Material]:[Factor de resistencia a la difusión del vapor de agua]],4,FALSE))=0,(Tabla13[[#This Row],[Espesor de cálculo (m)]]/Tabla13[[#This Row],[Conductividad térmica (W/mK)]]),(VLOOKUP(Tabla13[[#This Row],[Material]],T_BaseDatos[[Material]:[Factor de resistencia a la difusión del vapor de agua]],4,FALSE)))),""))) -> 
F53: =IF((IFERROR((IF((VLOOKUP(Tabla13[[#This Row],[Material]],T_BaseDatos[[Material]:[Factor de resistencia a la difusión del vapor de agua]],2,FALSE))=0,Tabla13[[#This Row],[Espesor (m)]],(VLOOKUP(Tabla13[[#This Row],[Material]],T_BaseDatos[[Material]:[Factor de resistencia a la difusión del vapor de agua]],2,FALSE)))),""))=0,"",(IFERROR((IF((VLOOKUP(Tabla13[[#This Row],[Material]],T_BaseDatos[[Material]:[Factor de resistencia a la difusión del vapor de agua]],2,FALSE))=0,Tabla13[[#This Row],[Espesor (m)]],(VLOOKUP(Tabla13[[#This Row],[Material]],T_BaseDatos[[Material]:[Factor de resistencia a la difusión del vapor de agua]],2,FALSE)))),""))) ->  | G53: =IF((IFERROR((VLOOKUP(Tabla13[[#This Row],[Material]],T_BaseDatos[[Material]:[Factor de resistencia a la difusión del vapor de agua]],3,FALSE)),""))=0,"",(IFERROR((VLOOKUP(Tabla13[[#This Row],[Material]],T_BaseDatos[[Material]:[Factor de resistencia a la difusión del vapor de agua]],3,FALSE)),""))) ->  | H53: =IF((IFERROR((IF((VLOOKUP(Tabla13[[#This Row],[Material]],T_BaseDatos[[Material]:[Factor de resistencia a la difusión del vapor de agua]],4,FALSE))=0,(Tabla13[[#This Row],[Espesor de cálculo (m)]]/Tabla13[[#This Row],[Conductividad térmica (W/mK)]]),(VLOOKUP(Tabla13[[#This Row],[Material]],T_BaseDatos[[Material]:[Factor de resistencia a la difusión del vapor de agua]],4,FALSE)))),""))=0,"",(IFERROR((IF((VLOOKUP(Tabla13[[#This Row],[Material]],T_BaseDatos[[Material]:[Factor de resistencia a la difusión del vapor de agua]],4,FALSE))=0,(Tabla13[[#This Row],[Espesor de cálculo (m)]]/Tabla13[[#This Row],[Conductividad térmica (W/mK)]]),(VLOOKUP(Tabla13[[#This Row],[Material]],T_BaseDatos[[Material]:[Factor de resistencia a la difusión del vapor de agua]],4,FALSE)))),""))) -> 
F54: =IF((IFERROR((IF((VLOOKUP(Tabla13[[#This Row],[Material]],T_BaseDatos[[Material]:[Factor de resistencia a la difusión del vapor de agua]],2,FALSE))=0,Tabla13[[#This Row],[Espesor (m)]],(VLOOKUP(Tabla13[[#This Row],[Material]],T_BaseDatos[[Material]:[Factor de resistencia a la difusión del vapor de agua]],2,FALSE)))),""))=0,"",(IFERROR((IF((VLOOKUP(Tabla13[[#This Row],[Material]],T_BaseDatos[[Material]:[Factor de resistencia a la difusión del vapor de agua]],2,FALSE))=0,Tabla13[[#This Row],[Espesor (m)]],(VLOOKUP(Tabla13[[#This Row],[Material]],T_BaseDatos[[Material]:[Factor de resistencia a la difusión del vapor de agua]],2,FALSE)))),""))) ->  | G54: =IF((IFERROR((VLOOKUP(Tabla13[[#This Row],[Material]],T_BaseDatos[[Material]:[Factor de resistencia a la difusión del vapor de agua]],3,FALSE)),""))=0,"",(IFERROR((VLOOKUP(Tabla13[[#This Row],[Material]],T_BaseDatos[[Material]:[Factor de resistencia a la difusión del vapor de agua]],3,FALSE)),""))) ->  | H54: =IF((IFERROR((IF((VLOOKUP(Tabla13[[#This Row],[Material]],T_BaseDatos[[Material]:[Factor de resistencia a la difusión del vapor de agua]],4,FALSE))=0,(Tabla13[[#This Row],[Espesor de cálculo (m)]]/Tabla13[[#This Row],[Conductividad térmica (W/mK)]]),(VLOOKUP(Tabla13[[#This Row],[Material]],T_BaseDatos[[Material]:[Factor de resistencia a la difusión del vapor de agua]],4,FALSE)))),""))=0,"",(IFERROR((IF((VLOOKUP(Tabla13[[#This Row],[Material]],T_BaseDatos[[Material]:[Factor de resistencia a la difusión del vapor de agua]],4,FALSE))=0,(Tabla13[[#This Row],[Espesor de cálculo (m)]]/Tabla13[[#This Row],[Conductividad térmica (W/mK)]]),(VLOOKUP(Tabla13[[#This Row],[Material]],T_BaseDatos[[Material]:[Factor de resistencia a la difusión del vapor de agua]],4,FALSE)))),""))) -> 
F55: =IF((IFERROR((IF((VLOOKUP(Tabla13[[#This Row],[Material]],T_BaseDatos[[Material]:[Factor de resistencia a la difusión del vapor de agua]],2,FALSE))=0,Tabla13[[#This Row],[Espesor (m)]],(VLOOKUP(Tabla13[[#This Row],[Material]],T_BaseDatos[[Material]:[Factor de resistencia a la difusión del vapor de agua]],2,FALSE)))),""))=0,"",(IFERROR((IF((VLOOKUP(Tabla13[[#This Row],[Material]],T_BaseDatos[[Material]:[Factor de resistencia a la difusión del vapor de agua]],2,FALSE))=0,Tabla13[[#This Row],[Espesor (m)]],(VLOOKUP(Tabla13[[#This Row],[Material]],T_BaseDatos[[Material]:[Factor de resistencia a la difusión del vapor de agua]],2,FALSE)))),""))) ->  | G55: =IF((IFERROR((VLOOKUP(Tabla13[[#This Row],[Material]],T_BaseDatos[[Material]:[Factor de resistencia a la difusión del vapor de agua]],3,FALSE)),""))=0,"",(IFERROR((VLOOKUP(Tabla13[[#This Row],[Material]],T_BaseDatos[[Material]:[Factor de resistencia a la difusión del vapor de agua]],3,FALSE)),""))) ->  | H55: =IF((IFERROR((IF((VLOOKUP(Tabla13[[#This Row],[Material]],T_BaseDatos[[Material]:[Factor de resistencia a la difusión del vapor de agua]],4,FALSE))=0,(Tabla13[[#This Row],[Espesor de cálculo (m)]]/Tabla13[[#This Row],[Conductividad térmica (W/mK)]]),(VLOOKUP(Tabla13[[#This Row],[Material]],T_BaseDatos[[Material]:[Factor de resistencia a la difusión del vapor de agua]],4,FALSE)))),""))=0,"",(IFERROR((IF((VLOOKUP(Tabla13[[#This Row],[Material]],T_BaseDatos[[Material]:[Factor de resistencia a la difusión del vapor de agua]],4,FALSE))=0,(Tabla13[[#This Row],[Espesor de cálculo (m)]]/Tabla13[[#This Row],[Conductividad térmica (W/mK)]]),(VLOOKUP(Tabla13[[#This Row],[Material]],T_BaseDatos[[Material]:[Factor de resistencia a la difusión del vapor de agua]],4,FALSE)))),""))) -> 
F56: =IF((IFERROR((IF((VLOOKUP(Tabla13[[#This Row],[Material]],T_BaseDatos[[Material]:[Factor de resistencia a la difusión del vapor de agua]],2,FALSE))=0,Tabla13[[#This Row],[Espesor (m)]],(VLOOKUP(Tabla13[[#This Row],[Material]],T_BaseDatos[[Material]:[Factor de resistencia a la difusión del vapor de agua]],2,FALSE)))),""))=0,"",(IFERROR((IF((VLOOKUP(Tabla13[[#This Row],[Material]],T_BaseDatos[[Material]:[Factor de resistencia a la difusión del vapor de agua]],2,FALSE))=0,Tabla13[[#This Row],[Espesor (m)]],(VLOOKUP(Tabla13[[#This Row],[Material]],T_BaseDatos[[Material]:[Factor de resistencia a la difusión del vapor de agua]],2,FALSE)))),""))) ->  | G56: =IF((IFERROR((VLOOKUP(Tabla13[[#This Row],[Material]],T_BaseDatos[[Material]:[Factor de resistencia a la difusión del vapor de agua]],3,FALSE)),""))=0,"",(IFERROR((VLOOKUP(Tabla13[[#This Row],[Material]],T_BaseDatos[[Material]:[Factor de resistencia a la difusión del vapor de agua]],3,FALSE)),""))) ->  | H56: =IF((IFERROR((IF((VLOOKUP(Tabla13[[#This Row],[Material]],T_BaseDatos[[Material]:[Factor de resistencia a la difusión del vapor de agua]],4,FALSE))=0,(Tabla13[[#This Row],[Espesor de cálculo (m)]]/Tabla13[[#This Row],[Conductividad térmica (W/mK)]]),(VLOOKUP(Tabla13[[#This Row],[Material]],T_BaseDatos[[Material]:[Factor de resistencia a la difusión del vapor de agua]],4,FALSE)))),""))=0,"",(IFERROR((IF((VLOOKUP(Tabla13[[#This Row],[Material]],T_BaseDatos[[Material]:[Factor de resistencia a la difusión del vapor de agua]],4,FALSE))=0,(Tabla13[[#This Row],[Espesor de cálculo (m)]]/Tabla13[[#This Row],[Conductividad térmica (W/mK)]]),(VLOOKUP(Tabla13[[#This Row],[Material]],T_BaseDatos[[Material]:[Factor de resistencia a la difusión del vapor de agua]],4,FALSE)))),""))) -> 
F57: =IF((IFERROR((IF((VLOOKUP(Tabla13[[#This Row],[Material]],T_BaseDatos[[Material]:[Factor de resistencia a la difusión del vapor de agua]],2,FALSE))=0,Tabla13[[#This Row],[Espesor (m)]],(VLOOKUP(Tabla13[[#This Row],[Material]],T_BaseDatos[[Material]:[Factor de resistencia a la difusión del vapor de agua]],2,FALSE)))),""))=0,"",(IFERROR((IF((VLOOKUP(Tabla13[[#This Row],[Material]],T_BaseDatos[[Material]:[Factor de resistencia a la difusión del vapor de agua]],2,FALSE))=0,Tabla13[[#This Row],[Espesor (m)]],(VLOOKUP(Tabla13[[#This Row],[Material]],T_BaseDatos[[Material]:[Factor de resistencia a la difusión del vapor de agua]],2,FALSE)))),""))) ->  | G57: =IF((IFERROR((VLOOKUP(Tabla13[[#This Row],[Material]],T_BaseDatos[[Material]:[Factor de resistencia a la difusión del vapor de agua]],3,FALSE)),""))=0,"",(IFERROR((VLOOKUP(Tabla13[[#This Row],[Material]],T_BaseDatos[[Material]:[Factor de resistencia a la difusión del vapor de agua]],3,FALSE)),""))) ->  | H57: =IF((IFERROR((IF((VLOOKUP(Tabla13[[#This Row],[Material]],T_BaseDatos[[Material]:[Factor de resistencia a la difusión del vapor de agua]],4,FALSE))=0,(Tabla13[[#This Row],[Espesor de cálculo (m)]]/Tabla13[[#This Row],[Conductividad térmica (W/mK)]]),(VLOOKUP(Tabla13[[#This Row],[Material]],T_BaseDatos[[Material]:[Factor de resistencia a la difusión del vapor de agua]],4,FALSE)))),""))=0,"",(IFERROR((IF((VLOOKUP(Tabla13[[#This Row],[Material]],T_BaseDatos[[Material]:[Factor de resistencia a la difusión del vapor de agua]],4,FALSE))=0,(Tabla13[[#This Row],[Espesor de cálculo (m)]]/Tabla13[[#This Row],[Conductividad térmica (W/mK)]]),(VLOOKUP(Tabla13[[#This Row],[Material]],T_BaseDatos[[Material]:[Factor de resistencia a la difusión del vapor de agua]],4,FALSE)))),""))) -> 
F58: =IF((IFERROR((IF((VLOOKUP(Tabla13[[#This Row],[Material]],T_BaseDatos[[Material]:[Factor de resistencia a la difusión del vapor de agua]],2,FALSE))=0,Tabla13[[#This Row],[Espesor (m)]],(VLOOKUP(Tabla13[[#This Row],[Material]],T_BaseDatos[[Material]:[Factor de resistencia a la difusión del vapor de agua]],2,FALSE)))),""))=0,"",(IFERROR((IF((VLOOKUP(Tabla13[[#This Row],[Material]],T_BaseDatos[[Material]:[Factor de resistencia a la difusión del vapor de agua]],2,FALSE))=0,Tabla13[[#This Row],[Espesor (m)]],(VLOOKUP(Tabla13[[#This Row],[Material]],T_BaseDatos[[Material]:[Factor de resistencia a la difusión del vapor de agua]],2,FALSE)))),""))) ->  | G58: =IF((IFERROR((VLOOKUP(Tabla13[[#This Row],[Material]],T_BaseDatos[[Material]:[Factor de resistencia a la difusión del vapor de agua]],3,FALSE)),""))=0,"",(IFERROR((VLOOKUP(Tabla13[[#This Row],[Material]],T_BaseDatos[[Material]:[Factor de resistencia a la difusión del vapor de agua]],3,FALSE)),""))) ->  | H58: =IF((IFERROR((IF((VLOOKUP(Tabla13[[#This Row],[Material]],T_BaseDatos[[Material]:[Factor de resistencia a la difusión del vapor de agua]],4,FALSE))=0,(Tabla13[[#This Row],[Espesor de cálculo (m)]]/Tabla13[[#This Row],[Conductividad térmica (W/mK)]]),(VLOOKUP(Tabla13[[#This Row],[Material]],T_BaseDatos[[Material]:[Factor de resistencia a la difusión del vapor de agua]],4,FALSE)))),""))=0,"",(IFERROR((IF((VLOOKUP(Tabla13[[#This Row],[Material]],T_BaseDatos[[Material]:[Factor de resistencia a la difusión del vapor de agua]],4,FALSE))=0,(Tabla13[[#This Row],[Espesor de cálculo (m)]]/Tabla13[[#This Row],[Conductividad térmica (W/mK)]]),(VLOOKUP(Tabla13[[#This Row],[Material]],T_BaseDatos[[Material]:[Factor de resistencia a la difusión del vapor de agua]],4,FALSE)))),""))) -> 

Sheet Datos necesarios
C3: DATOS NECESARIOS PARA EL CÁLCULO DE UN CERRAMIENTO EN CONTACTO CON ESPACIO NO HABITABLE | M3: COMPROBACIÓN DE TIPO DE SUELO A EFECTOS DE CÁLCULO
C7: Superficie entre espacio habitable y no habitable (m²)
C9: Superficie entre espacio no habitable y el exterior (m²)
R10: Altura "h" (m)
C11: Nivel de estanqueidad del espacio no habitable
C13: Posición del aislamiento | R13: Profundidad "z" (m)
C16: DATOS NECESARIOS PARA EL CÁLCULO DE UN SUELO EN CONTACTO CON EL TERRENO | N16: Método de cálculo | O16: =IF((AND(R11=0,R14=0)),"",IF((AND(R11<=1,R14<=0.5)),Auxiliar!T10,IF((AND(R11>1,R14<=0.5)),Auxiliar!T6,IF((R14>0.5),Auxiliar!T9,)))) -> 
C20: Área del suelo en contacto (m²) | M20: DATOS NECESARIOS PARA EL CÁLCULO DE UN SUELO EN CONTACTO CON CÁMARA SANITARIA
C22: Perímetro expuesto (m)
C24: Longitud característica B' | H24: =IFERROR((H20/(0.5*H22)),"") ->  | M24: Área del suelo en contacto (m²)
C26: Profundidad del apoyo respecto el nivel del terreno (m) | M26: Perímetro expuesto (m)
C28: Tipo de aislamiento | M28: Longitud característica B' | R28: =IFERROR((R24/(0.5*R26)),"") -> 
C31: DATOS NECESARIOS PARA EL CÁLCULO DE UNA CUBIERTA ENTERRADA | M31: DATOS NECESARIOS PARA EL CÁLCULO DE UN MURO EN CONTACTO CON EL TERRENO
C35: Espesor de terreno por encima de la cubierta (m) | M35: Profundidad de la parte enterrada del muro (m)

Sheet Resultados
C3: Tipo de cerramiento calculado | W3: Bases de cálculo
C6: =IF(Cerramiento!D3=0,"",Cerramiento!D3) -> 
W7: Tipo de cerramiento: | Y7: =IFERROR((HLOOKUP(Cerramiento!D3,Auxiliar!$AN$3:$AW$17,2,FALSE)),"") ->  | AA7: Apartado del DA DB-HE/1 aplicado para el método de cálculo: | AD7: =IFERROR((HLOOKUP(Cerramiento!D3,Auxiliar!$AN$3:$AW$17,4,FALSE)),"") -> 
W9: En contacto con: | Y9: =IFERROR((HLOOKUP(Cerramiento!D3,Auxiliar!$AN$3:$AW$17,3,FALSE)),"") -> 
W12: Datos necesarios:
W14: =IF(Cerramiento!D3=0,"","Rse (m²K/W)") ->  | Z14: =IFERROR((VLOOKUP(Cerramiento!D3,Auxiliar!$T$4:$W$13,3,FALSE)),"") ->  | AA14: =IF(Cerramiento!D3=0,"","Rsi (m²K/W)") ->  | AD14: =IFERROR((VLOOKUP(Cerramiento!D3,Auxiliar!$T$4:$W$13,4,FALSE)),"") -> 
W16: =IFERROR((HLOOKUP(Cerramiento!D3,Auxiliar!$AN$3:$AW$17,5,FALSE)),"") ->  | Z16: =IFERROR((HLOOKUP(Cerramiento!D3,Auxiliar!AZ3:BI15,5,FALSE)),"") ->  | AA16: =IFERROR((HLOOKUP(Cerramiento!D3,Auxiliar!$AN$3:$AW$17,6,FALSE)),"") ->  | AD16: =IFERROR((HLOOKUP(Cerramiento!D3,Auxiliar!AZ3:BI15,6,FALSE)),"") -> 
B17: Actualización: Noviembre 2022
B18: José Carlos Merino Izquierdo | W18: =IFERROR((IF((HLOOKUP(Cerramiento!D3,Auxiliar!$AN$3:$AW$17,7,FALSE))=0,"",(HLOOKUP(Cerramiento!D3,Auxiliar!$AN$3:$AW$17,7,FALSE)))),"") ->  | Z18: =IFERROR((IF((HLOOKUP(Cerramiento!D3,Auxiliar!AZ3:BI15,7,FALSE))=0,"",(HLOOKUP(Cerramiento!D3,Auxiliar!AZ3:BI15,7,FALSE)))),"") ->  | AA18: =IFERROR((IF((HLOOKUP(Cerramiento!D3,Auxiliar!$AN$3:$AW$17,11,FALSE))=0,"",(HLOOKUP(Cerramiento!D3,Auxiliar!$AN$3:$AW$17,11,FALSE)))),"") ->  | AD18: =IFERROR((IF((HLOOKUP(Cerramiento!D3,Auxiliar!AZ3:BI15,11,FALSE))=0,"",(HLOOKUP(Cerramiento!D3,Auxiliar!AZ3:BI15,11,FALSE)))),"") -> 
B20: =Auxiliar!Y32 ->  | L20: =IF((SUM(Cerramiento!H37:H58))=0,"",Auxiliar!Y33) ->  | W20: =IFERROR((IF((HLOOKUP(Cerramiento!D3,Auxiliar!$AN$3:$AW$17,8,FALSE))=0,"",(HLOOKUP(Cerramiento!D3,Auxiliar!$AN$3:$AW$17,8,FALSE)))),"") ->  | Z20: =IFERROR((IF((HLOOKUP(Cerramiento!D3,Auxiliar!AZ3:BI15,8,FALSE))=0,"",(HLOOKUP(Cerramiento!D3,Auxiliar!AZ3:BI15,8,FALSE)))),"") ->  | AA20: =IFERROR((IF((HLOOKUP(Cerramiento!D3,Auxiliar!$AN$3:$AW$17,12,FALSE))=0,"",(HLOOKUP(Cerramiento!D3,Auxiliar!$AN$3:$AW$17,12,FALSE)))),"") ->  | AD20: =IFERROR((IF((HLOOKUP(Cerramiento!D3,Auxiliar!AZ3:BI15,12,FALSE))=0,"",(HLOOKUP(Cerramiento!D3,Auxiliar!AZ3:BI15,12,FALSE)))),"") -> 
C21: Solución de Proyecto | G21: =CONCATENATE("Espesor total = ",((SUM(Cerramiento!F10:F31))*1000)," mm") -> Espesor total = 0 mm | M21: Solución Alternativa | Q21: =CONCATENATE("Espesor total = ",((SUM(Cerramiento!F37:F58))*1000)," mm") -> Espesor total = 0 mm
W22: =IFERROR((IF((HLOOKUP(Cerramiento!D3,Auxiliar!$AN$3:$AW$17,9,FALSE))=0,"",(HLOOKUP(Cerramiento!D3,Auxiliar!$AN$3:$AW$17,9,FALSE)))),"") ->  | Z22: =IFERROR((IF((HLOOKUP(Cerramiento!D3,Auxiliar!AZ3:BI15,9,FALSE))=0,"",(HLOOKUP(Cerramiento!D3,Auxiliar!AZ3:BI15,9,FALSE)))),"") ->  | AA22: =IFERROR((IF((HLOOKUP(Cerramiento!D3,Auxiliar!$AN$3:$AW$17,13,FALSE))=0,"",(HLOOKUP(Cerramiento!D3,Auxiliar!$AN$3:$AW$17,13,FALSE)))),"") ->  | AD22: =IFERROR((IF((HLOOKUP(Cerramiento!D3,Auxiliar!AZ3:BI15,13,FALSE))=0,"",(HLOOKUP(Cerramiento!D3,Auxiliar!AZ3:BI15,13,FALSE)))),"") -> 
C23: Transmitancia térmica calculada "U" | G23: =IF((SUM(Cerramiento!H10:H31))=0,"Faltan datos",Auxiliar!AB20) -> Faltan datos | M23: Transmitancia térmica calculada "U" | Q23: =IF((SUM(Cerramiento!H37:H58))=0,"Faltan datos",Auxiliar!AB23) -> Faltan datos
W24: =IFERROR((IF((HLOOKUP(Cerramiento!D3,Auxiliar!$AN$3:$AW$17,10,FALSE))=0,"",(HLOOKUP(Cerramiento!D3,Auxiliar!$AN$3:$AW$17,10,FALSE)))),"") ->  | Z24: =IFERROR((IF((HLOOKUP(Cerramiento!D3,Auxiliar!AZ3:BI15,10,FALSE))=0,"",(HLOOKUP(Cerramiento!D3,Auxiliar!AZ3:BI15,10,FALSE)))),"") ->  | AA24: =IFERROR((IF((HLOOKUP(Cerramiento!D3,Auxiliar!$AN$3:$AW$17,14,FALSE))=0,"",(HLOOKUP(Cerramiento!D3,Auxiliar!$AN$3:$AW$17,14,FALSE)))),"") ->  | AD24: =IFERROR((IF((HLOOKUP(Cerramiento!D3,Auxiliar!AZ3:BI16,14,FALSE))=0,"",(HLOOKUP(Cerramiento!D3,Auxiliar!AZ3:BI16,14,FALSE)))),"") -> 
W27: Comentario adicional:
W29: =IFERROR((HLOOKUP(Cerramiento!D3,Auxiliar!$AN$3:$AW$17,15,FALSE)),"") -> 
W40: Porcentaje de Mejora Solución Alternativa frente a Solución de Proyecto | AB40: =IFERROR('Recop. Datos'!M8,"-") -> -

Sheet Materiales (hidden)
A1: Grupo | B1: Material | C1: Espesor (m) | D1: Conductividad térmica (W/mK) | E1: Resistencia térmica (m²K/W) | F1: Densidad (Kg/m³) | G1: Calor Específico (Cp) | H1: Factor de resistencia a la difusión del vapor de agua
A2: AislamientosValero | B2: EEPS-GrafipolTR0_Valero | D2: 0.033 | F2: 13 | G2: 1200 | H2: 30
A3: AislamientosValero | B3: EEPS-GrafipolTR0-Impact_Valero | D3: 0.033 | F3: 13 | G3: 1200 | H3: 30
A4: AislamientosValero | B4: EPS-DonpolAzul_Valero | D4: 0.033 | F4: 26 | G4: 1200 | H4: 40
A5: AislamientosValero | B5: EPS-DonpolVerdeHidrófobo_Valero | D5: 0.032 | F5: 30 | G5: 1200 | H5: 40
A6: AislamientosValero | B6: EPS-GrafipolCubInclinadas_Valero | D6: 0.029 | F6: 28 | G6: 1200 | H6: 40
A7: AislamientosValero | B7: EPS-GrafipolFrenteForjado_Valero | D7: 0.032 | F7: 13 | G7: 1200 | H7: 30
A8: AislamientosValero | B8: EPS-GrafipolTermoimpact_Valero | D8: 0.03 | F8: 18 | G8: 1200 | H8: 40
A9: AislamientosValero | B9: EPS-GrafipolTR29_Valero | D9: 0.029 | F9: 28 | G9: 1200 | H9: 40
A10: AislamientosValero | B10: EPS-GrafipolTR30_Valero | D10: 0.03 | F10: 18 | G10: 1200 | H10: 40
A11: AislamientosValero | B11: EPS-GrafipolTR31_Valero | D11: 0.031 | F11: 16 | G11: 1200 | H11: 40
A12: AislamientosValero | B12: EPS-GrafipolTR32_Valero | D12: 0.032 | F12: 13 | G12: 1200 | H12: 30
A13: AislamientosValero | B13: EPS-GrafipolTR5_Valero | C13: 0.042 | D13: 0.032 | E13: 1.25 | F13: 140 | G13: 1200 | H13: 30
A14: AislamientosValero | B14: EPS-GrafipolTR-SATE_Valero | D14: 0.031 | F14: 16 | G14: 1200 | H14: 40
A15: AislamientosValero | B15: EPS-GVSATE_Valero | D15: 0.036 | F15: 16 | G15: 1200 | H15: 40
A16: Aislantes | B16: EPS Poliestireno expandido [0,029 W/mK] | D16: 0.029 | F16: 30 | G16: 1000 | H16: 20
A17: Aislantes | B17: EPS Poliestireno expandido [0,032 W/mK] | D17: 0.032 | F17: 30 | G17: 1000 | H17: 20
A18: Aislantes | B18: EPS Poliestireno expandido [0,036 W/mK] | D18: 0.036 | F18: 30 | G18: 1000 | H18: 20
A19: Aislantes | B19: MW Lana mineral [0,032 W/mK] | D19: 0.032 | F19: 40 | G19: 1000 | H19: 1
A20: Aislantes | B20: MW Lana mineral [0,034 W/mK] | D20: 0.034 | F20: 40 | G20: 1000 | H20: 1
A21: Aislantes | B21: MW Lana mineral [0,035 W/mK] | D21: 0.035 | F21: 40 | G21: 1000 | H21: 1
A22: Aislantes | B22: MW Lana mineral [0,036 W/mK] | D22: 0.036 | F22: 40 | G22: 1000 | H22: 1
A23: Aislantes | B23: MW Lana mineral [0,037 W/mK] | D23: 0.037 | F23: 40 | G23: 1000 | H23: 1
A24: Aislantes | B24: MW Lana mineral [0,041 W/mK] | D24: 0.041 | F24: 40 | G24: 1000 | H24: 1
A25: Aislantes | B25: Panel de vidrio celular [CG] | D25: 0.048 | F25: 125 | G25: 1000 | H25: =1E+30 -> 1e+30
A26: Aislantes | B26: PIR espuma de Poliisocianurato [0,023 W/mK] | D26: 0.023 | F26: 40 | G26: 1000 | H26: 100
A27: Aislantes | B27: PIR espuma de Poliisocianurato [0,025 W/mK] | D27: 0.025 | F27: 40 | G27: 1000 | H27: 100
A28: Aislantes | B28: PUR espuma de Poliuretano [0,028 W/mK] | D28: 0.028 | F28: 35 | G28: 650 | H28: 60
A29: Aislantes | B29: XPS Poliestireno extruido [0,033 W/mK] | D29: 0.033 | F29: 30 | G29: 1450 | H29: 80
A30: Aislantes | B30: XPS Poliestireno extruido [0,034 W/mK] | D30: 0.034 | F30: 30 | G30: 1450 | H30: 80
A31: Aislantes | B31: XPS Poliestireno extruido [0,036 W/mK] | D31: 0.036 | F31: 30 | G31: 1450 | H31: 80
A32: Aislantes | B32: XPS Poliestireno extruido [0,038 W/mK] | D32: 0.038 | F32: 30 | G32: 1450 | H32: 80
A33: Bituminosos | B33: Asfalto | D33: 0.7 | F33: 2100 | G33: 1000 | H33: 50000
A34: Bituminosos | B34: Asfalto arenoso | D34: 0.15 | F34: 2100 | G34: 1000 | H34: 50000
A35: Bituminosos | B35: Betún fieltro o lámina | D35: 0.23 | F35: 1100 | G35: 1000 | H35: 50000
A36: Bituminosos | B36: Betún puro | D36: 0.17 | F36: 1050 | G36: 1000 | H36: 50000
A37: Bloque_Cerámico | B37: BC con mortero aislante espesor 140 mm | C37: 0.14 | D37: 0.324 | E37: 0.432 | F37: 1020 | G37: 1000 | H37: 10
A38: Bloque_Cerámico | B38: BC con mortero aislante espesor 190 mm | C38: 0.19 | D38: 0.306 | E38: 0.621 | F38: 910 | G38: 1000 | H38: 10
A39: Bloque_Cerámico | B39: BC con mortero aislante espesor 240 mm | C39: 0.24 | D39: 0.298 | E39: 0.805 | F39: 920 | G39: 1000 | H39: 10
A40: Bloque_Cerámico | B40: BC con mortero aislante espesor 290 mm | C40: 0.29 | D40: 0.295 | E40: 0.983 | F40: 910 | G40: 1000 | H40: 10
A41: Bloque_Cerámico | B41: BC con mortero convencional espesor 140 mm | C41: 0.14 | D41: 0.438 | E41: 0.32 | F41: 1170 | G41: 1000 | H41: 10
A42: Bloque_Cerámico | B42: BC con mortero convencional espesor 190 mm | C42: 0.19 | D42: 0.433 | E42: 0.439 | F42: 1080 | G42: 1000 | H42: 10
A43: Bloque_Cerámico | B43: BC con mortero convencional espesor 240 mm | C43: 0.24 | D43: 0.424 | E43: 0.566 | F43: 1090 | G43: 1000 | H43: 10
A44: Bloque_Cerámico | B44: BC con mortero convencional espesor 290 mm | C44: 0.29 | D44: 0.421 | E44: 0.689 | F44: 1080 | G44: 1000 | H44: 10
A45: Bloque_HormigónAL | B45: BH aligerado hueco espesor 250 mm | C45: 0.25 | D45: 0.472 | E45: 0.53 | F45: 760 | G45: 1000 | H45: 6
A46: Bloque_HormigónAL | B46: BH aligerado hueco espesor 300 mm | C46: 0.3 | D46: 0.454 | E46: 0.661 | F46: 1050 | G46: 1000 | H46: 6
A47: Bloque_HormigónAL | B47: BH aligerado hueco -muro de carga- espesor 300 mm | C47: 0.3 | D47: 0.475 | E47: 0.632 | F47: 1160 | G47: 1000 | H47: 6
A48: Bloque_HormigónAL | B48: BH aligerado hueco -muro de carga- espesor 300 mm con mortero aligerado | C48: 0.3 | D48: 0.421 | E48: 0.713 | F48: 1100 | G48: 1000 | H48: 6
A49: Bloque_HormigónAL | B49: BH aligerado macizo con áridos ligeros 140 mm | C49: 0.14 | D49: 0.175 | E49: 0.8 | F49: 1134 | G49: 1000 | H49: 6
A50: Bloque_HormigónAL | B50: BH aligerado macizo con áridos ligeros 170 mm | C50: 0.17 | D50: 0.309 | E50: 0.55 | F50: 1450 | G50: 1000 | H50: 6
A51: Bloque_HormigónAL | B51: BH aligerado macizo con áridos ligeros 240 mm | C51: 0.24 | D51: 0.264 | E51: 0.909 | F51: 900 | G51: 1000 | H51: 6
A52: Bloque_HormigónAL | B52: BH aligerado macizo con áridos ligeros 290 mm | C52: 0.29 | D52: 0.305 | E52: 0.951 | F52: 1050 | G52: 1000 | H52: 6
A53: Bloque_HormigónAL | B53: BH aligerado macizo con áridos ligeros 290 mm, muro de carga | C53: 0.29 | D53: 0.46 | E53: 0.63 | F53: 1160 | G53: 1000 | H53: 6
A54: Bloque_HormigónAL | B54: BH aligerado macizo con áridos ligeros 290 mm, muro de carga con mortero aislante | C54: 0.29 | D54: 0.408 | E54: 0.711 | F54: 1100 | G54: 1000 | H54: 6
A55: Bloque_HormigónAL | B55: BH aligerado macizo espesor 200 mm | C55: 0.2 | D55: 0.287 | E55: 0.697 | F55: 840 | G55: 1000 | H55: 6
A56: Bloque_HormigónAL | B56: BH aligerado macizo espesor 250 mm | C56: 0.25 | D56: 0.3 | E56: 0.833 | F56: 850 | G56: 1000 | H56: 6
A57: Bloque_HormigónAL | B57: BH aligerado macizo espesor 300 mm | C57: 0.3 | D57: 0.317 | E57: 0.946 | F57: 860 | G57: 1000 | H57: 6
A58: Bloque_HormigónAL | B58: BH aligerado macizo -muro de carga- espesor 300 mm | C58: 0.3 | D58: 0.338 | E58: 0.888 | F58: 940 | G58: 1000 | H58: 6
A59: Bloque_HormigónAL | B59: BH aligerado macizo -muro de carga- espesor 300 mm con mortero aligerado | C59: 0.3 | D59: 0.287 | E59: 1.045 | F59: 910 | G59: 1000 | H59: 6
A60: Bloque_HormigónAL | B60: BH aligerado perforado con áridos ligeros 110 mm | C60: 0.11 | D60: 0.186 | E60: 0.591 | F60: 1095 | G60: 1000 | H60: 6
A61: Bloque_HormigónAL | B61: BH aligerado perforado con áridos ligeros 140 mm | C61: 0.14 | D61: 0.206 | E61: 0.68 | F61: 1000 | G61: 1000 | H61: 6
A62: Bloque_HormigónAL | B62: BH aligerado perforado con áridos ligeros 190 mm | C62: 0.19 | D62: 0.253 | E62: 0.751 | F62: 950 | G62: 1000 | H62: 6
A63: Bloque_HormigónAL | B63: BH aligerado perforado con áridos ligeros 240 mm | C63: 0.24 | D63: 0.289 | E63: 0.83 | F63: 850 | G63: 1000 | H63: 6
A64: Bloque_HormigónAL | B64: BH aligerado perforado con áridos ligeros 290 mm | C64: 0.29 | D64: 0.305 | E64: 0.951 | F64: 860 | G64: 1000 | H64: 6
A65: Bloque_HormigónAL | B65: BH aligerado perforado con áridos ligeros 290 mm, muro de carga | C65: 0.29 | D65: 0.326 | E65: 0.89 | F65: 970 | G65: 1000 | H65: 6
A66: Bloque_HormigónAL | B66: BH aligerado perforado con áridos ligeros 290 mm, muro de carga con mortero aislante | C66: 0.29 | D66: 0.276 | E66: 1.051 | F66: 910 | G66: 1000 | H66: 6
A67: Bloque_HormigónAL | B67: BH aligerado perforado con áridos ligeros 80 mm | C67: 0.08 | D67: 0.178 | E67: 0.449 | F67: 1220 | G67: 1000 | H67: 6
A68: Bloque_HormigónAL | B68: BH aligerado perforado con áridos ligeros 90 mm | C68: 0.09 | D68: 0.173 | E68: 0.52 | F68: 1150 | G68: 1000 | H68: 6
A69: Bloque_HormigónAL | B69: Bloque de picón aligerado de 120 mm con cámara doble | C69: 0.12 | D69: 0.387 | E69: 0.31 | F69: 900 | G69: 800 | H69: 10
A70: Bloque_HormigónAL | B70: Bloque de picón aligerado de 150 mm con cámara doble | C70: 0.15 | D70: 0.349 | E70: 0.43 | F70: 950 | G70: 800 | H70: 10
A71: Bloque_HormigónAL | B71: Bloque de picón aligerado de 200 mm con cámara doble | C71: 0.2 | D71: 0.417 | E71: 0.48 | F71: 900 | G71: 800 | H71: 10
A72: Bloque_HormigónAL | B72: Bloque de picón aligerado de 250 mm con cámara doble | C72: 0.25 | D72: 0.463 | E72: 0.54 | F72: 800 | G72: 800 | H72: 10
A73: Bloque_HormigónAL | B73: Bloque de picón aligerado de 250 mm con cámara triple | C73: 0.25 | D73: 0.403 | E73: 0.62 | F73: 900 | G73: 800 | H73: 10
A74: Bloque_HormigónAL | B74: Bloque de picón aligerado de 90 mm con cámara simple | C74: 0.09 | D74: 0.333 | E74: 0.27 | F74: 1000 | G74: 800 | H74: 10
A75: Bloque_HormigónAL | B75: Bloque de picón de 120 mm con cámara doble | C75: 0.12 | D75: 0.462 | E75: 0.26 | F75: 1100 | G75: 800 | H75: 10
A76: Bloque_HormigónAL | B76: Bloque de picón de 150 mm con cámara doble | C76: 0.15 | D76: 0.429 | E76: 0.35 | F76: 1150 | G76: 800 | H76: 10
A77: Bloque_HormigónAL | B77: Bloque de picón de 200 mm con cámara doble | C77: 0.2 | D77: 0.5 | E77: 0.4 | F77: 1000 | G77: 800 | H77: 10
A78: Bloque_HormigónAL | B78: Bloque de picón de 250 mm con cámara doble | C78: 0.25 | D78: 0.556 | E78: 0.45 | F78: 900 | G78: 800 | H78: 10
A79: Bloque_HormigónAL | B79: Bloque de picón de 250 mm con cámara triple | C79: 0.25 | D79: 0.5 | E79: 0.5 | F79: 1000 | G79: 800 | H79: 10
A80: Bloque_HormigónAL | B80: Bloque de picón de 90 mm con cámara simple | C80: 0.09 | D80: 0.409 | E80: 0.22 | F80: 1200 | G80: 800 | H80: 10
A81: Bloque_HormigónCO | B81: BH convencional espesor 100 mm | C81: 0.1 | D81: 0.632 | E81: 0.158 | F81: 1210 | G81: 1000 | H81: 10
A82: Bloque_HormigónCO | B82: BH convencional espesor 150 mm | C82: 0.15 | D82: 0.789 | E82: 0.19 | F82: 1040 | G82: 1000 | H82: 10
A83: Bloque_HormigónCO | B83: BH convencional espesor 200 mm | C83: 0.2 | D83: 0.923 | E83: 0.217 | F83: 860 | G83: 1000 | H83: 10
A84: Bloque_HormigónCO | B84: BH convencional espesor 250 mm | C84: 0.25 | D84: 1.007 | E84: 0.248 | F84: 685 | G84: 1000 | H84: 10
A85: Bloque_HormigónCO | B85: BH convencional espesor 300 mm | C85: 0.3 | D85: 1.16 | E85: 0.259 | F85: 585 | G85: 1000 | H85: 10
A86: Bloque_HormigónCO | B86: BH hueco con áridos densos 110 mm | C86: 0.11 | D86: 0.647 | E86: 0.17 | F86: 1300 | G86: 1000 | H86: 10
A87: Bloque_HormigónCO | B87: BH hueco con áridos densos 140 mm | C87: 0.14 | D87: 0.737 | E87: 0.19 | F87: 1200 | G87: 1000 | H87: 10
A88: Bloque_HormigónCO | B88: BH hueco con áridos densos 190 mm | C88: 0.19 | D88: 0.864 | E88: 0.22 | F88: 1100 | G88: 1000 | H88: 10
A89: Bloque_HormigónCO | B89: BH hueco con áridos densos 240 mm | C89: 0.24 | D89: 0.96 | E89: 0.25 | F89: 1100 | G89: 1000 | H89: 10
A90: Bloque_HormigónCO | B90: BH hueco con áridos densos 290 mm | C90: 0.29 | D90: 1.115 | E90: 0.26 | F90: 1000 | G90: 1000 | H90: 10
A91: Bloque_HormigónCO | B91: BH hueco con áridos densos 50 mm | C91: 0.05 | D91: 1 | E91: 0.05 | F91: 2090 | G91: 1000 | H91: 10
A92: Bloque_HormigónCO | B92: BH hueco con áridos densos 60 mm | C92: 0.06 | D92: 0.857 | E92: 0.07 | F92: 1552 | G92: 1000 | H92: 10
A93: Bloque_HormigónCO | B93: BH hueco con áridos densos 80 mm | C93: 0.08 | D93: 0.8 | E93: 0.1 | F93: 1514 | G93: 1000 | H93: 10
A94: Bloque_HormigónCO | B94: BH hueco con áridos densos 90 mm | C94: 0.09 | D94: 0.563 | E94: 0.16 | F94: 1400 | G94: 1000 | H94: 10
A95: Cámaras_Aire | B95: Cámara de aire ligeramente ventilada horizontal 1 cm | C95: 0.01 | E95: 0.075 | H95: 1
A96: Cámaras_Aire | B96: Cámara de aire ligeramente ventilada horizontal 10 cm | C96: 0.1 | E96: 0.09 | H96: 1
A97: Cámaras_Aire | B97: Cámara de aire ligeramente ventilada horizontal 2 cm | C97: 0.02 | E97: 0.08 | H97: 1
A98: Cámaras_Aire | B98: Cámara de aire ligeramente ventilada horizontal 5 cm | C98: 0.05 | E98: 0.08 | H98: 1
A99: Cámaras_Aire | B99: Cámara de aire ligeramente ventilada vertical 1 cm | C99: 0.01 | E99: 0.075 | H99: 1
A100: Cámaras_Aire | B100: Cámara de aire ligeramente ventilada vertical 10 cm | C100: 0.1 | E100: 0.095 | H100: 1
A101: Cámaras_Aire | B101: Cámara de aire ligeramente ventilada vertical 2 cm | C101: 0.02 | E101: 0.085 | H101: 1
A102: Cámaras_Aire | B102: Cámara de aire ligeramente ventilada vertical 5 cm | C102: 0.05 | E102: 0.09 | H102: 1
A103: Cámaras_Aire | B103: Cámara de aire sin ventilar horizontal 1 cm | C103: 0.01 | E103: 0.15 | H103: 1
A104: Cámaras_Aire | B104: Cámara de aire sin ventilar horizontal 10 cm | C104: 0.1 | E104: 0.18 | H104: 1
A105: Cámaras_Aire | B105: Cámara de aire sin ventilar horizontal 2 cm | C105: 0.02 | E105: 0.16 | H105: 1
A106: Cámaras_Aire | B106: Cámara de aire sin ventilar horizontal 5 cm | C106: 0.05 | E106: 0.16 | H106: 1
A107: Cámaras_Aire | B107: Cámara de aire sin ventilar vertical 1 cm | C107: 0.01 | E107: 0.15 | H107: 1
A108: Cámaras_Aire | B108: Cámara de aire sin ventilar vertical 10 cm | C108: 0.1 | E108: 0.19 | H108: 1
A109: Cámaras_Aire | B109: Cámara de aire sin ventilar vertical 2 cm | C109: 0.02 | E109: 0.17 | H109: 1
A110: Cámaras_Aire | B110: Cámara de aire sin ventilar vertical 5 cm | C110: 0.05 | E110: 0.18 | H110: 1
A111: Cámaras_Aire | B111: Cámara de aire ventilada | E111: - | H111: 1
A112: Cauchos | B112: Butadieno | D112: 0.25 | F112: 980 | G112: 1000 | H112: 100000
A113: Cauchos | B113: Butilo [isobutelo] compacto/colado en aceite | D113: 0.24 | F113: 1200 | G113: 1400 | H113: 200000
A114: Cauchos | B114: Caucho celular | D114: 0.06 | F114: 70 | G114: 1500 | H114: 7000
A115: Cauchos | B115: Caucho natural | D115: 0.13 | F115: 910 | G115: 1100 | H115: 10000
A116: Cauchos | B116: Caucho rígido [ebonita] sólido | D116: 0.17 | F116: 1200 | G116: 1400 | H116: =1E+30 -> 1e+30
A117: Cauchos | B117: Etileno propileno dieno monómero [EPDM] | D117: 0.25 | F117: 1150 | G117: 1000 | H117: 6000
A118: Cauchos | B118: Neopreno [policloropreno] | D118: 0.23 | F118: 1240 | G118: 2140 | H118: 10000
A119: Cauchos | B119: Poliisobutileno | D119: 0.2 | F119: 930 | G119: 1100 | H119: 10000
A120: Cauchos | B120: Polisulfuro | D120: 0.4 | F120: 1700 | G120: 1000 | H120: 10000
A121: Cerámicos | B121: Azulejo cerámico | D121: 1.3 | F121: 2300 | G121: 840 | H121: =1E+30 -> 1e+30
A122: Cerámicos | B122: Gres (sílice) 2200 < d < 2590 | D122: 2.3 | F122: 2395 | G122: 1000 | H122: 30
A123: Cerámicos | B123: Gres calcáreo 2000 < d < 2700 | D123: 1.9 | F123: 2350 | G123: 1000 | H123: 20
A124: Cerámicos | B124: Gres cuarzoso 2600 < d < 2800 | D124: 2.6 | F124: 2700 | G124: 1000 | H124: 30
A125: Cerámicos | B125: Plaqueta o baldosa cerámica | D125: 1 | F125: 2000 | G125: 800 | H125: 30
A126: Cerámicos | B126: Plaqueta o baldosa de gres | D126: 2.3 | F126: 2500 | G126: 1000 | H126: 30
A127: Cerámicos | B127: Teja cerámica-porcelana | D127: 1.3 | F127: 2300 | G127: 840 | H127: 30
A128: Cerámicos | B128: Teja de arcilla cocida | D128: 1 | F128: 2000 | G128: 800 | H128: 30
A129: Enlucidos | B129: Enlucido de yeso 1000 < d < 1300 | D129: 0.57 | F129: 1150 | G129: 1000 | H129: 6
A130: Enlucidos | B130: Enlucido de yeso aislante 500 < d < 600 | D130: 0.18 | F130: 550 | G130: 1000 | H130: 6
A131: Enlucidos | B131: Enlucido de yeso aislante 600 < d < 900 | D131: 0.3 | F131: 750 | G131: 1000 | H131: 6
A132: Enlucidos | B132: Enlucido de yeso d < 1000 | D132: 0.4 | F132: 900 | G132: 1000 | H132: 6
A133: ForjadosRET | B133: FR Entrevigado cerámico - Canto 250 mm | C133: 0.25 | D133: 1.64 | E133: 0.152 | F133: 166 | G133: 1000 | H133: 10
A134: ForjadosRET | B134: FR Entrevigado cerámico - Canto 300 mm | C134: 0.3 | D134: 1.678 | E134: 0.179 | F134: 1580 | G134: 1000 | H134: 10
A135: ForjadosRET | B135: FR Entrevigado cerámico - Canto 350 mm | C135: 0.35 | D135: 1.717 | E135: 0.204 | F135: 1520 | G135: 1000 | H135: 10
A136: ForjadosRET | B136: FR Entrevigado de EPS mecanizado enrasado - Canto 250 mm | C136: 0.25 | D136: 1.19 | E136: 0.21 | F136: 1280 | G136: 1000 | H136: 60
A137: ForjadosRET | B137: FR Entrevigado de EPS mecanizado enrasado - Canto 300 mm | C137: 0.3 | D137: 0.667 | E137: 0.45 | F137: 1470 | G137: 1000 | H137: 60
A138: ForjadosRET | B138: FR Entrevigado de EPS mecanizado enrasado - Canto 350 mm | C138: 0.35 | D138: 0.707 | E138: 0.495 | F138: 1420 | G138: 1000 | H138: 60
A139: ForjadosRET | B139: FR Entrevigado de EPS mecanizado enrasado - Canto 400 mm | C139: 0.4 | D139: 0.741 | E139: 0.54 | F139: 1390 | G139: 1000 | H139: 60
A140: ForjadosRET | B140: FR Entrevigado de EPS mecanizado enrasado - Canto 450 mm | C140: 0.45 | D140: 0.769 | E140: 0.585 | F140: 1360 | G140: 1000 | H140: 60
A141: ForjadosRET | B141: FR Entrevigado de EPS moldeado descolgado - Canto 250 mm | C141: 0.25 | D141: 0.305 | E141: 0.82 | F141: 1140 | G141: 1000 | H141: 60
A142: ForjadosRET | B142: FR Entrevigado de EPS moldeado descolgado - Canto 300 mm | C142: 0.3 | D142: 0.357 | E142: 0.84 | F142: 1330 | G142: 1000 | H142: 60
A143: ForjadosRET | B143: FR Entrevigado de EPS moldeado descolgado - Canto 350 mm | C143: 0.35 | D143: 0.402 | E143: 0.871 | F143: 1310 | G143: 1000 | H143: 60
A144: ForjadosRET | B144: FR Entrevigado de EPS moldeado descolgado - Canto 400 mm | C144: 0.4 | D144: 0.44 | E144: 0.909 | F144: 1290 | G144: 1000 | H144: 60
A145: ForjadosRET | B145: FR Entrevigado de EPS moldeado descolgado - Canto 450 mm | C145: 0.45 | D145: 0.479 | E145: 0.939 | F145: 1280 | G145: 1000 | H145: 60
A146: ForjadosRET | B146: FR Entrevigado de EPS moldeado enrasado - Canto 250 mm | C146: 0.25 | D146: 1.191 | E146: 0.21 | F146: 1280 | G146: 1000 | H146: 60
A147: ForjadosRET | B147: FR Entrevigado de EPS moldeado enrasado - Canto 300 mm | C147: 0.3 | D147: 1.056 | E147: 0.284 | F147: 1460 | G147: 1000 | H147: 60
A148: ForjadosRET | B148: FR Entrevigado de EPS moldeado enrasado - Canto 350 mm | C148: 0.35 | D148: 1.065 | E148: 0.329 | F148: 1420 | G148: 1000 | H148: 60
A149: ForjadosRET | B149: FR Entrevigado de EPS moldeado enrasado - Canto 400 mm | C149: 0.4 | D149: 1.073 | E149: 0.373 | F149: 1380 | G149: 1000 | H149: 60
A150: ForjadosRET | B150: FR Entrevigado de EPS moldeado enrasado - Canto 450 mm | C150: 0.45 | D150: 1.079 | E150: 0.417 | F150: 1360 | G150: 1000 | H150: 60
A151: ForjadosRET | B151: FR Entrevigado de hormigón - Canto 250 mm | C151: 0.25 | D151: 1.901 | E151: 0.132 | F151: 1740 | G151: 1000 | H151: 10
A152: ForjadosRET | B152: FR Entrevigado de hormigón - Canto 300 mm | C152: 0.3 | D152: 1.947 | E152: 0.154 | F152: 1670 | G152: 1000 | H152: 10
A153: ForjadosRET | B153: FR Entrevigado de hormigón - Canto 350 mm | C153: 0.35 | D153: 1.995 | E153: 0.175 | F153: 1610 | G153: 1000 | H153: 10
A154: ForjadosRET | B154: FR Entrevigado de hormigón - Canto 400 mm | C154: 0.4 | D154: 2.043 | E154: 0.196 | F154: 1570 | G154: 1000 | H154: 10
A155: ForjadosRET | B155: FR Entrevigado de hormigón - Canto 450 mm | C155: 0.45 | D155: 2.091 | E155: 0.215 | F155: 1540 | G155: 1000 | H155: 10
A156: ForjadosRET | B156: FR Entrevigado de hormigón aligerado - Canto 250 mm | C156: 0.25 | D156: 1.788 | E156: 0.14 | F156: 1645 | G156: 1000 | H156: 6
A157: ForjadosRET | B157: FR Entrevigado de hormigón aligerado - Canto 300 mm | C157: 0.3 | D157: 1.838 | E157: 0.163 | F157: 1570 | G157: 1000 | H157: 6
A158: ForjadosRET | B158: FR Entrevigado de hormigón aligerado - Canto 350 mm | C158: 0.35 | D158: 1.89 | E158: 0.185 | F158: 1515 | G158: 1000 | H158: 6
A159: ForjadosRET | B159: FR Entrevigado de hormigón aligerado - Canto 400 mm | C159: 0.4 | D159: 1.936 | E159: 0.207 | F159: 1480 | G159: 1000 | H159: 6
A160: ForjadosRET | B160: FR Entrevigado de hormigón aligerado - Canto 450 mm | C160: 0.45 | D160: 1.986 | E160: 0.227 | F160: 1455 | G160: 1000 | H160: 6
A161: ForjadosRET | B161: FR Entrevigado de hormigón d < 1200 con áridos ligeros - Canto 250 mm | C161: 0.25 | D161: 1.786 | E161: 0.14 | F161: 1238 | G161: 1000 | H161: 6
A162: ForjadosRET | B162: FR Entrevigado de hormigón d < 1200 con áridos ligeros - Canto 300 mm | C162: 0.3 | D162: 1.875 | E162: 0.16 | F162: 1185 | G162: 1000 | H162: 6
A163: ForjadosRET | B163: FR Entrevigado de hormigón d < 1200 con áridos ligeros - Canto 350 mm | C163: 0.35 | D163: 1.842 | E163: 0.19 | F163: 1138 | G163: 1000 | H163: 6
A164: ForjadosRET | B164: FR Entrevigado de hormigón d < 1200 con áridos ligeros - Canto 400 mm | C164: 0.4 | D164: 1.905 | E164: 0.21 | F164: 1115 | G164: 1000 | H164: 6
A165: ForjadosRET | B165: FR Entrevigado de hormigón d < 1200 con áridos ligeros - Canto 450 mm | C165: 0.45 | D165: 2.091 | E165: 0.215 | F165: 1092 | G165: 1000 | H165: 6
A166: ForjadosRET | B166: FR sin Entrevigado - Canto 250 mm | C166: 0.25 | D166: 4.167 | E166: 0.06 | F166: 2350 | G166: 1000 | H166: 80
A167: ForjadosRET | B167: FR sin Entrevigado - Canto 300 mm | C167: 0.3 | D167: 4.286 | E167: 0.07 | F167: 2350 | G167: 1000 | H167: 80
A168: ForjadosRET | B168: FR sin Entrevigado - Canto 350 mm | C168: 0.35 | D168: 4.651 | E168: 0.075 | F168: 2350 | G168: 1000 | H168: 80
A169: ForjadosUNI | B169: FU con viguetas de madera con entrevigado de revoltón de ladrillo y cascote [min. 120 mm] | D169: 1.335 | F169: 840 | G169: 800 | H169: 5
A170: ForjadosUNI | B170: FU Entrevigado cerámico - Canto 210 mm | C170: 0.21 | D170: 0.84 | E170: 0.25 | F170: 1338 | G170: 800 | H170: 10
A171: ForjadosUNI | B171: FU Entrevigado cerámico - Canto 250 mm | C171: 0.25 | D171: 0.908 | E171: 0.275 | F171: 1220 | G171: 1000 | H171: 10
A172: ForjadosUNI | B172: FU Entrevigado cerámico - Canto 300 mm | C172: 0.3 | D172: 0.846 | E172: 0.355 | F172: 1110 | G172: 1000 | H172: 10
A173: ForjadosUNI | B173: FU Entrevigado cerámico - Canto 350 mm | C173: 0.35 | D173: 0.995 | E173: 0.352 | F173: 1030 | G173: 1000 | H173: 10
A174: ForjadosUNI | B174: FU Entrevigado de EPS mecanizado enrasado - Canto 250 mm | C174: 0.25 | D174: 0.266 | E174: 0.94 | F174: 800 | G174: 1000 | H174: 60
A175: ForjadosUNI | B175: FU Entrevigado de EPS mecanizado enrasado - Canto 300 mm | C175: 0.3 | D175: 0.256 | E175: 1.172 | F175: 750 | G175: 1000 | H175: 60
A176: ForjadosUNI | B176: FU Entrevigado de EPS mecanizado enrasado - Canto 350 mm | C176: 0.35 | D176: 0.255 | E176: 1.373 | F176: 700 | G176: 1000 | H176: 60
A177: ForjadosUNI | B177: FU Entrevigado de EPS moldeado descolgado - Canto 250 mm | C177: 0.25 | D177: 0.176 | E177: 1.42 | F177: 710 | G177: 1000 | H177: 60
A178: ForjadosUNI | B178: FU Entrevigado de EPS moldeado descolgado - Canto 300 mm | C178: 0.3 | D178: 0.2 | E178: 1.5 | F178: 670 | G178: 1000 | H178: 60
A179: ForjadosUNI | B179: FU Entrevigado de EPS moldeado descolgado - Canto 350 mm | C179: 0.35 | D179: 0.223 | E179: 1.57 | F179: 640 | G179: 1000 | H179: 60
A180: ForjadosUNI | B180: FU Entrevigado de EPS moldeado enrasado - Canto 250 mm | C180: 0.25 | D180: 0.313 | E180: 0.799 | F180: 790 | G180: 1000 | H180: 60
A181: ForjadosUNI | B181: FU Entrevigado de EPS moldeado enrasado - Canto 300 mm | C181: 0.3 | D181: 0.341 | E181: 0.88 | F181: 740 | G181: 1000 | H181: 60
A182: ForjadosUNI | B182: FU Entrevigado de EPS moldeado enrasado - Canto 350 mm | C182: 0.35 | D182: 0.368 | E182: 0.951 | F182: 690 | G182: 1000 | H182: 60
A183: ForjadosUNI | B183: FU Entrevigado de hormigón - Canto 250 mm | C183: 0.25 | D183: 1.323 | E183: 0.189 | F183: 1330 | G183: 1000 | H183: 80
A184: ForjadosUNI | B184: FU Entrevigado de hormigón - Canto 300 mm | C184: 0.3 | D184: 1.422 | E184: 0.211 | F184: 1240 | G184: 1000 | H184: 80
A185: ForjadosUNI | B185: FU Entrevigado de hormigón - Canto 350 mm | C185: 0.35 | D185: 1.528 | E185: 0.229 | F185: 1180 | G185: 1000 | H185: 80
A186: ForjadosUNI | B186: FU Entrevigado de hormigón aligerado - Canto 250 mm | C186: 0.25 | D186: 1 | E186: 0.25 | F186: 1180 | G186: 1000 | H186: 6
A187: ForjadosUNI | B187: FU Entrevigado de hormigón aligerado - Canto 300 mm | C187: 0.3 | D187: 1.111 | E187: 0.27 | F187: 1090 | G187: 1000 | H187: 6
A188: ForjadosUNI | B188: FU Entrevigado de hormigón aligerado - Canto 350 mm | C188: 0.35 | D188: 1.211 | E188: 0.289 | F188: 1035 | G188: 1000 | H188: 6
A189: ForjadosUNI | B189: FU Entrevigado de hormigón aligerado - Canto 400 mm | C189: 0.4 | D189: 1.311 | E189: 0.305 | F189: 985 | G189: 1000 | H189: 6
A190: ForjadosUNI | B190: FU Entrevigado de hormigón aligerado d < 1200 - Canto 250 mm | C190: 0.25 | D190: 1.121 | E190: 0.223 | F190: 1180 | G190: 1000 | H190: 6
A191: ForjadosUNI | B191: FU Entrevigado de hormigón aligerado d < 1200 - Canto 300 mm | C191: 0.3 | D191: 1.22 | E191: 0.246 | F191: 1090 | G191: 1000 | H191: 6
A192: ForjadosUNI | B192: FU Entrevigado de hormigón aligerado d < 1200 - Canto 350 mm | C192: 0.35 | D192: 1.311 | E192: 0.267 | F192: 1035 | G192: 1000 | H192: 6
A193: ForjadosUNI | B193: FU Entrevigado de hormigón aligerado d < 1200 - Canto 400 mm | C193: 0.4 | D193: 1.408 | E193: 0.284 | F193: 985 | G193: 1000 | H193: 6
A194: ForjadosUNI | B194: FU Entrevigado de picón - Canto 300 mm | C194: 0.3 | D194: 0.882 | E194: 0.34 | F194: 1273 | G194: 800 | H194: 80
A195: ForjadosUNI | B195: FU Entrevigado de picón - Canto 350 mm | C195: 0.35 | D195: 0.972 | E195: 0.36 | F195: 1306 | G195: 800 | H195: 80
A196: Hormigones | B196: Hormigón armado 2300 < d < 2500 | D196: 2.3 | F196: 2400 | G196: 1000 | H196: 80
A197: Hormigones | B197: Hormigón armado d > 2500 | D197: 2.5 | F197: 2600 | G197: 1000 | H197: 80
A198: Hormigones | B198: Hormigón celular curado en autoclave d 1000 | D198: 0.29 | F198: 1000 | G198: 1000 | H198: 6
A199: Hormigones | B199: Hormigón celular curado en autoclave d 300 | D199: 0.09 | F199: 300 | G199: 1000 | H199: 6
A200: Hormigones | B200: Hormigón celular curado en autoclave d 400 | D200: 0.12 | F200: 400 | G200: 1000 | H200: 6
... 221 more rows

Sheet Desp. Materiales (hidden)
A1: Grupo | C1: AislamientosValero | D1: Aislantes | E1: Bituminosos | F1: Bloque_Cerámico | G1: Bloque_HormigónAL | H1: Bloque_HormigónCO | I1: Cámaras_Aire | J1: Cauchos | K1: Cerámicos | L1: Enlucidos | M1: ForjadosRET | N1: ForjadosUNI | O1: Hormigones | P1: Ladrillo | Q1: Losas_Alveolares | R1: Maderas | S1: Metales | T1: Morteros | U1: Pétreos_Suelos | V1: Plásticos | W1: Sellantes | X1: Textiles | Y1: Vidrios | Z1: Yesos
A2: AislamientosValero | C2: EEPS-GrafipolTR0_Valero | D2: EPS Poliestireno expandido [0,029 W/mK] | E2: Asfalto | F2: BC con mortero aislante espesor 140 mm | G2: BH aligerado hueco espesor 250 mm | H2: BH convencional espesor 100 mm | I2: Cámara de aire ligeramente ventilada horizontal 1 cm | J2: Butadieno | K2: Azulejo cerámico | L2: Enlucido de yeso 1000 < d < 1300 | M2: FR Entrevigado cerámico - Canto 250 mm | N2: FU con viguetas de madera con entrevigado de revoltón de ladrillo y cascote [min. 120 mm] | O2: Hormigón armado 2300 < d < 2500 | P2: 1 pie LM métrico o catalán 40 mm < G < 50 mm | Q2: Con capa de compresión - Canto 200 mm | R2: Balsa d < 200 | S2: Acero | T2: Mortero de áridos ligeros [vermiculita perlita] | U2: Arcilla o limo [1200 < d < 1800] | V2: Acrílicos | W2: Cloruro de polivinilo [PVC] + 40% plastificante | X2: Moquetas revestimientos textiles | Y2: Cuarzo | Z2: Placa de yeso laminado [PYL] 750 < d < 900
A3: Aislantes | C3: EEPS-GrafipolTR0-Impact_Valero | D3: EPS Poliestireno expandido [0,032 W/mK] | E3: Asfalto arenoso | F3: BC con mortero aislante espesor 190 mm | G3: BH aligerado hueco espesor 300 mm | H3: BH convencional espesor 150 mm | I3: Cámara de aire ligeramente ventilada horizontal 10 cm | J3: Butilo [isobutelo] compacto/colado en aceite | K3: Gres (sílice) 2200 < d < 2590 | L3: Enlucido de yeso aislante 500 < d < 600 | M3: FR Entrevigado cerámico - Canto 300 mm | N3: FU Entrevigado cerámico - Canto 210 mm | O3: Hormigón armado d > 2500 | P3: 1 pie LP métrico o catalán 40 mm < G < 60 mm | Q3: Con capa de compresión - Canto 250 mm | R3: Conífera de peso medio 435 < d < 520 | S3: Acero Inoxidable | T3: Mortero de cemento o cal para albañilería y para revoco/enlucido d > 2000 | U3: Arena y grava [1700 < d < 2200] | V3: Cloruro de polivinilo [PVC] | W3: Espuma de polietileno | X3: Subcapa fieltro | Y3: Sodocálcico [inc. Vidrio flotado] | Z3: Placa de yeso o escayola 750 < d < 900
A4: Bituminosos | C4: EPS-DonpolAzul_Valero | D4: EPS Poliestireno expandido [0,036 W/mK] | E4: Betún fieltro o lámina | F4: BC con mortero aislante espesor 240 mm | G4: BH aligerado hueco -muro de carga- espesor 300 mm | H4: BH convencional espesor 200 mm | I4: Cámara de aire ligeramente ventilada horizontal 2 cm | J4: Caucho celular | K4: Gres calcáreo 2000 < d < 2700 | L4: Enlucido de yeso aislante 600 < d < 900 | M4: FR Entrevigado cerámico - Canto 350 mm | N4: FU Entrevigado cerámico - Canto 250 mm | O4: Hormigón celular curado en autoclave d 1000 | P4: 1 pie LP métrico o catalán 60 mm < G < 80 mm | Q4: Con capa de compresión - Canto 300 mm | R4: Conífera ligera d < 435 | S4: Aliminio aleaciones | T4: Mortero de cemento o cal para albañilería y para revoco/enlucido 1000 < d < 1250 | U4: Arenisca [2200 < d < 2600] | V4: Linóleo | W4: Espuma de poliuretano [PU] | X4: Subcapa lana | Y4: Vidrio prensado | Z4: Placas de yeso armado con fibras minerales 800 < d < 1000
A5: Bloque_Cerámico | C5: EPS-DonpolVerdeHidrófobo_Valero | D5: MW Lana mineral [0,032 W/mK] | E5: Betún puro | F5: BC con mortero aislante espesor 290 mm | G5: BH aligerado hueco -muro de carga- espesor 300 mm con mortero aligerado | H5: BH convencional espesor 250 mm | I5: Cámara de aire ligeramente ventilada horizontal 5 cm | J5: Caucho natural | K5: Gres cuarzoso 2600 < d < 2800 | L5: Enlucido de yeso d < 1000 | M5: FR Entrevigado de EPS mecanizado enrasado - Canto 250 mm | N5: FU Entrevigado cerámico - Canto 300 mm | O5: Hormigón celular curado en autoclave d 300 | P5: 1 pie LP métrico o catalán 80 mm < G < 100 mm | Q5: Con capa de compresión - Canto 350 mm | R5: Conífera muy pesada d > 610 | S5: Aluminio | T5: Mortero de cemento o cal para albañilería y para revoco/enlucido 1250 < d < 1450 | U5: Asperón [1300 < d < 1900] | V5: Poliacetato | W5: Espuma de silicona | Z5: Yeso alta dureza 1200 < d < 1500
A6: Bloque_HormigónAL | C6: EPS-GrafipolCubInclinadas_Valero | D6: MW Lana mineral [0,034 W/mK] | F6: BC con mortero convencional espesor 140 mm | G6: BH aligerado macizo con áridos ligeros 140 mm | H6: BH convencional espesor 300 mm | I6: Cámara de aire ligeramente ventilada vertical 1 cm | J6: Caucho rígido [ebonita] sólido | K6: Plaqueta o baldosa cerámica | M6: FR Entrevigado de EPS mecanizado enrasado - Canto 300 mm | N6: FU Entrevigado cerámico - Canto 350 mm | O6: Hormigón celular curado en autoclave d 400 | P6: 1/2 pie LM métrico o catalán 40 mm < G < 50 mm | Q6: Con capa de compresión - Canto 400 mm | R6: Conífera pesada 520 < d < 610 | S6: Bronce | T6: Mortero de cemento o cal para albañilería y para revoco/enlucido 1450 < d < 1600 | U6: Asperón [1900 < d < 2500] | V6: Poliamida [nylon] [PA] | W6: Espuma elastomérica-flexible | Z6: Yeso alta dureza 900 < d < 1200
A7: Bloque_HormigónCO | C7: EPS-GrafipolFrenteForjado_Valero | D7: MW Lana mineral [0,035 W/mK] | F7: BC con mortero convencional espesor 190 mm | G7: BH aligerado macizo con áridos ligeros 170 mm | H7: BH hueco con áridos densos 110 mm | I7: Cámara de aire ligeramente ventilada vertical 10 cm | J7: Etileno propileno dieno monómero [EPDM] | K7: Plaqueta o baldosa de gres | M7: FR Entrevigado de EPS mecanizado enrasado - Canto 350 mm | N7: FU Entrevigado de EPS mecanizado enrasado - Canto 250 mm | O7: Hormigón celular curado en autoclave d 500 | P7: 1/2 pie LP métrico o catalán 40 mm < G < 60 mm | Q7: Con capa de compresión - Canto 500 mm | R7: Corcho Comprimido | S7: Cobre | T7: Mortero de cemento o cal para albañilería y para revoco/enlucido 1600 < d < 1800 | U7: Basalto [2700 < d < 3000] | V7: Poliamida 6.6 [PA6.6] 25% fibra de vidrio | W7: Sílica gel [desecante] | Z7: Yeso baja dureza d < 600
A8: Cámaras_Aire | C8: EPS-GrafipolTermoimpact_Valero | D8: MW Lana mineral [0,036 W/mK] | F8: BC con mortero convencional espesor 240 mm | G8: BH aligerado macizo con áridos ligeros 240 mm | H8: BH hueco con áridos densos 140 mm | I8: Cámara de aire ligeramente ventilada vertical 2 cm | J8: Neopreno [policloropreno] | K8: Teja cerámica-porcelana | M8: FR Entrevigado de EPS mecanizado enrasado - Canto 400 mm | N8: FU Entrevigado de EPS mecanizado enrasado - Canto 300 mm | O8: Hormigón celular curado en autoclave d 600 | P8: 1/2 pie LP métrico o catalán 60 mm < G < 80 mm | Q8: Losa de hormigón d = 2000 - Canto 200 mm | R8: Corcho Expandido con resinas sintéticas 100 < d < 150 | S8: Cromo | T8: Mortero de cemento o cal para albañilería y para revoco/enlucido 1800 < d < 2000 | U8: Caliza blanda [1600 < d < 1790] | V8: Policarbonatos [PC] | W8: Silicona masilla | Z8: Yeso dureza media 600 < d < 900
A9: Cauchos | C9: EPS-GrafipolTR29_Valero | D9: MW Lana mineral [0,037 W/mK] | F9: BC con mortero convencional espesor 290 mm | G9: BH aligerado macizo con áridos ligeros 290 mm | H9: BH hueco con áridos densos 190 mm | I9: Cámara de aire ligeramente ventilada vertical 5 cm | J9: Poliisobutileno | K9: Teja de arcilla cocida | M9: FR Entrevigado de EPS mecanizado enrasado - Canto 450 mm | N9: FU Entrevigado de EPS mecanizado enrasado - Canto 350 mm | O9: Hormigón celular curado en autoclave d 700 | P9: 1/2 pie LP métrico o catalán 80 mm < G < 100 mm | Q9: Losa de hormigón d = 2000 - Canto 250 mm | R9: Corcho Expandido con resinas sintéticas 150 < d < 250 | S9: Estaño | T9: Mortero de cemento o cal para albañilería y para revoco/enlucido 500 < d < 750 | U9: Caliza dura [2000 < d < 2190] | V9: Poliestireno [PS] | W9: Silicona pura
A10: Cerámicos | C10: EPS-GrafipolTR30_Valero | D10: MW Lana mineral [0,041 W/mK] | G10: BH aligerado macizo con áridos ligeros 290 mm, muro de carga | H10: BH hueco con áridos densos 240 mm | I10: Cámara de aire sin ventilar horizontal 1 cm | J10: Polisulfuro | M10: FR Entrevigado de EPS moldeado descolgado - Canto 250 mm | N10: FU Entrevigado de EPS moldeado descolgado - Canto 250 mm | O10: Hormigón celular curado en autoclave d 800 | P10: Ladrillo de hormigón macizo de áridos densos | Q10: Losa de hormigón d = 2000 - Canto 300 mm | R10: Corcho Expandido puro 100 < d < 150 | S10: Hierro | T10: Mortero de cemento o cal para albañilería y para revoco/enlucido 750 < d < 1000 | U10: Caliza dureza media [1800 < d < 1990] | V10: Polietileno alta densidad [HDPE] | W10: Uretano o poliuretano [rotura de puente térmico]
A11: Enlucidos | C11: EPS-GrafipolTR31_Valero | D11: Panel de vidrio celular [CG] | G11: BH aligerado macizo con áridos ligeros 290 mm, muro de carga con mortero aislante | H11: BH hueco con áridos densos 290 mm | I11: Cámara de aire sin ventilar horizontal 10 cm | M11: FR Entrevigado de EPS moldeado descolgado - Canto 300 mm | N11: FU Entrevigado de EPS moldeado descolgado - Canto 300 mm | O11: Hormigón celular curado en autoclave d 900 | P11: Ladrillo de hormigón perforado de áridos densos | Q11: Losa de hormigón d = 2000 - Canto 350 mm | R11: Frondosa ligera 435 < d < 565 | S11: Hierro fundición | T11: Mortero de yeso | U11: Caliza muy blanda [d < 1590] | V11: Polietileno baja densidad [LDPE]
A12: ForjadosRET | C12: EPS-GrafipolTR32_Valero | D12: PIR espuma de Poliisocianurato [0,023 W/mK] | G12: BH aligerado macizo espesor 200 mm | H12: BH hueco con áridos densos 50 mm | I12: Cámara de aire sin ventilar horizontal 2 cm | M12: FR Entrevigado de EPS moldeado descolgado - Canto 350 mm | N12: FU Entrevigado de EPS moldeado descolgado - Canto 350 mm | O12: Hormigón con arcilla expandida como árido principal d 1000 | P12: Ladrillo de hormigón perforado de áridos ligeros | Q12: Losa de hormigón d = 2000 - Canto 400 mm | R12: Frondosa muy ligera 200 < d < 435 | S12: Latón | U12: Caliza muy dura [2200 < d < 2590] | V12: Polimetilmetacrilato [PMMA]
A13: ForjadosUNI | C13: EPS-GrafipolTR5_Valero | D13: PIR espuma de Poliisocianurato [0,025 W/mK] | G13: BH aligerado macizo espesor 250 mm | H13: BH hueco con áridos densos 60 mm | I13: Cámara de aire sin ventilar horizontal 5 cm | M13: FR Entrevigado de EPS moldeado descolgado - Canto 400 mm | N13: FU Entrevigado de EPS moldeado enrasado - Canto 250 mm | O13: Hormigón con arcilla expandida como árido principal d 1100 | P13: Tabicón de LH doble [60 mm < E < 90 mm] | Q13: Losa de hormigón d = 2000 - Canto 500 mm | R13: Frondosa muy pesada d > 870 | S13: Níquel | U13: Cascote de ladrillo | V13: Polipropileno [PP]
A14: Hormigones | C14: EPS-GrafipolTR-SATE_Valero | D14: PUR espuma de Poliuretano [0,028 W/mK] | G14: BH aligerado macizo espesor 300 mm | H14: BH hueco con áridos densos 80 mm | I14: Cámara de aire sin ventilar vertical 1 cm | M14: FR Entrevigado de EPS moldeado descolgado - Canto 450 mm | N14: FU Entrevigado de EPS moldeado enrasado - Canto 300 mm | O14: Hormigón con arcilla expandida como árido principal d 1200 | P14: Tabicón de LH doble Gran Formato [60 mm < E < 90 mm] | Q14: Losa de hormigón d = 2500 - Canto 200 mm | R14: Frondosa pesada 750 < d < 870 | S14: Plomo | U14: Esquisto Pizarra [2000 < d < 2800] | V14: Polipropileno [PP] 25% fibra de vidrio
A15: Ladrillo | C15: EPS-GVSATE_Valero | D15: XPS Poliestireno extruido [0,033 W/mK] | G15: BH aligerado macizo -muro de carga- espesor 300 mm | H15: BH hueco con áridos densos 90 mm | I15: Cámara de aire sin ventilar vertical 10 cm | M15: FR Entrevigado de EPS moldeado enrasado - Canto 250 mm | N15: FU Entrevigado de EPS moldeado enrasado - Canto 350 mm | O15: Hormigón con arcilla expandida como árido principal d 1300 | P15: Tabicón de LH sencillo [40 mm < E < 60 mm] | Q15: Losa de hormigón d = 2500 - Canto 250 mm | R15: Frondosa peso medio 565 < d < 750 | S15: Titanio | U15: Gneis Pórfido [2300 < d < 2900] | V15: Politetrafluoretileno [PTFE]
A16: Losas_Alveolares | D16: XPS Poliestireno extruido [0,034 W/mK] | G16: BH aligerado macizo -muro de carga- espesor 300 mm con mortero aligerado | I16: Cámara de aire sin ventilar vertical 2 cm | M16: FR Entrevigado de EPS moldeado enrasado - Canto 300 mm | N16: FU Entrevigado de hormigón - Canto 250 mm | O16: Hormigón con arcilla expandida como árido principal d 1400 | P16: Tabicón de LH triple Gran Formato [100 mm < E < 110 mm] | Q16: Losa de hormigón d = 2500 - Canto 300 mm | R16: Paneles de fibras con conglomerante hidraúlico 250 < d < 350 | S16: Zinc | U16: Granito [2500 < d < 2700] | V16: Poliuretano [PU]
A17: Maderas | D17: XPS Poliestireno extruido [0,036 W/mK] | G17: BH aligerado perforado con áridos ligeros 110 mm | I17: Cámara de aire sin ventilar vertical 5 cm | M17: FR Entrevigado de EPS moldeado enrasado - Canto 350 mm | N17: FU Entrevigado de hormigón - Canto 300 mm | O17: Hormigón con arcilla expandida como árido principal d 1500 | P17: Tabique de LH sencillo Gran Formato [40 mm < E < 60 mm] | Q17: Losa de hormigón d = 2500 - Canto 350 mm | R17: Paneles de fibras con conglomerante hidraúlico 350 < d < 450 | U17: Mármol [2600 < d < 2800] | V17: Resina epoxi
A18: Metales | D18: XPS Poliestireno extruido [0,038 W/mK] | G18: BH aligerado perforado con áridos ligeros 140 mm | I18: Cámara de aire ventilada | M18: FR Entrevigado de EPS moldeado enrasado - Canto 400 mm | N18: FU Entrevigado de hormigón - Canto 350 mm | O18: Hormigón con arcilla expandida como árido principal d 1600 | P18: Tabique de LH triple [100 mm < E < 110 mm] | Q18: Losa de hormigón d = 2500 - Canto 400 mm | R18: Paneles de fibras con conglomerante hidraúlico 450 < d < 550 | U18: Piedra artificial | V18: Resina fenólica
A19: Morteros | G19: BH aligerado perforado con áridos ligeros 190 mm | M19: FR Entrevigado de EPS moldeado enrasado - Canto 450 mm | N19: FU Entrevigado de hormigón aligerado - Canto 250 mm | O19: Hormigón con arcilla expandida como árido principal d 1700 | Q19: Losa de hormigón d = 2500 - Canto 500 mm | R19: Placas de corcho | U19: Piedra pómez natural [d < 400] | V19: Resina poliéster no saturado [UP]
A20: Pétreos_Suelos | G20: BH aligerado perforado con áridos ligeros 240 mm | M20: FR Entrevigado de hormigón - Canto 250 mm | N20: FU Entrevigado de hormigón aligerado - Canto 300 mm | O20: Hormigón con arcilla expandida como árido principal d 800 | Q20: Sin capa de compresión - Canto 200 mm | R20: Tablero contrachapado 250 < d < 350 | U20: Relleno de cascote de ladrillo | V20: Teja plástico
A21: Plásticos | G21: BH aligerado perforado con áridos ligeros 290 mm | M21: FR Entrevigado de hormigón - Canto 300 mm | N21: FU Entrevigado de hormigón aligerado - Canto 350 mm | O21: Hormigón con arcilla expandida como árido principal d 900 | Q21: Sin capa de compresión - Canto 250 mm | R21: Tablero contrachapado 350 < d < 450 | U21: Roca natural porosa [por ejem. Lava] d < 1600
A22: Sellantes | G22: BH aligerado perforado con áridos ligeros 290 mm, muro de carga | M22: FR Entrevigado de hormigón - Canto 350 mm | N22: FU Entrevigado de hormigón aligerado - Canto 400 mm | O22: Hormigón con arcilla expandida sin otros áridos d 400 | Q22: Sin capa de compresión - Canto 300 mm | R22: Tablero contrachapado 450 < d < 500 | U22: Silex [2600 < d < 2800]
A23: Textiles | G23: BH aligerado perforado con áridos ligeros 290 mm, muro de carga con mortero aislante | M23: FR Entrevigado de hormigón - Canto 400 mm | N23: FU Entrevigado de hormigón aligerado d < 1200 - Canto 250 mm | O23: Hormigón con arcilla expandida sin otros áridos d 500 | Q23: Sin capa de compresión - Canto 350 mm | R23: Tablero contrachapado 500 < d < 600 | U23: Tierra apisonada adobe bloques de tierra comprimida [1770 < d < 2000]
A24: Vidrios | G24: BH aligerado perforado con áridos ligeros 80 mm | M24: FR Entrevigado de hormigón - Canto 450 mm | N24: FU Entrevigado de hormigón aligerado d < 1200 - Canto 300 mm | O24: Hormigón con arcilla expandida sin otros áridos d 600 | Q24: Sin capa de compresión - Canto 400 mm | R24: Tablero contrachapado 600 < d < 750 | U24: Tierra cruda con densidad 1000 Kg/m³
A25: Yesos | G25: BH aligerado perforado con áridos ligeros 90 mm | M25: FR Entrevigado de hormigón aligerado - Canto 250 mm | N25: FU Entrevigado de hormigón aligerado d < 1200 - Canto 350 mm | O25: Hormigón con arcilla expandida sin otros áridos d 700 | Q25: Sin capa de compresión - Canto 500 mm | R25: Tablero contrachapado 700 < d < 900 | U25: Tierra cruda con densidad 1200 Kg/m³
G26: Bloque de picón aligerado de 120 mm con cámara doble | M26: FR Entrevigado de hormigón aligerado - Canto 300 mm | N26: FU Entrevigado de hormigón aligerado d < 1200 - Canto 400 mm | O26: Hormigón con áridos ligeros 1600 < d < 1800 | R26: Tablero contrachapado d < 250 | U26: Tierra cruda con densidad 1400 Kg/m³
G27: Bloque de picón aligerado de 150 mm con cámara doble | M27: FR Entrevigado de hormigón aligerado - Canto 350 mm | N27: FU Entrevigado de picón - Canto 300 mm | O27: Hormigón con áridos ligeros 1800 < d < 2000 | R27: Tablero de partículas 180 < d < 270 | U27: Tierra cruda con densidad 1600 Kg/m³
G28: Bloque de picón aligerado de 200 mm con cámara doble | M28: FR Entrevigado de hormigón aligerado - Canto 400 mm | N28: FU Entrevigado de picón - Canto 350 mm | O28: Hormigón con otros áridos ligeros d 1000 | R28: Tablero de partículas 270 < d < 450 | U28: Tierra cruda con densidad 1800 Kg/m³
G29: Bloque de picón aligerado de 250 mm con cámara doble | M29: FR Entrevigado de hormigón aligerado - Canto 450 mm | O29: Hormigón con otros áridos ligeros d 1100 | R29: Tablero de partículas 450 < d < 640 | U29: Tierra cruda con densidad 2000 Kg/m³
G30: Bloque de picón aligerado de 250 mm con cámara triple | M30: FR Entrevigado de hormigón d < 1200 con áridos ligeros - Canto 250 mm | O30: Hormigón con otros áridos ligeros d 1200 | R30: Tablero de partículas 640 < d < 820 | U30: Tierra cruda con densidad 800 Kg/m³
G31: Bloque de picón aligerado de 90 mm con cámara simple | M31: FR Entrevigado de hormigón d < 1200 con áridos ligeros - Canto 300 mm | O31: Hormigón con otros áridos ligeros d 1300 | R31: Tablero de partículas con cemento d = 1200 | U31: Tierra vegetal [d < 2050]
G32: Bloque de picón de 120 mm con cámara doble | M32: FR Entrevigado de hormigón d < 1200 con áridos ligeros - Canto 350 mm | O32: Hormigón con otros áridos ligeros d 1400 | R32: Tablero de virutas orientadas [OSB] d < 650 | U32: Traquita andesita [2000 < d < 2700]
G33: Bloque de picón de 150 mm con cámara doble | M33: FR Entrevigado de hormigón d < 1200 con áridos ligeros - Canto 400 mm | O33: Hormigón con otros áridos ligeros d 1500 | R33: Tableros de fibras incluyendo MDF 200 < d < 350
G34: Bloque de picón de 200 mm con cámara doble | M34: FR Entrevigado de hormigón d < 1200 con áridos ligeros - Canto 450 mm | O34: Hormigón con otros áridos ligeros d 1600 | R34: Tableros de fibras incluyendo MDF 350 < d < 550
G35: Bloque de picón de 250 mm con cámara doble | M35: FR sin Entrevigado - Canto 250 mm | O35: Hormigón con otros áridos ligeros d 1800 | R35: Tableros de fibras incluyendo MDF 550 < d < 750
G36: Bloque de picón de 250 mm con cámara triple | M36: FR sin Entrevigado - Canto 300 mm | O36: Hormigón con otros áridos ligeros d 2000 | R36: Tableros de fibras incluyendo MDF 750 < d < 1000
G37: Bloque de picón de 90 mm con cámara simple | M37: FR sin Entrevigado - Canto 350 mm | O37: Hormigón con otros áridos ligeros d 500 | R37: Tableros de fibras incluyendo MDF d < 200
O38: Hormigón con otros áridos ligeros d 600
O39: Hormigón con otros áridos ligeros d 700
O40: Hormigón con otros áridos ligeros d 800
O41: Hormigón con otros áridos ligeros d 900
O42: Hormigón convencional d 1600
O43: Hormigón convencional d 1700
O44: Hormigón convencional d 1800
O45: Hormigón convencional d 1900
O46: Hormigón convencional d 2000
O47: Hormigón convencional d 2100
O48: Hormigón convencional d 2200
O49: Hormigón convencional d 2300
O50: Hormigón convencional d 2400
O51: Hormigón en masa 2000 < d < 2300
O52: Hormigón en masa 2300 < d < 2600
O53: Teja de hormigón

Sheet Auxiliar (hidden)
A1: Suelos | I1: Resto
A2: Solución Proyecto | E2: Solución Alternativa | I2: Solución Proyecto | M2: Solución Alternativa
A3: Resistencias térmicas de aislamiento total (m²K/W) | C3: Resistencias térmicas de aislamiento Valero (m²K/W) | E3: Resistencias térmicas de aislamiento total (m²K/W) | G3: Resistencias térmicas de aislamiento Valero (m²K/W) | I3: Resistencias térmicas de aislamiento total (m²K/W) | K3: Resistencias térmicas de aislamiento Valero (m²K/W) | M3: Resistencias térmicas de aislamiento total (m²K/W) | O3: Resistencias térmicas de aislamiento Valero (m²K/W) | T3: Tipos cerramientos | V3: Rse | W3: Rsi | Y3: U Proyecto | AB3: U Alternativa | AF3: α | AG3: A | AH3: B | AI3: C | AJ3: D | AK3: E | AN3: Fachada | AO3: Cubierta | AP3: Suelo en contacto con el exterior | AQ3: Muro en contacto con espacio no habitable | AR3: Cubierta en contacto con espacio no habitable | AS3: Suelo en contacto con espacio no habitable | AT3: Suelo en contacto con cámara sanitaria | AU3: Muro en contacto con el terreno | AV3: Cubierta enterrada | AW3: Suelo en contacto con el terreno | AZ3: Fachada | BA3: Cubierta | BB3: Suelo en contacto con el exterior | BC3: Muro en contacto con espacio no habitable | BD3: Cubierta en contacto con espacio no habitable | BE3: Suelo en contacto con espacio no habitable | BF3: Suelo en contacto con cámara sanitaria | BG3: Muro en contacto con el terreno | BH3: Cubierta enterrada | BI3: Suelo en contacto con el terreno
A4: =IFERROR((_xlfn._xlws.FILTER(AQ46:AQ67,(S46:S67="AislamientosValero")+(S46:S67="Aislantes"))),0) -> 0 | C4: =IFERROR((_xlfn._xlws.FILTER(AQ46:AQ67,(S46:S67="AislamientosValero"))),0) -> 0 | E4: =IFERROR((_xlfn._xlws.FILTER(BS46:BS67,(AU46:AU67="AislamientosValero")+(AU46:AU67="Aislantes"))),0) -> 0 | G4: =IFERROR((_xlfn._xlws.FILTER(BS46:BS67,(AU46:AU67="AislamientosValero"))),0) -> 0 | I4: =IFERROR((_xlfn._xlws.FILTER(AQ73:AQ94,(S73:S94="AislamientosValero")+(S73:S94="Aislantes"))),0) -> 0 | K4: =IFERROR((_xlfn._xlws.FILTER(AQ73:AQ94,(S73:S94="AislamientosValero"))),0) -> 0 | M4: =IFERROR((_xlfn._xlws.FILTER(BS73:BS94,(AU73:AU94="AislamientosValero")+(AU73:AU94="Aislantes"))),0) -> 0 | O4: =IFERROR((_xlfn._xlws.FILTER(BS73:BS94,(AU73:AU94="AislamientosValero"))),0) -> 0 | T4: Fachada | U4: 1 | V4: 0.04 | W4: 0.13 | Y4: Fachada | Z4: =1/('Recop. Datos'!$D$18+AQ72+AQ95) ->  | AB4: Fachada | AC4: =1/('Recop. Datos'!$J$18+BS72+BS95) ->  | AE4: Fachada | AF4: 0.56 | AG4: 0.5 | AH4: 0.38 | AI4: 0.29 | AJ4: 0.27 | AK4: 0.23 | AM4: Tipo de cerramiento | AN4: Muro | AO4: Cubierta | AP4: Suelo | AQ4: Muro | AR4: Cubierta | AS4: Suelo | AT4: Suelo | AU4: Muro | AV4: Cubierta | AW4: Suelo | AY4: Tipo de cerramiento | AZ4: Muro | BA4: Cubierta | BB4: Suelo | BC4: Muro | BD4: Cubierta | BE4: Suelo | BF4: Suelo | BG4: Muro | BH4: Cubierta | BI4: Suelo
T5: Cubierta | U5: 2 | V5: 0.04 | W5: 0.1 | Y5: Cubierta | Z5: =1/('Recop. Datos'!$D$18+AQ72+AQ95) ->  | AB5: Cubierta | AC5: =1/('Recop. Datos'!$J$18+BS72+BS95) ->  | AE5: Cubierta | AF5: 0.5 | AG5: 0.44 | AH5: 0.33 | AI5: 0.23 | AJ5: 0.22 | AK5: 0.19 | AM5: Contacto con | AN5: Exterior | AO5: Exterior | AP5: Exterior | AQ5: Espacio no habitable | AR5: Espacio no habitable | AS5: Espacio no habitable | AT5: Cámara sanitaria | AU5: Terreno | AV5: Terreno | AW5: Terreno | AY5: Contacto con | AZ5: Exterior | BA5: Exterior | BB5: Exterior | BC5: Espacio no habitable | BD5: Espacio no habitable | BE5: Espacio no habitable | BF5: Cámara sanitaria | BG5: Terreno | BH5: Terreno | BI5: Terreno
T6: Suelo en contacto con el exterior | U6: 3 | V6: 0.04 | W6: 0.17 | Y6: Suelo en contacto con el exterior | Z6: =1/('Recop. Datos'!$A$18+AQ45+AQ68) ->  | AB6: Suelo en contacto con el exterior | AC6: =1/('Recop. Datos'!$G$18+BS45+BS68) ->  | AE6: Suelo en contacto con el exterior | AF6: 0.56 | AG6: 0.5 | AH6: 0.38 | AI6: 0.29 | AJ6: 0.27 | AK6: 0.23 | AM6: Apartado | AN6: 2.1.1 | AO6: 2.1.1 | AP6: 2.1.1 | AQ6: 2.1.3.1 | AR6: 2.1.3.1 | AS6: 2.1.3.1 | AT6: 2.1.3.2 | AU6: 2.1.2.2 | AV6: 2.1.2.3 | AW6: 2.1.2.1 | AY6: Apartado | AZ6: 2.1.1 | BA6: 2.1.1 | BB6: 2.1.1 | BC6: 2.1.3.1 | BD6: 2.1.3.1 | BE6: 2.1.3.1 | BF6: 2.1.3.2 | BG6: 2.1.2.2 | BH6: 2.1.2.3 | BI6: 2.1.2.1
T7: Muro en contacto con espacio no habitable | U7: 4 | V7: 0.13 | W7: 0.13 | Y7: Muro en contacto con espacio no habitable | Z7: =IF(Cerramiento!G3="Estimados",(X22*AF36),((VLOOKUP($X$17,Tabla7!$C$26:$E$31,3,FALSE))*X22)) ->  | AB7: Muro en contacto con espacio no habitable | AC7: =IF(Cerramiento!G3="Estimados",(Y22*AF36),((VLOOKUP($X$17,Tabla7V!$C$26:$E$31,3,FALSE))*Y22)) ->  | AE7: Muro en contacto con espacio no habitable | AF7: 0.8 | AG7: 0.8 | AH7: 0.69 | AI7: 0.48 | AJ7: 0.48 | AK7: 0.48 | AM7: R proy | AN7: R de Proyecto (m²K/W) | AO7: R de Proyecto (m²K/W) | AP7: R de Proyecto (m²K/W) | AQ7: R de Proyecto (m²K/W) | AR7: R de Proyecto (m²K/W) | AS7: R de Proyecto (m²K/W) | AT7: R de Proyecto (m²K/W) | AU7: R de Proyecto (m²K/W) | AV7: R de Proyecto (m²K/W) | AW7: =IF(W32=0,"Ra de Proyecto (m²K/W)","Rf de Proyecto (m²K/W)") -> Ra de Proyecto (m²K/W) | AY7: R proy | AZ7: ='Recop. Datos'!$D$18 -> 0 | BA7: ='Recop. Datos'!$D$18 -> 0 | BB7: ='Recop. Datos'!$D$18 -> 0 | BC7: ='Recop. Datos'!$D$18 -> 0 | BD7: ='Recop. Datos'!$D$18 -> 0 | BE7: ='Recop. Datos'!$D$18 -> 0 | BF7: ='Recop. Datos'!$D$18 -> 0 | BG7: ='Recop. Datos'!$D$18 -> 0 | BH7: ='Recop. Datos'!$D$18 -> 0 | BI7: =IF(W32=0,'Recop. Datos'!D8,'Recop. Datos'!D18) -> 0
T8: Cubierta en contacto con espacio no habitable | U8: 5 | V8: 0.1 | W8: 0.1 | Y8: Cubierta en contacto con espacio no habitable | Z8: =IF(Cerramiento!G3="Estimados",(X23*AF36),((VLOOKUP($X$17,Tabla7!$C$26:$E$31,3,FALSE))*X23)) ->  | AB8: Cubierta en contacto con espacio no habitable | AC8: =IF(Cerramiento!G3="Estimados",(Y23*AF36),((VLOOKUP($X$17,Tabla7V!$C$26:$E$31,3,FALSE))*Y23)) ->  | AE8: Cubierta en contacto con espacio no habitable | AF8: 0.8 | AG8: 0.8 | AH8: 0.69 | AI8: 0.48 | AJ8: 0.48 | AK8: 0.48 | AM8: R prop | AN8: R de la Alternativa (m²K/W) | AO8: R de la Alternativa (m²K/W) | AP8: R de la Alternativa (m²K/W) | AQ8: R de la Alternativa (m²K/W) | AR8: R de la Alternativa (m²K/W) | AS8: R de la Alternativa (m²K/W) | AT8: R de la Alternativa (m²K/W) | AU8: R de la Alternativa (m²K/W) | AV8: R de la Alternativa (m²K/W) | AW8: =IF(W32=0,"Ra de la Alternativa (m²K/W)","Rf de la Alternativa (m²K/W)") -> Ra de la Alternativa (m²K/W) | AY8: R prop | AZ8: ='Recop. Datos'!$G$18 -> 0 | BA8: ='Recop. Datos'!$G$18 -> 0 | BB8: ='Recop. Datos'!$G$18 -> 0 | BC8: ='Recop. Datos'!$G$18 -> 0 | BD8: ='Recop. Datos'!$G$18 -> 0 | BE8: ='Recop. Datos'!$G$18 -> 0 | BF8: ='Recop. Datos'!$G$18 -> 0 | BG8: ='Recop. Datos'!$G$18 -> 0 | BH8: ='Recop. Datos'!$G$18 -> 0 | BI8: =IF(W32=0,'Recop. Datos'!G8,'Recop. Datos'!G18) -> 0
T9: Suelo en contacto con espacio no habitable | U9: 6 | V9: 0.17 | W9: 0.17 | Y9: Suelo en contacto con espacio no habitable | Z9: =IF(Cerramiento!G3="Estimados",(X24*AF36),((VLOOKUP($X$17,Tabla7!$C$26:$E$31,3,FALSE))*X24)) ->  | AB9: Suelo en contacto con espacio no habitable | AC9: =IF(Cerramiento!G3="Estimados",(Y24*AF36),((VLOOKUP($X$17,Tabla7V!$C$26:$E$31,3,FALSE))*Y24)) ->  | AE9: Suelo en contacto con espacio no habitable | AF9: 0.8 | AG9: 0.8 | AH9: 0.69 | AI9: 0.48 | AJ9: 0.48 | AK9: 0.48 | AM9: Dato 1 | AQ9: Nivel de estanqueidad | AR9: Nivel de estanqueidad | AS9: Nivel de estanqueidad | AT9: A (m²) | AU9: z (m) | AV9: e (m) | AW9: z (m) | AY9: Valor 1 | BC9: =IF(Cerramiento!G3="Estimados","Estimado",'Datos necesarios'!$H$11) -> 0 | BD9: =IF(Cerramiento!G3="ESTIMADOS","Estimado",'Datos necesarios'!$H$11) -> 0 | BE9: =IF(Cerramiento!G3="ESTIMADOS","Estimado",'Datos necesarios'!$H$11) -> 0 | BF9: =IF(Cerramiento!G3="ESTIMADOS","Estimado",'Datos necesarios'!$R$24) -> 0 | BG9: =IF(Cerramiento!G3="ESTIMADOS",AF34,'Datos necesarios'!$R$35) -> 0 | BH9: =IF(Cerramiento!G3="ESTIMADOS",AF35,'Datos necesarios'!$H$35) -> 0 | BI9: =IF(Cerramiento!G3="ESTIMADOS",AF33,'Datos necesarios'!$H$26) -> 0
T10: Suelo en contacto con cámara sanitaria | U10: 7 | V10: 0 | W10: 0 | Y10: Suelo en contacto con cámara sanitaria | Z10: =Tabla9!H56 -> 0 | AB10: Suelo en contacto con cámara sanitaria | AC10: =Tabla9V!H56 -> 0 | AE10: Suelo en contacto con cámara sanitaria | AF10: 0.8 | AG10: 0.8 | AH10: 0.69 | AI10: 0.48 | AJ10: 0.48 | AK10: 0.48 | AM10: Dato 2 | AQ10: Caso | AR10: Caso | AS10: Caso | AT10: P (m) | AW10: Caso | AY10: Valor 2 | BC10: =IF(W17=1,"Caso 1",(IF(W17=2,"Caso 2","Estimado"))) -> Estimado | BD10: =IF(W17=1,"Caso 1",(IF(W17=2,"Caso 2","Estimado"))) -> Estimado | BE10: =IF(W17=1,"Caso 1",(IF(W17=2,"Caso 2","Estimado"))) -> Estimado | BF10: =IF(Cerramiento!G3="ESTIMADOS","Estimado",'Datos necesarios'!$R$26) -> 0 | BI10: =IF(W32=0,"Caso 1",(IF(W32<>0,"Caso 2",""))) -> Caso 1
T11: Muro en contacto con el terreno | U11: 8 | V11: 0 | W11: 0 | Y11: Muro en contacto con el terreno | Z11: =Tabla5!H50 -> 4.8 | AB11: Muro en contacto con el terreno | AC11: =Tabla5V!H50 -> 4.8 | AE11: Muro en contacto con el terreno | AF11: 0.8 | AG11: 0.8 | AH11: 0.69 | AI11: 0.48 | AJ11: 0.48 | AK11: 0.48 | AM11: Dato 3 | AQ11: Ah-nh/Anh-e | AR11: Ah-nh/Anh-e | AS11: Ah-nh/Anh-e | AT11: B' = A/((1/2)*P) | AW11: A (m²) | AY11: Valor 3 | BC11: =IF(Cerramiento!G3="ESTIMADOS","Estimado",Tabla7!$B$26) -> 0 | BD11: =IF(Cerramiento!G3="ESTIMADOS","Estimado",Tabla7!$B$26) -> 0 | BE11: =IF(Cerramiento!G3="ESTIMADOS","Estimado",Tabla7!$B$26) -> 0 | BF11: =IF(Cerramiento!G3="ESTIMADOS",AF31,'Datos necesarios'!$R$28) ->  | BI11: =IF(Cerramiento!G3="ESTIMADOS","Estimado",'Datos necesarios'!$H$20) -> 0
T12: Cubierta enterrada | U12: 9 | V12: 0.04 | W12: 0.1 | Y12: Cubierta enterrada | Z12: =IF(Cerramiento!G3="Estimados",(1/('Recop. Datos'!$D$18+Auxiliar!V12+Auxiliar!W12+(IF((OR($AP$67="-",$AP$73="-")),0,1/2)))),(1/('Recop. Datos'!$D$18+Auxiliar!V12+Auxiliar!W12+(IF((OR($AP$67="-",$AP$73="-")),0,'Datos necesarios'!H35/2))))) -> 7.142857143 | AB12: Cubierta enterrada | AC12: =IF(Cerramiento!G3="Estimados",(1/('Recop. Datos'!$G$18+Auxiliar!V12+Auxiliar!W12+(IF((OR($BR$67="-",$BR$73="-")),0,1/2)))),(1/('Recop. Datos'!$G$18+Auxiliar!V12+Auxiliar!W12+(IF((OR($BR$67="-",$BR$73="-")),0,'Datos necesarios'!H35/2))))) -> 7.142857143 | AE12: Cubierta enterrada | AF12: 0.8 | AG12: 0.8 | AH12: 0.69 | AI12: 0.48 | AJ12: 0.48 | AK12: 0.48 | AM12: Dato 4 | AQ12: Posición del aislamiento | AR12: Posición del aislamiento | AS12: Posición del aislamiento | AW12: P (m) | AY12: Valor 4 | BC12: =IF(Cerramiento!G3="ESTIMADOS",$S$23,(VLOOKUP('Datos necesarios'!$F$13,$R$23:$S$25,2,FALSE))) ->  | BD12: =IF(Cerramiento!G3="ESTIMADOS",$S$23,(VLOOKUP('Datos necesarios'!$F$13,$R$23:$S$25,2,FALSE))) ->  | BE12: =IF(Cerramiento!G3="ESTIMADOS",$S$23,(VLOOKUP('Datos necesarios'!$F$13,$R$23:$S$25,2,FALSE))) ->  | BI12: =IF(Cerramiento!G3="ESTIMADOS","Estimado",'Datos necesarios'!$H$22) -> 0
T13: Suelo en contacto con el terreno | U13: 10 | V13: 0 | W13: 0 | Y13: Suelo en contacto con el terreno | Z13: =IF(W32=0,(VLOOKUP($W$30,Tabla3!$F$40:$H$43,3,FALSE)),(VLOOKUP($W$32,Tabla4!$F$40:$H$43,3,FALSE))) ->  | AB13: Suelo en contacto con el terreno | AC13: =IF(W32=0,(VLOOKUP($W$30,Tabla3V!$F$40:$H$43,3,FALSE)),(VLOOKUP($W$32,Tabla4V!$F$40:$H$43,3,FALSE))) ->  | AE13: Suelo en contacto con el terreno | AF13: 0.8 | AG13: 0.8 | AH13: 0.69 | AI13: 0.48 | AJ13: 0.48 | AK13: 0.48 | AM13: Dato 5 | AQ13: b | AR13: b | AS13: b | AW13: B' = A/((1/2)*P) | AY13: Valor 5 | BC13: =IF(Cerramiento!G3="ESTIMADOS",AF36,(VLOOKUP($X$17,Tabla7!$C$26:$E$31,3,FALSE))) ->  | BD13: =IF(Cerramiento!G3="ESTIMADOS",AF36,(VLOOKUP($X$17,Tabla7!$C$26:$E$31,3,FALSE))) ->  | BE13: =IF(Cerramiento!G3="ESTIMADOS",AF36,(VLOOKUP($X$17,Tabla7!$C$26:$E$31,3,FALSE))) ->  | BI13: =IF(Cerramiento!G3="ESTIMADOS",AF31,'Datos necesarios'!$H$24) -> 
AM14: Dato 6 | AQ14: Up de Proyecto (W/m²K) | AR14: Up de Proyecto (W/m²K) | AS14: Up de Proyecto (W/m²K) | AW14: Tipo de aislamiento | AY14: Valor 6 | BC14: =X22 -> 3.846153846 | BD14: =X23 -> 5 | BE14: =X24 -> 2.941176471 | BI14: =IF(Cerramiento!G3="ESTIMADOS",$S$34,(VLOOKUP('Datos necesarios'!$F$28,$R$30:$S$34,2,FALSE))) -> 
T15: Espacios no habitables | AF15: Zona α | AG15: Zona A | AH15: Zona B | AI15: Zona C | AJ15: Zona D | AK15: Zona E | AM15: Dato 7 | AQ15: Up de la Alternativa (W/m²K) | AR15: Up de la Alternativa (W/m²K) | AS15: Up de la Alternativa (W/m²K) | AY15: Valor 7 | BC15: =Y22 -> 3.846153846 | BD15: =Y23 -> 5 | BE15: =Y24 -> 2.941176471
T16: Niveles de estanqueidad | AE16: =AA17 -> 0 | AF16: =VLOOKUP($AE$16,$AE$4:$AK$13,2,FALSE) ->  | AG16: =VLOOKUP($AE$16,$AE$4:$AK$13,3,FALSE) ->  | AH16: =VLOOKUP($AE$16,$AE$4:$AK$13,4,FALSE) ->  | AI16: =VLOOKUP($AE$16,$AE$4:$AK$13,5,FALSE) ->  | AJ16: =VLOOKUP($AE$16,$AE$4:$AK$13,6,FALSE) ->  | AK16: =VLOOKUP($AE$16,$AE$4:$AK$13,7,FALSE) ->  | AM16: Tabla | AQ16: Tabla utilizada | AR16: Tabla utilizada | AS16: Tabla utilizada | AT16: Tabla utilizada | AU16: Tabla utilizada | AW16: Tabla utilizada | BC16: Tabla 7 | BD16: Tabla 7 | BE16: Tabla 7 | BF16: Tabla 9 | BG16: Tabla 5 | BI16: =IF(W32=0,"Tabla 3","Tabla 4") -> Tabla 3
T17: Nivel 1 | U17: 1 | W17: =IFERROR((VLOOKUP('Datos necesarios'!H11,Auxiliar!T17:U21,2,FALSE)),"") ->  | X17: =CONCATENATE(W17,W18) ->  | AA17: =Cerramiento!D3 -> 0 | AM17: Comentario | AN17: =CONCATENATE("El cálculo de la transmitancia térmica U se obtiene de la inversa de la suma de las resistencias térmicas de los materiales R más las resistencias térmicas superficiales de la Tabla 1. ",IF((OR($AP$67="-",$AP$73="-",$BR$66="-",$BR$73="-")),$AN$23,"")) -> El cálculo de la transmitancia térmica U se obtiene de la inversa de la suma de las resistencias térmicas de los materiales R más las resistencias térmicas superficiales de la Tabla 1. | AO17: =CONCATENATE("El cálculo de la transmitancia térmica U se obtiene de la inversa de la suma de las resistencias térmicas de los materiales R más las resistencias térmicas superficiales de la Tabla 1. ",IF((OR($AP$67="-",$AP$73="-",$BR$66="-",$BR$73="-")),$AN$23,"")) -> El cálculo de la transmitancia térmica U se obtiene de la inversa de la suma de las resistencias térmicas de los materiales R más las resistencias térmicas superficiales de la Tabla 1. | AP17: =CONCATENATE("El cálculo de la transmitancia térmica U se obtiene de la inversa de la suma de las resistencias térmicas de los materiales R más las resistencias térmicas superficiales de la Tabla 1. ",IF((OR($AP$67="-",$AP$73="-",$BR$66="-",$BR$73="-")),$AN$23,"")) -> El cálculo de la transmitancia térmica U se obtiene de la inversa de la suma de las resistencias térmicas de los materiales R más las resistencias térmicas superficiales de la Tabla 1. | AQ17: El cálculo de la transmitancia térmica U se obtiene de la multiplicación de Up y b. Up se obtiene de la inversa de la suma de las resistencia térmicas de los materiales R más las resistencias térmicas superficiales de la Tabla 6. El coeficiente b se obtiene de la tabla 7 entrando con Ah-nh/Anh-e, la posición del aislamiento y el caso que corresponde en función del nivel de estanqueidad del espacio no habitable. Todos los valores intermiedios se obtienen mediante interpolación lineal. | AR17: El cálculo de la transmitancia térmica U se obtiene de la multiplicación de Up y b. Up se obtiene de la inversa de la suma de las resistencia térmicas de los materiales R más las resistencias térmicas superficiales de la Tabla 6. El coeficiente b se obtiene de la tabla 7 entrando con Ah-nh/Anh-e, la posición del aislamiento y el caso que corresponde en función del nivel de estanqueidad del espacio no habitable. Todos los valores intermiedios se obtienen mediante interpolación lineal. | AS17: El cálculo de la transmitancia térmica U se obtiene de la multiplicación de Up y b. Up se obtiene de la inversa de la suma de las resistencia térmicas de los materiales R más las resistencias térmicas superficiales de la Tabla 6. El coeficiente b se obtiene de la tabla 7 entrando con Ah-nh/Anh-e, la posición del aislamiento y el caso que corresponde en función del nivel de estanqueidad del espacio no habitable. Todos los valores intermiedios se obtienen mediante interpolación lineal. | AT17: El cálculo de la transmitancia térmica U se obtiene de la tabla 9 entrando con la longitud característica B' y la resistencia térmica del suelo Rf despreciando las resistencias térmicas superficiales. Todos los valores intermiedios se obtienen mediante interpolación lineal. | AU17: El cálculo de la transmitancia térmica U se obtiene de la tabla 5 entrando con la profundidad z y la resistencia térmica del muro Rm despreciando las resistencias térmicas superficiales. Todos los valores intermiedios se obtienen mediante interpolación lineal. | AV17: =CONCATENATE("El cálculo de la transmitancia térmica U se obtiene calculando como una cubierta con el exterior (apartado 2.1.1) considerando el terreno como otra capa térmicamente homogénea, con espesor e, de conductividad térmica λ = 2 W/mK. ",IF((OR($AP$67="-",$AP$73="-",$BR$66="-",$BR$73="-")),$AN$23,"")) -> El cálculo de la transmitancia térmica U se obtiene calculando como una cubierta con el exterior (apartado 2.1.1) considerando el terreno como otra capa térmicamente homogénea, con espesor e, de conductividad térmica λ = 2 W/mK. | AW17: =IF(W32=0,AW18,(IF(W32<>0,AW19,""))) -> El cálculo de la transmitancia térmica U se obtiene de la tabla 3 en función del tipo de colocación del aislamiento, de la resistencia térmica del aislamiento Ra y la longitud característica B'. Todos los valores intermiedios se obtienen mediante interpolación lineal.
T18: Nivel 2 | U18: 1 | W18: =IFERROR((VLOOKUP('Datos necesarios'!F13:H13,Auxiliar!T23:U25,2,FALSE)),"") ->  | AW18: El cálculo de la transmitancia térmica U se obtiene de la tabla 3 en función del tipo de colocación del aislamiento, de la resistencia térmica del aislamiento Ra y la longitud característica B'. Todos los valores intermiedios se obtienen mediante interpolación lineal.
T19: Nivel 3 | U19: 1 | AB19: U PROYECTO | AE19: Proyecto | AW19: El cálculo de la transmitancia térmica U se obtiene de la tabla 4 en función de la profundidad z a la que apoya el suelo respecto el nivel del terreno, de la resistencia térmica del suelo Rf y la longitud característica B'. Todos los valores intermiedios se obtienen mediante interpolación lineal.
T20: Nivel 4 | U20: 2 | AB20: =IFERROR((ROUND((VLOOKUP(AA17,Y4:Z13,2,FALSE)),2)),"Faltan datos") -> Faltan datos | AE20: Valero | AF20: Otro | AG20: Resto
T21: Nivel 5 | U21: 2 | X21: Up proy | Y21: Up prop | AE21: ='Recop. Datos'!D28 ->  | AF21: ='Recop. Datos'!D33 ->  | AG21: =1-'Recop. Datos'!D28-'Recop. Datos'!D33 -> 
T22: Aislamiento | W22: MURO | X22: =1/('Recop. Datos'!$D$18+Auxiliar!V7+Auxiliar!W7) -> 3.846153846 | Y22: =1/('Recop. Datos'!$J$18+Auxiliar!V7+Auxiliar!W7) -> 3.846153846 | AB22: U ALTERNATIVA
R23: Entre espacio habitable y no habitable | S23: Entre H-NH | T23: Entre espacio habitable y no habitable | U23: 1 | W23: CUB | X23: =1/('Recop. Datos'!$D$18+Auxiliar!V8+Auxiliar!W8) -> 5 | Y23: =1/('Recop. Datos'!$J$18+Auxiliar!V8+Auxiliar!W8) -> 5 | AB23: =IFERROR((ROUND((VLOOKUP(AA17,AB4:AC13,2,FALSE)),2)),"Faltan datos") -> Faltan datos | AE23: Proyecto | AN23: Para cámaras de aire ventiladas, la resistencia térmica total del cerramiento se obtiene despreciando la resistencia térmica de la cámara de aire y las de las demás capas entre la cámara de aire y el ambiente exterior, e incluyendo una resistencia superficial exterior correspondiente al aire en calma, igual a la resistencia superficial interior del mismo elemento.
R24: Entre espacio no habitable y el exterior | S24: Entre E-NH | T24: Entre espacio no habitable y el exterior | U24: 3 | W24: SUELO | X24: =1/('Recop. Datos'!$A$18+Auxiliar!V9+Auxiliar!W9) -> 2.941176471 | Y24: =1/('Recop. Datos'!$G$18+Auxiliar!V9+Auxiliar!W9) -> 2.941176471 | AE24: Valero | AF24: Otro | AG24: Resto
R25: Sin aislamiento térmico | S25: Sin aislam. | T25: Sin aislamiento térmico | U25: 2 | AE25: ='Recop. Datos'!G28 ->  | AF25: ='Recop. Datos'!G33 ->  | AG25: =1-'Recop. Datos'!G28-'Recop. Datos'!G33 -> 
T28: Suelo terreno | Y28: DATOS NECESARIOS
T29: Aislamiento | Y29: Estimados
R30: Sin aislamiento térmico | S30: Sin aislam. | T30: Sin aislamiento térmico | U30: 1 | W30: =IF(Cerramiento!G3="Estimados",4,(VLOOKUP('Datos necesarios'!F28,Auxiliar!T30:U34,2,FALSE))) ->  | Y30: Conocidos | AE30: Datos estimados
R31: Banda perimetral 0,5 m | S31: D = 0,5 m | T31: Banda perimetral 0,5 m | U31: 2 | AE31: B' | AF31: 5
R32: Banda perimetral 1,0 m | S32: D = 1,0 m | T32: Banda perimetral 1,0 m | U32: 3 | W32: =IF(Cerramiento!G3="Estimados",0,(MAX(V36:V39))) -> 0 | Y32: =IFERROR((IF('Recop. Datos'!D8=0,(IF((AND(Cerramiento!D3="Suelo en contacto con el terreno",(OR(Auxiliar!W30=2,Auxiliar!W30=3)))),"Introducir aislamiento de la banda en el cerramiento","")),"")),"") ->  | AE32: Caso | AF32: Caso 1
R33: Banda perimetral ≥ 1,5 m | S33: D ≥ 1,5 m | T33: Banda perimetral ≥ 1,5 m | U33: 4 | Y33: =IFERROR((IF('Recop. Datos'!G8=0,(IF((AND(Cerramiento!D3="Suelo en contacto con el terreno",(OR(Auxiliar!W30=2,Auxiliar!W30=3)))),"Introducir aislamiento de la banda en el cerramiento","")),"")),"") ->  | AE33: z suelo | AF33: 0.5
R34: Toda la superficie aislada | S34: D ≥ 1,5 m | T34: Toda la superficie aislada | U34: 4 | AE34: z muro | AF34: 2.5
T35: Profundidad | AE35: e cubierta | AF35: 1
T36: 0.5 | U36: 1 | V36: =IF((AND('Datos necesarios'!H26>Auxiliar!T36,'Datos necesarios'!H26<=Auxiliar!U36)),1,"") ->  | AE36: b | AF36: 0.93
T37: 1 | U37: 2 | V37: =IF((AND('Datos necesarios'!H26>Auxiliar!T37,'Datos necesarios'!H26<=Auxiliar!U37)),2,"") -> 
T38: 2 | U38: 3 | V38: =IF((AND('Datos necesarios'!H26>Auxiliar!T38,'Datos necesarios'!H26<=Auxiliar!U38)),3,"") -> 
T39: 3 | U39: 100000 | V39: =IF((AND('Datos necesarios'!H26>Auxiliar!T39,'Datos necesarios'!H26<=Auxiliar!U39)),4,"") -> 
R42: Solución de Proyecto | AT42: Solución Alternativa
S44: Suelos | AU44: Suelos
AP45: Rsi | AQ45: =VLOOKUP(Cerramiento!$D$3,$T$4:$W$13,4,FALSE) ->  | BR45: Rsi | BS45: =VLOOKUP(Cerramiento!$D$3,$T$4:$W$13,4,FALSE) -> 
S46: =Cerramiento!C10 -> 0 | T46: =Cerramiento!D10 -> 0 | U46: =Cerramiento!H10 ->  | V46: =IF(U45="-","-",U46) ->  | W46: =IF(V45="-","-",V46) ->  | AL46: =IF(AK45="-","-",AK46) ->  | AM46: =IF(AL45="-","-",AL46) ->  | AQ46: =IF(AP46="-",0,AP46) ->  | AU46: =Cerramiento!C37 -> 0 | AV46: =Cerramiento!D37 -> 0 | AW46: =Cerramiento!H37 ->  | AX46: =IF(AW45="-","-",AW46) ->  | AY46: =IF(AX45="-","-",AX46) ->  | BN46: =IF(BM45="-","-",BM46) ->  | BO46: =IF(BN45="-","-",BN46) ->  | BS46: =IF(BR46="-",0,BR46) -> 
S47: =Cerramiento!C11 -> 0 | T47: =Cerramiento!D11 -> 0 | U47: =Cerramiento!H11 ->  | V47: =IF(U46="-","-",U47) ->  | W47: =IF(V46="-","-",V47) ->  | AL47: =IF(AK46="-","-",AK47) ->  | AQ47: =IF(AP47="-",0,AP47) ->  | AU47: =Cerramiento!C38 -> 0 | AV47: =Cerramiento!D38 -> 0 | AW47: =Cerramiento!H38 ->  | AX47: =IF(AW46="-","-",AW47) ->  | BO47: =IF(BN46="-","-",BN47) ->  | BS47: =IF(BR47="-",0,BR47) -> 
S48: =Cerramiento!C12 -> 0 | T48: =Cerramiento!D12 -> 0 | U48: =Cerramiento!H12 ->  | AU48: =Cerramiento!C39 -> 0 | AV48: =Cerramiento!D39 -> 0 | AW48: =Cerramiento!H39 ->  | BO48: =IF(BN47="-","-",BN48) -> 
S49: =Cerramiento!C13 -> 0 | T49: =Cerramiento!D13 -> 0 | U49: =Cerramiento!H13 ->  | AU49: =Cerramiento!C40 -> 0 | AV49: =Cerramiento!D40 -> 0 | AW49: =Cerramiento!H40 ->  | BO49: =IF(BN48="-","-",BN49) -> 
S50: =Cerramiento!C14 -> 0 | T50: =Cerramiento!D14 -> 0 | U50: =Cerramiento!H14 ->  | AU50: =Cerramiento!C41 -> 0 | AV50: =Cerramiento!D41 -> 0 | AW50: =Cerramiento!H41 ->  | BO50: =IF(BN49="-","-",BN50) -> 
S51: =Cerramiento!C15 -> 0 | T51: =Cerramiento!D15 -> 0 | U51: =Cerramiento!H15 ->  | AU51: =Cerramiento!C42 -> 0 | AV51: =Cerramiento!D42 -> 0 | AW51: =Cerramiento!H42 ->  | BO51: =IF(BN50="-","-",BN51) -> 
S52: =Cerramiento!C16 -> 0 | T52: =Cerramiento!D16 -> 0 | U52: =Cerramiento!H16 ->  | AU52: =Cerramiento!C43 -> 0 | AV52: =Cerramiento!D43 -> 0 | AW52: =Cerramiento!H43 ->  | BO52: =IF(BN51="-","-",BN52) -> 
S53: =Cerramiento!C17 -> 0 | T53: =Cerramiento!D17 -> 0 | U53: =Cerramiento!H17 ->  | AU53: =Cerramiento!C44 -> 0 | AV53: =Cerramiento!D44 -> 0 | AW53: =Cerramiento!H44 ->  | BO53: =IF(BN52="-","-",BN53) -> 
S54: =Cerramiento!C18 -> 0 | T54: =Cerramiento!D18 -> 0 | U54: =Cerramiento!H18 ->  | AU54: =Cerramiento!C45 -> 0 | AV54: =Cerramiento!D45 -> 0 | AW54: =Cerramiento!H45 ->  | BO54: =IF(BN53="-","-",BN54) -> 
S55: =Cerramiento!C19 -> 0 | T55: =Cerramiento!D19 -> 0 | U55: =Cerramiento!H19 ->  | AU55: =Cerramiento!C46 -> 0 | AV55: =Cerramiento!D46 -> 0 | AW55: =Cerramiento!H46 ->  | BO55: =IF(BN54="-","-",BN55) -> 
S56: =Cerramiento!C20 -> 0 | T56: =Cerramiento!D20 -> 0 | U56: =Cerramiento!H20 ->  | AU56: =Cerramiento!C47 -> 0 | AV56: =Cerramiento!D47 -> 0 | AW56: =Cerramiento!H47 ->  | BO56: =IF(BN55="-","-",BN56) -> 
S57: =Cerramiento!C21 -> 0 | T57: =Cerramiento!D21 -> 0 | U57: =Cerramiento!H21 ->  | AU57: =Cerramiento!C48 -> 0 | AV57: =Cerramiento!D48 -> 0 | AW57: =Cerramiento!H48 ->  | BO57: =IF(BN56="-","-",BN57) -> 
S58: =Cerramiento!C22 -> 0 | T58: =Cerramiento!D22 -> 0 | U58: =Cerramiento!H22 ->  | AU58: =Cerramiento!C49 -> 0 | AV58: =Cerramiento!D49 -> 0 | AW58: =Cerramiento!H49 ->  | BO58: =IF(BN57="-","-",BN58) -> 
S59: =Cerramiento!C23 -> 0 | T59: =Cerramiento!D23 -> 0 | U59: =Cerramiento!H23 ->  | AU59: =Cerramiento!C50 -> 0 | AV59: =Cerramiento!D50 -> 0 | AW59: =Cerramiento!H50 ->  | BO59: =IF(BN58="-","-",BN59) -> 
S60: =Cerramiento!C24 -> 0 | T60: =Cerramiento!D24 -> 0 | U60: =Cerramiento!H24 ->  | AU60: =Cerramiento!C51 -> 0 | AV60: =Cerramiento!D51 -> 0 | AW60: =Cerramiento!H51 ->  | BO60: =IF(BN59="-","-",BN60) -> 
S61: =Cerramiento!C25 -> 0 | T61: =Cerramiento!D25 -> 0 | U61: =Cerramiento!H25 ->  | AU61: =Cerramiento!C52 -> 0 | AV61: =Cerramiento!D52 -> 0 | AW61: =Cerramiento!H52 ->  | BO61: =IF(BN60="-","-",BN61) -> 
S62: =Cerramiento!C26 -> 0 | T62: =Cerramiento!D26 -> 0 | U62: =Cerramiento!H26 ->  | AF62: =IF(AE61="-","-",AE62) ->  | AU62: =Cerramiento!C53 -> 0 | AV62: =Cerramiento!D53 -> 0 | AW62: =Cerramiento!H53 ->  | BN62: =IF(BM61="-","-",BM62) -> 
S63: =Cerramiento!C27 -> 0 | T63: =Cerramiento!D27 -> 0 | U63: =Cerramiento!H27 ->  | AM63: =IF(AL62="-","-",AL63) ->  | AU63: =Cerramiento!C54 -> 0 | AV63: =Cerramiento!D54 -> 0 | AW63: =Cerramiento!H54 ->  | AX63: =IF(AW62="-","-",AW63) -> 
S64: =Cerramiento!C28 -> 0 | T64: =Cerramiento!D28 -> 0 | U64: =Cerramiento!H28 ->  | AM64: =IF(AL63="-","-",AL64) ->  | AU64: =Cerramiento!C55 -> 0 | AV64: =Cerramiento!D55 -> 0 | AW64: =Cerramiento!H55 -> 
S65: =Cerramiento!C29 -> 0 | T65: =Cerramiento!D29 -> 0 | U65: =Cerramiento!H29 ->  | AM65: =IF(AL64="-","-",AL65) ->  | AU65: =Cerramiento!C56 -> 0 | AV65: =Cerramiento!D56 -> 0 | AW65: =Cerramiento!H56 -> 
S66: =Cerramiento!C30 -> 0 | T66: =Cerramiento!D30 -> 0 | U66: =Cerramiento!H30 ->  | AM66: =IF(AL65="-","-",AL66) ->  | AU66: =Cerramiento!C57 -> 0 | AV66: =Cerramiento!D57 -> 0 | AW66: =Cerramiento!H57 -> 
S67: =Cerramiento!C31 -> 0 | T67: =Cerramiento!D31 -> 0 | U67: =Cerramiento!H31 ->  | AM67: =IF(AL66="-","-",AL67) ->  | AU67: =Cerramiento!C58 -> 0 | AV67: =Cerramiento!D58 -> 0 | AW67: =Cerramiento!H58 -> 
AP68: Rse | AQ68: =IF(AP67="-",AQ45,VLOOKUP(Cerramiento!$D$3,$T$4:$W$13,3,FALSE)) ->  | BR68: Rse | BS68: =IF(BR67="-",BS45,VLOOKUP(Cerramiento!$D$3,$T$4:$W$13,3,FALSE)) -> 
S71: Resto | AU71: Resto
AP72: Rse | AQ72: =IF(AP73="-",AQ95,VLOOKUP(Cerramiento!$D$3,$T$4:$W$13,3,FALSE)) ->  | BR72: Rse | BS72: =IF(BR73="-",BS95,VLOOKUP(Cerramiento!$D$3,$T$4:$W$13,3,FALSE)) -> 
S73: =Cerramiento!C10 -> 0 | T73: =Cerramiento!D10 -> 0 | U73: =Cerramiento!H10 ->  | V73: =IF(U74="-","-",U73) ->  | W73: =IF(V74="-","-",V73) ->  | AQ73: =IF(AP73="-",0,AP73) ->  | AU73: =Cerramiento!C37 -> 0 | AV73: =Cerramiento!D37 -> 0 | AW73: =Cerramiento!H37 ->  | AX73: =IF(AW74="-","-",AW73) ->  | AY73: =IF(AX74="-","-",AX73) ->  | BS73: =IF(BR73="-",0,BR73) -> 
S74: =Cerramiento!C11 -> 0 | T74: =Cerramiento!D11 -> 0 | U74: =Cerramiento!H11 ->  | V74: =IF(U75="-","-",U74) ->  | AQ74: =IF(AP74="-",0,AP74) ->  | AU74: =Cerramiento!C38 -> 0 | AV74: =Cerramiento!D38 -> 0 | AW74: =Cerramiento!H38 ->  | AX74: =IF(AW75="-","-",AW74) ->  | BS74: =IF(BR74="-",0,BR74) -> 
S75: =Cerramiento!C12 -> 0 | T75: =Cerramiento!D12 -> 0 | U75: =Cerramiento!H12 ->  | AU75: =Cerramiento!C39 -> 0 | AV75: =Cerramiento!D39 -> 0 | AW75: =Cerramiento!H39 ->  | AX75: =IF(AW76="-","-",AW75) -> 
S76: =Cerramiento!C13 -> 0 | T76: =Cerramiento!D13 -> 0 | U76: =Cerramiento!H13 ->  | AU76: =Cerramiento!C40 -> 0 | AV76: =Cerramiento!D40 -> 0 | AW76: =Cerramiento!H40 ->  | AX76: =IF(AW77="-","-",AW76) -> 
S77: =Cerramiento!C14 -> 0 | T77: =Cerramiento!D14 -> 0 | U77: =Cerramiento!H14 ->  | AU77: =Cerramiento!C41 -> 0 | AV77: =Cerramiento!D41 -> 0 | AW77: =Cerramiento!H41 ->  | AX77: =IF(AW78="-","-",AW77) -> 
S78: =Cerramiento!C15 -> 0 | T78: =Cerramiento!D15 -> 0 | U78: =Cerramiento!H15 ->  | AU78: =Cerramiento!C42 -> 0 | AV78: =Cerramiento!D42 -> 0 | AW78: =Cerramiento!H42 ->  | AX78: =IF(AW79="-","-",AW78) -> 
S79: =Cerramiento!C16 -> 0 | T79: =Cerramiento!D16 -> 0 | U79: =Cerramiento!H16 ->  | AU79: =Cerramiento!C43 -> 0 | AV79: =Cerramiento!D43 -> 0 | AW79: =Cerramiento!H43 ->  | AX79: =IF(AW80="-","-",AW79) -> 
S80: =Cerramiento!C17 -> 0 | T80: =Cerramiento!D17 -> 0 | U80: =Cerramiento!H17 ->  | AU80: =Cerramiento!C44 -> 0 | AV80: =Cerramiento!D44 -> 0 | AW80: =Cerramiento!H44 ->  | AX80: =IF(AW81="-","-",AW80) -> 
S81: =Cerramiento!C18 -> 0 | T81: =Cerramiento!D18 -> 0 | U81: =Cerramiento!H18 ->  | AU81: =Cerramiento!C45 -> 0 | AV81: =Cerramiento!D45 -> 0 | AW81: =Cerramiento!H45 ->  | AX81: =IF(AW82="-","-",AW81) -> 
S82: =Cerramiento!C19 -> 0 | T82: =Cerramiento!D19 -> 0 | U82: =Cerramiento!H19 ->  | AU82: =Cerramiento!C46 -> 0 | AV82: =Cerramiento!D46 -> 0 | AW82: =Cerramiento!H46 ->  | AX82: =IF(AW83="-","-",AW82) -> 
S83: =Cerramiento!C20 -> 0 | T83: =Cerramiento!D20 -> 0 | U83: =Cerramiento!H20 ->  | AU83: =Cerramiento!C47 -> 0 | AV83: =Cerramiento!D47 -> 0 | AW83: =Cerramiento!H47 ->  | AX83: =IF(AW84="-","-",AW83) -> 
S84: =Cerramiento!C21 -> 0 | T84: =Cerramiento!D21 -> 0 | U84: =Cerramiento!H21 ->  | AU84: =Cerramiento!C48 -> 0 | AV84: =Cerramiento!D48 -> 0 | AW84: =Cerramiento!H48 ->  | AX84: =IF(AW85="-","-",AW84) -> 
S85: =Cerramiento!C22 -> 0 | T85: =Cerramiento!D22 -> 0 | U85: =Cerramiento!H22 ->  | AU85: =Cerramiento!C49 -> 0 | AV85: =Cerramiento!D49 -> 0 | AW85: =Cerramiento!H49 ->  | AX85: =IF(AW86="-","-",AW85) -> 
S86: =Cerramiento!C23 -> 0 | T86: =Cerramiento!D23 -> 0 | U86: =Cerramiento!H23 ->  | AG86: =IF(AF87="-","-",AF86) ->  | AU86: =Cerramiento!C50 -> 0 | AV86: =Cerramiento!D50 -> 0 | AW86: =Cerramiento!H50 ->  | AX86: =IF(AW87="-","-",AW86) ->  | BI86: =IF(BH87="-","-",BH86) -> 
S87: =Cerramiento!C24 -> 0 | T87: =Cerramiento!D24 -> 0 | U87: =Cerramiento!H24 ->  | AU87: =Cerramiento!C51 -> 0 | AV87: =Cerramiento!D51 -> 0 | AW87: =Cerramiento!H51 ->  | AX87: =IF(AW88="-","-",AW87) -> 
S88: =Cerramiento!C25 -> 0 | T88: =Cerramiento!D25 -> 0 | U88: =Cerramiento!H25 ->  | AU88: =Cerramiento!C52 -> 0 | AV88: =Cerramiento!D52 -> 0 | AW88: =Cerramiento!H52 ->  | AX88: =IF(AW89="-","-",AW88) -> 
S89: =Cerramiento!C26 -> 0 | T89: =Cerramiento!D26 -> 0 | U89: =Cerramiento!H26 ->  | AU89: =Cerramiento!C53 -> 0 | AV89: =Cerramiento!D53 -> 0 | AW89: =Cerramiento!H53 ->  | AX89: =IF(AW90="-","-",AW89) -> 
S90: =Cerramiento!C27 -> 0 | T90: =Cerramiento!D27 -> 0 | U90: =Cerramiento!H27 ->  | AU90: =Cerramiento!C54 -> 0 | AV90: =Cerramiento!D54 -> 0 | AW90: =Cerramiento!H54 ->  | AX90: =IF(AW91="-","-",AW90) -> 
S91: =Cerramiento!C28 -> 0 | T91: =Cerramiento!D28 -> 0 | U91: =Cerramiento!H28 ->  | AU91: =Cerramiento!C55 -> 0 | AV91: =Cerramiento!D55 -> 0 | AW91: =Cerramiento!H55 ->  | AX91: =IF(AW92="-","-",AW91) -> 
S92: =Cerramiento!C29 -> 0 | T92: =Cerramiento!D29 -> 0 | U92: =Cerramiento!H29 ->  | AU92: =Cerramiento!C56 -> 0 | AV92: =Cerramiento!D56 -> 0 | AW92: =Cerramiento!H56 ->  | AX92: =IF(AW93="-","-",AW92) -> 
S93: =Cerramiento!C30 -> 0 | T93: =Cerramiento!D30 -> 0 | U93: =Cerramiento!H30 ->  | AU93: =Cerramiento!C57 -> 0 | AV93: =Cerramiento!D57 -> 0 | AW93: =Cerramiento!H57 ->  | AX93: =IF(AW94="-","-",AW93) -> 
S94: =Cerramiento!C31 -> 0 | T94: =Cerramiento!D31 -> 0 | U94: =Cerramiento!H31 ->  | AU94: =Cerramiento!C58 -> 0 | AV94: =Cerramiento!D58 -> 0 | AW94: =Cerramiento!H58 ->  | AX94: =IF(AW95="-","-",AW94) -> 
AP95: Rsi | AQ95: =VLOOKUP(Cerramiento!$D$3,$T$4:$W$13,4,FALSE) ->  | BR95: Rsi | BS95: =VLOOKUP(Cerramiento!$D$3,$T$4:$W$13,4,FALSE) -> 

Sheet Recop. Datos (hidden)
A1: Proyecto | G1: Alternativa
A3: Suelos | D3: Resto | G3: Suelos | J3: Resto
A5: Resistencia térmica de aislamiento total (m²K/W) | D5: Resistencia térmica de aislamiento total (m²K/W) | G5: Resistencia térmica de aislamiento total (m²K/W) | J5: Resistencia térmica de aislamiento total (m²K/W) | M5: Mejora de la solución
A8: =SUM(Auxiliar!A4:A25) -> 0 | D8: =SUM(Auxiliar!I4:I25) -> 0 | G8: =SUM(Auxiliar!E4:E25) -> 0 | J8: =SUM(Auxiliar!M4:M25) -> 0 | M8: =IF((OR(Resultados!G23="Faltan datos",Resultados!Q23="Faltan datos")),"-",((Auxiliar!AB20-Auxiliar!AB23)/Auxiliar!AB20)) -> -
A10: Resistencia térmica de aislamiento Valero (m²K/W) | D10: Resistencia térmica de aislamiento Valero (m²K/W) | G10: Resistencia térmica de aislamiento Valero (m²K/W) | J10: Resistencia térmica de aislamiento Valero (m²K/W)
A13: =SUM(Auxiliar!C4:C25) -> 0 | D13: =SUM(Auxiliar!K4:K25) -> 0 | G13: =SUM(Auxiliar!G4:G25) -> 0 | J13: =SUM(Auxiliar!O4:O25) -> 0
A15: Resistencia térmica de la solución (m²K/W) | D15: Resistencia térmica de la solución (m²K/W) | G15: Resistencia térmica de la solución (m²K/W) | J15: Resistencia térmica de la solución (m²K/W)
A18: =SUM(Auxiliar!AQ46:AQ67) -> 0 | D18: =SUM(Auxiliar!AQ73:AQ94) -> 0 | G18: =SUM(Auxiliar!BS46:BS67) -> 0 | J18: =SUM(Auxiliar!BS73:BS94) -> 0
A20: Importancia del aislamiento en la solución | D20: Importancia del aislamiento en la solución | G20: Importancia del aislamiento en la solución | J20: Importancia del aislamiento en la solución
A23: =A8/A18 ->  | D23: =D8/D18 ->  | G23: =G8/G18 ->  | J23: =J8/J18 -> 
A25: Importancia del aislamiento Valero en la solución | D25: Importancia del aislamiento Valero en la solución | G25: Importancia del aislamiento Valero en la solución | J25: Importancia del aislamiento Valero en la solución
A28: =A13/A18 ->  | D28: =D13/D18 ->  | G28: =G13/G18 ->  | J28: =J13/J18 -> 
A30: Importancia del resto de aislamiento en la solución | D30: Importancia del resto de aislamiento en la solución | G30: Importancia del resto de aislamiento en la solución | J30: Importancia del resto de aislamiento en la solución
A33: =A23-A28 ->  | D33: =D23-D28 ->  | G33: =G23-G28 ->  | J33: =J23-J28 -> 

Sheet Tabla3 (hidden)
A1: Tabla 3. TRANSMITANCIA TÉRMICA Us [W/m²K]
F3: D = 0.5 m | R3: D = 1.0 m | AD3: D ≥ 1.5 m
B4: Ra [m²K/ W] | F4: Ra [m²K/ W] | R4: Ra [m²K/ W] | AD4: Ra [m²K/ W]
A5: B' | B5: 0 | C5: =IF((AND($B$5<$E$40,D5>$E$40)),$E$40,"0,00") -> 0,00 | D5: 0.5 | E5: =IF((AND(D5<$E$40,F5>$E$40)),$E$40,"0,00") -> 0,00 | F5: 1 | G5: =IF((AND(F5<$E$40,H5>$E$40)),$E$40,"0,00") -> 0,00 | H5: 1.5 | I5: =IF((AND(H5<$E$40,J5>$E$40)),$E$40,"0,00") -> 0,00 | J5: 2 | K5: =IF((AND(J5<$E$40,L5>$E$40)),$E$40,"0,00") -> 0,00 | L5: 2.5 | M5: =IF((AND(L5<$E$40,N5>$E$40)),$E$40,"0,00") -> 0,00 | N5: 10 | O5: =IF((AND($B$5<$E$40,P5>$E$40)),$E$40,"0,00") -> 0,00 | P5: 0.5 | Q5: =IF((AND(P5<$E$40,R5>$E$40)),$E$40,"0,00") -> 0,00 | R5: 1 | S5: =IF((AND(R5<$E$40,T5>$E$40)),$E$40,"0,00") -> 0,00 | T5: 1.5 | U5: =IF((AND(T5<$E$40,V5>$E$40)),$E$40,"0,00") -> 0,00 | V5: 2 | W5: =IF((AND(V5<$E$40,X5>$E$40)),$E$40,"0,00") -> 0,00 | X5: 2.5 | Y5: =IF((AND(X5<$E$40,Z5>$E$40)),$E$40,"0,00") -> 0,00 | Z5: 10 | AA5: =IF((AND($B$5<$E$40,AB5>$E$40)),$E$40,"0,00") -> 0,00 | AB5: 0.5 | AC5: =IF((AND(AB5<$E$40,AD5>$E$40)),$E$40,"0,00") -> 0,00 | AD5: 1 | AE5: =IF((AND(AD5<$E$40,AF5>$E$40)),$E$40,"0,00") -> 0,00 | AF5: 1.5 | AG5: =IF((AND(AF5<$E$40,AH5>$E$40)),$E$40,"0,00") -> 0,00 | AH5: 2 | AI5: =IF((AND(AH5<$E$40,AJ5>$E$40)),$E$40,"0,00") -> 0,00 | AJ5: 2.5 | AK5: =IF((AND(AJ5<$E$40,AL5>$E$40)),$E$40,"0,00") -> 0,00 | AL5: 10
A6: 0 | B6: =B10+((($A$6-$A$10)/($A$8-$A$10))*(B8-B10)) -> 3.14 | C6: =B6+(((C$5-B$5)/(D$5-B$5))*(D6-B6)) -> 3.14 | D6: =D10+((($A$6-$A$10)/($A$8-$A$10))*(D8-D10)) -> 1.97 | E6: =D6+(((E$5-D$5)/(F$5-D$5))*(F6-D6)) -> 2.38 | F6: =F10+((($A$6-$A$10)/($A$8-$A$10))*(F8-F10)) -> 1.56 | G6: =F6+(((G$5-F$5)/(H$5-F$5))*(H6-F6)) -> 1.98 | H6: =H10+((($A$6-$A$10)/($A$8-$A$10))*(H8-H10)) -> 1.35 | I6: =H6+(((I$5-H$5)/(J$5-H$5))*(J6-H6)) -> 1.74 | J6: =J10+((($A$6-$A$10)/($A$8-$A$10))*(J8-J10)) -> 1.22 | K6: =J6+(((K$5-J$5)/(L$5-J$5))*(L6-J6)) -> 1.58 | L6: =L10+((($A$6-$A$10)/($A$8-$A$10))*(L8-L10)) -> 1.13 | M6: =L6+(((M$5-L$5)/(N$5-L$5))*(N6-L6)) -> 1.506666667 | N6: =N10+((($A$6-$A$10)/($A$8-$A$10))*(N8-N10)) -> 0 | O6: =$B6+(((O$5-$B$5)/(P$5-$B$5))*(P6-$B6)) -> 3.14 | P6: =P10+((($A$6-$A$10)/($A$8-$A$10))*(P8-P10)) -> 1.7 | Q6: =P6+(((Q$5-P$5)/(R$5-P$5))*(R6-P6)) -> 2.27 | R6: =R10+((($A$6-$A$10)/($A$8-$A$10))*(R8-R10)) -> 1.13 | S6: 1.77 | T6: =T10+((($A$6-$A$10)/($A$8-$A$10))*(T8-T10)) -> 0.81 | U6: 1.44 | V6: =V10+((($A$6-$A$10)/($A$8-$A$10))*(V8-V10)) -> 0.6 | W6: 1.12 | X6: =X10+((($A$6-$A$10)/($A$8-$A$10))*(X8-X10)) -> 0.47 | Y6: 0.6266666667 | Z6: =Z10+((($A$6-$A$10)/($A$8-$A$10))*(Z8-Z10)) -> 0 | AA6: =$B6+(((AA$5-$B$5)/(AB$5-$B$5))*(AB6-$B6)) -> 3.14 | AB6: 0 | AC6: =AB6+(((AC$5-AB$5)/(AD$5-AB$5))*(AD6-AB6)) -> 0 | AD6: 0 | AE6: 0 | AF6: 0 | AG6: 0 | AH6: 0 | AI6: 0 | AJ6: 0 | AK6: 0 | AL6: =AL10+((($A$6-$A$10)/($A$8-$A$10))*(AL8-AL10)) -> 0
A7: =IF((AND(A6<$B$40,A8>$B$40)),$B$40,"0,0") -> 0,0 | B7: =B8+((($A7-$A8)/($A6-$A8))*(B6-B8)) -> 3.14 | C7: =B7+(((C$5-B$5)/(D$5-B$5))*(D7-B7)) -> 3.14 | D7: =D8+((($A7-$A8)/($A6-$A8))*(D6-D8)) -> 1.97 | E7: 2.38 | F7: =F8+((($A7-$A8)/($A6-$A8))*(F6-F8)) -> 1.56 | G7: 1.98 | H7: =H8+((($A7-$A8)/($A6-$A8))*(H6-H8)) -> 1.35 | I7: =H7+(((I$5-H$5)/(J$5-H$5))*(J7-H7)) -> 1.74 | J7: =J8+((($A7-$A8)/($A6-$A8))*(J6-J8)) -> 1.22 | K7: =J7+(((K$5-J$5)/(L$5-J$5))*(L7-J7)) -> 1.58 | L7: =L8+((($A7-$A8)/($A6-$A8))*(L6-L8)) -> 1.13 | M7: =L7+(((M$5-L$5)/(N$5-L$5))*(N7-L7)) -> 1.506666667 | N7: =N8+((($A7-$A8)/($A6-$A8))*(N6-N8)) -> 0 | O7: =B7+(((O$5-B$5)/(P$5-B$5))*(P7-B7)) -> 3.14 | P7: =P8+((($A7-$A8)/($A6-$A8))*(P6-P8)) -> 1.7 | Q7: 2.27 | R7: =R8+((($A7-$A8)/($A6-$A8))*(R6-R8)) -> 1.13 | S7: 1.77 | T7: =T8+((($A7-$A8)/($A6-$A8))*(T6-T8)) -> 0.81 | U7: 1.44 | V7: =V8+((($A7-$A8)/($A6-$A8))*(V6-V8)) -> 0.6 | W7: 1.12 | X7: =X8+((($A7-$A8)/($A6-$A8))*(X6-X8)) -> 0.47 | Y7: 0.6266666667 | Z7: =Z8+((($A7-$A8)/($A6-$A8))*(Z6-Z8)) -> 0 | AA7: =$B7+(((AA$5-$B$5)/(AB$5-$B$5))*(AB7-$B7)) -> 3.14 | AB7: =AB8+((($A7-$A8)/($A6-$A8))*(AB6-AB8)) -> 0 | AC7: 0 | AD7: =AD8+((($A7-$A8)/($A6-$A8))*(AD6-AD8)) -> 0 | AE7: 0 | AF7: =AF8+((($A7-$A8)/($A6-$A8))*(AF6-AF8)) -> 0 | AG7: 0 | AH7: =AH8+((($A7-$A8)/($A6-$A8))*(AH6-AH8)) -> 0 | AI7: 0 | AJ7: =AJ8+((($A7-$A8)/($A6-$A8))*(AJ6-AJ8)) -> 0 | AK7: 0 | AL7: =AL8+((($A7-$A8)/($A6-$A8))*(AL6-AL8)) -> 0
A8: 1 | B8: 2.35 | C8: =B8+(((C$5-B$5)/(D$5-B$5))*(D8-B8)) -> 2.35 | D8: 1.57 | E8: 1.84 | F8: 1.3 | G8: 1.58 | H8: 1.16 | I8: =H8+(((I$5-H$5)/(J$5-H$5))*(J8-H8)) -> 1.43 | J8: 1.07 | K8: =J8+(((K$5-J$5)/(L$5-J$5))*(L8-J8)) -> 1.31 | L8: 1.01 | M8: =L8+(((M$5-L$5)/(N$5-L$5))*(N8-L8)) -> 1.346666667 | N8: 0 | O8: 2.35 | P8: 1.39 | Q8: 1.77 | R8: 1.01 | S8: 1.43 | T8: 0.8 | U8: 1.22 | V8: 0.66 | W8: 1.02 | X8: 0.57 | Y8: 0.76 | Z8: 0 | AA8: 2.35 | AB8: 0 | AC8: 0 | AD8: 0 | AE8: 0 | AF8: 0 | AG8: 0 | AH8: 0 | AI8: 0 | AJ8: 0 | AK8: 0 | AL8: 0
A9: =IF((AND(A8<$B$40,A10>$B$40)),$B$40,"0,0") -> 0,0 | B9: =B10+((($A9-$A10)/($A8-$A10))*(B8-B10)) -> 3.14 | C9: =B9+(((C$5-B$5)/(D$5-B$5))*(D9-B9)) -> 3.14 | D9: =D10+((($A9-$A10)/($A8-$A10))*(D8-D10)) -> 1.97 | E9: 2.38 | F9: =F10+((($A9-$A10)/($A8-$A10))*(F8-F10)) -> 1.56 | G9: 1.98 | H9: =H10+((($A9-$A10)/($A8-$A10))*(H8-H10)) -> 1.35 | I9: =H9+(((I$5-H$5)/(J$5-H$5))*(J9-H9)) -> 1.74 | J9: =J10+((($A9-$A10)/($A8-$A10))*(J8-J10)) -> 1.22 | K9: =J9+(((K$5-J$5)/(L$5-J$5))*(L9-J9)) -> 1.58 | L9: =L10+((($A9-$A10)/($A8-$A10))*(L8-L10)) -> 1.13 | M9: =L9+(((M$5-L$5)/(N$5-L$5))*(N9-L9)) -> 1.506666667 | N9: =N10+((($A9-$A10)/($A8-$A10))*(N8-N10)) -> 0 | O9: 3.14 | P9: =P10+((($A9-$A10)/($A8-$A10))*(P8-P10)) -> 1.7 | Q9: 2.27 | R9: =R10+((($A9-$A10)/($A8-$A10))*(R8-R10)) -> 1.13 | S9: 1.77 | T9: =T10+((($A9-$A10)/($A8-$A10))*(T8-T10)) -> 0.81 | U9: 1.44 | V9: =V10+((($A9-$A10)/($A8-$A10))*(V8-V10)) -> 0.6 | W9: 1.12 | X9: =X10+((($A9-$A10)/($A8-$A10))*(X8-X10)) -> 0.47 | Y9: 0.6266666667 | Z9: =Z10+((($A9-$A10)/($A8-$A10))*(Z8-Z10)) -> 0 | AA9: 3.14 | AB9: =AB10+((($A9-$A10)/($A8-$A10))*(AB8-AB10)) -> -1.04 | AC9: -1.25 | AD9: =AD10+((($A9-$A10)/($A8-$A10))*(AD8-AD10)) -> -0.83 | AE9: -1.09 | AF9: =AF10+((($A9-$A10)/($A8-$A10))*(AF8-AF10)) -> -0.7 | AG9: -0.97 | AH9: =AH10+((($A9-$A10)/($A8-$A10))*(AH8-AH10)) -> -0.61 | AI9: -0.85 | AJ9: =AJ10+((($A9-$A10)/($A8-$A10))*(AJ8-AJ10)) -> -0.55 | AK9: -0.7333333333 | AL9: =AL10+((($A9-$A10)/($A8-$A10))*(AL8-AL10)) -> 0
A10: 2 | B10: 1.56 | C10: =B10+(((C$5-B$5)/(D$5-B$5))*(D10-B10)) -> 1.56 | D10: 1.17 | E10: 1.3 | F10: 1.04 | G10: 1.18 | H10: 0.97 | I10: =H10+(((I$5-H$5)/(J$5-H$5))*(J10-H10)) -> 1.12 | J10: 0.92 | K10: =J10+(((K$5-J$5)/(L$5-J$5))*(L10-J10)) -> 1.04 | L10: 0.89 | M10: =L10+(((M$5-L$5)/(N$5-L$5))*(N10-L10)) -> 1.186666667 | N10: 0 | O10: 1.56 | P10: 1.08 | Q10: 1.27 | R10: 0.89 | S10: 1.09 | T10: 0.79 | U10: 1 | V10: 0.72 | W10: 0.92 | X10: 0.67 | Y10: 0.8933333333 | Z10: 0 | AA10: 1.56 | AB10: 1.04 | AC10: 1.25 | AD10: 0.83 | AE10: 1.09 | AF10: 0.7 | AG10: 0.97 | AH10: 0.61 | AI10: 0.85 | AJ10: 0.55 | AK10: 0.7333333333 | AL10: 0
A11: =IF((AND(A10<$B$40,A12>$B$40)),$B$40,"0,0") -> 0,0 | B11: =B12+((($A11-$A12)/($A10-$A12))*(B10-B12)) -> 2.28 | C11: =B11+(((C$5-B$5)/(D$5-B$5))*(D11-B11)) -> 2.28 | D11: =D12+((($A11-$A12)/($A10-$A12))*(D10-D12)) -> 1.63 | E11: 1.84 | F11: =F12+((($A11-$A12)/($A10-$A12))*(F10-F12)) -> 1.42 | G11: 1.64 | H11: =H12+((($A11-$A12)/($A10-$A12))*(H10-H12)) -> 1.31 | I11: =H11+(((I$5-H$5)/(J$5-H$5))*(J11-H11)) -> 1.64 | J11: =J12+((($A11-$A12)/($A10-$A12))*(J10-J12)) -> 1.2 | K11: =J11+(((K$5-J$5)/(L$5-J$5))*(L11-J11)) -> 1.4 | L11: =L12+((($A11-$A12)/($A10-$A12))*(L10-L12)) -> 1.15 | M11: =L11+(((M$5-L$5)/(N$5-L$5))*(N11-L11)) -> 1.533333333 | N11: =N12+((($A11-$A12)/($A10-$A12))*(N10-N12)) -> 0 | O11: 2.28 | P11: =P12+((($A11-$A12)/($A10-$A12))*(P10-P12)) -> 1.48 | Q11: 1.81 | R11: =R12+((($A11-$A12)/($A10-$A12))*(R10-R12)) -> 1.15 | S11: 1.47 | T11: =T12+((($A11-$A12)/($A10-$A12))*(T10-T12)) -> 0.99 | U11: 1.32 | V11: =V12+((($A11-$A12)/($A10-$A12))*(V10-V12)) -> 0.88 | W11: 1.24 | X11: =X12+((($A11-$A12)/($A10-$A12))*(X10-X12)) -> 0.79 | Y11: 1.053333333 | Z11: =Z12+((($A11-$A12)/($A10-$A12))*(Z10-Z12)) -> 0 | AA11: 2.28 | AB11: =AB12+((($A11-$A12)/($A10-$A12))*(AB10-AB12)) -> 1.42 | AC11: 1.77 | AD11: =AD12+((($A11-$A12)/($A10-$A12))*(AD10-AD12)) -> 1.07 | AE11: 1.53 | AF11: =AF12+((($A11-$A12)/($A10-$A12))*(AF10-AF12)) -> 0.84 | AG11: 1.29 | AH11: =AH12+((($A11-$A12)/($A10-$A12))*(AH10-AH12)) -> 0.69 | AI11: 1.09 | AJ11: =AJ12+((($A11-$A12)/($A10-$A12))*(AJ10-AJ12)) -> 0.59 | AK11: 0.7866666667 | AL11: =AL12+((($A11-$A12)/($A10-$A12))*(AL10-AL12)) -> 0
A12: 3 | B12: 1.2 | C12: =B12+(((C$5-B$5)/(D$5-B$5))*(D12-B12)) -> 1.2 | D12: 0.94 | E12: 1.03 | F12: 0.85 | G12: 0.95 | H12: 0.8 | I12: =H12+(((I$5-H$5)/(J$5-H$5))*(J12-H12)) -> 0.86 | J12: 0.78 | K12: =J12+(((K$5-J$5)/(L$5-J$5))*(L12-J12)) -> 0.86 | L12: 0.76 | M12: =L12+(((M$5-L$5)/(N$5-L$5))*(N12-L12)) -> 1.013333333 | N12: 0 | O12: 1.2 | P12: 0.88 | Q12: 1 | R12: 0.76 | S12: 0.9 | T12: 0.69 | U12: 0.84 | V12: 0.64 | W12: 0.76 | X12: 0.61 | Y12: 0.8133333333 | Z12: 0 | AA12: 1.2 | AB12: 0.85 | AC12: 0.99 | AD12: 0.71 | AE12: 0.87 | AF12: 0.63 | AG12: 0.81 | AH12: 0.57 | AI12: 0.73 | AJ12: 0.53 | AK12: 0.7066666667 | AL12: 0
A13: =IF((AND(A12<$B$40,A14>$B$40)),$B$40,"0,0") -> 0,0 | B13: =B14+((($A13-$A14)/($A12-$A14))*(B12-B14)) -> 1.83 | C13: =B13+(((C$5-B$5)/(D$5-B$5))*(D13-B13)) -> 1.83 | D13: =D14+((($A13-$A14)/($A12-$A14))*(D12-D14)) -> 1.39 | E13: 1.57 | F13: =F14+((($A13-$A14)/($A12-$A14))*(F12-F14)) -> 1.21 | G13: 1.37 | H13: =H14+((($A13-$A14)/($A12-$A14))*(H12-H14)) -> 1.13 | I13: =H13+(((I$5-H$5)/(J$5-H$5))*(J13-H13)) -> 1.19 | J13: =J14+((($A13-$A14)/($A12-$A14))*(J12-J14)) -> 1.11 | K13: =J13+(((K$5-J$5)/(L$5-J$5))*(L13-J13)) -> 1.19 | L13: =L14+((($A13-$A14)/($A12-$A14))*(L12-L14)) -> 1.09 | M13: =L13+(((M$5-L$5)/(N$5-L$5))*(N13-L13)) -> 1.453333333 | N13: =N14+((($A13-$A14)/($A12-$A14))*(N12-N14)) -> 0 | O13: 1.83 | P13: =P14+((($A13-$A14)/($A12-$A14))*(P12-P14)) -> 1.27 | Q13: 1.45 | R13: =R14+((($A13-$A14)/($A12-$A14))*(R12-R14)) -> 1.09 | S13: 1.35 | T13: =T14+((($A13-$A14)/($A12-$A14))*(T12-T14)) -> 0.96 | U13: 1.29 | V13: =V14+((($A13-$A14)/($A12-$A14))*(V12-V14)) -> 0.85 | W13: 0.97 | X13: =X14+((($A13-$A14)/($A12-$A14))*(X12-X14)) -> 0.82 | Y13: 1.093333333 | Z13: =Z14+((($A13-$A14)/($A12-$A14))*(Z12-Z14)) -> 0 | AA13: 1.83 | AB13: =AB14+((($A13-$A14)/($A12-$A14))*(AB12-AB14)) -> 1.21 | AC13: 1.44 | AD13: =AD14+((($A13-$A14)/($A12-$A14))*(AD12-AD14)) -> 0.98 | AE13: 1.26 | AF13: =AF14+((($A13-$A14)/($A12-$A14))*(AF12-AF14)) -> 0.84 | AG13: 1.11 | AH13: =AH14+((($A13-$A14)/($A12-$A14))*(AH12-AH14)) -> 0.75 | AI13: 1.03 | AJ13: =AJ14+((($A13-$A14)/($A12-$A14))*(AJ12-AJ14)) -> 0.68 | AK13: 0.9066666667 | AL13: =AL14+((($A13-$A14)/($A12-$A14))*(AL12-AL14)) -> 0
A14: 4 | B14: 0.99 | C14: =B14+(((C$5-B$5)/(D$5-B$5))*(D14-B14)) -> 0.99 | D14: 0.79 | E14: 0.85 | F14: 0.73 | G14: 0.81 | H14: 0.69 | I14: =H14+(((I$5-H$5)/(J$5-H$5))*(J14-H14)) -> 0.75 | J14: 0.67 | K14: =J14+(((K$5-J$5)/(L$5-J$5))*(L14-J14)) -> 0.75 | L14: 0.65 | M14: =L14+(((M$5-L$5)/(N$5-L$5))*(N14-L14)) -> 0.8666666667 | N14: 0 | O14: 0.99 | P14: 0.75 | Q14: 0.85 | R14: 0.65 | S14: 0.75 | T14: 0.6 | U14: 0.69 | V14: 0.57 | W14: 0.69 | X14: 0.54 | Y14: 0.72 | Z14: 0 | AA14: 0.99 | AB14: 0.73 | AC14: 0.84 | AD14: 0.62 | AE14: 0.74 | AF14: 0.56 | AG14: 0.71 | AH14: 0.51 | AI14: 0.63 | AJ14: 0.48 | AK14: 0.64 | AL14: 0
A15: =IF((AND(A14<$B$40,A16>$B$40)),$B$40,"0,0") -> 0,0 | B15: =B16+((($A15-$A16)/($A14-$A16))*(B14-B16)) -> 1.55 | C15: =B15+(((C$5-B$5)/(D$5-B$5))*(D15-B15)) -> 1.55 | D15: =D16+((($A15-$A16)/($A14-$A16))*(D14-D16)) -> 1.19 | E15: 1.29 | F15: =F16+((($A15-$A16)/($A14-$A16))*(F14-F16)) -> 1.09 | G15: 1.25 | H15: =H16+((($A15-$A16)/($A14-$A16))*(H14-H16)) -> 1.01 | I15: =H15+(((I$5-H$5)/(J$5-H$5))*(J15-H15)) -> 1.07 | J15: =J16+((($A15-$A16)/($A14-$A16))*(J14-J16)) -> 0.99 | K15: =J15+(((K$5-J$5)/(L$5-J$5))*(L15-J15)) -> 1.23 | L15: =L16+((($A15-$A16)/($A14-$A16))*(L14-L16)) -> 0.93 | M15: =L15+(((M$5-L$5)/(N$5-L$5))*(N15-L15)) -> 1.24 | N15: =N16+((($A15-$A16)/($A14-$A16))*(N14-N16)) -> 0 | O15: 1.55 | P15: =P16+((($A15-$A16)/($A14-$A16))*(P14-P16)) -> 1.15 | Q15: 1.37 | R15: =R16+((($A15-$A16)/($A14-$A16))*(R14-R16)) -> 0.93 | S15: 1.11 | T15: =T16+((($A15-$A16)/($A14-$A16))*(T14-T16)) -> 0.84 | U15: 0.93 | V15: =V16+((($A15-$A16)/($A14-$A16))*(V14-V16)) -> 0.81 | W15: 1.09 | X15: =X16+((($A15-$A16)/($A14-$A16))*(X14-X16)) -> 0.74 | Y15: 0.9866666667 | Z15: =Z16+((($A15-$A16)/($A14-$A16))*(Z14-Z16)) -> 0 | AA15: 1.55 | AB15: =AB16+((($A15-$A16)/($A14-$A16))*(AB14-AB16)) -> 1.09 | AC15: 1.28 | AD15: =AD16+((($A15-$A16)/($A14-$A16))*(AD14-AD16)) -> 0.9 | AE15: 1.1 | AF15: =AF16+((($A15-$A16)/($A14-$A16))*(AF14-AF16)) -> 0.8 | AG15: 1.19 | AH15: =AH16+((($A15-$A16)/($A14-$A16))*(AH14-AH16)) -> 0.67 | AI15: 0.79 | AJ15: =AJ16+((($A15-$A16)/($A14-$A16))*(AJ14-AJ16)) -> 0.64 | AK15: 0.8533333333 | AL15: =AL16+((($A15-$A16)/($A14-$A16))*(AL14-AL16)) -> 0
A16: 5 | B16: 0.85 | C16: =B16+(((C$5-B$5)/(D$5-B$5))*(D16-B16)) -> 0.85 | D16: 0.69 | E16: 0.74 | F16: 0.64 | G16: 0.7 | H16: 0.61 | I16: =H16+(((I$5-H$5)/(J$5-H$5))*(J16-H16)) -> 0.67 | J16: 0.59 | K16: =J16+(((K$5-J$5)/(L$5-J$5))*(L16-J16)) -> 0.63 | L16: 0.58 | M16: =L16+(((M$5-L$5)/(N$5-L$5))*(N16-L16)) -> 0.7733333333 | N16: 0 | O16: 0.85 | P16: 0.65 | Q16: 0.72 | R16: 0.58 | S16: 0.66 | T16: 0.54 | U16: 0.63 | V16: 0.51 | W16: 0.59 | X16: 0.49 | Y16: 0.6533333333 | Z16: 0 | AA16: 0.85 | AB16: 0.64 | AC16: 0.73 | AD16: 0.55 | AE16: 0.65 | AF16: 0.5 | AG16: 0.59 | AH16: 0.47 | AI16: 0.59 | AJ16: 0.44 | AK16: 0.5866666667 | AL16: 0
A17: =IF((AND(A16<$B$40,A18>$B$40)),$B$40,"0,0") -> 0,0 | B17: =B18+((($A17-$A18)/($A16-$A18))*(B16-B18)) -> 1.4 | C17: =B17+(((C$5-B$5)/(D$5-B$5))*(D17-B17)) -> 1.4 | D17: =D18+((($A17-$A18)/($A16-$A18))*(D16-D18)) -> 1.09 | E17: 1.19 | F17: =F18+((($A17-$A18)/($A16-$A18))*(F16-F18)) -> 0.99 | G17: 1.05 | H17: =H18+((($A17-$A18)/($A16-$A18))*(H16-H18)) -> 0.96 | I17: =H17+(((I$5-H$5)/(J$5-H$5))*(J17-H17)) -> 1.17 | J17: =J18+((($A17-$A18)/($A16-$A18))*(J16-J18)) -> 0.89 | K17: =J17+(((K$5-J$5)/(L$5-J$5))*(L17-J17)) -> 0.93 | L17: =L18+((($A17-$A18)/($A16-$A18))*(L16-L18)) -> 0.88 | M17: =L17+(((M$5-L$5)/(N$5-L$5))*(N17-L17)) -> 1.173333333 | N17: =N18+((($A17-$A18)/($A16-$A18))*(N16-N18)) -> 0 | O17: 1.4 | P17: =P18+((($A17-$A18)/($A16-$A18))*(P16-P18)) -> 1 | Q17: 1.12 | R17: =R18+((($A17-$A18)/($A16-$A18))*(R16-R18)) -> 0.88 | S17: 0.96 | T17: =T18+((($A17-$A18)/($A16-$A18))*(T16-T18)) -> 0.84 | U17: 1.08 | V17: =V18+((($A17-$A18)/($A16-$A18))*(V16-V18)) -> 0.76 | W17: 0.84 | X17: =X18+((($A17-$A18)/($A16-$A18))*(X16-X18)) -> 0.74 | Y17: 0.9866666667 | Z17: =Z18+((($A17-$A18)/($A16-$A18))*(Z16-Z18)) -> 0 | AA17: 1.4 | AB17: =AB18+((($A17-$A18)/($A16-$A18))*(AB16-AB18)) -> 0.99 | AC17: 1.18 | AD17: =AD18+((($A17-$A18)/($A16-$A18))*(AD16-AD18)) -> 0.8 | AE17: 0.9 | AF17: =AF18+((($A17-$A18)/($A16-$A18))*(AF16-AF18)) -> 0.75 | AG17: 0.99 | AH17: =AH18+((($A17-$A18)/($A16-$A18))*(AH16-AH18)) -> 0.67 | AI17: 0.99 | AJ17: =AJ18+((($A17-$A18)/($A16-$A18))*(AJ16-AJ18)) -> 0.59 | AK17: 0.7866666667 | AL17: =AL18+((($A17-$A18)/($A16-$A18))*(AL16-AL18)) -> 0
A18: 6 | B18: 0.74 | C18: =B18+(((C$5-B$5)/(D$5-B$5))*(D18-B18)) -> 0.74 | D18: 0.61 | E18: 0.65 | F18: 0.57 | G18: 0.63 | H18: 0.54 | I18: =H18+(((I$5-H$5)/(J$5-H$5))*(J18-H18)) -> 0.57 | J18: 0.53 | K18: =J18+(((K$5-J$5)/(L$5-J$5))*(L18-J18)) -> 0.57 | L18: 0.52 | M18: =L18+(((M$5-L$5)/(N$5-L$5))*(N18-L18)) -> 0.6933333333 | N18: 0 | O18: 0.74 | P18: 0.58 | Q18: 0.64 | R18: 0.52 | S18: 0.6 | T18: 0.48 | U18: 0.54 | V18: 0.46 | W18: 0.54 | X18: 0.44 | Y18: 0.5866666667 | Z18: 0 | AA18: 0.74 | AB18: 0.57 | AC18: 0.64 | AD18: 0.5 | AE18: 0.6 | AF18: 0.45 | AG18: 0.51 | AH18: 0.43 | AI18: 0.51 | AJ18: 0.41 | AK18: 0.5466666667 | AL18: 0
A19: =IF((AND(A18<$B$40,A20>$B$40)),$B$40,"0,0") -> 0,0 | B19: =B20+((($A19-$A20)/($A18-$A20))*(B18-B20)) -> 1.22 | C19: =B19+(((C$5-B$5)/(D$5-B$5))*(D19-B19)) -> 1.22 | D19: =D20+((($A19-$A20)/($A18-$A20))*(D18-D20)) -> 0.97 | E19: 1.01 | F19: =F20+((($A19-$A20)/($A18-$A20))*(F18-F20)) -> 0.93 | G19: 1.11 | H19: =H20+((($A19-$A20)/($A18-$A20))*(H18-H20)) -> 0.84 | I19: =H19+(((I$5-H$5)/(J$5-H$5))*(J19-H19)) -> 0.87 | J19: =J20+((($A19-$A20)/($A18-$A20))*(J18-J20)) -> 0.83 | K19: =J19+(((K$5-J$5)/(L$5-J$5))*(L19-J19)) -> 0.87 | L19: =L20+((($A19-$A20)/($A18-$A20))*(L18-L20)) -> 0.82 | M19: =L19+(((M$5-L$5)/(N$5-L$5))*(N19-L19)) -> 1.093333333 | N19: =N20+((($A19-$A20)/($A18-$A20))*(N18-N20)) -> 0 | O19: 1.22 | P19: =P20+((($A19-$A20)/($A18-$A20))*(P18-P20)) -> 0.88 | Q19: 0.94 | R19: =R20+((($A19-$A20)/($A18-$A20))*(R18-R20)) -> 0.82 | S19: 1.02 | T19: =T20+((($A19-$A20)/($A18-$A20))*(T18-T20)) -> 0.72 | U19: 0.78 | V19: =V20+((($A19-$A20)/($A18-$A20))*(V18-V20)) -> 0.7 | W19: 1.02 | X19: =X20+((($A19-$A20)/($A18-$A20))*(X18-X20)) -> 0.62 | Y19: 0.8266666667 | Z19: =Z20+((($A19-$A20)/($A18-$A20))*(Z18-Z20)) -> 0 | AA19: 1.22 | AB19: =AB20+((($A19-$A20)/($A18-$A20))*(AB18-AB20)) -> 0.93 | AC19: 1.06 | AD19: =AD20+((($A19-$A20)/($A18-$A20))*(AD18-AD20)) -> 0.8 | AE19: 1.14 | AF19: =AF20+((($A19-$A20)/($A18-$A20))*(AF18-AF20)) -> 0.63 | AG19: 0.51 | AH19: =AH20+((($A19-$A20)/($A18-$A20))*(AH18-AH20)) -> 0.67 | AI19: 0.75 | AJ19: =AJ20+((($A19-$A20)/($A18-$A20))*(AJ18-AJ20)) -> 0.65 | AK19: 0.8666666667 | AL19: =AL20+((($A19-$A20)/($A18-$A20))*(AL18-AL20)) -> 0
A20: 7 | B20: 0.66 | C20: =B20+(((C$5-B$5)/(D$5-B$5))*(D20-B20)) -> 0.66 | D20: 0.55 | E20: 0.59 | F20: 0.51 | G20: 0.55 | H20: 0.49 | I20: =H20+(((I$5-H$5)/(J$5-H$5))*(J20-H20)) -> 0.52 | J20: 0.48 | K20: =J20+(((K$5-J$5)/(L$5-J$5))*(L20-J20)) -> 0.52 | L20: 0.47 | M20: =L20+(((M$5-L$5)/(N$5-L$5))*(N20-L20)) -> 0.6266666667 | N20: 0 | O20: 0.66 | P20: 0.53 | Q20: 0.59 | R20: 0.47 | S20: 0.53 | T20: 0.44 | U20: 0.5 | V20: 0.42 | W20: 0.46 | X20: 0.41 | Y20: 0.5466666667 | Z20: 0 | AA20: 0.66 | AB20: 0.51 | AC20: 0.57 | AD20: 0.45 | AE20: 0.51 | AF20: 0.42 | AG20: 0.51 | AH20: 0.39 | AI20: 0.47 | AJ20: 0.37 | AK20: 0.4933333333 | AL20: 0
A21: =IF((AND(A20<$B$40,A22>$B$40)),$B$40,"0,0") -> 0,0 | B21: =B22+((($A21-$A22)/($A20-$A22))*(B20-B22)) -> 1.08 | C21: =B21+(((C$5-B$5)/(D$5-B$5))*(D21-B21)) -> 1.08 | D21: =D22+((($A21-$A22)/($A20-$A22))*(D20-D22)) -> 0.9 | E21: 1.01 | F21: =F22+((($A21-$A22)/($A20-$A22))*(F20-F22)) -> 0.79 | G21: 0.83 | H21: =H22+((($A21-$A22)/($A20-$A22))*(H20-H22)) -> 0.77 | I21: =H21+(((I$5-H$5)/(J$5-H$5))*(J21-H21)) -> 0.8 | J21: =J22+((($A21-$A22)/($A20-$A22))*(J20-J22)) -> 0.76 | K21: =J21+(((K$5-J$5)/(L$5-J$5))*(L21-J21)) -> 0.8 | L21: =L22+((($A21-$A22)/($A20-$A22))*(L20-L22)) -> 0.75 | M21: =L21+(((M$5-L$5)/(N$5-L$5))*(N21-L21)) -> 1 | N21: =N22+((($A21-$A22)/($A20-$A22))*(N20-N22)) -> 0 | O21: 1.08 | P21: =P22+((($A21-$A22)/($A20-$A22))*(P20-P22)) -> 0.88 | Q21: 1.01 | R21: =R22+((($A21-$A22)/($A20-$A22))*(R20-R22)) -> 0.75 | S21: 0.95 | T21: =T22+((($A21-$A22)/($A20-$A22))*(T20-T22)) -> 0.65 | U21: 0.71 | V21: =V22+((($A21-$A22)/($A20-$A22))*(V20-V22)) -> 0.63 | W21: 0.67 | X21: =X22+((($A21-$A22)/($A20-$A22))*(X20-X22)) -> 0.62 | Y21: 0.8266666667 | Z21: =Z22+((($A21-$A22)/($A20-$A22))*(Z20-Z22)) -> 0 | AA21: 1.08 | AB21: =AB22+((($A21-$A22)/($A20-$A22))*(AB20-AB22)) -> 0.79 | AC21: 0.92 | AD21: =AD22+((($A21-$A22)/($A20-$A22))*(AD20-AD22)) -> 0.66 | AE21: 0.58 | AF21: =AF22+((($A21-$A22)/($A20-$A22))*(AF20-AF22)) -> 0.7 | AG21: 1 | AH21: =AH22+((($A21-$A22)/($A20-$A22))*(AH20-AH22)) -> 0.6 | AI21: 0.96 | AJ21: =AJ22+((($A21-$A22)/($A20-$A22))*(AJ20-AJ22)) -> 0.51 | AK21: 0.68 | AL21: =AL22+((($A21-$A22)/($A20-$A22))*(AL20-AL22)) -> 0
A22: 8 | B22: 0.6 | C22: =B22+(((C$5-B$5)/(D$5-B$5))*(D22-B22)) -> 0.6 | D22: 0.5 | E22: 0.53 | F22: 0.47 | G22: 0.51 | H22: 0.45 | I22: =H22+(((I$5-H$5)/(J$5-H$5))*(J22-H22)) -> 0.48 | J22: 0.44 | K22: =J22+(((K$5-J$5)/(L$5-J$5))*(L22-J22)) -> 0.48 | L22: 0.43 | M22: =L22+(((M$5-L$5)/(N$5-L$5))*(N22-L22)) -> 0.5733333333 | N22: 0 | O22: 0.6 | P22: 0.48 | Q22: 0.53 | R22: 0.43 | S22: 0.47 | T22: 0.41 | U22: 0.47 | V22: 0.39 | W22: 0.43 | X22: 0.38 | Y22: 0.5066666667 | Z22: 0 | AA22: 0.6 | AB22: 0.47 | AC22: 0.52 | AD22: 0.42 | AE22: 0.5 | AF22: 0.38 | AG22: 0.44 | AH22: 0.36 | AI22: 0.4 | AJ22: 0.35 | AK22: 0.4666666667 | AL22: 0
A23: =IF((AND(A22<$B$40,A24>$B$40)),$B$40,"0,0") -> 0,0 | B23: =B24+((($A23-$A24)/($A22-$A24))*(B22-B24)) -> 1 | C23: =B23+(((C$5-B$5)/(D$5-B$5))*(D23-B23)) -> 1 | D23: =D24+((($A23-$A24)/($A22-$A24))*(D22-D24)) -> 0.82 | E23: 0.85 | F23: =F24+((($A23-$A24)/($A22-$A24))*(F22-F24)) -> 0.79 | G23: 0.99 | H23: =H24+((($A23-$A24)/($A22-$A24))*(H22-H24)) -> 0.69 | I23: =H23+(((I$5-H$5)/(J$5-H$5))*(J23-H23)) -> 0.72 | J23: =J24+((($A23-$A24)/($A22-$A24))*(J22-J24)) -> 0.68 | K23: =J23+(((K$5-J$5)/(L$5-J$5))*(L23-J23)) -> 0.72 | L23: =L24+((($A23-$A24)/($A22-$A24))*(L22-L24)) -> 0.67 | M23: =L23+(((M$5-L$5)/(N$5-L$5))*(N23-L23)) -> 0.8933333333 | N23: =N24+((($A23-$A24)/($A22-$A24))*(N22-N24)) -> 0 | O23: 1 | P23: =P24+((($A23-$A24)/($A22-$A24))*(P22-P24)) -> 0.8 | Q23: 0.93 | R23: =R24+((($A23-$A24)/($A22-$A24))*(R22-R24)) -> 0.67 | S23: 0.71 | T23: =T24+((($A23-$A24)/($A22-$A24))*(T22-T24)) -> 0.65 | U23: 0.71 | V23: =V24+((($A23-$A24)/($A22-$A24))*(V22-V24)) -> 0.63 | W23: 0.67 | X23: =X24+((($A23-$A24)/($A22-$A24))*(X22-X24)) -> 0.62 | Y23: 0.8266666667 | Z23: =Z24+((($A23-$A24)/($A22-$A24))*(Z22-Z24)) -> 0 | AA23: 1 | AB23: =AB24+((($A23-$A24)/($A22-$A24))*(AB22-AB24)) -> 0.79 | AC23: 0.92 | AD23: =AD24+((($A23-$A24)/($A22-$A24))*(AD22-AD24)) -> 0.66 | AE23: 0.9 | AF23: =AF24+((($A23-$A24)/($A22-$A24))*(AF22-AF24)) -> 0.54 | AG23: 0.6 | AH23: =AH24+((($A23-$A24)/($A22-$A24))*(AH22-AH24)) -> 0.52 | AI23: 0.56 | AJ23: =AJ24+((($A23-$A24)/($A22-$A24))*(AJ22-AJ24)) -> 0.51 | AK23: 0.68 | AL23: =AL24+((($A23-$A24)/($A22-$A24))*(AL22-AL24)) -> 0
A24: 9 | B24: 0.55 | C24: =B24+(((C$5-B$5)/(D$5-B$5))*(D24-B24)) -> 0.55 | D24: 0.46 | E24: 0.49 | F24: 0.43 | G24: 0.45 | H24: 0.42 | I24: =H24+(((I$5-H$5)/(J$5-H$5))*(J24-H24)) -> 0.45 | J24: 0.41 | K24: =J24+(((K$5-J$5)/(L$5-J$5))*(L24-J24)) -> 0.45 | L24: 0.4 | M24: =L24+(((M$5-L$5)/(N$5-L$5))*(N24-L24)) -> 0.5333333333 | N24: 0 | O24: 0.55 | P24: 0.44 | Q24: 0.48 | R24: 0.4 | S24: 0.44 | T24: 0.38 | U24: 0.44 | V24: 0.36 | W24: 0.4 | X24: 0.35 | Y24: 0.4666666667 | Z24: 0 | AA24: 0.55 | AB24: 0.43 | AC24: 0.47 | AD24: 0.39 | AE24: 0.45 | AF24: 0.36 | AG24: 0.42 | AH24: 0.34 | AI24: 0.38 | AJ24: 0.33 | AK24: 0.44 | AL24: 0
A25: =IF((AND(A24<$B$40,A26>$B$40)),$B$40,"0,0") -> 0,0 | B25: =B26+((($A25-$A26)/($A24-$A26))*(B24-B26)) -> 0.91 | C25: =B25+(((C$5-B$5)/(D$5-B$5))*(D25-B25)) -> 0.91 | D25: =D26+((($A25-$A26)/($A24-$A26))*(D24-D26)) -> 0.73 | E25: 0.76 | F25: =F26+((($A25-$A26)/($A24-$A26))*(F24-F26)) -> 0.7 | G25: 0.72 | H25: =H26+((($A25-$A26)/($A24-$A26))*(H24-H26)) -> 0.69 | I25: =H25+(((I$5-H$5)/(J$5-H$5))*(J25-H25)) -> 0.72 | J25: =J26+((($A25-$A26)/($A24-$A26))*(J24-J26)) -> 0.68 | K25: =J25+(((K$5-J$5)/(L$5-J$5))*(L25-J25)) -> 0.72 | L25: =L26+((($A25-$A26)/($A24-$A26))*(L24-L26)) -> 0.67 | M25: =L25+(((M$5-L$5)/(N$5-L$5))*(N25-L25)) -> 0.8933333333 | N25: =N26+((($A25-$A26)/($A24-$A26))*(N24-N26)) -> 0 | O25: 0.91 | P25: =P26+((($A25-$A26)/($A24-$A26))*(P24-P26)) -> 0.71 | Q25: 0.75 | R25: =R26+((($A25-$A26)/($A24-$A26))*(R24-R26)) -> 0.67 | S25: 0.71 | T25: =T26+((($A25-$A26)/($A24-$A26))*(T24-T26)) -> 0.65 | U25: 0.98 | V25: =V26+((($A25-$A26)/($A24-$A26))*(V24-V26)) -> 0.54 | W25: 0.58 | X25: =X26+((($A25-$A26)/($A24-$A26))*(X24-X26)) -> 0.53 | Y25: 0.7066666667 | Z25: =Z26+((($A25-$A26)/($A24-$A26))*(Z24-Z26)) -> 0 | AA25: 0.91 | AB25: =AB26+((($A25-$A26)/($A24-$A26))*(AB24-AB26)) -> 0.7 | AC25: 0.74 | AD25: =AD26+((($A25-$A26)/($A24-$A26))*(AD24-AD26)) -> 0.66 | AE25: 0.9 | AF25: =AF26+((($A25-$A26)/($A24-$A26))*(AF24-AF26)) -> 0.54 | AG25: 0.6 | AH25: =AH26+((($A25-$A26)/($A24-$A26))*(AH24-AH26)) -> 0.52 | AI25: 0.56 | AJ25: =AJ26+((($A25-$A26)/($A24-$A26))*(AJ24-AJ26)) -> 0.51 | AK25: 0.68 | AL25: =AL26+((($A25-$A26)/($A24-$A26))*(AL24-AL26)) -> 0
A26: 10 | B26: 0.51 | C26: =B26+(((C$5-B$5)/(D$5-B$5))*(D26-B26)) -> 0.51 | D26: 0.43 | E26: 0.46 | F26: 0.4 | G26: 0.42 | H26: 0.39 | I26: =H26+(((I$5-H$5)/(J$5-H$5))*(J26-H26)) -> 0.42 | J26: 0.38 | K26: =J26+(((K$5-J$5)/(L$5-J$5))*(L26-J26)) -> 0.42 | L26: 0.37 | M26: =L26+(((M$5-L$5)/(N$5-L$5))*(N26-L26)) -> 0.4933333333 | N26: 0 | O26: 0.51 | P26: 0.41 | Q26: 0.45 | R26: 0.37 | S26: 0.41 | T26: 0.35 | U26: 0.38 | V26: 0.34 | W26: 0.38 | X26: 0.33 | Y26: 0.44 | Z26: 0 | AA26: 0.51 | AB26: 0.4 | AC26: 0.44 | AD26: 0.36 | AE26: 0.4 | AF26: 0.34 | AG26: 0.4 | AH26: 0.32 | AI26: 0.36 | AJ26: 0.31 | AK26: 0.4133333333 | AL26: 0
A27: =IF((AND(A26<$B$40,A28>$B$40)),$B$40,"0,0") -> 0,0 | B27: =B28+((($A27-$A28)/($A26-$A28))*(B26-B28)) -> 0.86 | C27: =B27+(((C$5-B$5)/(D$5-B$5))*(D27-B27)) -> 0.86 | D27: =D28+((($A27-$A28)/($A26-$A28))*(D26-D28)) -> 0.68 | E27: 0.76 | F27: =F28+((($A27-$A28)/($A26-$A28))*(F26-F28)) -> 0.6 | G27: 0.52 | H27: =H28+((($A27-$A28)/($A26-$A28))*(H26-H28)) -> 0.64 | I27: =H27+(((I$5-H$5)/(J$5-H$5))*(J27-H27)) -> 0.82 | J27: =J28+((($A27-$A28)/($A26-$A28))*(J26-J28)) -> 0.58 | K27: =J27+(((K$5-J$5)/(L$5-J$5))*(L27-J27)) -> 0.62 | L27: =L28+((($A27-$A28)/($A26-$A28))*(L26-L28)) -> 0.57 | M27: =L27+(((M$5-L$5)/(N$5-L$5))*(N27-L27)) -> 0.76 | N27: =N28+((($A27-$A28)/($A26-$A28))*(N26-N28)) -> 0 | O27: 0.86 | P27: =P28+((($A27-$A28)/($A26-$A28))*(P26-P28)) -> 0.66 | Q27: 0.75 | R27: =R28+((($A27-$A28)/($A26-$A28))*(R26-R28)) -> 0.57 | S27: 0.61 | T27: =T28+((($A27-$A28)/($A26-$A28))*(T26-T28)) -> 0.55 | U27: 0.58 | V27: =V28+((($A27-$A28)/($A26-$A28))*(V26-V28)) -> 0.54 | W27: 0.58 | X27: =X28+((($A27-$A28)/($A26-$A28))*(X26-X28)) -> 0.53 | Y27: 0.7066666667 | Z27: =Z28+((($A27-$A28)/($A26-$A28))*(Z26-Z28)) -> 0 | AA27: 0.86 | AB27: =AB28+((($A27-$A28)/($A26-$A28))*(AB26-AB28)) -> 0.6 | AC27: 0.64 | AD27: =AD28+((($A27-$A28)/($A26-$A28))*(AD26-AD28)) -> 0.56 | AE27: 0.6 | AF27: =AF28+((($A27-$A28)/($A26-$A28))*(AF26-AF28)) -> 0.54 | AG27: 0.6 | AH27: =AH28+((($A27-$A28)/($A26-$A28))*(AH26-AH28)) -> 0.52 | AI27: 0.56 | AJ27: =AJ28+((($A27-$A28)/($A26-$A28))*(AJ26-AJ28)) -> 0.51 | AK27: 0.68 | AL27: =AL28+((($A27-$A28)/($A26-$A28))*(AL26-AL28)) -> 0
A28: 12 | B28: 0.44 | C28: =B28+(((C$5-B$5)/(D$5-B$5))*(D28-B28)) -> 0.44 | D28: 0.38 | E28: 0.4 | F28: 0.36 | G28: 0.4 | H28: 0.34 | I28: =H28+(((I$5-H$5)/(J$5-H$5))*(J28-H28)) -> 0.34 | J28: 0.34 | K28: =J28+(((K$5-J$5)/(L$5-J$5))*(L28-J28)) -> 0.38 | L28: 0.33 | M28: =L28+(((M$5-L$5)/(N$5-L$5))*(N28-L28)) -> 0.44 | N28: 0 | O28: 0.44 | P28: 0.36 | Q28: 0.39 | R28: 0.33 | S28: 0.37 | T28: 0.31 | U28: 0.34 | V28: 0.3 | W28: 0.34 | X28: 0.29 | Y28: 0.3866666667 | Z28: 0 | AA28: 0.44 | AB28: 0.36 | AC28: 0.4 | AD28: 0.32 | AE28: 0.36 | AF28: 0.3 | AG28: 0.36 | AH28: 0.28 | AI28: 0.32 | AJ28: 0.27 | AK28: 0.36 | AL28: 0
A29: =IF((AND(A28<$B$40,A30>$B$40)),$B$40,"0,0") -> 0,0 | B29: =B30+((($A29-$A30)/($A28-$A30))*(B28-B30)) -> 0.74 | C29: =B29+(((C$5-B$5)/(D$5-B$5))*(D29-B29)) -> 0.74 | D29: =D30+((($A29-$A30)/($A28-$A30))*(D28-D30)) -> 0.62 | E29: 0.64 | F29: =F30+((($A29-$A30)/($A28-$A30))*(F28-F30)) -> 0.6 | G29: 0.76 | H29: =H30+((($A29-$A30)/($A28-$A30))*(H28-H30)) -> 0.52 | I29: =H29+(((I$5-H$5)/(J$5-H$5))*(J29-H29)) -> 0.34 | J29: =J30+((($A29-$A30)/($A28-$A30))*(J28-J30)) -> 0.58 | K29: =J29+(((K$5-J$5)/(L$5-J$5))*(L29-J29)) -> 0.86 | L29: =L30+((($A29-$A30)/($A28-$A30))*(L28-L30)) -> 0.51 | M29: =L29+(((M$5-L$5)/(N$5-L$5))*(N29-L29)) -> 0.68 | N29: =N30+((($A29-$A30)/($A28-$A30))*(N28-N30)) -> 0 | O29: 0.74 | P29: =P30+((($A29-$A30)/($A28-$A30))*(P28-P30)) -> 0.6 | Q29: 0.69 | R29: =R30+((($A29-$A30)/($A28-$A30))*(R28-R30)) -> 0.51 | S29: 0.55 | T29: =T30+((($A29-$A30)/($A28-$A30))*(T28-T30)) -> 0.49 | U29: 0.52 | V29: =V30+((($A29-$A30)/($A28-$A30))*(V28-V30)) -> 0.48 | W29: 0.76 | X29: =X30+((($A29-$A30)/($A28-$A30))*(X28-X30)) -> 0.41 | Y29: 0.5466666667 | Z29: =Z30+((($A29-$A30)/($A28-$A30))*(Z28-Z30)) -> 0 | AA29: 0.74 | AB29: =AB30+((($A29-$A30)/($A28-$A30))*(AB28-AB30)) -> 0.6 | AC29: 0.7 | AD29: =AD30+((($A29-$A30)/($A28-$A30))*(AD28-AD30)) -> 0.5 | AE29: 0.54 | AF29: =AF30+((($A29-$A30)/($A28-$A30))*(AF28-AF30)) -> 0.48 | AG29: 0.72 | AH29: =AH30+((($A29-$A30)/($A28-$A30))*(AH28-AH30)) -> 0.4 | AI29: 0.44 | AJ29: =AJ30+((($A29-$A30)/($A28-$A30))*(AJ28-AJ30)) -> 0.39 | AK29: 0.52 | AL29: =AL30+((($A29-$A30)/($A28-$A30))*(AL28-AL30)) -> 0
A30: 14 | B30: 0.39 | C30: =B30+(((C$5-B$5)/(D$5-B$5))*(D30-B30)) -> 0.39 | D30: 0.34 | E30: 0.36 | F30: 0.32 | G30: 0.34 | H30: 0.31 | I30: =H30+(((I$5-H$5)/(J$5-H$5))*(J30-H30)) -> 0.34 | J30: 0.3 | K30: =J30+(((K$5-J$5)/(L$5-J$5))*(L30-J30)) -> 0.3 | L30: 0.3 | M30: =L30+(((M$5-L$5)/(N$5-L$5))*(N30-L30)) -> 0.4 | N30: 0 | O30: 0.39 | P30: 0.32 | Q30: 0.34 | R30: 0.3 | S30: 0.34 | T30: 0.28 | U30: 0.31 | V30: 0.27 | W30: 0.27 | X30: 0.27 | Y30: 0.36 | Z30: 0 | AA30: 0.39 | AB30: 0.32 | AC30: 0.35 | AD30: 0.29 | AE30: 0.33 | AF30: 0.27 | AG30: 0.3 | AH30: 0.26 | AI30: 0.3 | AJ30: 0.25 | AK30: 0.3333333333 | AL30: 0
A31: =IF((AND(A30<$B$40,A32>$B$40)),$B$40,"0,0") -> 0,0 | B31: =B32+((($A31-$A32)/($A30-$A32))*(B30-B32)) -> 0.67 | C31: =B31+(((C$5-B$5)/(D$5-B$5))*(D31-B31)) -> 0.67 | D31: =D32+((($A31-$A32)/($A30-$A32))*(D30-D32)) -> 0.55 | E31: 0.57 | F31: =F32+((($A31-$A32)/($A30-$A32))*(F30-F32)) -> 0.53 | G31: 0.55 | H31: =H32+((($A31-$A32)/($A30-$A32))*(H30-H32)) -> 0.52 | I31: =H31+(((I$5-H$5)/(J$5-H$5))*(J31-H31)) -> 0.55 | J31: =J32+((($A31-$A32)/($A30-$A32))*(J30-J32)) -> 0.51 | K31: =J31+(((K$5-J$5)/(L$5-J$5))*(L31-J31)) -> 0.51 | L31: =L32+((($A31-$A32)/($A30-$A32))*(L30-L32)) -> 0.51 | M31: =L31+(((M$5-L$5)/(N$5-L$5))*(N31-L31)) -> 0.68 | N31: =N32+((($A31-$A32)/($A30-$A32))*(N30-N32)) -> 0 | O31: 0.67 | P31: =P32+((($A31-$A32)/($A30-$A32))*(P30-P32)) -> 0.53 | Q31: 0.55 | R31: =R32+((($A31-$A32)/($A30-$A32))*(R30-R32)) -> 0.51 | S31: 0.69 | T31: =T32+((($A31-$A32)/($A30-$A32))*(T30-T32)) -> 0.42 | U31: 0.45 | V31: =V32+((($A31-$A32)/($A30-$A32))*(V30-V32)) -> 0.41 | W31: 0.13 | X31: =X32+((($A31-$A32)/($A30-$A32))*(X30-X32)) -> 0.48 | Y31: 0.64 | Z31: =Z32+((($A31-$A32)/($A30-$A32))*(Z30-Z32)) -> 0 | AA31: 0.67 | AB31: =AB32+((($A31-$A32)/($A30-$A32))*(AB30-AB32)) -> 0.53 | AC31: 0.56 | AD31: =AD32+((($A31-$A32)/($A30-$A32))*(AD30-AD32)) -> 0.5 | AE31: 0.68 | AF31: =AF32+((($A31-$A32)/($A30-$A32))*(AF30-AF32)) -> 0.41 | AG31: 0.44 | AH31: =AH32+((($A31-$A32)/($A30-$A32))*(AH30-AH32)) -> 0.4 | AI31: 0.44 | AJ31: =AJ32+((($A31-$A32)/($A30-$A32))*(AJ30-AJ32)) -> 0.39 | AK31: 0.52 | AL31: =AL32+((($A31-$A32)/($A30-$A32))*(AL30-AL32)) -> 0
A32: 16 | B32: 0.35 | C32: =B32+(((C$5-B$5)/(D$5-B$5))*(D32-B32)) -> 0.35 | D32: 0.31 | E32: 0.33 | F32: 0.29 | G32: 0.31 | H32: 0.28 | I32: =H32+(((I$5-H$5)/(J$5-H$5))*(J32-H32)) -> 0.31 | J32: 0.27 | K32: =J32+(((K$5-J$5)/(L$5-J$5))*(L32-J32)) -> 0.27 | L32: 0.27 | M32: =L32+(((M$5-L$5)/(N$5-L$5))*(N32-L32)) -> 0.36 | N32: 0 | O32: 0.35 | P32: 0.29 | Q32: 0.31 | R32: 0.27 | S32: 0.29 | T32: 0.26 | U32: 0.29 | V32: 0.25 | W32: 0.29 | X32: 0.24 | Y32: 0.32 | Z32: 0 | AA32: 0.35 | AB32: 0.29 | AC32: 0.32 | AD32: 0.26 | AE32: 0.28 | AF32: 0.25 | AG32: 0.28 | AH32: 0.24 | AI32: 0.28 | AJ32: 0.23 | AK32: 0.3066666667 | AL32: 0
A33: =IF((AND(A32<$B$40,A34>$B$40)),$B$40,"0,0") -> 0,0 | B33: =B34+((($A33-$A34)/($A32-$A34))*(B32-B34)) -> 0.59 | C33: =B33+(((C$5-B$5)/(D$5-B$5))*(D33-B33)) -> 0.59 | D33: =D34+((($A33-$A34)/($A32-$A34))*(D32-D34)) -> 0.55 | E33: 0.65 | F33: =F34+((($A33-$A34)/($A32-$A34))*(F32-F34)) -> 0.45 | G33: 0.47 | H33: =H34+((($A33-$A34)/($A32-$A34))*(H32-H34)) -> 0.44 | I33: =H33+(((I$5-H$5)/(J$5-H$5))*(J33-H33)) -> 0.47 | J33: =J34+((($A33-$A34)/($A32-$A34))*(J32-J34)) -> 0.43 | K33: =J33+(((K$5-J$5)/(L$5-J$5))*(L33-J33)) -> 0.43 | L33: =L34+((($A33-$A34)/($A32-$A34))*(L32-L34)) -> 0.43 | M33: =L33+(((M$5-L$5)/(N$5-L$5))*(N33-L33)) -> 0.5733333333 | N33: =N34+((($A33-$A34)/($A32-$A34))*(N32-N34)) -> 0 | O33: 0.59 | P33: =P34+((($A33-$A34)/($A32-$A34))*(P32-P34)) -> 0.45 | Q33: 0.47 | R33: =R34+((($A33-$A34)/($A32-$A34))*(R32-R34)) -> 0.43 | S33: 0.45 | T33: =T34+((($A33-$A34)/($A32-$A34))*(T32-T34)) -> 0.42 | U33: 0.45 | V33: =V34+((($A33-$A34)/($A32-$A34))*(V32-V34)) -> 0.41 | W33: 0.45 | X33: =X34+((($A33-$A34)/($A32-$A34))*(X32-X34)) -> 0.4 | Y33: 0.5333333333 | Z33: =Z34+((($A33-$A34)/($A32-$A34))*(Z32-Z34)) -> 0 | AA33: 0.59 | AB33: =AB34+((($A33-$A34)/($A32-$A34))*(AB32-AB34)) -> 0.45 | AC33: 0.48 | AD33: =AD34+((($A33-$A34)/($A32-$A34))*(AD32-AD34)) -> 0.42 | AE33: 0.44 | AF33: =AF34+((($A33-$A34)/($A32-$A34))*(AF32-AF34)) -> 0.41 | AG33: 0.44 | AH33: =AH34+((($A33-$A34)/($A32-$A34))*(AH32-AH34)) -> 0.4 | AI33: 0.44 | AJ33: =AJ34+((($A33-$A34)/($A32-$A34))*(AJ32-AJ34)) -> 0.39 | AK33: 0.52 | AL33: =AL34+((($A33-$A34)/($A32-$A34))*(AL32-AL34)) -> 0
A34: 18 | B34: 0.32 | C34: =B34+(((C$5-B$5)/(D$5-B$5))*(D34-B34)) -> 0.32 | D34: 0.28 | E34: 0.29 | F34: 0.27 | G34: 0.29 | H34: 0.26 | I34: =H34+(((I$5-H$5)/(J$5-H$5))*(J34-H34)) -> 0.29 | J34: 0.25 | K34: =J34+(((K$5-J$5)/(L$5-J$5))*(L34-J34)) -> 0.25 | L34: 0.25 | M34: =L34+(((M$5-L$5)/(N$5-L$5))*(N34-L34)) -> 0.3333333333 | N34: 0 | O34: 0.32 | P34: 0.27 | Q34: 0.29 | R34: 0.25 | S34: 0.27 | T34: 0.24 | U34: 0.27 | V34: 0.23 | W34: 0.27 | X34: 0.22 | Y34: 0.2933333333 | Z34: 0 | AA34: 0.32 | AB34: 0.27 | AC34: 0.3 | AD34: 0.24 | AE34: 0.26 | AF34: 0.23 | AG34: 0.26 | AH34: 0.22 | AI34: 0.26 | AJ34: 0.21 | AK34: 0.28 | AL34: 0
A35: =IF((AND(A34<$B$40,A36>$B$40)),$B$40,"0,0") -> 0,0 | B35: =B36+((($A35-$A36)/($A34-$A36))*(B34-B36)) -> 0.5 | C35: =B35+(((C$5-B$5)/(D$5-B$5))*(D35-B35)) -> 0.5 | D35: =D36+((($A35-$A36)/($A34-$A36))*(D34-D36)) -> 0.46 | E35: 0.47 | F35: =F36+((($A35-$A36)/($A34-$A36))*(F34-F36)) -> 0.45 | G35: 0.47 | H35: =H36+((($A35-$A36)/($A34-$A36))*(H34-H36)) -> 0.44 | I35: =H35+(((I$5-H$5)/(J$5-H$5))*(J35-H35)) -> 0.47 | J35: =J36+((($A35-$A36)/($A34-$A36))*(J34-J36)) -> 0.43 | K35: =J35+(((K$5-J$5)/(L$5-J$5))*(L35-J35)) -> 0.43 | L35: =L36+((($A35-$A36)/($A34-$A36))*(L34-L36)) -> 0.43 | M35: =L35+(((M$5-L$5)/(N$5-L$5))*(N35-L35)) -> 0.5733333333 | N35: =N36+((($A35-$A36)/($A34-$A36))*(N34-N36)) -> 0 | O35: 0.5 | P35: =P36+((($A35-$A36)/($A34-$A36))*(P34-P36)) -> 0.45 | Q35: 0.47 | R35: =R36+((($A35-$A36)/($A34-$A36))*(R34-R36)) -> 0.43 | S35: 0.45 | T35: =T36+((($A35-$A36)/($A34-$A36))*(T34-T36)) -> 0.42 | U35: 0.45 | V35: =V36+((($A35-$A36)/($A34-$A36))*(V34-V36)) -> 0.41 | W35: 0.81 | X35: =X36+((($A35-$A36)/($A34-$A36))*(X34-X36)) -> 0.31 | Y35: 0.4133333333 | Z35: =Z36+((($A35-$A36)/($A34-$A36))*(Z34-Z36)) -> 0 | AA35: 0.5 | AB35: =AB36+((($A35-$A36)/($A34-$A36))*(AB34-AB36)) -> 0.45 | AC35: 0.48 | AD35: =AD36+((($A35-$A36)/($A34-$A36))*(AD34-AD36)) -> 0.42 | AE35: 0.44 | AF35: =AF36+((($A35-$A36)/($A34-$A36))*(AF34-AF36)) -> 0.41 | AG35: 0.44 | AH35: =AH36+((($A35-$A36)/($A34-$A36))*(AH34-AH36)) -> 0.4 | AI35: 0.8 | AJ35: =AJ36+((($A35-$A36)/($A34-$A36))*(AJ34-AJ36)) -> 0.3 | AK35: 0.4 | AL35: =AL36+((($A35-$A36)/($A34-$A36))*(AL34-AL36)) -> 0
A36: 20 | B36: 0.3 | C36: =B36+(((C$5-B$5)/(D$5-B$5))*(D36-B36)) -> 0.3 | D36: 0.26 | E36: 0.27 | F36: 0.25 | G36: 0.27 | H36: 0.24 | I36: =H36+(((I$5-H$5)/(J$5-H$5))*(J36-H36)) -> 0.27 | J36: 0.23 | K36: =J36+(((K$5-J$5)/(L$5-J$5))*(L36-J36)) -> 0.23 | L36: 0.23 | M36: =L36+(((M$5-L$5)/(N$5-L$5))*(N36-L36)) -> 0.3066666667 | N36: 0 | O36: 0.3 | P36: 0.25 | Q36: 0.27 | R36: 0.23 | S36: 0.25 | T36: 0.22 | U36: 0.25 | V36: 0.21 | W36: 0.21 | X36: 0.21 | Y36: 0.28 | Z36: 0 | AA36: 0.3 | AB36: 0.25 | AC36: 0.28 | AD36: 0.22 | AE36: 0.24 | AF36: 0.21 | AG36: 0.24 | AH36: 0.2 | AI36: 0.2 | AJ36: 0.2 | AK36: 0.2666666667 | AL36: 0
A37: =IF((AND(A36<$B$40,A38>$B$40)),$B$40,"0,0") -> 0,0 | B37: =B38+((($A37-$A38)/($A36-$A38))*(B36-B38)) -> 0.3 | C37: =B37+(((C$5-B$5)/(D$5-B$5))*(D37-B37)) -> 0.3 | D37: =D38+((($A37-$A38)/($A36-$A38))*(D36-D38)) -> 0.26 | E37: 0.27 | F37: =F38+((($A37-$A38)/($A36-$A38))*(F36-F38)) -> 0.25 | G37: 0.27 | H37: =H38+((($A37-$A38)/($A36-$A38))*(H36-H38)) -> 0.24 | I37: =H37+(((I$5-H$5)/(J$5-H$5))*(J37-H37)) -> 0.27 | J37: =J38+((($A37-$A38)/($A36-$A38))*(J36-J38)) -> 0.23 | K37: =J37+(((K$5-J$5)/(L$5-J$5))*(L37-J37)) -> 0.23 | L37: =L38+((($A37-$A38)/($A36-$A38))*(L36-L38)) -> 0.23 | M37: =L37+(((M$5-L$5)/(N$5-L$5))*(N37-L37)) -> 0.3066666667 | N37: =N38+((($A37-$A38)/($A36-$A38))*(N36-N38)) -> 0 | O37: 0.3 | P37: =P38+((($A37-$A38)/($A36-$A38))*(P36-P38)) -> 0.25 | Q37: 0.27 | R37: =R38+((($A37-$A38)/($A36-$A38))*(R36-R38)) -> 0.23 | S37: 0.25 | T37: =T38+((($A37-$A38)/($A36-$A38))*(T36-T38)) -> 0.22 | U37: 0.25 | V37: =V38+((($A37-$A38)/($A36-$A38))*(V36-V38)) -> 0.21 | W37: 0.21 | X37: =X38+((($A37-$A38)/($A36-$A38))*(X36-X38)) -> 0.21 | Y37: 0.28 | Z37: =Z38+((($A37-$A38)/($A36-$A38))*(Z36-Z38)) -> 0 | AA37: 0.3 | AB37: =AB38+((($A37-$A38)/($A36-$A38))*(AB36-AB38)) -> 0.25 | AC37: 0.28 | AD37: =AD38+((($A37-$A38)/($A36-$A38))*(AD36-AD38)) -> 0.22 | AE37: 0.24 | AF37: =AF38+((($A37-$A38)/($A36-$A38))*(AF36-AF38)) -> 0.21 | AG37: 0.24 | AH37: =AH38+((($A37-$A38)/($A36-$A38))*(AH36-AH38)) -> 0.2 | AI37: 0.2 | AJ37: =AJ38+((($A37-$A38)/($A36-$A38))*(AJ36-AJ38)) -> 0.2 | AK37: 0.2666666667 | AL37: =AL38+((($A37-$A38)/($A36-$A38))*(AL36-AL38)) -> 0
A38: 1000 | B38: =B36 -> 0.3 | C38: 0.3 | D38: =D36 -> 0.26 | E38: 0.27 | F38: 0.25 | G38: 0.27 | H38: 0.24 | I38: 0.27 | J38: 0.23 | K38: 0.23 | L38: 0.23 | M38: 0.3066666667 | N38: 0 | O38: 0.3 | P38: 0.25 | Q38: 0.27 | R38: 0.23 | S38: 0.25 | T38: 0.22 | U38: 0.25 | V38: 0.21 | W38: 0.21 | X38: 0.21 | Y38: 0.28 | Z38: 0 | AA38: 0.3 | AB38: 0.25 | AC38: 0.28 | AD38: 0.22 | AE38: 0.24 | AF38: 0.21 | AG38: 0.24 | AH38: 0.2 | AI38: 0.2 | AJ38: 0.2 | AK38: 0.2666666667 | AL38: 0
A40: B' | B40: =IF(Cerramiento!G3="ESTIMADOS",Auxiliar!AF31,'Datos necesarios'!H24) ->  | D40: Ra | E40: ='Recop. Datos'!A8 -> 0 | F40: 1 | G40: Us (0,0) | H40: =IFERROR((INDEX(B6:B38,MATCH(B40,A6:A38,0))),0) -> 0
F41: 2 | G41: Us (0,5) | H41: =IFERROR((INDEX(C6:N38,MATCH(B40,A6:A38,0),MATCH(E40,C5:N5,0))),0) -> 0
F42: 3 | G42: Us (1,0) | H42: =IFERROR((INDEX(O6:Z38,MATCH(B40,A6:A38,0),MATCH(E40,O5:Z5,0))),0) -> 0
F43: 4 | G43: Us (1,5) | H43: =IFERROR((INDEX(AA6:AL38,MATCH(B40,A6:A38,0),MATCH(E40,AA5:AL5,0))),0) -> 0

Sheet Tabla3V (hidden)
A1: Tabla 3. TRANSMITANCIA TÉRMICA Us [W/m²K]
F3: D = 0.5 m | R3: D = 1.0 m | AD3: D ≥ 1.5 m
B4: Ra [m²K/ W] | F4: Ra [m²K/ W] | R4: Ra [m²K/ W] | AD4: Ra [m²K/ W]
A5: B' | B5: 0 | C5: =IF((AND($B$5<$E$40,D5>$E$40)),$E$40,"0,00") -> 0,00 | D5: 0.5 | E5: =IF((AND(D5<$E$40,F5>$E$40)),$E$40,"0,00") -> 0,00 | F5: 1 | G5: =IF((AND(F5<$E$40,H5>$E$40)),$E$40,"0,00") -> 0,00 | H5: 1.5 | I5: =IF((AND(H5<$E$40,J5>$E$40)),$E$40,"0,00") -> 0,00 | J5: 2 | K5: =IF((AND(J5<$E$40,L5>$E$40)),$E$40,"0,00") -> 0,00 | L5: 2.5 | M5: =IF((AND(L5<$E$40,N5>$E$40)),$E$40,"0,00") -> 0,00 | N5: 10 | O5: =IF((AND($B$5<$E$40,P5>$E$40)),$E$40,"0,00") -> 0,00 | P5: 0.5 | Q5: =IF((AND(P5<$E$40,R5>$E$40)),$E$40,"0,00") -> 0,00 | R5: 1 | S5: =IF((AND(R5<$E$40,T5>$E$40)),$E$40,"0,00") -> 0,00 | T5: 1.5 | U5: =IF((AND(T5<$E$40,V5>$E$40)),$E$40,"0,00") -> 0,00 | V5: 2 | W5: =IF((AND(V5<$E$40,X5>$E$40)),$E$40,"0,00") -> 0,00 | X5: 2.5 | Y5: =IF((AND(X5<$E$40,Z5>$E$40)),$E$40,"0,00") -> 0,00 | Z5: 10 | AA5: =IF((AND($B$5<$E$40,AB5>$E$40)),$E$40,"0,00") -> 0,00 | AB5: 0.5 | AC5: =IF((AND(AB5<$E$40,AD5>$E$40)),$E$40,"0,00") -> 0,00 | AD5: 1 | AE5: =IF((AND(AD5<$E$40,AF5>$E$40)),$E$40,"0,00") -> 0,00 | AF5: 1.5 | AG5: =IF((AND(AF5<$E$40,AH5>$E$40)),$E$40,"0,00") -> 0,00 | AH5: 2 | AI5: =IF((AND(AH5<$E$40,AJ5>$E$40)),$E$40,"0,00") -> 0,00 | AJ5: 2.5 | AK5: =IF((AND(AJ5<$E$40,AL5>$E$40)),$E$40,"0,00") -> 0,00 | AL5: 10
A6: 0 | B6: =B10+((($A$6-$A$10)/($A$8-$A$10))*(B8-B10)) -> 3.14 | C6: =B6+(((C$5-B$5)/(D$5-B$5))*(D6-B6)) -> 3.14 | D6: =D10+((($A$6-$A$10)/($A$8-$A$10))*(D8-D10)) -> 1.97 | E6: =D6+(((E$5-D$5)/(F$5-D$5))*(F6-D6)) -> 2.38 | F6: =F10+((($A$6-$A$10)/($A$8-$A$10))*(F8-F10)) -> 1.56 | G6: =F6+(((G$5-F$5)/(H$5-F$5))*(H6-F6)) -> 1.98 | H6: =H10+((($A$6-$A$10)/($A$8-$A$10))*(H8-H10)) -> 1.35 | I6: =H6+(((I$5-H$5)/(J$5-H$5))*(J6-H6)) -> 1.74 | J6: =J10+((($A$6-$A$10)/($A$8-$A$10))*(J8-J10)) -> 1.22 | K6: =J6+(((K$5-J$5)/(L$5-J$5))*(L6-J6)) -> 1.58 | L6: =L10+((($A$6-$A$10)/($A$8-$A$10))*(L8-L10)) -> 1.13 | M6: =L6+(((M$5-L$5)/(N$5-L$5))*(N6-L6)) -> 1.506666667 | N6: =N10+((($A$6-$A$10)/($A$8-$A$10))*(N8-N10)) -> 0 | O6: =$B6+(((O$5-$B$5)/(P$5-$B$5))*(P6-$B6)) -> 3.14 | P6: =P10+((($A$6-$A$10)/($A$8-$A$10))*(P8-P10)) -> 1.7 | Q6: =P6+(((Q$5-P$5)/(R$5-P$5))*(R6-P6)) -> 2.27 | R6: =R10+((($A$6-$A$10)/($A$8-$A$10))*(R8-R10)) -> 1.13 | S6: 1.77 | T6: =T10+((($A$6-$A$10)/($A$8-$A$10))*(T8-T10)) -> 0.81 | U6: 1.44 | V6: =V10+((($A$6-$A$10)/($A$8-$A$10))*(V8-V10)) -> 0.6 | W6: 1.12 | X6: =X10+((($A$6-$A$10)/($A$8-$A$10))*(X8-X10)) -> 0.47 | Y6: 0.6266666667 | Z6: =Z10+((($A$6-$A$10)/($A$8-$A$10))*(Z8-Z10)) -> 0 | AA6: =$B6+(((AA$5-$B$5)/(AB$5-$B$5))*(AB6-$B6)) -> 3.14 | AB6: 0 | AC6: =AB6+(((AC$5-AB$5)/(AD$5-AB$5))*(AD6-AB6)) -> 0 | AD6: 0 | AE6: 0 | AF6: 0 | AG6: 0 | AH6: 0 | AI6: 0 | AJ6: 0 | AK6: 0 | AL6: =AL10+((($A$6-$A$10)/($A$8-$A$10))*(AL8-AL10)) -> 0
A7: =IF((AND(A6<$B$40,A8>$B$40)),$B$40,"0,0") -> 0,0 | B7: =B8+((($A7-$A8)/($A6-$A8))*(B6-B8)) -> 3.14 | C7: 3.14 | D7: =D8+((($A7-$A8)/($A6-$A8))*(D6-D8)) -> 1.97 | E7: 2.38 | F7: =F8+((($A7-$A8)/($A6-$A8))*(F6-F8)) -> 1.56 | G7: 1.98 | H7: =H8+((($A7-$A8)/($A6-$A8))*(H6-H8)) -> 1.35 | I7: 1.74 | J7: =J8+((($A7-$A8)/($A6-$A8))*(J6-J8)) -> 1.22 | K7: 1.58 | L7: =L8+((($A7-$A8)/($A6-$A8))*(L6-L8)) -> 1.13 | M7: 1.506666667 | N7: =N8+((($A7-$A8)/($A6-$A8))*(N6-N8)) -> 0 | O7: =B7+(((O$5-B$5)/(P$5-B$5))*(P7-B7)) -> 3.14 | P7: =P8+((($A7-$A8)/($A6-$A8))*(P6-P8)) -> 1.7 | Q7: 2.27 | R7: =R8+((($A7-$A8)/($A6-$A8))*(R6-R8)) -> 1.13 | S7: 1.77 | T7: =T8+((($A7-$A8)/($A6-$A8))*(T6-T8)) -> 0.81 | U7: 1.44 | V7: =V8+((($A7-$A8)/($A6-$A8))*(V6-V8)) -> 0.6 | W7: 1.12 | X7: =X8+((($A7-$A8)/($A6-$A8))*(X6-X8)) -> 0.47 | Y7: 0.6266666667 | Z7: =Z8+((($A7-$A8)/($A6-$A8))*(Z6-Z8)) -> 0 | AA7: =$B7+(((AA$5-$B$5)/(AB$5-$B$5))*(AB7-$B7)) -> 3.14 | AB7: =AB8+((($A7-$A8)/($A6-$A8))*(AB6-AB8)) -> 0 | AC7: 0 | AD7: =AD8+((($A7-$A8)/($A6-$A8))*(AD6-AD8)) -> 0 | AE7: 0 | AF7: =AF8+((($A7-$A8)/($A6-$A8))*(AF6-AF8)) -> 0 | AG7: 0 | AH7: =AH8+((($A7-$A8)/($A6-$A8))*(AH6-AH8)) -> 0 | AI7: 0 | AJ7: =AJ8+((($A7-$A8)/($A6-$A8))*(AJ6-AJ8)) -> 0 | AK7: 0 | AL7: =AL8+((($A7-$A8)/($A6-$A8))*(AL6-AL8)) -> 0
A8: 1 | B8: 2.35 | C8: 2.35 | D8: 1.57 | E8: 1.84 | F8: 1.3 | G8: 1.58 | H8: 1.16 | I8: 1.43 | J8: 1.07 | K8: 1.31 | L8: 1.01 | M8: 1.346666667 | N8: 0 | O8: 2.35 | P8: 1.39 | Q8: 1.77 | R8: 1.01 | S8: 1.43 | T8: 0.8 | U8: 1.22 | V8: 0.66 | W8: 1.02 | X8: 0.57 | Y8: 0.76 | Z8: 0 | AA8: 2.35 | AB8: 0 | AC8: 0 | AD8: 0 | AE8: 0 | AF8: 0 | AG8: 0 | AH8: 0 | AI8: 0 | AJ8: 0 | AK8: 0 | AL8: 0
A9: =IF((AND(A8<$B$40,A10>$B$40)),$B$40,"0,0") -> 0,0 | B9: =B10+((($A9-$A10)/($A8-$A10))*(B8-B10)) -> 3.14 | C9: 3.14 | D9: =D10+((($A9-$A10)/($A8-$A10))*(D8-D10)) -> 1.97 | E9: 2.38 | F9: =F10+((($A9-$A10)/($A8-$A10))*(F8-F10)) -> 1.56 | G9: 1.98 | H9: =H10+((($A9-$A10)/($A8-$A10))*(H8-H10)) -> 1.35 | I9: 1.74 | J9: =J10+((($A9-$A10)/($A8-$A10))*(J8-J10)) -> 1.22 | K9: 1.58 | L9: =L10+((($A9-$A10)/($A8-$A10))*(L8-L10)) -> 1.13 | M9: 1.506666667 | N9: =N10+((($A9-$A10)/($A8-$A10))*(N8-N10)) -> 0 | O9: 3.14 | P9: =P10+((($A9-$A10)/($A8-$A10))*(P8-P10)) -> 1.7 | Q9: 2.27 | R9: =R10+((($A9-$A10)/($A8-$A10))*(R8-R10)) -> 1.13 | S9: 1.77 | T9: =T10+((($A9-$A10)/($A8-$A10))*(T8-T10)) -> 0.81 | U9: 1.44 | V9: =V10+((($A9-$A10)/($A8-$A10))*(V8-V10)) -> 0.6 | W9: 1.12 | X9: =X10+((($A9-$A10)/($A8-$A10))*(X8-X10)) -> 0.47 | Y9: 0.6266666667 | Z9: =Z10+((($A9-$A10)/($A8-$A10))*(Z8-Z10)) -> 0 | AA9: 3.14 | AB9: =AB10+((($A9-$A10)/($A8-$A10))*(AB8-AB10)) -> -1.04 | AC9: -1.25 | AD9: =AD10+((($A9-$A10)/($A8-$A10))*(AD8-AD10)) -> -0.83 | AE9: -1.09 | AF9: =AF10+((($A9-$A10)/($A8-$A10))*(AF8-AF10)) -> -0.7 | AG9: -0.97 | AH9: =AH10+((($A9-$A10)/($A8-$A10))*(AH8-AH10)) -> -0.61 | AI9: -0.85 | AJ9: =AJ10+((($A9-$A10)/($A8-$A10))*(AJ8-AJ10)) -> -0.55 | AK9: -0.7333333333 | AL9: =AL10+((($A9-$A10)/($A8-$A10))*(AL8-AL10)) -> 0
A10: 2 | B10: 1.56 | C10: 1.56 | D10: 1.17 | E10: 1.3 | F10: 1.04 | G10: 1.18 | H10: 0.97 | I10: 1.12 | J10: 0.92 | K10: 1.04 | L10: 0.89 | M10: 1.186666667 | N10: 0 | O10: 1.56 | P10: 1.08 | Q10: 1.27 | R10: 0.89 | S10: 1.09 | T10: 0.79 | U10: 1 | V10: 0.72 | W10: 0.92 | X10: 0.67 | Y10: 0.8933333333 | Z10: 0 | AA10: 1.56 | AB10: 1.04 | AC10: 1.25 | AD10: 0.83 | AE10: 1.09 | AF10: 0.7 | AG10: 0.97 | AH10: 0.61 | AI10: 0.85 | AJ10: 0.55 | AK10: 0.7333333333 | AL10: 0
A11: =IF((AND(A10<$B$40,A12>$B$40)),$B$40,"0,0") -> 0,0 | B11: =B12+((($A11-$A12)/($A10-$A12))*(B10-B12)) -> 2.28 | C11: 2.28 | D11: =D12+((($A11-$A12)/($A10-$A12))*(D10-D12)) -> 1.63 | E11: 1.84 | F11: =F12+((($A11-$A12)/($A10-$A12))*(F10-F12)) -> 1.42 | G11: 1.64 | H11: =H12+((($A11-$A12)/($A10-$A12))*(H10-H12)) -> 1.31 | I11: 1.64 | J11: =J12+((($A11-$A12)/($A10-$A12))*(J10-J12)) -> 1.2 | K11: 1.4 | L11: =L12+((($A11-$A12)/($A10-$A12))*(L10-L12)) -> 1.15 | M11: 1.533333333 | N11: =N12+((($A11-$A12)/($A10-$A12))*(N10-N12)) -> 0 | O11: 2.28 | P11: =P12+((($A11-$A12)/($A10-$A12))*(P10-P12)) -> 1.48 | Q11: 1.81 | R11: =R12+((($A11-$A12)/($A10-$A12))*(R10-R12)) -> 1.15 | S11: 1.47 | T11: =T12+((($A11-$A12)/($A10-$A12))*(T10-T12)) -> 0.99 | U11: 1.32 | V11: =V12+((($A11-$A12)/($A10-$A12))*(V10-V12)) -> 0.88 | W11: 1.24 | X11: =X12+((($A11-$A12)/($A10-$A12))*(X10-X12)) -> 0.79 | Y11: 1.053333333 | Z11: =Z12+((($A11-$A12)/($A10-$A12))*(Z10-Z12)) -> 0 | AA11: 2.28 | AB11: =AB12+((($A11-$A12)/($A10-$A12))*(AB10-AB12)) -> 1.42 | AC11: 1.77 | AD11: =AD12+((($A11-$A12)/($A10-$A12))*(AD10-AD12)) -> 1.07 | AE11: 1.53 | AF11: =AF12+((($A11-$A12)/($A10-$A12))*(AF10-AF12)) -> 0.84 | AG11: 1.29 | AH11: =AH12+((($A11-$A12)/($A10-$A12))*(AH10-AH12)) -> 0.69 | AI11: 1.09 | AJ11: =AJ12+((($A11-$A12)/($A10-$A12))*(AJ10-AJ12)) -> 0.59 | AK11: 0.7866666667 | AL11: =AL12+((($A11-$A12)/($A10-$A12))*(AL10-AL12)) -> 0
A12: 3 | B12: 1.2 | C12: 1.2 | D12: 0.94 | E12: 1.03 | F12: 0.85 | G12: 0.95 | H12: 0.8 | I12: 0.86 | J12: 0.78 | K12: 0.86 | L12: 0.76 | M12: 1.013333333 | N12: 0 | O12: 1.2 | P12: 0.88 | Q12: 1 | R12: 0.76 | S12: 0.9 | T12: 0.69 | U12: 0.84 | V12: 0.64 | W12: 0.76 | X12: 0.61 | Y12: 0.8133333333 | Z12: 0 | AA12: 1.2 | AB12: 0.85 | AC12: 0.99 | AD12: 0.71 | AE12: 0.87 | AF12: 0.63 | AG12: 0.81 | AH12: 0.57 | AI12: 0.73 | AJ12: 0.53 | AK12: 0.7066666667 | AL12: 0
A13: =IF((AND(A12<$B$40,A14>$B$40)),$B$40,"0,0") -> 0,0 | B13: =B14+((($A13-$A14)/($A12-$A14))*(B12-B14)) -> 1.83 | C13: 1.83 | D13: =D14+((($A13-$A14)/($A12-$A14))*(D12-D14)) -> 1.39 | E13: 1.57 | F13: =F14+((($A13-$A14)/($A12-$A14))*(F12-F14)) -> 1.21 | G13: 1.37 | H13: =H14+((($A13-$A14)/($A12-$A14))*(H12-H14)) -> 1.13 | I13: 1.19 | J13: =J14+((($A13-$A14)/($A12-$A14))*(J12-J14)) -> 1.11 | K13: 1.19 | L13: =L14+((($A13-$A14)/($A12-$A14))*(L12-L14)) -> 1.09 | M13: 1.453333333 | N13: =N14+((($A13-$A14)/($A12-$A14))*(N12-N14)) -> 0 | O13: 1.83 | P13: =P14+((($A13-$A14)/($A12-$A14))*(P12-P14)) -> 1.27 | Q13: 1.45 | R13: =R14+((($A13-$A14)/($A12-$A14))*(R12-R14)) -> 1.09 | S13: 1.35 | T13: =T14+((($A13-$A14)/($A12-$A14))*(T12-T14)) -> 0.96 | U13: 1.29 | V13: =V14+((($A13-$A14)/($A12-$A14))*(V12-V14)) -> 0.85 | W13: 0.97 | X13: =X14+((($A13-$A14)/($A12-$A14))*(X12-X14)) -> 0.82 | Y13: 1.093333333 | Z13: =Z14+((($A13-$A14)/($A12-$A14))*(Z12-Z14)) -> 0 | AA13: 1.83 | AB13: =AB14+((($A13-$A14)/($A12-$A14))*(AB12-AB14)) -> 1.21 | AC13: 1.44 | AD13: =AD14+((($A13-$A14)/($A12-$A14))*(AD12-AD14)) -> 0.98 | AE13: 1.26 | AF13: =AF14+((($A13-$A14)/($A12-$A14))*(AF12-AF14)) -> 0.84 | AG13: 1.11 | AH13: =AH14+((($A13-$A14)/($A12-$A14))*(AH12-AH14)) -> 0.75 | AI13: 1.03 | AJ13: =AJ14+((($A13-$A14)/($A12-$A14))*(AJ12-AJ14)) -> 0.68 | AK13: 0.9066666667 | AL13: =AL14+((($A13-$A14)/($A12-$A14))*(AL12-AL14)) -> 0
A14: 4 | B14: 0.99 | C14: 0.99 | D14: 0.79 | E14: 0.85 | F14: 0.73 | G14: 0.81 | H14: 0.69 | I14: 0.75 | J14: 0.67 | K14: 0.75 | L14: 0.65 | M14: 0.8666666667 | N14: 0 | O14: 0.99 | P14: 0.75 | Q14: 0.85 | R14: 0.65 | S14: 0.75 | T14: 0.6 | U14: 0.69 | V14: 0.57 | W14: 0.69 | X14: 0.54 | Y14: 0.72 | Z14: 0 | AA14: 0.99 | AB14: 0.73 | AC14: 0.84 | AD14: 0.62 | AE14: 0.74 | AF14: 0.56 | AG14: 0.71 | AH14: 0.51 | AI14: 0.63 | AJ14: 0.48 | AK14: 0.64 | AL14: 0
A15: =IF((AND(A14<$B$40,A16>$B$40)),$B$40,"0,0") -> 0,0 | B15: =B16+((($A15-$A16)/($A14-$A16))*(B14-B16)) -> 1.55 | C15: 1.55 | D15: =D16+((($A15-$A16)/($A14-$A16))*(D14-D16)) -> 1.19 | E15: 1.29 | F15: =F16+((($A15-$A16)/($A14-$A16))*(F14-F16)) -> 1.09 | G15: 1.25 | H15: =H16+((($A15-$A16)/($A14-$A16))*(H14-H16)) -> 1.01 | I15: 1.07 | J15: =J16+((($A15-$A16)/($A14-$A16))*(J14-J16)) -> 0.99 | K15: 1.23 | L15: =L16+((($A15-$A16)/($A14-$A16))*(L14-L16)) -> 0.93 | M15: 1.24 | N15: =N16+((($A15-$A16)/($A14-$A16))*(N14-N16)) -> 0 | O15: 1.55 | P15: =P16+((($A15-$A16)/($A14-$A16))*(P14-P16)) -> 1.15 | Q15: 1.37 | R15: =R16+((($A15-$A16)/($A14-$A16))*(R14-R16)) -> 0.93 | S15: 1.11 | T15: =T16+((($A15-$A16)/($A14-$A16))*(T14-T16)) -> 0.84 | U15: 0.93 | V15: =V16+((($A15-$A16)/($A14-$A16))*(V14-V16)) -> 0.81 | W15: 1.09 | X15: =X16+((($A15-$A16)/($A14-$A16))*(X14-X16)) -> 0.74 | Y15: 0.9866666667 | Z15: =Z16+((($A15-$A16)/($A14-$A16))*(Z14-Z16)) -> 0 | AA15: 1.55 | AB15: =AB16+((($A15-$A16)/($A14-$A16))*(AB14-AB16)) -> 1.09 | AC15: 1.28 | AD15: =AD16+((($A15-$A16)/($A14-$A16))*(AD14-AD16)) -> 0.9 | AE15: 1.1 | AF15: =AF16+((($A15-$A16)/($A14-$A16))*(AF14-AF16)) -> 0.8 | AG15: 1.19 | AH15: =AH16+((($A15-$A16)/($A14-$A16))*(AH14-AH16)) -> 0.67 | AI15: 0.79 | AJ15: =AJ16+((($A15-$A16)/($A14-$A16))*(AJ14-AJ16)) -> 0.64 | AK15: 0.8533333333 | AL15: =AL16+((($A15-$A16)/($A14-$A16))*(AL14-AL16)) -> 0
A16: 5 | B16: 0.85 | C16: 0.85 | D16: 0.69 | E16: 0.74 | F16: 0.64 | G16: 0.7 | H16: 0.61 | I16: 0.67 | J16: 0.59 | K16: 0.63 | L16: 0.58 | M16: 0.7733333333 | N16: 0 | O16: 0.85 | P16: 0.65 | Q16: 0.72 | R16: 0.58 | S16: 0.66 | T16: 0.54 | U16: 0.63 | V16: 0.51 | W16: 0.59 | X16: 0.49 | Y16: 0.6533333333 | Z16: 0 | AA16: 0.85 | AB16: 0.64 | AC16: 0.73 | AD16: 0.55 | AE16: 0.65 | AF16: 0.5 | AG16: 0.59 | AH16: 0.47 | AI16: 0.59 | AJ16: 0.44 | AK16: 0.5866666667 | AL16: 0
A17: =IF((AND(A16<$B$40,A18>$B$40)),$B$40,"0,0") -> 0,0 | B17: =B18+((($A17-$A18)/($A16-$A18))*(B16-B18)) -> 1.4 | C17: 1.4 | D17: =D18+((($A17-$A18)/($A16-$A18))*(D16-D18)) -> 1.09 | E17: 1.19 | F17: =F18+((($A17-$A18)/($A16-$A18))*(F16-F18)) -> 0.99 | G17: 1.05 | H17: =H18+((($A17-$A18)/($A16-$A18))*(H16-H18)) -> 0.96 | I17: 1.17 | J17: =J18+((($A17-$A18)/($A16-$A18))*(J16-J18)) -> 0.89 | K17: 0.93 | L17: =L18+((($A17-$A18)/($A16-$A18))*(L16-L18)) -> 0.88 | M17: 1.173333333 | N17: =N18+((($A17-$A18)/($A16-$A18))*(N16-N18)) -> 0 | O17: 1.4 | P17: =P18+((($A17-$A18)/($A16-$A18))*(P16-P18)) -> 1 | Q17: 1.12 | R17: =R18+((($A17-$A18)/($A16-$A18))*(R16-R18)) -> 0.88 | S17: 0.96 | T17: =T18+((($A17-$A18)/($A16-$A18))*(T16-T18)) -> 0.84 | U17: 1.08 | V17: =V18+((($A17-$A18)/($A16-$A18))*(V16-V18)) -> 0.76 | W17: 0.84 | X17: =X18+((($A17-$A18)/($A16-$A18))*(X16-X18)) -> 0.74 | Y17: 0.9866666667 | Z17: =Z18+((($A17-$A18)/($A16-$A18))*(Z16-Z18)) -> 0 | AA17: 1.4 | AB17: =AB18+((($A17-$A18)/($A16-$A18))*(AB16-AB18)) -> 0.99 | AC17: 1.18 | AD17: =AD18+((($A17-$A18)/($A16-$A18))*(AD16-AD18)) -> 0.8 | AE17: 0.9 | AF17: =AF18+((($A17-$A18)/($A16-$A18))*(AF16-AF18)) -> 0.75 | AG17: 0.99 | AH17: =AH18+((($A17-$A18)/($A16-$A18))*(AH16-AH18)) -> 0.67 | AI17: 0.99 | AJ17: =AJ18+((($A17-$A18)/($A16-$A18))*(AJ16-AJ18)) -> 0.59 | AK17: 0.7866666667 | AL17: =AL18+((($A17-$A18)/($A16-$A18))*(AL16-AL18)) -> 0
A18: 6 | B18: 0.74 | C18: 0.74 | D18: 0.61 | E18: 0.65 | F18: 0.57 | G18: 0.63 | H18: 0.54 | I18: 0.57 | J18: 0.53 | K18: 0.57 | L18: 0.52 | M18: 0.6933333333 | N18: 0 | O18: 0.74 | P18: 0.58 | Q18: 0.64 | R18: 0.52 | S18: 0.6 | T18: 0.48 | U18: 0.54 | V18: 0.46 | W18: 0.54 | X18: 0.44 | Y18: 0.5866666667 | Z18: 0 | AA18: 0.74 | AB18: 0.57 | AC18: 0.64 | AD18: 0.5 | AE18: 0.6 | AF18: 0.45 | AG18: 0.51 | AH18: 0.43 | AI18: 0.51 | AJ18: 0.41 | AK18: 0.5466666667 | AL18: 0
A19: =IF((AND(A18<$B$40,A20>$B$40)),$B$40,"0,0") -> 0,0 | B19: =B20+((($A19-$A20)/($A18-$A20))*(B18-B20)) -> 1.22 | C19: 1.22 | D19: =D20+((($A19-$A20)/($A18-$A20))*(D18-D20)) -> 0.97 | E19: 1.01 | F19: =F20+((($A19-$A20)/($A18-$A20))*(F18-F20)) -> 0.93 | G19: 1.11 | H19: =H20+((($A19-$A20)/($A18-$A20))*(H18-H20)) -> 0.84 | I19: 0.87 | J19: =J20+((($A19-$A20)/($A18-$A20))*(J18-J20)) -> 0.83 | K19: 0.87 | L19: =L20+((($A19-$A20)/($A18-$A20))*(L18-L20)) -> 0.82 | M19: 1.093333333 | N19: =N20+((($A19-$A20)/($A18-$A20))*(N18-N20)) -> 0 | O19: 1.22 | P19: =P20+((($A19-$A20)/($A18-$A20))*(P18-P20)) -> 0.88 | Q19: 0.94 | R19: =R20+((($A19-$A20)/($A18-$A20))*(R18-R20)) -> 0.82 | S19: 1.02 | T19: =T20+((($A19-$A20)/($A18-$A20))*(T18-T20)) -> 0.72 | U19: 0.78 | V19: =V20+((($A19-$A20)/($A18-$A20))*(V18-V20)) -> 0.7 | W19: 1.02 | X19: =X20+((($A19-$A20)/($A18-$A20))*(X18-X20)) -> 0.62 | Y19: 0.8266666667 | Z19: =Z20+((($A19-$A20)/($A18-$A20))*(Z18-Z20)) -> 0 | AA19: 1.22 | AB19: =AB20+((($A19-$A20)/($A18-$A20))*(AB18-AB20)) -> 0.93 | AC19: 1.06 | AD19: =AD20+((($A19-$A20)/($A18-$A20))*(AD18-AD20)) -> 0.8 | AE19: 1.14 | AF19: =AF20+((($A19-$A20)/($A18-$A20))*(AF18-AF20)) -> 0.63 | AG19: 0.51 | AH19: =AH20+((($A19-$A20)/($A18-$A20))*(AH18-AH20)) -> 0.67 | AI19: 0.75 | AJ19: =AJ20+((($A19-$A20)/($A18-$A20))*(AJ18-AJ20)) -> 0.65 | AK19: 0.8666666667 | AL19: =AL20+((($A19-$A20)/($A18-$A20))*(AL18-AL20)) -> 0
A20: 7 | B20: 0.66 | C20: 0.66 | D20: 0.55 | E20: 0.59 | F20: 0.51 | G20: 0.55 | H20: 0.49 | I20: 0.52 | J20: 0.48 | K20: 0.52 | L20: 0.47 | M20: 0.6266666667 | N20: 0 | O20: 0.66 | P20: 0.53 | Q20: 0.59 | R20: 0.47 | S20: 0.53 | T20: 0.44 | U20: 0.5 | V20: 0.42 | W20: 0.46 | X20: 0.41 | Y20: 0.5466666667 | Z20: 0 | AA20: 0.66 | AB20: 0.51 | AC20: 0.57 | AD20: 0.45 | AE20: 0.51 | AF20: 0.42 | AG20: 0.51 | AH20: 0.39 | AI20: 0.47 | AJ20: 0.37 | AK20: 0.4933333333 | AL20: 0
A21: =IF((AND(A20<$B$40,A22>$B$40)),$B$40,"0,0") -> 0,0 | B21: =B22+((($A21-$A22)/($A20-$A22))*(B20-B22)) -> 1.08 | C21: 1.08 | D21: =D22+((($A21-$A22)/($A20-$A22))*(D20-D22)) -> 0.9 | E21: 1.01 | F21: =F22+((($A21-$A22)/($A20-$A22))*(F20-F22)) -> 0.79 | G21: 0.83 | H21: =H22+((($A21-$A22)/($A20-$A22))*(H20-H22)) -> 0.77 | I21: 0.8 | J21: =J22+((($A21-$A22)/($A20-$A22))*(J20-J22)) -> 0.76 | K21: 0.8 | L21: =L22+((($A21-$A22)/($A20-$A22))*(L20-L22)) -> 0.75 | M21: 1 | N21: =N22+((($A21-$A22)/($A20-$A22))*(N20-N22)) -> 0 | O21: 1.08 | P21: =P22+((($A21-$A22)/($A20-$A22))*(P20-P22)) -> 0.88 | Q21: 1.01 | R21: =R22+((($A21-$A22)/($A20-$A22))*(R20-R22)) -> 0.75 | S21: 0.95 | T21: =T22+((($A21-$A22)/($A20-$A22))*(T20-T22)) -> 0.65 | U21: 0.71 | V21: =V22+((($A21-$A22)/($A20-$A22))*(V20-V22)) -> 0.63 | W21: 0.67 | X21: =X22+((($A21-$A22)/($A20-$A22))*(X20-X22)) -> 0.62 | Y21: 0.8266666667 | Z21: =Z22+((($A21-$A22)/($A20-$A22))*(Z20-Z22)) -> 0 | AA21: 1.08 | AB21: =AB22+((($A21-$A22)/($A20-$A22))*(AB20-AB22)) -> 0.79 | AC21: 0.92 | AD21: =AD22+((($A21-$A22)/($A20-$A22))*(AD20-AD22)) -> 0.66 | AE21: 0.58 | AF21: =AF22+((($A21-$A22)/($A20-$A22))*(AF20-AF22)) -> 0.7 | AG21: 1 | AH21: =AH22+((($A21-$A22)/($A20-$A22))*(AH20-AH22)) -> 0.6 | AI21: 0.96 | AJ21: =AJ22+((($A21-$A22)/($A20-$A22))*(AJ20-AJ22)) -> 0.51 | AK21: 0.68 | AL21: =AL22+((($A21-$A22)/($A20-$A22))*(AL20-AL22)) -> 0
A22: 8 | B22: 0.6 | C22: 0.6 | D22: 0.5 | E22: 0.53 | F22: 0.47 | G22: 0.51 | H22: 0.45 | I22: 0.48 | J22: 0.44 | K22: 0.48 | L22: 0.43 | M22: 0.5733333333 | N22: 0 | O22: 0.6 | P22: 0.48 | Q22: 0.53 | R22: 0.43 | S22: 0.47 | T22: 0.41 | U22: 0.47 | V22: 0.39 | W22: 0.43 | X22: 0.38 | Y22: 0.5066666667 | Z22: 0 | AA22: 0.6 | AB22: 0.47 | AC22: 0.52 | AD22: 0.42 | AE22: 0.5 | AF22: 0.38 | AG22: 0.44 | AH22: 0.36 | AI22: 0.4 | AJ22: 0.35 | AK22: 0.4666666667 | AL22: 0
A23: =IF((AND(A22<$B$40,A24>$B$40)),$B$40,"0,0") -> 0,0 | B23: =B24+((($A23-$A24)/($A22-$A24))*(B22-B24)) -> 1 | C23: 1 | D23: =D24+((($A23-$A24)/($A22-$A24))*(D22-D24)) -> 0.82 | E23: 0.85 | F23: =F24+((($A23-$A24)/($A22-$A24))*(F22-F24)) -> 0.79 | G23: 0.99 | H23: =H24+((($A23-$A24)/($A22-$A24))*(H22-H24)) -> 0.69 | I23: 0.72 | J23: =J24+((($A23-$A24)/($A22-$A24))*(J22-J24)) -> 0.68 | K23: 0.72 | L23: =L24+((($A23-$A24)/($A22-$A24))*(L22-L24)) -> 0.67 | M23: 0.8933333333 | N23: =N24+((($A23-$A24)/($A22-$A24))*(N22-N24)) -> 0 | O23: 1 | P23: =P24+((($A23-$A24)/($A22-$A24))*(P22-P24)) -> 0.8 | Q23: 0.93 | R23: =R24+((($A23-$A24)/($A22-$A24))*(R22-R24)) -> 0.67 | S23: 0.71 | T23: =T24+((($A23-$A24)/($A22-$A24))*(T22-T24)) -> 0.65 | U23: 0.71 | V23: =V24+((($A23-$A24)/($A22-$A24))*(V22-V24)) -> 0.63 | W23: 0.67 | X23: =X24+((($A23-$A24)/($A22-$A24))*(X22-X24)) -> 0.62 | Y23: 0.8266666667 | Z23: =Z24+((($A23-$A24)/($A22-$A24))*(Z22-Z24)) -> 0 | AA23: 1 | AB23: =AB24+((($A23-$A24)/($A22-$A24))*(AB22-AB24)) -> 0.79 | AC23: 0.92 | AD23: =AD24+((($A23-$A24)/($A22-$A24))*(AD22-AD24)) -> 0.66 | AE23: 0.9 | AF23: =AF24+((($A23-$A24)/($A22-$A24))*(AF22-AF24)) -> 0.54 | AG23: 0.6 | AH23: =AH24+((($A23-$A24)/($A22-$A24))*(AH22-AH24)) -> 0.52 | AI23: 0.56 | AJ23: =AJ24+((($A23-$A24)/($A22-$A24))*(AJ22-AJ24)) -> 0.51 | AK23: 0.68 | AL23: =AL24+((($A23-$A24)/($A22-$A24))*(AL22-AL24)) -> 0
A24: 9 | B24: 0.55 | C24: 0.55 | D24: 0.46 | E24: 0.49 | F24: 0.43 | G24: 0.45 | H24: 0.42 | I24: 0.45 | J24: 0.41 | K24: 0.45 | L24: 0.4 | M24: 0.5333333333 | N24: 0 | O24: 0.55 | P24: 0.44 | Q24: 0.48 | R24: 0.4 | S24: 0.44 | T24: 0.38 | U24: 0.44 | V24: 0.36 | W24: 0.4 | X24: 0.35 | Y24: 0.4666666667 | Z24: 0 | AA24: 0.55 | AB24: 0.43 | AC24: 0.47 | AD24: 0.39 | AE24: 0.45 | AF24: 0.36 | AG24: 0.42 | AH24: 0.34 | AI24: 0.38 | AJ24: 0.33 | AK24: 0.44 | AL24: 0
A25: =IF((AND(A24<$B$40,A26>$B$40)),$B$40,"0,0") -> 0,0 | B25: =B26+((($A25-$A26)/($A24-$A26))*(B24-B26)) -> 0.91 | C25: 0.91 | D25: =D26+((($A25-$A26)/($A24-$A26))*(D24-D26)) -> 0.73 | E25: 0.76 | F25: =F26+((($A25-$A26)/($A24-$A26))*(F24-F26)) -> 0.7 | G25: 0.72 | H25: =H26+((($A25-$A26)/($A24-$A26))*(H24-H26)) -> 0.69 | I25: 0.72 | J25: =J26+((($A25-$A26)/($A24-$A26))*(J24-J26)) -> 0.68 | K25: 0.72 | L25: =L26+((($A25-$A26)/($A24-$A26))*(L24-L26)) -> 0.67 | M25: 0.8933333333 | N25: =N26+((($A25-$A26)/($A24-$A26))*(N24-N26)) -> 0 | O25: 0.91 | P25: =P26+((($A25-$A26)/($A24-$A26))*(P24-P26)) -> 0.71 | Q25: 0.75 | R25: =R26+((($A25-$A26)/($A24-$A26))*(R24-R26)) -> 0.67 | S25: 0.71 | T25: =T26+((($A25-$A26)/($A24-$A26))*(T24-T26)) -> 0.65 | U25: 0.98 | V25: =V26+((($A25-$A26)/($A24-$A26))*(V24-V26)) -> 0.54 | W25: 0.58 | X25: =X26+((($A25-$A26)/($A24-$A26))*(X24-X26)) -> 0.53 | Y25: 0.7066666667 | Z25: =Z26+((($A25-$A26)/($A24-$A26))*(Z24-Z26)) -> 0 | AA25: 0.91 | AB25: =AB26+((($A25-$A26)/($A24-$A26))*(AB24-AB26)) -> 0.7 | AC25: 0.74 | AD25: =AD26+((($A25-$A26)/($A24-$A26))*(AD24-AD26)) -> 0.66 | AE25: 0.9 | AF25: =AF26+((($A25-$A26)/($A24-$A26))*(AF24-AF26)) -> 0.54 | AG25: 0.6 | AH25: =AH26+((($A25-$A26)/($A24-$A26))*(AH24-AH26)) -> 0.52 | AI25: 0.56 | AJ25: =AJ26+((($A25-$A26)/($A24-$A26))*(AJ24-AJ26)) -> 0.51 | AK25: 0.68 | AL25: =AL26+((($A25-$A26)/($A24-$A26))*(AL24-AL26)) -> 0
A26: 10 | B26: 0.51 | C26: 0.51 | D26: 0.43 | E26: 0.46 | F26: 0.4 | G26: 0.42 | H26: 0.39 | I26: 0.42 | J26: 0.38 | K26: 0.42 | L26: 0.37 | M26: 0.4933333333 | N26: 0 | O26: 0.51 | P26: 0.41 | Q26: 0.45 | R26: 0.37 | S26: 0.41 | T26: 0.35 | U26: 0.38 | V26: 0.34 | W26: 0.38 | X26: 0.33 | Y26: 0.44 | Z26: 0 | AA26: 0.51 | AB26: 0.4 | AC26: 0.44 | AD26: 0.36 | AE26: 0.4 | AF26: 0.34 | AG26: 0.4 | AH26: 0.32 | AI26: 0.36 | AJ26: 0.31 | AK26: 0.4133333333 | AL26: 0
A27: =IF((AND(A26<$B$40,A28>$B$40)),$B$40,"0,0") -> 0,0 | B27: =B28+((($A27-$A28)/($A26-$A28))*(B26-B28)) -> 0.86 | C27: 0.86 | D27: =D28+((($A27-$A28)/($A26-$A28))*(D26-D28)) -> 0.68 | E27: 0.76 | F27: =F28+((($A27-$A28)/($A26-$A28))*(F26-F28)) -> 0.6 | G27: 0.52 | H27: =H28+((($A27-$A28)/($A26-$A28))*(H26-H28)) -> 0.64 | I27: 0.82 | J27: =J28+((($A27-$A28)/($A26-$A28))*(J26-J28)) -> 0.58 | K27: 0.62 | L27: =L28+((($A27-$A28)/($A26-$A28))*(L26-L28)) -> 0.57 | M27: 0.76 | N27: =N28+((($A27-$A28)/($A26-$A28))*(N26-N28)) -> 0 | O27: 0.86 | P27: =P28+((($A27-$A28)/($A26-$A28))*(P26-P28)) -> 0.66 | Q27: 0.75 | R27: =R28+((($A27-$A28)/($A26-$A28))*(R26-R28)) -> 0.57 | S27: 0.61 | T27: =T28+((($A27-$A28)/($A26-$A28))*(T26-T28)) -> 0.55 | U27: 0.58 | V27: =V28+((($A27-$A28)/($A26-$A28))*(V26-V28)) -> 0.54 | W27: 0.58 | X27: =X28+((($A27-$A28)/($A26-$A28))*(X26-X28)) -> 0.53 | Y27: 0.7066666667 | Z27: =Z28+((($A27-$A28)/($A26-$A28))*(Z26-Z28)) -> 0 | AA27: 0.86 | AB27: =AB28+((($A27-$A28)/($A26-$A28))*(AB26-AB28)) -> 0.6 | AC27: 0.64 | AD27: =AD28+((($A27-$A28)/($A26-$A28))*(AD26-AD28)) -> 0.56 | AE27: 0.6 | AF27: =AF28+((($A27-$A28)/($A26-$A28))*(AF26-AF28)) -> 0.54 | AG27: 0.6 | AH27: =AH28+((($A27-$A28)/($A26-$A28))*(AH26-AH28)) -> 0.52 | AI27: 0.56 | AJ27: =AJ28+((($A27-$A28)/($A26-$A28))*(AJ26-AJ28)) -> 0.51 | AK27: 0.68 | AL27: =AL28+((($A27-$A28)/($A26-$A28))*(AL26-AL28)) -> 0
A28: 12 | B28: 0.44 | C28: 0.44 | D28: 0.38 | E28: 0.4 | F28: 0.36 | G28: 0.4 | H28: 0.34 | I28: 0.34 | J28: 0.34 | K28: 0.38 | L28: 0.33 | M28: 0.44 | N28: 0 | O28: 0.44 | P28: 0.36 | Q28: 0.39 | R28: 0.33 | S28: 0.37 | T28: 0.31 | U28: 0.34 | V28: 0.3 | W28: 0.34 | X28: 0.29 | Y28: 0.3866666667 | Z28: 0 | AA28: 0.44 | AB28: 0.36 | AC28: 0.4 | AD28: 0.32 | AE28: 0.36 | AF28: 0.3 | AG28: 0.36 | AH28: 0.28 | AI28: 0.32 | AJ28: 0.27 | AK28: 0.36 | AL28: 0
A29: =IF((AND(A28<$B$40,A30>$B$40)),$B$40,"0,0") -> 0,0 | B29: =B30+((($A29-$A30)/($A28-$A30))*(B28-B30)) -> 0.74 | C29: 0.74 | D29: =D30+((($A29-$A30)/($A28-$A30))*(D28-D30)) -> 0.62 | E29: 0.64 | F29: =F30+((($A29-$A30)/($A28-$A30))*(F28-F30)) -> 0.6 | G29: 0.76 | H29: =H30+((($A29-$A30)/($A28-$A30))*(H28-H30)) -> 0.52 | I29: 0.34 | J29: =J30+((($A29-$A30)/($A28-$A30))*(J28-J30)) -> 0.58 | K29: 0.86 | L29: =L30+((($A29-$A30)/($A28-$A30))*(L28-L30)) -> 0.51 | M29: 0.68 | N29: =N30+((($A29-$A30)/($A28-$A30))*(N28-N30)) -> 0 | O29: 0.74 | P29: =P30+((($A29-$A30)/($A28-$A30))*(P28-P30)) -> 0.6 | Q29: 0.69 | R29: =R30+((($A29-$A30)/($A28-$A30))*(R28-R30)) -> 0.51 | S29: 0.55 | T29: =T30+((($A29-$A30)/($A28-$A30))*(T28-T30)) -> 0.49 | U29: 0.52 | V29: =V30+((($A29-$A30)/($A28-$A30))*(V28-V30)) -> 0.48 | W29: 0.76 | X29: =X30+((($A29-$A30)/($A28-$A30))*(X28-X30)) -> 0.41 | Y29: 0.5466666667 | Z29: =Z30+((($A29-$A30)/($A28-$A30))*(Z28-Z30)) -> 0 | AA29: 0.74 | AB29: =AB30+((($A29-$A30)/($A28-$A30))*(AB28-AB30)) -> 0.6 | AC29: 0.7 | AD29: =AD30+((($A29-$A30)/($A28-$A30))*(AD28-AD30)) -> 0.5 | AE29: 0.54 | AF29: =AF30+((($A29-$A30)/($A28-$A30))*(AF28-AF30)) -> 0.48 | AG29: 0.72 | AH29: =AH30+((($A29-$A30)/($A28-$A30))*(AH28-AH30)) -> 0.4 | AI29: 0.44 | AJ29: =AJ30+((($A29-$A30)/($A28-$A30))*(AJ28-AJ30)) -> 0.39 | AK29: 0.52 | AL29: =AL30+((($A29-$A30)/($A28-$A30))*(AL28-AL30)) -> 0
A30: 14 | B30: 0.39 | C30: 0.39 | D30: 0.34 | E30: 0.36 | F30: 0.32 | G30: 0.34 | H30: 0.31 | I30: 0.34 | J30: 0.3 | K30: 0.3 | L30: 0.3 | M30: 0.4 | N30: 0 | O30: 0.39 | P30: 0.32 | Q30: 0.34 | R30: 0.3 | S30: 0.34 | T30: 0.28 | U30: 0.31 | V30: 0.27 | W30: 0.27 | X30: 0.27 | Y30: 0.36 | Z30: 0 | AA30: 0.39 | AB30: 0.32 | AC30: 0.35 | AD30: 0.29 | AE30: 0.33 | AF30: 0.27 | AG30: 0.3 | AH30: 0.26 | AI30: 0.3 | AJ30: 0.25 | AK30: 0.3333333333 | AL30: 0
A31: =IF((AND(A30<$B$40,A32>$B$40)),$B$40,"0,0") -> 0,0 | B31: =B32+((($A31-$A32)/($A30-$A32))*(B30-B32)) -> 0.67 | C31: 0.67 | D31: =D32+((($A31-$A32)/($A30-$A32))*(D30-D32)) -> 0.55 | E31: 0.57 | F31: =F32+((($A31-$A32)/($A30-$A32))*(F30-F32)) -> 0.53 | G31: 0.55 | H31: =H32+((($A31-$A32)/($A30-$A32))*(H30-H32)) -> 0.52 | I31: 0.55 | J31: =J32+((($A31-$A32)/($A30-$A32))*(J30-J32)) -> 0.51 | K31: 0.51 | L31: =L32+((($A31-$A32)/($A30-$A32))*(L30-L32)) -> 0.51 | M31: 0.68 | N31: =N32+((($A31-$A32)/($A30-$A32))*(N30-N32)) -> 0 | O31: 0.67 | P31: =P32+((($A31-$A32)/($A30-$A32))*(P30-P32)) -> 0.53 | Q31: 0.55 | R31: =R32+((($A31-$A32)/($A30-$A32))*(R30-R32)) -> 0.51 | S31: 0.69 | T31: =T32+((($A31-$A32)/($A30-$A32))*(T30-T32)) -> 0.42 | U31: 0.45 | V31: =V32+((($A31-$A32)/($A30-$A32))*(V30-V32)) -> 0.41 | W31: 0.13 | X31: =X32+((($A31-$A32)/($A30-$A32))*(X30-X32)) -> 0.48 | Y31: 0.64 | Z31: =Z32+((($A31-$A32)/($A30-$A32))*(Z30-Z32)) -> 0 | AA31: 0.67 | AB31: =AB32+((($A31-$A32)/($A30-$A32))*(AB30-AB32)) -> 0.53 | AC31: 0.56 | AD31: =AD32+((($A31-$A32)/($A30-$A32))*(AD30-AD32)) -> 0.5 | AE31: 0.68 | AF31: =AF32+((($A31-$A32)/($A30-$A32))*(AF30-AF32)) -> 0.41 | AG31: 0.44 | AH31: =AH32+((($A31-$A32)/($A30-$A32))*(AH30-AH32)) -> 0.4 | AI31: 0.44 | AJ31: =AJ32+((($A31-$A32)/($A30-$A32))*(AJ30-AJ32)) -> 0.39 | AK31: 0.52 | AL31: =AL32+((($A31-$A32)/($A30-$A32))*(AL30-AL32)) -> 0
A32: 16 | B32: 0.35 | C32: 0.35 | D32: 0.31 | E32: 0.33 | F32: 0.29 | G32: 0.31 | H32: 0.28 | I32: 0.31 | J32: 0.27 | K32: 0.27 | L32: 0.27 | M32: 0.36 | N32: 0 | O32: 0.35 | P32: 0.29 | Q32: 0.31 | R32: 0.27 | S32: 0.29 | T32: 0.26 | U32: 0.29 | V32: 0.25 | W32: 0.29 | X32: 0.24 | Y32: 0.32 | Z32: 0 | AA32: 0.35 | AB32: 0.29 | AC32: 0.32 | AD32: 0.26 | AE32: 0.28 | AF32: 0.25 | AG32: 0.28 | AH32: 0.24 | AI32: 0.28 | AJ32: 0.23 | AK32: 0.3066666667 | AL32: 0
A33: =IF((AND(A32<$B$40,A34>$B$40)),$B$40,"0,0") -> 0,0 | B33: =B34+((($A33-$A34)/($A32-$A34))*(B32-B34)) -> 0.59 | C33: 0.59 | D33: =D34+((($A33-$A34)/($A32-$A34))*(D32-D34)) -> 0.55 | E33: 0.65 | F33: =F34+((($A33-$A34)/($A32-$A34))*(F32-F34)) -> 0.45 | G33: 0.47 | H33: =H34+((($A33-$A34)/($A32-$A34))*(H32-H34)) -> 0.44 | I33: 0.47 | J33: =J34+((($A33-$A34)/($A32-$A34))*(J32-J34)) -> 0.43 | K33: 0.43 | L33: =L34+((($A33-$A34)/($A32-$A34))*(L32-L34)) -> 0.43 | M33: 0.5733333333 | N33: =N34+((($A33-$A34)/($A32-$A34))*(N32-N34)) -> 0 | O33: 0.59 | P33: =P34+((($A33-$A34)/($A32-$A34))*(P32-P34)) -> 0.45 | Q33: 0.47 | R33: =R34+((($A33-$A34)/($A32-$A34))*(R32-R34)) -> 0.43 | S33: 0.45 | T33: =T34+((($A33-$A34)/($A32-$A34))*(T32-T34)) -> 0.42 | U33: 0.45 | V33: =V34+((($A33-$A34)/($A32-$A34))*(V32-V34)) -> 0.41 | W33: 0.45 | X33: =X34+((($A33-$A34)/($A32-$A34))*(X32-X34)) -> 0.4 | Y33: 0.5333333333 | Z33: =Z34+((($A33-$A34)/($A32-$A34))*(Z32-Z34)) -> 0 | AA33: 0.59 | AB33: =AB34+((($A33-$A34)/($A32-$A34))*(AB32-AB34)) -> 0.45 | AC33: 0.48 | AD33: =AD34+((($A33-$A34)/($A32-$A34))*(AD32-AD34)) -> 0.42 | AE33: 0.44 | AF33: =AF34+((($A33-$A34)/($A32-$A34))*(AF32-AF34)) -> 0.41 | AG33: 0.44 | AH33: =AH34+((($A33-$A34)/($A32-$A34))*(AH32-AH34)) -> 0.4 | AI33: 0.44 | AJ33: =AJ34+((($A33-$A34)/($A32-$A34))*(AJ32-AJ34)) -> 0.39 | AK33: 0.52 | AL33: =AL34+((($A33-$A34)/($A32-$A34))*(AL32-AL34)) -> 0
A34: 18 | B34: 0.32 | C34: 0.32 | D34: 0.28 | E34: 0.29 | F34: 0.27 | G34: 0.29 | H34: 0.26 | I34: 0.29 | J34: 0.25 | K34: 0.25 | L34: 0.25 | M34: 0.3333333333 | N34: 0 | O34: 0.32 | P34: 0.27 | Q34: 0.29 | R34: 0.25 | S34: 0.27 | T34: 0.24 | U34: 0.27 | V34: 0.23 | W34: 0.27 | X34: 0.22 | Y34: 0.2933333333 | Z34: 0 | AA34: 0.32 | AB34: 0.27 | AC34: 0.3 | AD34: 0.24 | AE34: 0.26 | AF34: 0.23 | AG34: 0.26 | AH34: 0.22 | AI34: 0.26 | AJ34: 0.21 | AK34: 0.28 | AL34: 0
A35: =IF((AND(A34<$B$40,A36>$B$40)),$B$40,"0,0") -> 0,0 | B35: =B36+((($A35-$A36)/($A34-$A36))*(B34-B36)) -> 0.5 | C35: 0.5 | D35: =D36+((($A35-$A36)/($A34-$A36))*(D34-D36)) -> 0.46 | E35: 0.47 | F35: =F36+((($A35-$A36)/($A34-$A36))*(F34-F36)) -> 0.45 | G35: 0.47 | H35: =H36+((($A35-$A36)/($A34-$A36))*(H34-H36)) -> 0.44 | I35: 0.47 | J35: =J36+((($A35-$A36)/($A34-$A36))*(J34-J36)) -> 0.43 | K35: 0.43 | L35: =L36+((($A35-$A36)/($A34-$A36))*(L34-L36)) -> 0.43 | M35: 0.5733333333 | N35: =N36+((($A35-$A36)/($A34-$A36))*(N34-N36)) -> 0 | O35: 0.5 | P35: =P36+((($A35-$A36)/($A34-$A36))*(P34-P36)) -> 0.45 | Q35: 0.47 | R35: =R36+((($A35-$A36)/($A34-$A36))*(R34-R36)) -> 0.43 | S35: 0.45 | T35: =T36+((($A35-$A36)/($A34-$A36))*(T34-T36)) -> 0.42 | U35: 0.45 | V35: =V36+((($A35-$A36)/($A34-$A36))*(V34-V36)) -> 0.41 | W35: 0.81 | X35: =X36+((($A35-$A36)/($A34-$A36))*(X34-X36)) -> 0.31 | Y35: 0.4133333333 | Z35: =Z36+((($A35-$A36)/($A34-$A36))*(Z34-Z36)) -> 0 | AA35: 0.5 | AB35: =AB36+((($A35-$A36)/($A34-$A36))*(AB34-AB36)) -> 0.45 | AC35: 0.48 | AD35: =AD36+((($A35-$A36)/($A34-$A36))*(AD34-AD36)) -> 0.42 | AE35: 0.44 | AF35: =AF36+((($A35-$A36)/($A34-$A36))*(AF34-AF36)) -> 0.41 | AG35: 0.44 | AH35: =AH36+((($A35-$A36)/($A34-$A36))*(AH34-AH36)) -> 0.4 | AI35: 0.8 | AJ35: =AJ36+((($A35-$A36)/($A34-$A36))*(AJ34-AJ36)) -> 0.3 | AK35: 0.4 | AL35: =AL36+((($A35-$A36)/($A34-$A36))*(AL34-AL36)) -> 0
A36: 20 | B36: 0.3 | C36: 0.3 | D36: 0.26 | E36: 0.27 | F36: 0.25 | G36: 0.27 | H36: 0.24 | I36: 0.27 | J36: 0.23 | K36: 0.23 | L36: 0.23 | M36: 0.3066666667 | N36: 0 | O36: 0.3 | P36: 0.25 | Q36: 0.27 | R36: 0.23 | S36: 0.25 | T36: 0.22 | U36: 0.25 | V36: 0.21 | W36: 0.21 | X36: 0.21 | Y36: 0.28 | Z36: 0 | AA36: 0.3 | AB36: 0.25 | AC36: 0.28 | AD36: 0.22 | AE36: 0.24 | AF36: 0.21 | AG36: 0.24 | AH36: 0.2 | AI36: 0.2 | AJ36: 0.2 | AK36: 0.2666666667 | AL36: 0
A37: =IF((AND(A36<$B$40,A38>$B$40)),$B$40,"0,0") -> 0,0 | B37: =B38+((($A37-$A38)/($A36-$A38))*(B36-B38)) -> 0.3 | C37: 0.3 | D37: =D38+((($A37-$A38)/($A36-$A38))*(D36-D38)) -> 0.26 | E37: 0.27 | F37: =F38+((($A37-$A38)/($A36-$A38))*(F36-F38)) -> 0.25 | G37: 0.27 | H37: =H38+((($A37-$A38)/($A36-$A38))*(H36-H38)) -> 0.24 | I37: 0.27 | J37: =J38+((($A37-$A38)/($A36-$A38))*(J36-J38)) -> 0.23 | K37: 0.23 | L37: =L38+((($A37-$A38)/($A36-$A38))*(L36-L38)) -> 0.23 | M37: 0.3066666667 | N37: =N38+((($A37-$A38)/($A36-$A38))*(N36-N38)) -> 0 | O37: 0.3 | P37: =P38+((($A37-$A38)/($A36-$A38))*(P36-P38)) -> 0.25 | Q37: 0.27 | R37: =R38+((($A37-$A38)/($A36-$A38))*(R36-R38)) -> 0.23 | S37: 0.25 | T37: =T38+((($A37-$A38)/($A36-$A38))*(T36-T38)) -> 0.22 | U37: 0.25 | V37: =V38+((($A37-$A38)/($A36-$A38))*(V36-V38)) -> 0.21 | W37: 0.21 | X37: =X38+((($A37-$A38)/($A36-$A38))*(X36-X38)) -> 0.21 | Y37: 0.28 | Z37: =Z38+((($A37-$A38)/($A36-$A38))*(Z36-Z38)) -> 0 | AA37: 0.3 | AB37: =AB38+((($A37-$A38)/($A36-$A38))*(AB36-AB38)) -> 0.25 | AC37: 0.28 | AD37: =AD38+((($A37-$A38)/($A36-$A38))*(AD36-AD38)) -> 0.22 | AE37: 0.24 | AF37: =AF38+((($A37-$A38)/($A36-$A38))*(AF36-AF38)) -> 0.21 | AG37: 0.24 | AH37: =AH38+((($A37-$A38)/($A36-$A38))*(AH36-AH38)) -> 0.2 | AI37: 0.2 | AJ37: =AJ38+((($A37-$A38)/($A36-$A38))*(AJ36-AJ38)) -> 0.2 | AK37: 0.2666666667 | AL37: =AL38+((($A37-$A38)/($A36-$A38))*(AL36-AL38)) -> 0
A38: 1000 | B38: =B36 -> 0.3 | C38: 0.3 | D38: =D36 -> 0.26 | E38: 0.27 | F38: 0.25 | G38: 0.27 | H38: 0.24 | I38: 0.27 | J38: 0.23 | K38: 0.23 | L38: 0.23 | M38: 0.3066666667 | N38: 0 | O38: 0.3 | P38: 0.25 | Q38: 0.27 | R38: 0.23 | S38: 0.25 | T38: 0.22 | U38: 0.25 | V38: 0.21 | W38: 0.21 | X38: 0.21 | Y38: 0.28 | Z38: 0 | AA38: 0.3 | AB38: 0.25 | AC38: 0.28 | AD38: 0.22 | AE38: 0.24 | AF38: 0.21 | AG38: 0.24 | AH38: 0.2 | AI38: 0.2 | AJ38: 0.2 | AK38: 0.2666666667 | AL38: 0
A40: B' | B40: =IF(Cerramiento!G3="ESTIMADOS",Auxiliar!AF31,'Datos necesarios'!H24) ->  | D40: Ra | E40: ='Recop. Datos'!G8 -> 0 | F40: 1 | G40: Us (0,0) | H40: =IFERROR((INDEX(B6:B38,MATCH(B40,A6:A38,0))),0) -> 0
F41: 2 | G41: Us (0,5) | H41: =IFERROR((INDEX(C6:N38,MATCH(B40,A6:A38,0),MATCH(E40,C5:N5,0))),0) -> 0
F42: 3 | G42: Us (1,0) | H42: =IFERROR((INDEX(O6:Z38,MATCH(B40,A6:A38,0),MATCH(E40,O5:Z5,0))),0) -> 0
F43: 4 | G43: Us (1,5) | H43: =IFERROR((INDEX(AA6:AL38,MATCH(B40,A6:A38,0),MATCH(E40,AA5:AL5,0))),0) -> 0

Sheet Tabla4 (hidden)
A1: Tabla 4. TRANSMITANCIA TÉRMICA Us [W/m²K]
D3: 0,5 m < z ≤ 1,0 m | M3: 1,0 m < z ≤ 2,0 m | V3: 2,0 m < z ≤ 3,0 m | AE3: z > 3,0 m
D4: Rf [m²K/ W] | M4: Rf [m²K/ W] | V4: Rf [m²K/ W] | AE4: Rf [m²K/ W]
A5: B' | B5: 0 | C5: =IF((AND(B5<$E$40,D5>$E$40)),$E$40,"0,00") -> 0,00 | D5: 0.5 | E5: =IF((AND(D5<$E$40,F5>$E$40)),$E$40,"0,00") -> 0,00 | F5: 1 | G5: =IF((AND(F5<$E$40,H5>$E$40)),$E$40,"0,00") -> 0,00 | H5: 1.5 | I5: =IF((AND(H5<$E$40,J5>$E$40)),$E$40,"0,00") -> 0,00 | J5: 10 | K5: 0 | L5: =IF((AND(K5<$E$40,M5>$E$40)),$E$40,"0,00") -> 0,00 | M5: 0.5 | N5: =IF((AND(M5<$E$40,O5>$E$40)),$E$40,"0,00") -> 0,00 | O5: 1 | P5: =IF((AND(O5<$E$40,Q5>$E$40)),$E$40,"0,00") -> 0,00 | Q5: 1.5 | R5: =IF((AND(Q5<$E$40,S5>$E$40)),$E$40,"0,00") -> 0,00 | S5: 10 | T5: 0 | U5: =IF((AND(T5<$E$40,V5>$E$40)),$E$40,"0,00") -> 0,00 | V5: 0.5 | W5: =IF((AND(V5<$E$40,X5>$E$40)),$E$40,"0,00") -> 0,00 | X5: 1 | Y5: =IF((AND(X5<$E$40,Z5>$E$40)),$E$40,"0,00") -> 0,00 | Z5: 1.5 | AA5: =IF((AND(Z5<$E$40,AB5>$E$40)),$E$40,"0,00") -> 0,00 | AB5: 10 | AC5: 0 | AD5: =IF((AND(AC5<$E$40,AE5>$E$40)),$E$40,"0,00") -> 0,00 | AE5: 0.5 | AF5: =IF((AND(AE5<$E$40,AG5>$E$40)),$E$40,"0,00") -> 0,00 | AG5: 1 | AH5: =IF((AND(AG5<$E$40,AI5>$E$40)),$E$40,"0,00") -> 0,00 | AI5: 1.5 | AJ5: =IF((AND(AI5<$E$40,AK5>$E$40)),$E$40,"0,00") -> 0,00 | AK5: 10
A6: 0 | B6: =B10+((($A$6-$A$10)/($A$8-$A$10))*(B8-B10)) -> 1.93 | C6: =B6+(((C$5-B$5)/(D$5-B$5))*(D6-B6)) -> 1.93 | D6: =D10+((($A$6-$A$10)/($A$8-$A$10))*(D8-D10)) -> 1.32 | E6: 1.63 | F6: =F10+((($A$6-$A$10)/($A$8-$A$10))*(F8-F10)) -> 1.01 | G6: 1.41 | H6: =H10+((($A$6-$A$10)/($A$8-$A$10))*(H8-H10)) -> 0.81 | I6: 0.9529411765 | J6: =J10+((($A$6-$A$10)/($A$8-$A$10))*(J8-J10)) -> 0 | K6: =K10+((($A$6-$A$10)/($A$8-$A$10))*(K8-K10)) -> 1.41 | L6: =K6+(((L$5-K$5)/(M$5-K$5))*(M6-K6)) -> 1.41 | M6: =M10+((($A$6-$A$10)/($A$8-$A$10))*(M8-M10)) -> 1.06 | N6: =M6+(((N$5-M$5)/(O$5-M$5))*(O6-M6)) -> 1.27 | O6: =O10+((($A$6-$A$10)/($A$8-$A$10))*(O8-O10)) -> 0.85 | P6: =O6+(((P$5-O$5)/(Q$5-O$5))*(Q6-O6)) -> 1.13 | Q6: =Q10+((($A$6-$A$10)/($A$8-$A$10))*(Q8-Q10)) -> 0.71 | R6: =Q6+(((R$5-Q$5)/(S$5-Q$5))*(S6-Q6)) -> 0.8352941176 | S6: =S10+((($A$6-$A$10)/($A$8-$A$10))*(S8-S10)) -> 0 | T6: =T10+((($A$6-$A$10)/($A$8-$A$10))*(T8-T10)) -> 0.93 | U6: =T6+(((U$5-T$5)/(V$5-T$5))*(V6-T6)) -> 0.93 | V6: =V10+((($A$6-$A$10)/($A$8-$A$10))*(V8-V10)) -> 0.76 | W6: =V6+(((W$5-V$5)/(X$5-V$5))*(X6-V6)) -> 0.87 | X6: =X10+((($A$6-$A$10)/($A$8-$A$10))*(X8-X10)) -> 0.65 | Y6: =X6+(((Y$5-X$5)/(Z$5-X$5))*(Z6-X6)) -> 0.83 | Z6: =Z10+((($A$6-$A$10)/($A$8-$A$10))*(Z8-Z10)) -> 0.56 | AA6: =Z6+(((AA$5-Z$5)/(AB$5-Z$5))*(AB6-Z6)) -> 0.6588235294 | AB6: =AB10+((($A$6-$A$10)/($A$8-$A$10))*(AB8-AB10)) -> 0 | AC6: =AC10+((($A$6-$A$10)/($A$8-$A$10))*(AC8-AC10)) -> 0.68 | AD6: =AC6+(((AD$5-AC$5)/(AE$5-AC$5))*(AE6-AC6)) -> 0.68 | AE6: =AE10+((($A$6-$A$10)/($A$8-$A$10))*(AE8-AE10)) -> 0.58 | AF6: =AE6+(((AF$5-AE$5)/(AG$5-AE$5))*(AG6-AE6)) -> 0.64 | AG6: =AG10+((($A$6-$A$10)/($A$8-$A$10))*(AG8-AG10)) -> 0.52 | AH6: =AG6+(((AH$5-AG$5)/(AI$5-AG$5))*(AI6-AG6)) -> 0.64 | AI6: =AI10+((($A$6-$A$10)/($A$8-$A$10))*(AI8-AI10)) -> 0.46 | AJ6: =AI6+(((AJ$5-AI$5)/(AK$5-AI$5))*(AK6-AI6)) -> 0.5411764706 | AK6: =AK10+((($A$6-$A$10)/($A$8-$A$10))*(AK8-AK10)) -> 0
A7: =IF((AND(A6<$B$40,A8>$B$40)),$B$40,"0,0") -> 0,0 | B7: =B8+((($A7-$A8)/($A6-$A8))*(B6-B8)) -> 1.93 | C7: 1.93 | D7: =D8+((($A7-$A8)/($A6-$A8))*(D6-D8)) -> 1.32 | E7: 1.63 | F7: =F8+((($A7-$A8)/($A6-$A8))*(F6-F8)) -> 1.01 | G7: 1.41 | H7: =H8+((($A7-$A8)/($A6-$A8))*(H6-H8)) -> 0.81 | I7: 0.9529411765 | J7: =J8+((($A7-$A8)/($A6-$A8))*(J6-J8)) -> 0 | K7: =K8+((($A7-$A8)/($A6-$A8))*(K6-K8)) -> 1.41 | L7: 1.41 | M7: =M8+((($A7-$A8)/($A6-$A8))*(M6-M8)) -> 1.06 | N7: 1.27 | O7: =O8+((($A7-$A8)/($A6-$A8))*(O6-O8)) -> 0.85 | P7: 1.13 | Q7: =Q8+((($A7-$A8)/($A6-$A8))*(Q6-Q8)) -> 0.71 | R7: 0.8352941176 | S7: =S8+((($A7-$A8)/($A6-$A8))*(S6-S8)) -> 0 | T7: =T8+((($A7-$A8)/($A6-$A8))*(T6-T8)) -> 0.93 | U7: 0.93 | V7: =V8+((($A7-$A8)/($A6-$A8))*(V6-V8)) -> 0.76 | W7: 0.87 | X7: =X8+((($A7-$A8)/($A6-$A8))*(X6-X8)) -> 0.65 | Y7: 0.83 | Z7: =Z8+((($A7-$A8)/($A6-$A8))*(Z6-Z8)) -> 0.56 | AA7: 0.6588235294 | AB7: =AB8+((($A7-$A8)/($A6-$A8))*(AB6-AB8)) -> 0 | AC7: =AC8+((($A7-$A8)/($A6-$A8))*(AC6-AC8)) -> 0.68 | AD7: 0.68 | AE7: =AE8+((($A7-$A8)/($A6-$A8))*(AE6-AE8)) -> 0.58 | AF7: 0.64 | AG7: =AG8+((($A7-$A8)/($A6-$A8))*(AG6-AG8)) -> 0.52 | AH7: 0.64 | AI7: =AI8+((($A7-$A8)/($A6-$A8))*(AI6-AI8)) -> 0.46 | AJ7: 0.5411764706 | AK7: =AK8+((($A7-$A8)/($A6-$A8))*(AK6-AK8)) -> 0
A8: 1 | B8: 1.51 | C8: 1.51 | D8: 1.07 | E8: 1.3 | F8: 0.84 | G8: 1.14 | H8: 0.69 | I8: 0.8117647059 | J8: 0 | K8: 1.14 | L8: 1.14 | M8: 0.88 | N8: 1.04 | O8: 0.72 | P8: 0.94 | Q8: 0.61 | R8: 0.7176470588 | S8: 0 | T8: 0.78 | U8: 0.78 | V8: 0.65 | W8: 0.74 | X8: 0.56 | Y8: 0.7 | Z8: 0.49 | AA8: 0.5764705882 | AB8: 0 | AC8: 0.59 | AD8: 0.59 | AE8: 0.51 | AF8: 0.56 | AG8: 0.46 | AH8: 0.56 | AI8: 0.41 | AJ8: 0.4823529412 | AK8: 0
A9: =IF((AND(A8<$B$40,A10>$B$40)),$B$40,"0,0") -> 0,0 | B9: =B10+((($A9-$A10)/($A8-$A10))*(B8-B10)) -> 1.93 | C9: 1.93 | D9: =D10+((($A9-$A10)/($A8-$A10))*(D8-D10)) -> 1.32 | E9: 1.63 | F9: =F10+((($A9-$A10)/($A8-$A10))*(F8-F10)) -> 1.01 | G9: 1.41 | H9: =H10+((($A9-$A10)/($A8-$A10))*(H8-H10)) -> 0.81 | I9: 0.9529411765 | J9: =J10+((($A9-$A10)/($A8-$A10))*(J8-J10)) -> 0 | K9: =K10+((($A9-$A10)/($A8-$A10))*(K8-K10)) -> 1.41 | L9: 1.41 | M9: =M10+((($A9-$A10)/($A8-$A10))*(M8-M10)) -> 1.06 | N9: 1.27 | O9: =O10+((($A9-$A10)/($A8-$A10))*(O8-O10)) -> 0.85 | P9: 1.13 | Q9: =Q10+((($A9-$A10)/($A8-$A10))*(Q8-Q10)) -> 0.71 | R9: 0.8352941176 | S9: =S10+((($A9-$A10)/($A8-$A10))*(S8-S10)) -> 0 | T9: =T10+((($A9-$A10)/($A8-$A10))*(T8-T10)) -> 0.93 | U9: 0.93 | V9: =V10+((($A9-$A10)/($A8-$A10))*(V8-V10)) -> 0.76 | W9: 0.87 | X9: =X10+((($A9-$A10)/($A8-$A10))*(X8-X10)) -> 0.65 | Y9: 0.83 | Z9: =Z10+((($A9-$A10)/($A8-$A10))*(Z8-Z10)) -> 0.56 | AA9: 0.6588235294 | AB9: =AB10+((($A9-$A10)/($A8-$A10))*(AB8-AB10)) -> 0 | AC9: =AC10+((($A9-$A10)/($A8-$A10))*(AC8-AC10)) -> 0.68 | AD9: 0.68 | AE9: =AE10+((($A9-$A10)/($A8-$A10))*(AE8-AE10)) -> 0.58 | AF9: 0.64 | AG9: =AG10+((($A9-$A10)/($A8-$A10))*(AG8-AG10)) -> 0.52 | AH9: 0.64 | AI9: =AI10+((($A9-$A10)/($A8-$A10))*(AI8-AI10)) -> 0.46 | AJ9: 0.5411764706 | AK9: =AK10+((($A9-$A10)/($A8-$A10))*(AK8-AK10)) -> 0
A10: 2 | B10: 1.09 | C10: 1.09 | D10: 0.82 | E10: 0.97 | F10: 0.67 | G10: 0.87 | H10: 0.57 | I10: 0.6705882353 | J10: 0 | K10: 0.87 | L10: 0.87 | M10: 0.7 | N10: 0.81 | O10: 0.59 | P10: 0.75 | Q10: 0.51 | R10: 0.6 | S10: 0 | T10: 0.63 | U10: 0.63 | V10: 0.54 | W10: 0.61 | X10: 0.47 | Y10: 0.57 | Z10: 0.42 | AA10: 0.4941176471 | AB10: 0 | AC10: 0.5 | AD10: 0.5 | AE10: 0.44 | AF10: 0.48 | AG10: 0.4 | AH10: 0.48 | AI10: 0.36 | AJ10: 0.4235294118 | AK10: 0
A11: =IF((AND(A10<$B$40,A12>$B$40)),$B$40,"0,0") -> 0,0 | B11: =B12+((($A11-$A12)/($A10-$A12))*(B10-B12)) -> 1.53 | C11: 1.53 | D11: =D12+((($A11-$A12)/($A10-$A12))*(D10-D12)) -> 1.1 | E11: 1.33 | F11: =F12+((($A11-$A12)/($A10-$A12))*(F10-F12)) -> 0.87 | G11: 1.15 | H11: =H12+((($A11-$A12)/($A10-$A12))*(H10-H12)) -> 0.73 | I11: 0.8588235294 | J11: =J12+((($A11-$A12)/($A10-$A12))*(J10-J12)) -> 0 | K11: =K12+((($A11-$A12)/($A10-$A12))*(K10-K12)) -> 1.19 | L11: 1.19 | M11: =M12+((($A11-$A12)/($A10-$A12))*(M10-M12)) -> 0.92 | N11: 1.07 | O11: =O12+((($A11-$A12)/($A10-$A12))*(O10-O12)) -> 0.77 | P11: 1.01 | Q11: =Q12+((($A11-$A12)/($A10-$A12))*(Q10-Q12)) -> 0.65 | R11: 0.7647058824 | S11: =S12+((($A11-$A12)/($A10-$A12))*(S10-S12)) -> 0 | T11: =T12+((($A11-$A12)/($A10-$A12))*(T10-T12)) -> 0.83 | U11: 0.83 | V11: =V12+((($A11-$A12)/($A10-$A12))*(V10-V12)) -> 0.68 | W11: 0.77 | X11: =X12+((($A11-$A12)/($A10-$A12))*(X10-X12)) -> 0.59 | Y11: 0.73 | Z11: =Z12+((($A11-$A12)/($A10-$A12))*(Z10-Z12)) -> 0.52 | AA11: 0.6117647059 | AB11: =AB12+((($A11-$A12)/($A10-$A12))*(AB10-AB12)) -> 0 | AC11: =AC12+((($A11-$A12)/($A10-$A12))*(AC10-AC12)) -> 0.64 | AD11: 0.64 | AE11: =AE12+((($A11-$A12)/($A10-$A12))*(AE10-AE12)) -> 0.54 | AF11: 0.58 | AG11: =AG12+((($A11-$A12)/($A10-$A12))*(AG10-AG12)) -> 0.5 | AH11: 0.62 | AI11: =AI12+((($A11-$A12)/($A10-$A12))*(AI10-AI12)) -> 0.44 | AJ11: 0.5176470588 | AK11: =AK12+((($A11-$A12)/($A10-$A12))*(AK10-AK12)) -> 0
A12: 3 | B12: 0.87 | C12: 0.87 | D12: 0.68 | E12: 0.79 | F12: 0.57 | G12: 0.73 | H12: 0.49 | I12: 0.5764705882 | J12: 0 | K12: 0.71 | L12: 0.71 | M12: 0.59 | N12: 0.68 | O12: 0.5 | P12: 0.62 | Q12: 0.44 | R12: 0.5176470588 | S12: 0 | T12: 0.53 | U12: 0.53 | V12: 0.47 | W12: 0.53 | X12: 0.41 | Y12: 0.49 | Z12: 0.37 | AA12: 0.4352941176 | AB12: 0 | AC12: 0.43 | AD12: 0.43 | AE12: 0.39 | AF12: 0.43 | AG12: 0.35 | AH12: 0.41 | AI12: 0.32 | AJ12: 0.3764705882 | AK12: 0
A13: =IF((AND(A12<$B$40,A14>$B$40)),$B$40,"0,0") -> 0,0 | B13: =B14+((($A13-$A14)/($A12-$A14))*(B12-B14)) -> 1.26 | C13: 1.26 | D13: =D14+((($A13-$A14)/($A12-$A14))*(D12-D14)) -> 0.95 | E13: 1.09 | F13: =F14+((($A13-$A14)/($A12-$A14))*(F12-F14)) -> 0.81 | G13: 1.09 | H13: =H14+((($A13-$A14)/($A12-$A14))*(H12-H14)) -> 0.67 | I13: 0.7882352941 | J13: =J14+((($A13-$A14)/($A12-$A14))*(J12-J14)) -> 0 | K13: =K14+((($A13-$A14)/($A12-$A14))*(K12-K14)) -> 1.01 | L13: 1.01 | M13: =M14+((($A13-$A14)/($A12-$A14))*(M12-M14)) -> 0.83 | N13: 0.98 | O13: =O14+((($A13-$A14)/($A12-$A14))*(O12-O14)) -> 0.68 | P13: 0.86 | Q13: =Q14+((($A13-$A14)/($A12-$A14))*(Q12-Q14)) -> 0.59 | R13: 0.6941176471 | S13: =S14+((($A13-$A14)/($A12-$A14))*(S12-S14)) -> 0 | T13: =T14+((($A13-$A14)/($A12-$A14))*(T12-T14)) -> 0.71 | U13: 0.71 | V13: =V14+((($A13-$A14)/($A12-$A14))*(V12-V14)) -> 0.65 | W13: 0.77 | X13: =X14+((($A13-$A14)/($A12-$A14))*(X12-X14)) -> 0.53 | Y13: 0.67 | Z13: =Z14+((($A13-$A14)/($A12-$A14))*(Z12-Z14)) -> 0.46 | AA13: 0.5411764706 | AB13: =AB14+((($A13-$A14)/($A12-$A14))*(AB12-AB14)) -> 0 | AC13: =AC14+((($A13-$A14)/($A12-$A14))*(AC12-AC14)) -> 0.55 | AD13: 0.55 | AE13: =AE14+((($A13-$A14)/($A12-$A14))*(AE12-AE14)) -> 0.51 | AF13: 0.58 | AG13: =AG14+((($A13-$A14)/($A12-$A14))*(AG12-AG14)) -> 0.44 | AH13: 0.5 | AI13: =AI14+((($A13-$A14)/($A12-$A14))*(AI12-AI14)) -> 0.41 | AJ13: 0.4823529412 | AK13: =AK14+((($A13-$A14)/($A12-$A14))*(AK12-AK14)) -> 0
A14: 4 | B14: 0.74 | C14: 0.74 | D14: 0.59 | E14: 0.69 | F14: 0.49 | G14: 0.61 | H14: 0.43 | I14: 0.5058823529 | J14: 0 | K14: 0.61 | L14: 0.61 | M14: 0.51 | N14: 0.58 | O14: 0.44 | P14: 0.54 | Q14: 0.39 | R14: 0.4588235294 | S14: 0 | T14: 0.47 | U14: 0.47 | V14: 0.41 | W14: 0.45 | X14: 0.37 | Y14: 0.43 | Z14: 0.34 | AA14: 0.4 | AB14: 0 | AC14: 0.39 | AD14: 0.39 | AE14: 0.35 | AF14: 0.38 | AG14: 0.32 | AH14: 0.38 | AI14: 0.29 | AJ14: 0.3411764706 | AK14: 0
A15: =IF((AND(A14<$B$40,A16>$B$40)),$B$40,"0,0") -> 0,0 | B15: =B16+((($A15-$A16)/($A14-$A16))*(B14-B16)) -> 1.14 | C15: 1.14 | D15: =D16+((($A15-$A16)/($A14-$A16))*(D14-D16)) -> 0.87 | E15: 1.05 | F15: =F16+((($A15-$A16)/($A14-$A16))*(F14-F16)) -> 0.69 | G15: 0.89 | H15: =H16+((($A15-$A16)/($A14-$A16))*(H14-H16)) -> 0.59 | I15: 0.6941176471 | J15: =J16+((($A15-$A16)/($A14-$A16))*(J14-J16)) -> 0 | K15: =K16+((($A15-$A16)/($A14-$A16))*(K14-K16)) -> 0.89 | L15: 0.89 | M15: =M16+((($A15-$A16)/($A14-$A16))*(M14-M16)) -> 0.75 | N15: 0.9 | O15: =O16+((($A15-$A16)/($A14-$A16))*(O14-O16)) -> 0.6 | P15: 0.78 | Q15: =Q16+((($A15-$A16)/($A14-$A16))*(Q14-Q16)) -> 0.51 | R15: 0.6 | S15: =S16+((($A15-$A16)/($A14-$A16))*(S14-S16)) -> 0 | T15: =T16+((($A15-$A16)/($A14-$A16))*(T14-T16)) -> 0.67 | U15: 0.67 | V15: =V16+((($A15-$A16)/($A14-$A16))*(V14-V16)) -> 0.57 | W15: 0.65 | X15: =X16+((($A15-$A16)/($A14-$A16))*(X14-X16)) -> 0.49 | Y15: 0.55 | Z15: =Z16+((($A15-$A16)/($A14-$A16))*(Z14-Z16)) -> 0.46 | AA15: 0.5411764706 | AB15: =AB16+((($A15-$A16)/($A14-$A16))*(AB14-AB16)) -> 0 | AC15: =AC16+((($A15-$A16)/($A14-$A16))*(AC14-AC16)) -> 0.55 | AD15: 0.55 | AE15: =AE16+((($A15-$A16)/($A14-$A16))*(AE14-AE16)) -> 0.47 | AF15: 0.5 | AG15: =AG16+((($A15-$A16)/($A14-$A16))*(AG14-AG16)) -> 0.44 | AH15: 0.58 | AI15: =AI16+((($A15-$A16)/($A14-$A16))*(AI14-AI16)) -> 0.37 | AJ15: 0.4352941176 | AK15: =AK16+((($A15-$A16)/($A14-$A16))*(AK14-AK16)) -> 0
A16: 5 | B16: 0.64 | C16: 0.64 | D16: 0.52 | E16: 0.6 | F16: 0.44 | G16: 0.54 | H16: 0.39 | I16: 0.4588235294 | J16: 0 | K16: 0.54 | L16: 0.54 | M16: 0.45 | N16: 0.5 | O16: 0.4 | P16: 0.48 | Q16: 0.36 | R16: 0.4235294118 | S16: 0 | T16: 0.42 | U16: 0.42 | V16: 0.37 | W16: 0.4 | X16: 0.34 | Y16: 0.4 | Z16: 0.31 | AA16: 0.3647058824 | AB16: 0 | AC16: 0.35 | AD16: 0.35 | AE16: 0.32 | AF16: 0.35 | AG16: 0.29 | AH16: 0.33 | AI16: 0.27 | AJ16: 0.3176470588 | AK16: 0
A17: =IF((AND(A16<$B$40,A18>$B$40)),$B$40,"0,0") -> 0,0 | B17: =B18+((($A17-$A18)/($A16-$A18))*(B16-B18)) -> 0.99 | C17: 0.99 | D17: =D18+((($A17-$A18)/($A16-$A18))*(D16-D18)) -> 0.82 | E17: 1 | F17: =F18+((($A17-$A18)/($A16-$A18))*(F16-F18)) -> 0.64 | G17: 0.74 | H17: =H18+((($A17-$A18)/($A16-$A18))*(H16-H18)) -> 0.59 | I17: 0.6941176471 | J17: =J18+((($A17-$A18)/($A16-$A18))*(J16-J18)) -> 0 | K17: =K18+((($A17-$A18)/($A16-$A18))*(K16-K18)) -> 0.84 | L17: 0.84 | M17: =M18+((($A17-$A18)/($A16-$A18))*(M16-M18)) -> 0.65 | N17: 0.7 | O17: =O18+((($A17-$A18)/($A16-$A18))*(O16-O18)) -> 0.6 | P17: 0.78 | Q17: =Q18+((($A17-$A18)/($A16-$A18))*(Q16-Q18)) -> 0.51 | R17: 0.6 | S17: =S18+((($A17-$A18)/($A16-$A18))*(S16-S18)) -> 0 | T17: =T18+((($A17-$A18)/($A16-$A18))*(T16-T18)) -> 0.62 | U17: 0.62 | V17: =V18+((($A17-$A18)/($A16-$A18))*(V16-V18)) -> 0.52 | W17: 0.55 | X17: =X18+((($A17-$A18)/($A16-$A18))*(X16-X18)) -> 0.49 | Y17: 0.55 | Z17: =Z18+((($A17-$A18)/($A16-$A18))*(Z16-Z18)) -> 0.46 | AA17: 0.5411764706 | AB17: =AB18+((($A17-$A18)/($A16-$A18))*(AB16-AB18)) -> 0 | AC17: =AC18+((($A17-$A18)/($A16-$A18))*(AC16-AC18)) -> 0.5 | AD17: 0.5 | AE17: =AE18+((($A17-$A18)/($A16-$A18))*(AE16-AE18)) -> 0.47 | AF17: 0.55 | AG17: =AG18+((($A17-$A18)/($A16-$A18))*(AG16-AG18)) -> 0.39 | AH17: 0.43 | AI17: =AI18+((($A17-$A18)/($A16-$A18))*(AI16-AI18)) -> 0.37 | AJ17: 0.4352941176 | AK17: =AK18+((($A17-$A18)/($A16-$A18))*(AK16-AK18)) -> 0
A18: 6 | B18: 0.57 | C18: 0.57 | D18: 0.46 | E18: 0.52 | F18: 0.4 | G18: 0.5 | H18: 0.35 | I18: 0.4117647059 | J18: 0 | K18: 0.48 | L18: 0.48 | M18: 0.41 | N18: 0.46 | O18: 0.36 | P18: 0.42 | Q18: 0.33 | R18: 0.3882352941 | S18: 0 | T18: 0.38 | U18: 0.38 | V18: 0.34 | W18: 0.37 | X18: 0.31 | Y18: 0.37 | Z18: 0.28 | AA18: 0.3294117647 | AB18: 0 | AC18: 0.32 | AD18: 0.32 | AE18: 0.29 | AF18: 0.31 | AG18: 0.27 | AH18: 0.31 | AI18: 0.25 | AJ18: 0.2941176471 | AK18: 0
A19: =IF((AND(A18<$B$40,A20>$B$40)),$B$40,"0,0") -> 0,0 | B19: =B20+((($A19-$A20)/($A18-$A20))*(B18-B20)) -> 0.87 | C19: 0.87 | D19: =D20+((($A19-$A20)/($A18-$A20))*(D18-D20)) -> 0.7 | E19: 0.82 | F19: =F20+((($A19-$A20)/($A18-$A20))*(F18-F20)) -> 0.58 | G19: 0.8 | H19: =H20+((($A19-$A20)/($A18-$A20))*(H18-H20)) -> 0.47 | I19: 0.5529411765 | J19: =J20+((($A19-$A20)/($A18-$A20))*(J18-J20)) -> 0 | K19: =K20+((($A19-$A20)/($A18-$A20))*(K18-K20)) -> 0.72 | L19: 0.72 | M19: =M20+((($A19-$A20)/($A18-$A20))*(M18-M20)) -> 0.59 | N19: 0.64 | O19: =O20+((($A19-$A20)/($A18-$A20))*(O18-O20)) -> 0.54 | P19: 0.6 | Q19: =Q20+((($A19-$A20)/($A18-$A20))*(Q18-Q20)) -> 0.51 | R19: 0.6 | S19: =S20+((($A19-$A20)/($A18-$A20))*(S18-S20)) -> 0 | T19: =T20+((($A19-$A20)/($A18-$A20))*(T18-T20)) -> 0.56 | U19: 0.56 | V19: =V20+((($A19-$A20)/($A18-$A20))*(V18-V20)) -> 0.52 | W19: 0.61 | X19: =X20+((($A19-$A20)/($A18-$A20))*(X18-X20)) -> 0.43 | Y19: 0.49 | Z19: =Z20+((($A19-$A20)/($A18-$A20))*(Z18-Z20)) -> 0.4 | AA19: 0.4705882353 | AB19: =AB20+((($A19-$A20)/($A18-$A20))*(AB18-AB20)) -> 0 | AC19: =AC20+((($A19-$A20)/($A18-$A20))*(AC18-AC20)) -> 0.44 | AD19: 0.44 | AE19: =AE20+((($A19-$A20)/($A18-$A20))*(AE18-AE20)) -> 0.41 | AF19: 0.43 | AG19: =AG20+((($A19-$A20)/($A18-$A20))*(AG18-AG20)) -> 0.39 | AH19: 0.55 | AI19: =AI20+((($A19-$A20)/($A18-$A20))*(AI18-AI20)) -> 0.31 | AJ19: 0.3647058824 | AK19: =AK20+((($A19-$A20)/($A18-$A20))*(AK18-AK20)) -> 0
A20: 7 | B20: 0.52 | C20: 0.52 | D20: 0.42 | E20: 0.47 | F20: 0.37 | G20: 0.45 | H20: 0.33 | I20: 0.3882352941 | J20: 0 | K20: 0.44 | L20: 0.44 | M20: 0.38 | N20: 0.43 | O20: 0.33 | P20: 0.39 | Q20: 0.3 | R20: 0.3529411765 | S20: 0 | T20: 0.35 | U20: 0.35 | V20: 0.31 | W20: 0.33 | X20: 0.29 | Y20: 0.35 | Z20: 0.26 | AA20: 0.3058823529 | AB20: 0 | AC20: 0.3 | AD20: 0.3 | AE20: 0.27 | AF20: 0.29 | AG20: 0.25 | AH20: 0.27 | AI20: 0.24 | AJ20: 0.2823529412 | AK20: 0
A21: =IF((AND(A20<$B$40,A22>$B$40)),$B$40,"0,0") -> 0,0 | B21: =B22+((($A21-$A22)/($A20-$A22))*(B20-B22)) -> 0.87 | C21: 0.87 | D21: =D22+((($A21-$A22)/($A20-$A22))*(D20-D22)) -> 0.63 | E21: 0.68 | F21: =F22+((($A21-$A22)/($A20-$A22))*(F20-F22)) -> 0.58 | G21: 0.66 | H21: =H22+((($A21-$A22)/($A20-$A22))*(H20-H22)) -> 0.54 | I21: 0.6352941176 | J21: =J22+((($A21-$A22)/($A20-$A22))*(J20-J22)) -> 0 | K21: =K22+((($A21-$A22)/($A20-$A22))*(K20-K22)) -> 0.72 | L21: 0.72 | M21: =M22+((($A21-$A22)/($A20-$A22))*(M20-M22)) -> 0.59 | N21: 0.71 | O21: =O22+((($A21-$A22)/($A20-$A22))*(O20-O22)) -> 0.47 | P21: 0.53 | Q21: =Q22+((($A21-$A22)/($A20-$A22))*(Q20-Q22)) -> 0.44 | R21: 0.5176470588 | S21: =S22+((($A21-$A22)/($A20-$A22))*(S20-S22)) -> 0 | T21: =T22+((($A21-$A22)/($A20-$A22))*(T20-T22)) -> 0.49 | U21: 0.49 | V21: =V22+((($A21-$A22)/($A20-$A22))*(V20-V22)) -> 0.45 | W21: 0.47 | X21: =X22+((($A21-$A22)/($A20-$A22))*(X20-X22)) -> 0.43 | Y21: 0.63 | Z21: =Z22+((($A21-$A22)/($A20-$A22))*(Z20-Z22)) -> 0.33 | AA21: 0.3882352941 | AB21: =AB22+((($A21-$A22)/($A20-$A22))*(AB20-AB22)) -> 0 | AC21: =AC22+((($A21-$A22)/($A20-$A22))*(AC20-AC22)) -> 0.44 | AD21: 0.44 | AE21: =AE22+((($A21-$A22)/($A20-$A22))*(AE20-AE22)) -> 0.34 | AF21: 0.36 | AG21: =AG22+((($A21-$A22)/($A20-$A22))*(AG20-AG22)) -> 0.32 | AH21: 0.2 | AI21: =AI22+((($A21-$A22)/($A20-$A22))*(AI20-AI22)) -> 0.38 | AJ21: 0.4470588235 | AK21: =AK22+((($A21-$A22)/($A20-$A22))*(AK20-AK22)) -> 0
A22: 8 | B22: 0.47 | C22: 0.47 | D22: 0.39 | E22: 0.44 | F22: 0.34 | G22: 0.42 | H22: 0.3 | I22: 0.3529411765 | J22: 0 | K22: 0.4 | L22: 0.4 | M22: 0.35 | N22: 0.39 | O22: 0.31 | P22: 0.37 | Q22: 0.28 | R22: 0.3294117647 | S22: 0 | T22: 0.33 | U22: 0.33 | V22: 0.29 | W22: 0.31 | X22: 0.27 | Y22: 0.31 | Z22: 0.25 | AA22: 0.2941176471 | AB22: 0 | AC22: 0.28 | AD22: 0.28 | AE22: 0.26 | AF22: 0.28 | AG22: 0.24 | AH22: 0.28 | AI22: 0.22 | AJ22: 0.2588235294 | AK22: 0
A23: =IF((AND(A22<$B$40,A24>$B$40)),$B$40,"0,0") -> 0,0 | B23: =B24+((($A23-$A24)/($A22-$A24))*(B22-B24)) -> 0.79 | C23: 0.79 | D23: =D24+((($A23-$A24)/($A22-$A24))*(D22-D24)) -> 0.63 | E23: 0.76 | F23: =F24+((($A23-$A24)/($A22-$A24))*(F22-F24)) -> 0.5 | G23: 0.58 | H23: =H24+((($A23-$A24)/($A22-$A24))*(H22-H24)) -> 0.46 | I23: 0.5411764706 | J23: =J24+((($A23-$A24)/($A22-$A24))*(J22-J24)) -> 0 | K23: =K24+((($A23-$A24)/($A22-$A24))*(K22-K24)) -> 0.64 | L23: 0.64 | M23: =M24+((($A23-$A24)/($A22-$A24))*(M22-M24)) -> 0.59 | N23: 0.71 | O23: =O24+((($A23-$A24)/($A22-$A24))*(O22-O24)) -> 0.47 | P23: 0.53 | Q23: =Q24+((($A23-$A24)/($A22-$A24))*(Q22-Q24)) -> 0.44 | R23: 0.5176470588 | S23: =S24+((($A23-$A24)/($A22-$A24))*(S22-S24)) -> 0 | T23: =T24+((($A23-$A24)/($A22-$A24))*(T22-T24)) -> 0.57 | U23: 0.57 | V23: =V24+((($A23-$A24)/($A22-$A24))*(V22-V24)) -> 0.45 | W23: 0.47 | X23: =X24+((($A23-$A24)/($A22-$A24))*(X22-X24)) -> 0.43 | Y23: 0.47 | Z23: =Z24+((($A23-$A24)/($A22-$A24))*(Z22-Z24)) -> 0.41 | AA23: 0.4823529412 | AB23: =AB24+((($A23-$A24)/($A22-$A24))*(AB22-AB24)) -> 0 | AC23: =AC24+((($A23-$A24)/($A22-$A24))*(AC22-AC24)) -> 0.44 | AD23: 0.44 | AE23: =AE24+((($A23-$A24)/($A22-$A24))*(AE22-AE24)) -> 0.42 | AF23: 0.44 | AG23: =AG24+((($A23-$A24)/($A22-$A24))*(AG22-AG24)) -> 0.4 | AH23: 0.6 | AI23: =AI24+((($A23-$A24)/($A22-$A24))*(AI22-AI24)) -> 0.3 | AJ23: 0.3529411765 | AK23: =AK24+((($A23-$A24)/($A22-$A24))*(AK22-AK24)) -> 0
A24: 9 | B24: 0.43 | C24: 0.43 | D24: 0.36 | E24: 0.4 | F24: 0.32 | G24: 0.4 | H24: 0.28 | I24: 0.3294117647 | J24: 0 | K24: 0.37 | L24: 0.37 | M24: 0.32 | N24: 0.35 | O24: 0.29 | P24: 0.35 | Q24: 0.26 | R24: 0.3058823529 | S24: 0 | T24: 0.3 | U24: 0.3 | V24: 0.27 | W24: 0.29 | X24: 0.25 | Y24: 0.29 | Z24: 0.23 | AA24: 0.2705882353 | AB24: 0 | AC24: 0.26 | AD24: 0.26 | AE24: 0.24 | AF24: 0.26 | AG24: 0.22 | AH24: 0.24 | AI24: 0.21 | AJ24: 0.2470588235 | AK24: 0
A25: =IF((AND(A24<$B$40,A26>$B$40)),$B$40,"0,0") -> 0,0 | B25: =B26+((($A25-$A26)/($A24-$A26))*(B24-B26)) -> 0.7 | C25: 0.7 | D25: =D26+((($A25-$A26)/($A24-$A26))*(D24-D26)) -> 0.54 | E25: 0.58 | F25: =F26+((($A25-$A26)/($A24-$A26))*(F24-F26)) -> 0.5 | G25: 0.76 | H25: =H26+((($A25-$A26)/($A24-$A26))*(H24-H26)) -> 0.37 | I25: 0.4352941176 | J25: =J26+((($A25-$A26)/($A24-$A26))*(J24-J26)) -> 0 | K25: =K26+((($A25-$A26)/($A24-$A26))*(K24-K26)) -> 0.55 | L25: 0.55 | M25: =M26+((($A25-$A26)/($A24-$A26))*(M24-M26)) -> 0.5 | N25: 0.53 | O25: =O26+((($A25-$A26)/($A24-$A26))*(O24-O26)) -> 0.47 | P25: 0.71 | Q25: =Q26+((($A25-$A26)/($A24-$A26))*(Q24-Q26)) -> 0.35 | R25: 0.4117647059 | S25: =S26+((($A25-$A26)/($A24-$A26))*(S24-S26)) -> 0 | T25: =T26+((($A25-$A26)/($A24-$A26))*(T24-T26)) -> 0.39 | U25: 0.39 | V25: =V26+((($A25-$A26)/($A24-$A26))*(V24-V26)) -> 0.36 | W25: 0.38 | X25: =X26+((($A25-$A26)/($A24-$A26))*(X24-X26)) -> 0.34 | Y25: 0.38 | Z25: =Z26+((($A25-$A26)/($A24-$A26))*(Z24-Z26)) -> 0.32 | AA25: 0.3764705882 | AB25: =AB26+((($A25-$A26)/($A24-$A26))*(AB24-AB26)) -> 0 | AC25: =AC26+((($A25-$A26)/($A24-$A26))*(AC24-AC26)) -> 0.35 | AD25: 0.35 | AE25: =AE26+((($A25-$A26)/($A24-$A26))*(AE24-AE26)) -> 0.33 | AF25: 0.35 | AG25: =AG26+((($A25-$A26)/($A24-$A26))*(AG24-AG26)) -> 0.31 | AH25: 0.33 | AI25: =AI26+((($A25-$A26)/($A24-$A26))*(AI24-AI26)) -> 0.3 | AJ25: 0.3529411765 | AK25: =AK26+((($A25-$A26)/($A24-$A26))*(AK24-AK26)) -> 0
A26: 10 | B26: 0.4 | C26: 0.4 | D26: 0.34 | E26: 0.38 | F26: 0.3 | G26: 0.36 | H26: 0.27 | I26: 0.3176470588 | J26: 0 | K26: 0.35 | L26: 0.35 | M26: 0.3 | N26: 0.33 | O26: 0.27 | P26: 0.31 | Q26: 0.25 | R26: 0.2941176471 | S26: 0 | T26: 0.29 | U26: 0.29 | V26: 0.26 | W26: 0.28 | X26: 0.24 | Y26: 0.28 | Z26: 0.22 | AA26: 0.2588235294 | AB26: 0 | AC26: 0.25 | AD26: 0.25 | AE26: 0.23 | AF26: 0.25 | AG26: 0.21 | AH26: 0.23 | AI26: 0.2 | AJ26: 0.2352941176 | AK26: 0
A27: =IF((AND(A26<$B$40,A28>$B$40)),$B$40,"0,0") -> 0,0 | B27: =B28+((($A27-$A28)/($A26-$A28))*(B26-B28)) -> 0.6 | C27: 0.6 | D27: =D28+((($A27-$A28)/($A26-$A28))*(D26-D28)) -> 0.54 | E27: 0.63 | F27: =F28+((($A27-$A28)/($A26-$A28))*(F26-F28)) -> 0.45 | G27: 0.51 | H27: =H28+((($A27-$A28)/($A26-$A28))*(H26-H28)) -> 0.42 | I27: 0.4941176471 | J27: =J28+((($A27-$A28)/($A26-$A28))*(J26-J28)) -> 0 | K27: =K28+((($A27-$A28)/($A26-$A28))*(K26-K28)) -> 0.55 | L27: 0.55 | M27: =M28+((($A27-$A28)/($A26-$A28))*(M26-M28)) -> 0.45 | N27: 0.48 | O27: =O28+((($A27-$A28)/($A26-$A28))*(O26-O28)) -> 0.42 | P27: 0.46 | Q27: =Q28+((($A27-$A28)/($A26-$A28))*(Q26-Q28)) -> 0.4 | R27: 0.4705882353 | S27: =S28+((($A27-$A28)/($A26-$A28))*(S26-S28)) -> 0 | T27: =T28+((($A27-$A28)/($A26-$A28))*(T26-T28)) -> 0.44 | U27: 0.44 | V27: =V28+((($A27-$A28)/($A26-$A28))*(V26-V28)) -> 0.41 | W27: 0.43 | X27: =X28+((($A27-$A28)/($A26-$A28))*(X26-X28)) -> 0.39 | Y27: 0.53 | Z27: =Z28+((($A27-$A28)/($A26-$A28))*(Z26-Z28)) -> 0.32 | AA27: 0.3764705882 | AB27: =AB28+((($A27-$A28)/($A26-$A28))*(AB26-AB28)) -> 0 | AC27: =AC28+((($A27-$A28)/($A26-$A28))*(AC26-AC28)) -> 0.4 | AD27: 0.4 | AE27: =AE28+((($A27-$A28)/($A26-$A28))*(AE26-AE28)) -> 0.33 | AF27: 0.35 | AG27: =AG28+((($A27-$A28)/($A26-$A28))*(AG26-AG28)) -> 0.31 | AH27: 0.33 | AI27: =AI28+((($A27-$A28)/($A26-$A28))*(AI26-AI28)) -> 0.3 | AJ27: 0.3529411765 | AK27: =AK28+((($A27-$A28)/($A26-$A28))*(AK26-AK28)) -> 0
A28: 12 | B28: 0.36 | C28: 0.36 | D28: 0.3 | E28: 0.33 | F28: 0.27 | G28: 0.33 | H28: 0.24 | I28: 0.2823529412 | J28: 0 | K28: 0.31 | L28: 0.31 | M28: 0.27 | N28: 0.3 | O28: 0.24 | P28: 0.28 | Q28: 0.22 | R28: 0.2588235294 | S28: 0 | T28: 0.26 | U28: 0.26 | V28: 0.23 | W28: 0.25 | X28: 0.21 | Y28: 0.23 | Z28: 0.2 | AA28: 0.2352941176 | AB28: 0 | AC28: 0.22 | AD28: 0.22 | AE28: 0.21 | AF28: 0.23 | AG28: 0.19 | AH28: 0.21 | AI28: 0.18 | AJ28: 0.2117647059 | AK28: 0
A29: =IF((AND(A28<$B$40,A30>$B$40)),$B$40,"0,0") -> 0,0 | B29: =B30+((($A29-$A30)/($A28-$A30))*(B28-B30)) -> 0.6 | C29: 0.6 | D29: =D30+((($A29-$A30)/($A28-$A30))*(D28-D30)) -> 0.48 | E29: 0.51 | F29: =F30+((($A29-$A30)/($A28-$A30))*(F28-F30)) -> 0.45 | G29: 0.63 | H29: =H30+((($A29-$A30)/($A28-$A30))*(H28-H30)) -> 0.36 | I29: 0.4235294118 | J29: =J30+((($A29-$A30)/($A28-$A30))*(J28-J30)) -> 0 | K29: =K30+((($A29-$A30)/($A28-$A30))*(K28-K30)) -> 0.49 | L29: 0.49 | M29: =M30+((($A29-$A30)/($A28-$A30))*(M28-M30)) -> 0.39 | N29: 0.42 | O29: =O30+((($A29-$A30)/($A28-$A30))*(O28-O30)) -> 0.36 | P29: 0.4 | Q29: =Q30+((($A29-$A30)/($A28-$A30))*(Q28-Q30)) -> 0.34 | R29: 0.4 | S29: =S30+((($A29-$A30)/($A28-$A30))*(S28-S30)) -> 0 | T29: =T30+((($A29-$A30)/($A28-$A30))*(T28-T30)) -> 0.44 | U29: 0.44 | V29: =V30+((($A29-$A30)/($A28-$A30))*(V28-V30)) -> 0.35 | W29: 0.43 | X29: =X30+((($A29-$A30)/($A28-$A30))*(X28-X30)) -> 0.27 | Y29: 0.17 | Z29: =Z30+((($A29-$A30)/($A28-$A30))*(Z28-Z30)) -> 0.32 | AA29: 0.3764705882 | AB29: =AB30+((($A29-$A30)/($A28-$A30))*(AB28-AB30)) -> 0 | AC29: =AC30+((($A29-$A30)/($A28-$A30))*(AC28-AC30)) -> 0.34 | AD29: 0.34 | AE29: =AE30+((($A29-$A30)/($A28-$A30))*(AE28-AE30)) -> 0.33 | AF29: 0.41 | AG29: =AG30+((($A29-$A30)/($A28-$A30))*(AG28-AG30)) -> 0.25 | AH29: 0.27 | AI29: =AI30+((($A29-$A30)/($A28-$A30))*(AI28-AI30)) -> 0.24 | AJ29: 0.2823529412 | AK29: =AK30+((($A29-$A30)/($A28-$A30))*(AK28-AK30)) -> 0
A30: 14 | B30: 0.32 | C30: 0.32 | D30: 0.27 | E30: 0.3 | F30: 0.24 | G30: 0.28 | H30: 0.22 | I30: 0.2588235294 | J30: 0 | K30: 0.28 | L30: 0.28 | M30: 0.25 | N30: 0.28 | O30: 0.22 | P30: 0.26 | Q30: 0.2 | R30: 0.2352941176 | S30: 0 | T30: 0.23 | U30: 0.23 | V30: 0.21 | W30: 0.22 | X30: 0.2 | Y30: 0.24 | Z30: 0.18 | AA30: 0.2117647059 | AB30: 0 | AC30: 0.2 | AD30: 0.2 | AE30: 0.19 | AF30: 0.2 | AG30: 0.18 | AH30: 0.2 | AI30: 0.17 | AJ30: 0.2 | AK30: 0
A31: =IF((AND(A30<$B$40,A32>$B$40)),$B$40,"0,0") -> 0,0 | B31: =B32+((($A31-$A32)/($A30-$A32))*(B30-B32)) -> 0.53 | C31: 0.53 | D31: =D32+((($A31-$A32)/($A30-$A32))*(D30-D32)) -> 0.41 | E31: 0.44 | F31: =F32+((($A31-$A32)/($A30-$A32))*(F30-F32)) -> 0.38 | G31: 0.42 | H31: =H32+((($A31-$A32)/($A30-$A32))*(H30-H32)) -> 0.36 | I31: 0.4235294118 | J31: =J32+((($A31-$A32)/($A30-$A32))*(J30-J32)) -> 0 | K31: =K32+((($A31-$A32)/($A30-$A32))*(K30-K32)) -> 0.49 | L31: 0.49 | M31: =M32+((($A31-$A32)/($A30-$A32))*(M30-M32)) -> 0.39 | N31: 0.42 | O31: =O32+((($A31-$A32)/($A30-$A32))*(O30-O32)) -> 0.36 | P31: 0.54 | Q31: =Q32+((($A31-$A32)/($A30-$A32))*(Q30-Q32)) -> 0.27 | R31: 0.3176470588 | S31: =S32+((($A31-$A32)/($A30-$A32))*(S30-S32)) -> 0 | T31: =T32+((($A31-$A32)/($A30-$A32))*(T30-T32)) -> 0.37 | U31: 0.37 | V31: =V32+((($A31-$A32)/($A30-$A32))*(V30-V32)) -> 0.28 | W31: 0.22 | X31: =X32+((($A31-$A32)/($A30-$A32))*(X30-X32)) -> 0.34 | Y31: 0.52 | Z31: =Z32+((($A31-$A32)/($A30-$A32))*(Z30-Z32)) -> 0.25 | AA31: 0.2941176471 | AB31: =AB32+((($A31-$A32)/($A30-$A32))*(AB30-AB32)) -> 0 | AC31: =AC32+((($A31-$A32)/($A30-$A32))*(AC30-AC32)) -> 0.27 | AD31: 0.27 | AE31: =AE32+((($A31-$A32)/($A30-$A32))*(AE30-AE32)) -> 0.33 | AF31: 0.34 | AG31: =AG32+((($A31-$A32)/($A30-$A32))*(AG30-AG32)) -> 0.32 | AH31: 0.48 | AI31: =AI32+((($A31-$A32)/($A30-$A32))*(AI30-AI32)) -> 0.24 | AJ31: 0.2823529412 | AK31: =AK32+((($A31-$A32)/($A30-$A32))*(AK30-AK32)) -> 0
A32: 16 | B32: 0.29 | C32: 0.29 | D32: 0.25 | E32: 0.28 | F32: 0.22 | G32: 0.26 | H32: 0.2 | I32: 0.2352941176 | J32: 0 | K32: 0.25 | L32: 0.25 | M32: 0.23 | N32: 0.26 | O32: 0.2 | P32: 0.22 | Q32: 0.19 | R32: 0.2235294118 | S32: 0 | T32: 0.21 | U32: 0.21 | V32: 0.2 | W32: 0.22 | X32: 0.18 | Y32: 0.2 | Z32: 0.17 | AA32: 0.2 | AB32: 0 | AC32: 0.19 | AD32: 0.19 | AE32: 0.17 | AF32: 0.18 | AG32: 0.16 | AH32: 0.16 | AI32: 0.16 | AJ32: 0.1882352941 | AK32: 0
A33: =IF((AND(A32<$B$40,A34>$B$40)),$B$40,"0,0") -> 0,0 | B33: =B34+((($A33-$A34)/($A32-$A34))*(B32-B34)) -> 0.53 | C33: 0.53 | D33: =D34+((($A33-$A34)/($A32-$A34))*(D32-D34)) -> 0.41 | E33: 0.44 | F33: =F34+((($A33-$A34)/($A32-$A34))*(F32-F34)) -> 0.38 | G33: 0.58 | H33: =H34+((($A33-$A34)/($A32-$A34))*(H32-H34)) -> 0.28 | I33: 0.3294117647 | J33: =J34+((($A33-$A34)/($A32-$A34))*(J32-J34)) -> 0 | K33: =K34+((($A33-$A34)/($A32-$A34))*(K32-K34)) -> 0.41 | L33: 0.41 | M33: =M34+((($A33-$A34)/($A32-$A34))*(M32-M34)) -> 0.39 | N33: 0.5 | O33: =O34+((($A33-$A34)/($A32-$A34))*(O32-O34)) -> 0.28 | P33: 0.3 | Q33: =Q34+((($A33-$A34)/($A32-$A34))*(Q32-Q34)) -> 0.27 | R33: 0.3176470588 | S33: =S34+((($A33-$A34)/($A32-$A34))*(S32-S34)) -> 0 | T33: =T34+((($A33-$A34)/($A32-$A34))*(T32-T34)) -> 0.29 | U33: 0.29 | V33: =V34+((($A33-$A34)/($A32-$A34))*(V32-V34)) -> 0.36 | W33: 0.46 | X33: =X34+((($A33-$A34)/($A32-$A34))*(X32-X34)) -> 0.26 | Y33: 0.28 | Z33: =Z34+((($A33-$A34)/($A32-$A34))*(Z32-Z34)) -> 0.25 | AA33: 0.2941176471 | AB33: =AB34+((($A33-$A34)/($A32-$A34))*(AB32-AB34)) -> 0 | AC33: =AC34+((($A33-$A34)/($A32-$A34))*(AC32-AC34)) -> 0.35 | AD33: 0.35 | AE33: =AE34+((($A33-$A34)/($A32-$A34))*(AE32-AE34)) -> 0.25 | AF33: 0.26 | AG33: =AG34+((($A33-$A34)/($A32-$A34))*(AG32-AG34)) -> 0.24 | AH33: 0.24 | AI33: =AI34+((($A33-$A34)/($A32-$A34))*(AI32-AI34)) -> 0.24 | AJ33: 0.2823529412 | AK33: =AK34+((($A33-$A34)/($A32-$A34))*(AK32-AK34)) -> 0
A34: 18 | B34: 0.26 | C34: 0.26 | D34: 0.23 | E34: 0.26 | F34: 0.2 | G34: 0.22 | H34: 0.19 | I34: 0.2235294118 | J34: 0 | K34: 0.23 | L34: 0.23 | M34: 0.21 | N34: 0.23 | O34: 0.19 | P34: 0.21 | Q34: 0.18 | R34: 0.2117647059 | S34: 0 | T34: 0.2 | U34: 0.2 | V34: 0.18 | W34: 0.19 | X34: 0.17 | Y34: 0.19 | Z34: 0.16 | AA34: 0.1882352941 | AB34: 0 | AC34: 0.17 | AD34: 0.17 | AE34: 0.16 | AF34: 0.17 | AG34: 0.15 | AH34: 0.15 | AI34: 0.15 | AJ34: 0.1764705882 | AK34: 0
A35: =IF((AND(A34<$B$40,A36>$B$40)),$B$40,"0,0") -> 0,0 | B35: =B36+((($A35-$A36)/($A34-$A36))*(B34-B36)) -> 0.44 | C35: 0.44 | D35: =D36+((($A35-$A36)/($A34-$A36))*(D34-D36)) -> 0.41 | E35: 0.53 | F35: =F36+((($A35-$A36)/($A34-$A36))*(F34-F36)) -> 0.29 | G35: 0.13 | H35: =H36+((($A35-$A36)/($A34-$A36))*(H34-H36)) -> 0.37 | I35: 0.4352941176 | J35: =J36+((($A35-$A36)/($A34-$A36))*(J34-J36)) -> 0 | K35: =K36+((($A35-$A36)/($A34-$A36))*(K34-K36)) -> 0.32 | L35: 0.32 | M35: =M36+((($A35-$A36)/($A34-$A36))*(M34-M36)) -> 0.39 | N35: 0.5 | O35: =O36+((($A35-$A36)/($A34-$A36))*(O34-O36)) -> 0.28 | P35: 0.12 | Q35: =Q36+((($A35-$A36)/($A34-$A36))*(Q34-Q36)) -> 0.36 | R35: 0.4235294118 | S35: =S36+((($A35-$A36)/($A34-$A36))*(S34-S36)) -> 0 | T35: =T36+((($A35-$A36)/($A34-$A36))*(T34-T36)) -> 0.38 | U35: 0.38 | V35: =V36+((($A35-$A36)/($A34-$A36))*(V34-V36)) -> 0.27 | W35: 0.28 | X35: =X36+((($A35-$A36)/($A34-$A36))*(X34-X36)) -> 0.26 | Y35: 0.28 | Z35: =Z36+((($A35-$A36)/($A34-$A36))*(Z34-Z36)) -> 0.25 | AA35: 0.2941176471 | AB35: =AB36+((($A35-$A36)/($A34-$A36))*(AB34-AB36)) -> 0 | AC35: =AC36+((($A35-$A36)/($A34-$A36))*(AC34-AC36)) -> 0.26 | AD35: 0.26 | AE35: =AE36+((($A35-$A36)/($A34-$A36))*(AE34-AE36)) -> 0.25 | AF35: 0.26 | AG35: =AG36+((($A35-$A36)/($A34-$A36))*(AG34-AG36)) -> 0.24 | AH35: 0.24 | AI35: =AI36+((($A35-$A36)/($A34-$A36))*(AI34-AI36)) -> 0.24 | AJ35: 0.2823529412 | AK35: =AK36+((($A35-$A36)/($A34-$A36))*(AK34-AK36)) -> 0
A36: 20 | B36: 0.24 | C36: 0.24 | D36: 0.21 | E36: 0.23 | F36: 0.19 | G36: 0.23 | H36: 0.17 | I36: 0.2 | J36: 0 | K36: 0.22 | L36: 0.22 | M36: 0.19 | N36: 0.2 | O36: 0.18 | P36: 0.22 | Q36: 0.16 | R36: 0.1882352941 | S36: 0 | T36: 0.18 | U36: 0.18 | V36: 0.17 | W36: 0.18 | X36: 0.16 | Y36: 0.18 | Z36: 0.15 | AA36: 0.1764705882 | AB36: 0 | AC36: 0.16 | AD36: 0.16 | AE36: 0.15 | AF36: 0.16 | AG36: 0.14 | AH36: 0.14 | AI36: 0.14 | AJ36: 0.1647058824 | AK36: 0
A37: =IF((AND(A36<$B$40,A38>$B$40)),$B$40,"0,0") -> 0,0 | B37: =B38+((($A37-$A38)/($A36-$A38))*(B36-B38)) -> 0.24 | C37: 0.24 | D37: =D38+((($A37-$A38)/($A36-$A38))*(D36-D38)) -> 0.21 | E37: 0.23 | F37: =F38+((($A37-$A38)/($A36-$A38))*(F36-F38)) -> 0.19 | G37: 0.23 | H37: =H38+((($A37-$A38)/($A36-$A38))*(H36-H38)) -> 0.17 | I37: 0.2 | J37: =J38+((($A37-$A38)/($A36-$A38))*(J36-J38)) -> 0 | K37: =K38+((($A37-$A38)/($A36-$A38))*(K36-K38)) -> 0.22 | L37: 0.22 | M37: =M38+((($A37-$A38)/($A36-$A38))*(M36-M38)) -> 0.19 | N37: 0.2 | O37: =O38+((($A37-$A38)/($A36-$A38))*(O36-O38)) -> 0.18 | P37: 0.22 | Q37: =Q38+((($A37-$A38)/($A36-$A38))*(Q36-Q38)) -> 0.16 | R37: 0.1882352941 | S37: =S38+((($A37-$A38)/($A36-$A38))*(S36-S38)) -> 0 | T37: =T38+((($A37-$A38)/($A36-$A38))*(T36-T38)) -> 0.18 | U37: 0.18 | V37: =V38+((($A37-$A38)/($A36-$A38))*(V36-V38)) -> 0.17 | W37: 0.18 | X37: =X38+((($A37-$A38)/($A36-$A38))*(X36-X38)) -> 0.16 | Y37: 0.18 | Z37: =Z38+((($A37-$A38)/($A36-$A38))*(Z36-Z38)) -> 0.15 | AA37: 0.1764705882 | AB37: =AB38+((($A37-$A38)/($A36-$A38))*(AB36-AB38)) -> 0 | AC37: =AC38+((($A37-$A38)/($A36-$A38))*(AC36-AC38)) -> 0.16 | AD37: 0.16 | AE37: =AE38+((($A37-$A38)/($A36-$A38))*(AE36-AE38)) -> 0.15 | AF37: 0.16 | AG37: =AG38+((($A37-$A38)/($A36-$A38))*(AG36-AG38)) -> 0.14 | AH37: 0.14 | AI37: =AI38+((($A37-$A38)/($A36-$A38))*(AI36-AI38)) -> 0.14 | AJ37: 0.1647058824 | AK37: =AK38+((($A37-$A38)/($A36-$A38))*(AK36-AK38)) -> 0
A38: 1000 | B38: =B36 -> 0.24 | C38: 0.24 | D38: =D36 -> 0.21 | E38: 0.23 | F38: 0.19 | G38: 0.23 | H38: 0.17 | I38: 0.2 | J38: 0 | K38: 0.22 | L38: 0.22 | M38: 0.19 | N38: 0.2 | O38: 0.18 | P38: 0.22 | Q38: 0.16 | R38: 0.1882352941 | S38: 0 | T38: 0.18 | U38: 0.18 | V38: 0.17 | W38: 0.18 | X38: 0.16 | Y38: 0.18 | Z38: 0.15 | AA38: 0.1764705882 | AB38: 0 | AC38: 0.16 | AD38: 0.16 | AE38: 0.15 | AF38: 0.16 | AG38: 0.14 | AH38: 0.14 | AI38: 0.14 | AJ38: 0.1647058824 | AK38: 0
A40: B' | B40: =IF(Cerramiento!G3="ESTIMADOS",Auxiliar!AF31,'Datos necesarios'!H24) ->  | D40: Rf | E40: ='Recop. Datos'!A18 -> 0 | F40: 1 | G40: Us (0,5-1,0) | H40: =IFERROR((INDEX(B6:J38,MATCH(B40,A6:A38,0),MATCH(E40,B5:J5,0))),0) -> 0
F41: 2 | G41: Us (1,0-2,0) | H41: =IFERROR((INDEX(K6:S38,MATCH(B40,A6:A38,0),MATCH(E40,K5:S5,0))),0) -> 0
F42: 3 | G42: Us (2,0-3,0) | H42: =IFERROR((INDEX(T6:AB38,MATCH(B40,A6:A38,0),MATCH(E40,T5:AB5,0))),0) -> 0
F43: 4 | G43: Us (>3,0) | H43: =IFERROR((INDEX(AC6:AK38,MATCH(B40,A6:A38,0),MATCH(E40,AC5:AK5,0))),0) -> 0

Sheet Tabla4V (hidden)
A1: Tabla 4. TRANSMITANCIA TÉRMICA Us [W/m²K]
D3: 0,5 m < z ≤ 1,0 m | M3: 1,0 m < z ≤ 2,0 m | V3: 2,0 m < z ≤ 3,0 m | AE3: z > 3,0 m
D4: Rf [m²K/ W] | M4: Rf [m²K/ W] | V4: Rf [m²K/ W] | AE4: Rf [m²K/ W]
A5: B' | B5: 0 | C5: =IF((AND(B5<$E$40,D5>$E$40)),$E$40,"0,00") -> 0,00 | D5: 0.5 | E5: =IF((AND(D5<$E$40,F5>$E$40)),$E$40,"0,00") -> 0,00 | F5: 1 | G5: =IF((AND(F5<$E$40,H5>$E$40)),$E$40,"0,00") -> 0,00 | H5: 1.5 | I5: =IF((AND(H5<$E$40,J5>$E$40)),$E$40,"0,00") -> 0,00 | J5: 10 | K5: 0 | L5: =IF((AND(K5<$E$40,M5>$E$40)),$E$40,"0,00") -> 0,00 | M5: 0.5 | N5: =IF((AND(M5<$E$40,O5>$E$40)),$E$40,"0,00") -> 0,00 | O5: 1 | P5: =IF((AND(O5<$E$40,Q5>$E$40)),$E$40,"0,00") -> 0,00 | Q5: 1.5 | R5: =IF((AND(Q5<$E$40,S5>$E$40)),$E$40,"0,00") -> 0,00 | S5: 10 | T5: 0 | U5: =IF((AND(T5<$E$40,V5>$E$40)),$E$40,"0,00") -> 0,00 | V5: 0.5 | W5: =IF((AND(V5<$E$40,X5>$E$40)),$E$40,"0,00") -> 0,00 | X5: 1 | Y5: =IF((AND(X5<$E$40,Z5>$E$40)),$E$40,"0,00") -> 0,00 | Z5: 1.5 | AA5: =IF((AND(Z5<$E$40,AB5>$E$40)),$E$40,"0,00") -> 0,00 | AB5: 10 | AC5: 0 | AD5: =IF((AND(AC5<$E$40,AE5>$E$40)),$E$40,"0,00") -> 0,00 | AE5: 0.5 | AF5: =IF((AND(AE5<$E$40,AG5>$E$40)),$E$40,"0,00") -> 0,00 | AG5: 1 | AH5: =IF((AND(AG5<$E$40,AI5>$E$40)),$E$40,"0,00") -> 0,00 | AI5: 1.5 | AJ5: =IF((AND(AI5<$E$40,AK5>$E$40)),$E$40,"0,00") -> 0,00 | AK5: 10
A6: 0 | B6: =B10+((($A$6-$A$10)/($A$8-$A$10))*(B8-B10)) -> 1.93 | C6: =B6+(((C$5-B$5)/(D$5-B$5))*(D6-B6)) -> 1.93 | D6: =D10+((($A$6-$A$10)/($A$8-$A$10))*(D8-D10)) -> 1.32 | E6: 1.63 | F6: =F10+((($A$6-$A$10)/($A$8-$A$10))*(F8-F10)) -> 1.01 | G6: 1.41 | H6: =H10+((($A$6-$A$10)/($A$8-$A$10))*(H8-H10)) -> 0.81 | I6: 0.9529411765 | J6: =J10+((($A$6-$A$10)/($A$8-$A$10))*(J8-J10)) -> 0 | K6: =K10+((($A$6-$A$10)/($A$8-$A$10))*(K8-K10)) -> 1.41 | L6: =K6+(((L$5-K$5)/(M$5-K$5))*(M6-K6)) -> 1.41 | M6: =M10+((($A$6-$A$10)/($A$8-$A$10))*(M8-M10)) -> 1.06 | N6: =M6+(((N$5-M$5)/(O$5-M$5))*(O6-M6)) -> 1.27 | O6: =O10+((($A$6-$A$10)/($A$8-$A$10))*(O8-O10)) -> 0.85 | P6: =O6+(((P$5-O$5)/(Q$5-O$5))*(Q6-O6)) -> 1.13 | Q6: =Q10+((($A$6-$A$10)/($A$8-$A$10))*(Q8-Q10)) -> 0.71 | R6: =Q6+(((R$5-Q$5)/(S$5-Q$5))*(S6-Q6)) -> 0.8352941176 | S6: =S10+((($A$6-$A$10)/($A$8-$A$10))*(S8-S10)) -> 0 | T6: =T10+((($A$6-$A$10)/($A$8-$A$10))*(T8-T10)) -> 0.93 | U6: =T6+(((U$5-T$5)/(V$5-T$5))*(V6-T6)) -> 0.93 | V6: =V10+((($A$6-$A$10)/($A$8-$A$10))*(V8-V10)) -> 0.76 | W6: =V6+(((W$5-V$5)/(X$5-V$5))*(X6-V6)) -> 0.87 | X6: =X10+((($A$6-$A$10)/($A$8-$A$10))*(X8-X10)) -> 0.65 | Y6: =X6+(((Y$5-X$5)/(Z$5-X$5))*(Z6-X6)) -> 0.83 | Z6: =Z10+((($A$6-$A$10)/($A$8-$A$10))*(Z8-Z10)) -> 0.56 | AA6: =Z6+(((AA$5-Z$5)/(AB$5-Z$5))*(AB6-Z6)) -> 0.6588235294 | AB6: =AB10+((($A$6-$A$10)/($A$8-$A$10))*(AB8-AB10)) -> 0 | AC6: =AC10+((($A$6-$A$10)/($A$8-$A$10))*(AC8-AC10)) -> 0.68 | AD6: =AC6+(((AD$5-AC$5)/(AE$5-AC$5))*(AE6-AC6)) -> 0.68 | AE6: =AE10+((($A$6-$A$10)/($A$8-$A$10))*(AE8-AE10)) -> 0.58 | AF6: =AE6+(((AF$5-AE$5)/(AG$5-AE$5))*(AG6-AE6)) -> 0.64 | AG6: =AG10+((($A$6-$A$10)/($A$8-$A$10))*(AG8-AG10)) -> 0.52 | AH6: =AG6+(((AH$5-AG$5)/(AI$5-AG$5))*(AI6-AG6)) -> 0.64 | AI6: =AI10+((($A$6-$A$10)/($A$8-$A$10))*(AI8-AI10)) -> 0.46 | AJ6: =AI6+(((AJ$5-AI$5)/(AK$5-AI$5))*(AK6-AI6)) -> 0.5411764706 | AK6: =AK10+((($A$6-$A$10)/($A$8-$A$10))*(AK8-AK10)) -> 0
A7: =IF((AND(A6<$B$40,A8>$B$40)),$B$40,"0,0") -> 0,0 | B7: =B8+((($A7-$A8)/($A6-$A8))*(B6-B8)) -> 1.93 | C7: 1.93 | D7: =D8+((($A7-$A8)/($A6-$A8))*(D6-D8)) -> 1.32 | E7: 1.63 | F7: =F8+((($A7-$A8)/($A6-$A8))*(F6-F8)) -> 1.01 | G7: 1.41 | H7: =H8+((($A7-$A8)/($A6-$A8))*(H6-H8)) -> 0.81 | I7: 0.9529411765 | J7: =J8+((($A7-$A8)/($A6-$A8))*(J6-J8)) -> 0 | K7: =K8+((($A7-$A8)/($A6-$A8))*(K6-K8)) -> 1.41 | L7: 1.41 | M7: =M8+((($A7-$A8)/($A6-$A8))*(M6-M8)) -> 1.06 | N7: 1.27 | O7: =O8+((($A7-$A8)/($A6-$A8))*(O6-O8)) -> 0.85 | P7: 1.13 | Q7: =Q8+((($A7-$A8)/($A6-$A8))*(Q6-Q8)) -> 0.71 | R7: 0.8352941176 | S7: =S8+((($A7-$A8)/($A6-$A8))*(S6-S8)) -> 0 | T7: =T8+((($A7-$A8)/($A6-$A8))*(T6-T8)) -> 0.93 | U7: 0.93 | V7: =V8+((($A7-$A8)/($A6-$A8))*(V6-V8)) -> 0.76 | W7: 0.87 | X7: =X8+((($A7-$A8)/($A6-$A8))*(X6-X8)) -> 0.65 | Y7: 0.83 | Z7: =Z8+((($A7-$A8)/($A6-$A8))*(Z6-Z8)) -> 0.56 | AA7: 0.6588235294 | AB7: =AB8+((($A7-$A8)/($A6-$A8))*(AB6-AB8)) -> 0 | AC7: =AC8+((($A7-$A8)/($A6-$A8))*(AC6-AC8)) -> 0.68 | AD7: 0.68 | AE7: =AE8+((($A7-$A8)/($A6-$A8))*(AE6-AE8)) -> 0.58 | AF7: 0.64 | AG7: =AG8+((($A7-$A8)/($A6-$A8))*(AG6-AG8)) -> 0.52 | AH7: 0.64 | AI7: =AI8+((($A7-$A8)/($A6-$A8))*(AI6-AI8)) -> 0.46 | AJ7: 0.5411764706 | AK7: =AK8+((($A7-$A8)/($A6-$A8))*(AK6-AK8)) -> 0
A8: 1 | B8: 1.51 | C8: 1.51 | D8: 1.07 | E8: 1.3 | F8: 0.84 | G8: 1.14 | H8: 0.69 | I8: 0.8117647059 | J8: 0 | K8: 1.14 | L8: 1.14 | M8: 0.88 | N8: 1.04 | O8: 0.72 | P8: 0.94 | Q8: 0.61 | R8: 0.7176470588 | S8: 0 | T8: 0.78 | U8: 0.78 | V8: 0.65 | W8: 0.74 | X8: 0.56 | Y8: 0.7 | Z8: 0.49 | AA8: 0.5764705882 | AB8: 0 | AC8: 0.59 | AD8: 0.59 | AE8: 0.51 | AF8: 0.56 | AG8: 0.46 | AH8: 0.56 | AI8: 0.41 | AJ8: 0.4823529412 | AK8: 0
A9: =IF((AND(A8<$B$40,A10>$B$40)),$B$40,"0,0") -> 0,0 | B9: =B10+((($A9-$A10)/($A8-$A10))*(B8-B10)) -> 1.93 | C9: 1.93 | D9: =D10+((($A9-$A10)/($A8-$A10))*(D8-D10)) -> 1.32 | E9: 1.63 | F9: =F10+((($A9-$A10)/($A8-$A10))*(F8-F10)) -> 1.01 | G9: 1.41 | H9: =H10+((($A9-$A10)/($A8-$A10))*(H8-H10)) -> 0.81 | I9: 0.9529411765 | J9: =J10+((($A9-$A10)/($A8-$A10))*(J8-J10)) -> 0 | K9: =K10+((($A9-$A10)/($A8-$A10))*(K8-K10)) -> 1.41 | L9: 1.41 | M9: =M10+((($A9-$A10)/($A8-$A10))*(M8-M10)) -> 1.06 | N9: 1.27 | O9: =O10+((($A9-$A10)/($A8-$A10))*(O8-O10)) -> 0.85 | P9: 1.13 | Q9: =Q10+((($A9-$A10)/($A8-$A10))*(Q8-Q10)) -> 0.71 | R9: 0.8352941176 | S9: =S10+((($A9-$A10)/($A8-$A10))*(S8-S10)) -> 0 | T9: =T10+((($A9-$A10)/($A8-$A10))*(T8-T10)) -> 0.93 | U9: 0.93 | V9: =V10+((($A9-$A10)/($A8-$A10))*(V8-V10)) -> 0.76 | W9: 0.87 | X9: =X10+((($A9-$A10)/($A8-$A10))*(X8-X10)) -> 0.65 | Y9: 0.83 | Z9: =Z10+((($A9-$A10)/($A8-$A10))*(Z8-Z10)) -> 0.56 | AA9: 0.6588235294 | AB9: =AB10+((($A9-$A10)/($A8-$A10))*(AB8-AB10)) -> 0 | AC9: =AC10+((($A9-$A10)/($A8-$A10))*(AC8-AC10)) -> 0.68 | AD9: 0.68 | AE9: =AE10+((($A9-$A10)/($A8-$A10))*(AE8-AE10)) -> 0.58 | AF9: 0.64 | AG9: =AG10+((($A9-$A10)/($A8-$A10))*(AG8-AG10)) -> 0.52 | AH9: 0.64 | AI9: =AI10+((($A9-$A10)/($A8-$A10))*(AI8-AI10)) -> 0.46 | AJ9: 0.5411764706 | AK9: =AK10+((($A9-$A10)/($A8-$A10))*(AK8-AK10)) -> 0
A10: 2 | B10: 1.09 | C10: 1.09 | D10: 0.82 | E10: 0.97 | F10: 0.67 | G10: 0.87 | H10: 0.57 | I10: 0.6705882353 | J10: 0 | K10: 0.87 | L10: 0.87 | M10: 0.7 | N10: 0.81 | O10: 0.59 | P10: 0.75 | Q10: 0.51 | R10: 0.6 | S10: 0 | T10: 0.63 | U10: 0.63 | V10: 0.54 | W10: 0.61 | X10: 0.47 | Y10: 0.57 | Z10: 0.42 | AA10: 0.4941176471 | AB10: 0 | AC10: 0.5 | AD10: 0.5 | AE10: 0.44 | AF10: 0.48 | AG10: 0.4 | AH10: 0.48 | AI10: 0.36 | AJ10: 0.4235294118 | AK10: 0
A11: =IF((AND(A10<$B$40,A12>$B$40)),$B$40,"0,0") -> 0,0 | B11: =B12+((($A11-$A12)/($A10-$A12))*(B10-B12)) -> 1.53 | C11: 1.53 | D11: =D12+((($A11-$A12)/($A10-$A12))*(D10-D12)) -> 1.1 | E11: 1.33 | F11: =F12+((($A11-$A12)/($A10-$A12))*(F10-F12)) -> 0.87 | G11: 1.15 | H11: =H12+((($A11-$A12)/($A10-$A12))*(H10-H12)) -> 0.73 | I11: 0.8588235294 | J11: =J12+((($A11-$A12)/($A10-$A12))*(J10-J12)) -> 0 | K11: =K12+((($A11-$A12)/($A10-$A12))*(K10-K12)) -> 1.19 | L11: 1.19 | M11: =M12+((($A11-$A12)/($A10-$A12))*(M10-M12)) -> 0.92 | N11: 1.07 | O11: =O12+((($A11-$A12)/($A10-$A12))*(O10-O12)) -> 0.77 | P11: 1.01 | Q11: =Q12+((($A11-$A12)/($A10-$A12))*(Q10-Q12)) -> 0.65 | R11: 0.7647058824 | S11: =S12+((($A11-$A12)/($A10-$A12))*(S10-S12)) -> 0 | T11: =T12+((($A11-$A12)/($A10-$A12))*(T10-T12)) -> 0.83 | U11: 0.83 | V11: =V12+((($A11-$A12)/($A10-$A12))*(V10-V12)) -> 0.68 | W11: 0.77 | X11: =X12+((($A11-$A12)/($A10-$A12))*(X10-X12)) -> 0.59 | Y11: 0.73 | Z11: =Z12+((($A11-$A12)/($A10-$A12))*(Z10-Z12)) -> 0.52 | AA11: 0.6117647059 | AB11: =AB12+((($A11-$A12)/($A10-$A12))*(AB10-AB12)) -> 0 | AC11: =AC12+((($A11-$A12)/($A10-$A12))*(AC10-AC12)) -> 0.64 | AD11: 0.64 | AE11: =AE12+((($A11-$A12)/($A10-$A12))*(AE10-AE12)) -> 0.54 | AF11: 0.58 | AG11: =AG12+((($A11-$A12)/($A10-$A12))*(AG10-AG12)) -> 0.5 | AH11: 0.62 | AI11: =AI12+((($A11-$A12)/($A10-$A12))*(AI10-AI12)) -> 0.44 | AJ11: 0.5176470588 | AK11: =AK12+((($A11-$A12)/($A10-$A12))*(AK10-AK12)) -> 0
A12: 3 | B12: 0.87 | C12: 0.87 | D12: 0.68 | E12: 0.79 | F12: 0.57 | G12: 0.73 | H12: 0.49 | I12: 0.5764705882 | J12: 0 | K12: 0.71 | L12: 0.71 | M12: 0.59 | N12: 0.68 | O12: 0.5 | P12: 0.62 | Q12: 0.44 | R12: 0.5176470588 | S12: 0 | T12: 0.53 | U12: 0.53 | V12: 0.47 | W12: 0.53 | X12: 0.41 | Y12: 0.49 | Z12: 0.37 | AA12: 0.4352941176 | AB12: 0 | AC12: 0.43 | AD12: 0.43 | AE12: 0.39 | AF12: 0.43 | AG12: 0.35 | AH12: 0.41 | AI12: 0.32 | AJ12: 0.3764705882 | AK12: 0
A13: =IF((AND(A12<$B$40,A14>$B$40)),$B$40,"0,0") -> 0,0 | B13: =B14+((($A13-$A14)/($A12-$A14))*(B12-B14)) -> 1.26 | C13: 1.26 | D13: =D14+((($A13-$A14)/($A12-$A14))*(D12-D14)) -> 0.95 | E13: 1.09 | F13: =F14+((($A13-$A14)/($A12-$A14))*(F12-F14)) -> 0.81 | G13: 1.09 | H13: =H14+((($A13-$A14)/($A12-$A14))*(H12-H14)) -> 0.67 | I13: 0.7882352941 | J13: =J14+((($A13-$A14)/($A12-$A14))*(J12-J14)) -> 0 | K13: =K14+((($A13-$A14)/($A12-$A14))*(K12-K14)) -> 1.01 | L13: 1.01 | M13: =M14+((($A13-$A14)/($A12-$A14))*(M12-M14)) -> 0.83 | N13: 0.98 | O13: =O14+((($A13-$A14)/($A12-$A14))*(O12-O14)) -> 0.68 | P13: 0.86 | Q13: =Q14+((($A13-$A14)/($A12-$A14))*(Q12-Q14)) -> 0.59 | R13: 0.6941176471 | S13: =S14+((($A13-$A14)/($A12-$A14))*(S12-S14)) -> 0 | T13: =T14+((($A13-$A14)/($A12-$A14))*(T12-T14)) -> 0.71 | U13: 0.71 | V13: =V14+((($A13-$A14)/($A12-$A14))*(V12-V14)) -> 0.65 | W13: 0.77 | X13: =X14+((($A13-$A14)/($A12-$A14))*(X12-X14)) -> 0.53 | Y13: 0.67 | Z13: =Z14+((($A13-$A14)/($A12-$A14))*(Z12-Z14)) -> 0.46 | AA13: 0.5411764706 | AB13: =AB14+((($A13-$A14)/($A12-$A14))*(AB12-AB14)) -> 0 | AC13: =AC14+((($A13-$A14)/($A12-$A14))*(AC12-AC14)) -> 0.55 | AD13: 0.55 | AE13: =AE14+((($A13-$A14)/($A12-$A14))*(AE12-AE14)) -> 0.51 | AF13: 0.58 | AG13: =AG14+((($A13-$A14)/($A12-$A14))*(AG12-AG14)) -> 0.44 | AH13: 0.5 | AI13: =AI14+((($A13-$A14)/($A12-$A14))*(AI12-AI14)) -> 0.41 | AJ13: 0.4823529412 | AK13: =AK14+((($A13-$A14)/($A12-$A14))*(AK12-AK14)) -> 0
A14: 4 | B14: 0.74 | C14: 0.74 | D14: 0.59 | E14: 0.69 | F14: 0.49 | G14: 0.61 | H14: 0.43 | I14: 0.5058823529 | J14: 0 | K14: 0.61 | L14: 0.61 | M14: 0.51 | N14: 0.58 | O14: 0.44 | P14: 0.54 | Q14: 0.39 | R14: 0.4588235294 | S14: 0 | T14: 0.47 | U14: 0.47 | V14: 0.41 | W14: 0.45 | X14: 0.37 | Y14: 0.43 | Z14: 0.34 | AA14: 0.4 | AB14: 0 | AC14: 0.39 | AD14: 0.39 | AE14: 0.35 | AF14: 0.38 | AG14: 0.32 | AH14: 0.38 | AI14: 0.29 | AJ14: 0.3411764706 | AK14: 0
A15: =IF((AND(A14<$B$40,A16>$B$40)),$B$40,"0,0") -> 0,0 | B15: =B16+((($A15-$A16)/($A14-$A16))*(B14-B16)) -> 1.14 | C15: 1.14 | D15: =D16+((($A15-$A16)/($A14-$A16))*(D14-D16)) -> 0.87 | E15: 1.05 | F15: =F16+((($A15-$A16)/($A14-$A16))*(F14-F16)) -> 0.69 | G15: 0.89 | H15: =H16+((($A15-$A16)/($A14-$A16))*(H14-H16)) -> 0.59 | I15: 0.6941176471 | J15: =J16+((($A15-$A16)/($A14-$A16))*(J14-J16)) -> 0 | K15: =K16+((($A15-$A16)/($A14-$A16))*(K14-K16)) -> 0.89 | L15: 0.89 | M15: =M16+((($A15-$A16)/($A14-$A16))*(M14-M16)) -> 0.75 | N15: 0.9 | O15: =O16+((($A15-$A16)/($A14-$A16))*(O14-O16)) -> 0.6 | P15: 0.78 | Q15: =Q16+((($A15-$A16)/($A14-$A16))*(Q14-Q16)) -> 0.51 | R15: 0.6 | S15: =S16+((($A15-$A16)/($A14-$A16))*(S14-S16)) -> 0 | T15: =T16+((($A15-$A16)/($A14-$A16))*(T14-T16)) -> 0.67 | U15: 0.67 | V15: =V16+((($A15-$A16)/($A14-$A16))*(V14-V16)) -> 0.57 | W15: 0.65 | X15: =X16+((($A15-$A16)/($A14-$A16))*(X14-X16)) -> 0.49 | Y15: 0.55 | Z15: =Z16+((($A15-$A16)/($A14-$A16))*(Z14-Z16)) -> 0.46 | AA15: 0.5411764706 | AB15: =AB16+((($A15-$A16)/($A14-$A16))*(AB14-AB16)) -> 0 | AC15: =AC16+((($A15-$A16)/($A14-$A16))*(AC14-AC16)) -> 0.55 | AD15: 0.55 | AE15: =AE16+((($A15-$A16)/($A14-$A16))*(AE14-AE16)) -> 0.47 | AF15: 0.5 | AG15: =AG16+((($A15-$A16)/($A14-$A16))*(AG14-AG16)) -> 0.44 | AH15: 0.58 | AI15: =AI16+((($A15-$A16)/($A14-$A16))*(AI14-AI16)) -> 0.37 | AJ15: 0.4352941176 | AK15: =AK16+((($A15-$A16)/($A14-$A16))*(AK14-AK16)) -> 0
A16: 5 | B16: 0.64 | C16: 0.64 | D16: 0.52 | E16: 0.6 | F16: 0.44 | G16: 0.54 | H16: 0.39 | I16: 0.4588235294 | J16: 0 | K16: 0.54 | L16: 0.54 | M16: 0.45 | N16: 0.5 | O16: 0.4 | P16: 0.48 | Q16: 0.36 | R16: 0.4235294118 | S16: 0 | T16: 0.42 | U16: 0.42 | V16: 0.37 | W16: 0.4 | X16: 0.34 | Y16: 0.4 | Z16: 0.31 | AA16: 0.3647058824 | AB16: 0 | AC16: 0.35 | AD16: 0.35 | AE16: 0.32 | AF16: 0.35 | AG16: 0.29 | AH16: 0.33 | AI16: 0.27 | AJ16: 0.3176470588 | AK16: 0
A17: =IF((AND(A16<$B$40,A18>$B$40)),$B$40,"0,0") -> 0,0 | B17: =B18+((($A17-$A18)/($A16-$A18))*(B16-B18)) -> 0.99 | C17: 0.99 | D17: =D18+((($A17-$A18)/($A16-$A18))*(D16-D18)) -> 0.82 | E17: 1 | F17: =F18+((($A17-$A18)/($A16-$A18))*(F16-F18)) -> 0.64 | G17: 0.74 | H17: =H18+((($A17-$A18)/($A16-$A18))*(H16-H18)) -> 0.59 | I17: 0.6941176471 | J17: =J18+((($A17-$A18)/($A16-$A18))*(J16-J18)) -> 0 | K17: =K18+((($A17-$A18)/($A16-$A18))*(K16-K18)) -> 0.84 | L17: 0.84 | M17: =M18+((($A17-$A18)/($A16-$A18))*(M16-M18)) -> 0.65 | N17: 0.7 | O17: =O18+((($A17-$A18)/($A16-$A18))*(O16-O18)) -> 0.6 | P17: 0.78 | Q17: =Q18+((($A17-$A18)/($A16-$A18))*(Q16-Q18)) -> 0.51 | R17: 0.6 | S17: =S18+((($A17-$A18)/($A16-$A18))*(S16-S18)) -> 0 | T17: =T18+((($A17-$A18)/($A16-$A18))*(T16-T18)) -> 0.62 | U17: 0.62 | V17: =V18+((($A17-$A18)/($A16-$A18))*(V16-V18)) -> 0.52 | W17: 0.55 | X17: =X18+((($A17-$A18)/($A16-$A18))*(X16-X18)) -> 0.49 | Y17: 0.55 | Z17: =Z18+((($A17-$A18)/($A16-$A18))*(Z16-Z18)) -> 0.46 | AA17: 0.5411764706 | AB17: =AB18+((($A17-$A18)/($A16-$A18))*(AB16-AB18)) -> 0 | AC17: =AC18+((($A17-$A18)/($A16-$A18))*(AC16-AC18)) -> 0.5 | AD17: 0.5 | AE17: =AE18+((($A17-$A18)/($A16-$A18))*(AE16-AE18)) -> 0.47 | AF17: 0.55 | AG17: =AG18+((($A17-$A18)/($A16-$A18))*(AG16-AG18)) -> 0.39 | AH17: 0.43 | AI17: =AI18+((($A17-$A18)/($A16-$A18))*(AI16-AI18)) -> 0.37 | AJ17: 0.4352941176 | AK17: =AK18+((($A17-$A18)/($A16-$A18))*(AK16-AK18)) -> 0
A18: 6 | B18: 0.57 | C18: 0.57 | D18: 0.46 | E18: 0.52 | F18: 0.4 | G18: 0.5 | H18: 0.35 | I18: 0.4117647059 | J18: 0 | K18: 0.48 | L18: 0.48 | M18: 0.41 | N18: 0.46 | O18: 0.36 | P18: 0.42 | Q18: 0.33 | R18: 0.3882352941 | S18: 0 | T18: 0.38 | U18: 0.38 | V18: 0.34 | W18: 0.37 | X18: 0.31 | Y18: 0.37 | Z18: 0.28 | AA18: 0.3294117647 | AB18: 0 | AC18: 0.32 | AD18: 0.32 | AE18: 0.29 | AF18: 0.31 | AG18: 0.27 | AH18: 0.31 | AI18: 0.25 | AJ18: 0.2941176471 | AK18: 0
A19: =IF((AND(A18<$B$40,A20>$B$40)),$B$40,"0,0") -> 0,0 | B19: =B20+((($A19-$A20)/($A18-$A20))*(B18-B20)) -> 0.87 | C19: 0.87 | D19: =D20+((($A19-$A20)/($A18-$A20))*(D18-D20)) -> 0.7 | E19: 0.82 | F19: =F20+((($A19-$A20)/($A18-$A20))*(F18-F20)) -> 0.58 | G19: 0.8 | H19: =H20+((($A19-$A20)/($A18-$A20))*(H18-H20)) -> 0.47 | I19: 0.5529411765 | J19: =J20+((($A19-$A20)/($A18-$A20))*(J18-J20)) -> 0 | K19: =K20+((($A19-$A20)/($A18-$A20))*(K18-K20)) -> 0.72 | L19: 0.72 | M19: =M20+((($A19-$A20)/($A18-$A20))*(M18-M20)) -> 0.59 | N19: 0.64 | O19: =O20+((($A19-$A20)/($A18-$A20))*(O18-O20)) -> 0.54 | P19: 0.6 | Q19: =Q20+((($A19-$A20)/($A18-$A20))*(Q18-Q20)) -> 0.51 | R19: 0.6 | S19: =S20+((($A19-$A20)/($A18-$A20))*(S18-S20)) -> 0 | T19: =T20+((($A19-$A20)/($A18-$A20))*(T18-T20)) -> 0.56 | U19: 0.56 | V19: =V20+((($A19-$A20)/($A18-$A20))*(V18-V20)) -> 0.52 | W19: 0.61 | X19: =X20+((($A19-$A20)/($A18-$A20))*(X18-X20)) -> 0.43 | Y19: 0.49 | Z19: =Z20+((($A19-$A20)/($A18-$A20))*(Z18-Z20)) -> 0.4 | AA19: 0.4705882353 | AB19: =AB20+((($A19-$A20)/($A18-$A20))*(AB18-AB20)) -> 0 | AC19: =AC20+((($A19-$A20)/($A18-$A20))*(AC18-AC20)) -> 0.44 | AD19: 0.44 | AE19: =AE20+((($A19-$A20)/($A18-$A20))*(AE18-AE20)) -> 0.41 | AF19: 0.43 | AG19: =AG20+((($A19-$A20)/($A18-$A20))*(AG18-AG20)) -> 0.39 | AH19: 0.55 | AI19: =AI20+((($A19-$A20)/($A18-$A20))*(AI18-AI20)) -> 0.31 | AJ19: 0.3647058824 | AK19: =AK20+((($A19-$A20)/($A18-$A20))*(AK18-AK20)) -> 0
A20: 7 | B20: 0.52 | C20: 0.52 | D20: 0.42 | E20: 0.47 | F20: 0.37 | G20: 0.45 | H20: 0.33 | I20: 0.3882352941 | J20: 0 | K20: 0.44 | L20: 0.44 | M20: 0.38 | N20: 0.43 | O20: 0.33 | P20: 0.39 | Q20: 0.3 | R20: 0.3529411765 | S20: 0 | T20: 0.35 | U20: 0.35 | V20: 0.31 | W20: 0.33 | X20: 0.29 | Y20: 0.35 | Z20: 0.26 | AA20: 0.3058823529 | AB20: 0 | AC20: 0.3 | AD20: 0.3 | AE20: 0.27 | AF20: 0.29 | AG20: 0.25 | AH20: 0.27 | AI20: 0.24 | AJ20: 0.2823529412 | AK20: 0
A21: =IF((AND(A20<$B$40,A22>$B$40)),$B$40,"0,0") -> 0,0 | B21: =B22+((($A21-$A22)/($A20-$A22))*(B20-B22)) -> 0.87 | C21: 0.87 | D21: =D22+((($A21-$A22)/($A20-$A22))*(D20-D22)) -> 0.63 | E21: 0.68 | F21: =F22+((($A21-$A22)/($A20-$A22))*(F20-F22)) -> 0.58 | G21: 0.66 | H21: =H22+((($A21-$A22)/($A20-$A22))*(H20-H22)) -> 0.54 | I21: 0.6352941176 | J21: =J22+((($A21-$A22)/($A20-$A22))*(J20-J22)) -> 0 | K21: =K22+((($A21-$A22)/($A20-$A22))*(K20-K22)) -> 0.72 | L21: 0.72 | M21: =M22+((($A21-$A22)/($A20-$A22))*(M20-M22)) -> 0.59 | N21: 0.71 | O21: =O22+((($A21-$A22)/($A20-$A22))*(O20-O22)) -> 0.47 | P21: 0.53 | Q21: =Q22+((($A21-$A22)/($A20-$A22))*(Q20-Q22)) -> 0.44 | R21: 0.5176470588 | S21: =S22+((($A21-$A22)/($A20-$A22))*(S20-S22)) -> 0 | T21: =T22+((($A21-$A22)/($A20-$A22))*(T20-T22)) -> 0.49 | U21: 0.49 | V21: =V22+((($A21-$A22)/($A20-$A22))*(V20-V22)) -> 0.45 | W21: 0.47 | X21: =X22+((($A21-$A22)/($A20-$A22))*(X20-X22)) -> 0.43 | Y21: 0.63 | Z21: =Z22+((($A21-$A22)/($A20-$A22))*(Z20-Z22)) -> 0.33 | AA21: 0.3882352941 | AB21: =AB22+((($A21-$A22)/($A20-$A22))*(AB20-AB22)) -> 0 | AC21: =AC22+((($A21-$A22)/($A20-$A22))*(AC20-AC22)) -> 0.44 | AD21: 0.44 | AE21: =AE22+((($A21-$A22)/($A20-$A22))*(AE20-AE22)) -> 0.34 | AF21: 0.36 | AG21: =AG22+((($A21-$A22)/($A20-$A22))*(AG20-AG22)) -> 0.32 | AH21: 0.2 | AI21: =AI22+((($A21-$A22)/($A20-$A22))*(AI20-AI22)) -> 0.38 | AJ21: 0.4470588235 | AK21: =AK22+((($A21-$A22)/($A20-$A22))*(AK20-AK22)) -> 0
A22: 8 | B22: 0.47 | C22: 0.47 | D22: 0.39 | E22: 0.44 | F22: 0.34 | G22: 0.42 | H22: 0.3 | I22: 0.3529411765 | J22: 0 | K22: 0.4 | L22: 0.4 | M22: 0.35 | N22: 0.39 | O22: 0.31 | P22: 0.37 | Q22: 0.28 | R22: 0.3294117647 | S22: 0 | T22: 0.33 | U22: 0.33 | V22: 0.29 | W22: 0.31 | X22: 0.27 | Y22: 0.31 | Z22: 0.25 | AA22: 0.2941176471 | AB22: 0 | AC22: 0.28 | AD22: 0.28 | AE22: 0.26 | AF22: 0.28 | AG22: 0.24 | AH22: 0.28 | AI22: 0.22 | AJ22: 0.2588235294 | AK22: 0
A23: =IF((AND(A22<$B$40,A24>$B$40)),$B$40,"0,0") -> 0,0 | B23: =B24+((($A23-$A24)/($A22-$A24))*(B22-B24)) -> 0.79 | C23: 0.79 | D23: =D24+((($A23-$A24)/($A22-$A24))*(D22-D24)) -> 0.63 | E23: 0.76 | F23: =F24+((($A23-$A24)/($A22-$A24))*(F22-F24)) -> 0.5 | G23: 0.58 | H23: =H24+((($A23-$A24)/($A22-$A24))*(H22-H24)) -> 0.46 | I23: 0.5411764706 | J23: =J24+((($A23-$A24)/($A22-$A24))*(J22-J24)) -> 0 | K23: =K24+((($A23-$A24)/($A22-$A24))*(K22-K24)) -> 0.64 | L23: 0.64 | M23: =M24+((($A23-$A24)/($A22-$A24))*(M22-M24)) -> 0.59 | N23: 0.71 | O23: =O24+((($A23-$A24)/($A22-$A24))*(O22-O24)) -> 0.47 | P23: 0.53 | Q23: =Q24+((($A23-$A24)/($A22-$A24))*(Q22-Q24)) -> 0.44 | R23: 0.5176470588 | S23: =S24+((($A23-$A24)/($A22-$A24))*(S22-S24)) -> 0 | T23: =T24+((($A23-$A24)/($A22-$A24))*(T22-T24)) -> 0.57 | U23: 0.57 | V23: =V24+((($A23-$A24)/($A22-$A24))*(V22-V24)) -> 0.45 | W23: 0.47 | X23: =X24+((($A23-$A24)/($A22-$A24))*(X22-X24)) -> 0.43 | Y23: 0.47 | Z23: =Z24+((($A23-$A24)/($A22-$A24))*(Z22-Z24)) -> 0.41 | AA23: 0.4823529412 | AB23: =AB24+((($A23-$A24)/($A22-$A24))*(AB22-AB24)) -> 0 | AC23: =AC24+((($A23-$A24)/($A22-$A24))*(AC22-AC24)) -> 0.44 | AD23: 0.44 | AE23: =AE24+((($A23-$A24)/($A22-$A24))*(AE22-AE24)) -> 0.42 | AF23: 0.44 | AG23: =AG24+((($A23-$A24)/($A22-$A24))*(AG22-AG24)) -> 0.4 | AH23: 0.6 | AI23: =AI24+((($A23-$A24)/($A22-$A24))*(AI22-AI24)) -> 0.3 | AJ23: 0.3529411765 | AK23: =AK24+((($A23-$A24)/($A22-$A24))*(AK22-AK24)) -> 0
A24: 9 | B24: 0.43 | C24: 0.43 | D24: 0.36 | E24: 0.4 | F24: 0.32 | G24: 0.4 | H24: 0.28 | I24: 0.3294117647 | J24: 0 | K24: 0.37 | L24: 0.37 | M24: 0.32 | N24: 0.35 | O24: 0.29 | P24: 0.35 | Q24: 0.26 | R24: 0.3058823529 | S24: 0 | T24: 0.3 | U24: 0.3 | V24: 0.27 | W24: 0.29 | X24: 0.25 | Y24: 0.29 | Z24: 0.23 | AA24: 0.2705882353 | AB24: 0 | AC24: 0.26 | AD24: 0.26 | AE24: 0.24 | AF24: 0.26 | AG24: 0.22 | AH24: 0.24 | AI24: 0.21 | AJ24: 0.2470588235 | AK24: 0
A25: =IF((AND(A24<$B$40,A26>$B$40)),$B$40,"0,0") -> 0,0 | B25: =B26+((($A25-$A26)/($A24-$A26))*(B24-B26)) -> 0.7 | C25: 0.7 | D25: =D26+((($A25-$A26)/($A24-$A26))*(D24-D26)) -> 0.54 | E25: 0.58 | F25: =F26+((($A25-$A26)/($A24-$A26))*(F24-F26)) -> 0.5 | G25: 0.76 | H25: =H26+((($A25-$A26)/($A24-$A26))*(H24-H26)) -> 0.37 | I25: 0.4352941176 | J25: =J26+((($A25-$A26)/($A24-$A26))*(J24-J26)) -> 0 | K25: =K26+((($A25-$A26)/($A24-$A26))*(K24-K26)) -> 0.55 | L25: 0.55 | M25: =M26+((($A25-$A26)/($A24-$A26))*(M24-M26)) -> 0.5 | N25: 0.53 | O25: =O26+((($A25-$A26)/($A24-$A26))*(O24-O26)) -> 0.47 | P25: 0.71 | Q25: =Q26+((($A25-$A26)/($A24-$A26))*(Q24-Q26)) -> 0.35 | R25: 0.4117647059 | S25: =S26+((($A25-$A26)/($A24-$A26))*(S24-S26)) -> 0 | T25: =T26+((($A25-$A26)/($A24-$A26))*(T24-T26)) -> 0.39 | U25: 0.39 | V25: =V26+((($A25-$A26)/($A24-$A26))*(V24-V26)) -> 0.36 | W25: 0.38 | X25: =X26+((($A25-$A26)/($A24-$A26))*(X24-X26)) -> 0.34 | Y25: 0.38 | Z25: =Z26+((($A25-$A26)/($A24-$A26))*(Z24-Z26)) -> 0.32 | AA25: 0.3764705882 | AB25: =AB26+((($A25-$A26)/($A24-$A26))*(AB24-AB26)) -> 0 | AC25: =AC26+((($A25-$A26)/($A24-$A26))*(AC24-AC26)) -> 0.35 | AD25: 0.35 | AE25: =AE26+((($A25-$A26)/($A24-$A26))*(AE24-AE26)) -> 0.33 | AF25: 0.35 | AG25: =AG26+((($A25-$A26)/($A24-$A26))*(AG24-AG26)) -> 0.31 | AH25: 0.33 | AI25: =AI26+((($A25-$A26)/($A24-$A26))*(AI24-AI26)) -> 0.3 | AJ25: 0.3529411765 | AK25: =AK26+((($A25-$A26)/($A24-$A26))*(AK24-AK26)) -> 0
A26: 10 | B26: 0.4 | C26: 0.4 | D26: 0.34 | E26: 0.38 | F26: 0.3 | G26: 0.36 | H26: 0.27 | I26: 0.3176470588 | J26: 0 | K26: 0.35 | L26: 0.35 | M26: 0.3 | N26: 0.33 | O26: 0.27 | P26: 0.31 | Q26: 0.25 | R26: 0.2941176471 | S26: 0 | T26: 0.29 | U26: 0.29 | V26: 0.26 | W26: 0.28 | X26: 0.24 | Y26: 0.28 | Z26: 0.22 | AA26: 0.2588235294 | AB26: 0 | AC26: 0.25 | AD26: 0.25 | AE26: 0.23 | AF26: 0.25 | AG26: 0.21 | AH26: 0.23 | AI26: 0.2 | AJ26: 0.2352941176 | AK26: 0
A27: =IF((AND(A26<$B$40,A28>$B$40)),$B$40,"0,0") -> 0,0 | B27: =B28+((($A27-$A28)/($A26-$A28))*(B26-B28)) -> 0.6 | C27: 0.6 | D27: =D28+((($A27-$A28)/($A26-$A28))*(D26-D28)) -> 0.54 | E27: 0.63 | F27: =F28+((($A27-$A28)/($A26-$A28))*(F26-F28)) -> 0.45 | G27: 0.51 | H27: =H28+((($A27-$A28)/($A26-$A28))*(H26-H28)) -> 0.42 | I27: 0.4941176471 | J27: =J28+((($A27-$A28)/($A26-$A28))*(J26-J28)) -> 0 | K27: =K28+((($A27-$A28)/($A26-$A28))*(K26-K28)) -> 0.55 | L27: 0.55 | M27: =M28+((($A27-$A28)/($A26-$A28))*(M26-M28)) -> 0.45 | N27: 0.48 | O27: =O28+((($A27-$A28)/($A26-$A28))*(O26-O28)) -> 0.42 | P27: 0.46 | Q27: =Q28+((($A27-$A28)/($A26-$A28))*(Q26-Q28)) -> 0.4 | R27: 0.4705882353 | S27: =S28+((($A27-$A28)/($A26-$A28))*(S26-S28)) -> 0 | T27: =T28+((($A27-$A28)/($A26-$A28))*(T26-T28)) -> 0.44 | U27: 0.44 | V27: =V28+((($A27-$A28)/($A26-$A28))*(V26-V28)) -> 0.41 | W27: 0.43 | X27: =X28+((($A27-$A28)/($A26-$A28))*(X26-X28)) -> 0.39 | Y27: 0.53 | Z27: =Z28+((($A27-$A28)/($A26-$A28))*(Z26-Z28)) -> 0.32 | AA27: 0.3764705882 | AB27: =AB28+((($A27-$A28)/($A26-$A28))*(AB26-AB28)) -> 0 | AC27: =AC28+((($A27-$A28)/($A26-$A28))*(AC26-AC28)) -> 0.4 | AD27: 0.4 | AE27: =AE28+((($A27-$A28)/($A26-$A28))*(AE26-AE28)) -> 0.33 | AF27: 0.35 | AG27: =AG28+((($A27-$A28)/($A26-$A28))*(AG26-AG28)) -> 0.31 | AH27: 0.33 | AI27: =AI28+((($A27-$A28)/($A26-$A28))*(AI26-AI28)) -> 0.3 | AJ27: 0.3529411765 | AK27: =AK28+((($A27-$A28)/($A26-$A28))*(AK26-AK28)) -> 0
A28: 12 | B28: 0.36 | C28: 0.36 | D28: 0.3 | E28: 0.33 | F28: 0.27 | G28: 0.33 | H28: 0.24 | I28: 0.2823529412 | J28: 0 | K28: 0.31 | L28: 0.31 | M28: 0.27 | N28: 0.3 | O28: 0.24 | P28: 0.28 | Q28: 0.22 | R28: 0.2588235294 | S28: 0 | T28: 0.26 | U28: 0.26 | V28: 0.23 | W28: 0.25 | X28: 0.21 | Y28: 0.23 | Z28: 0.2 | AA28: 0.2352941176 | AB28: 0 | AC28: 0.22 | AD28: 0.22 | AE28: 0.21 | AF28: 0.23 | AG28: 0.19 | AH28: 0.21 | AI28: 0.18 | AJ28: 0.2117647059 | AK28: 0
A29: =IF((AND(A28<$B$40,A30>$B$40)),$B$40,"0,0") -> 0,0 | B29: =B30+((($A29-$A30)/($A28-$A30))*(B28-B30)) -> 0.6 | C29: 0.6 | D29: =D30+((($A29-$A30)/($A28-$A30))*(D28-D30)) -> 0.48 | E29: 0.51 | F29: =F30+((($A29-$A30)/($A28-$A30))*(F28-F30)) -> 0.45 | G29: 0.63 | H29: =H30+((($A29-$A30)/($A28-$A30))*(H28-H30)) -> 0.36 | I29: 0.4235294118 | J29: =J30+((($A29-$A30)/($A28-$A30))*(J28-J30)) -> 0 | K29: =K30+((($A29-$A30)/($A28-$A30))*(K28-K30)) -> 0.49 | L29: 0.49 | M29: =M30+((($A29-$A30)/($A28-$A30))*(M28-M30)) -> 0.39 | N29: 0.42 | O29: =O30+((($A29-$A30)/($A28-$A30))*(O28-O30)) -> 0.36 | P29: 0.4 | Q29: =Q30+((($A29-$A30)/($A28-$A30))*(Q28-Q30)) -> 0.34 | R29: 0.4 | S29: =S30+((($A29-$A30)/($A28-$A30))*(S28-S30)) -> 0 | T29: =T30+((($A29-$A30)/($A28-$A30))*(T28-T30)) -> 0.44 | U29: 0.44 | V29: =V30+((($A29-$A30)/($A28-$A30))*(V28-V30)) -> 0.35 | W29: 0.43 | X29: =X30+((($A29-$A30)/($A28-$A30))*(X28-X30)) -> 0.27 | Y29: 0.17 | Z29: =Z30+((($A29-$A30)/($A28-$A30))*(Z28-Z30)) -> 0.32 | AA29: 0.3764705882 | AB29: =AB30+((($A29-$A30)/($A28-$A30))*(AB28-AB30)) -> 0 | AC29: =AC30+((($A29-$A30)/($A28-$A30))*(AC28-AC30)) -> 0.34 | AD29: 0.34 | AE29: =AE30+((($A29-$A30)/($A28-$A30))*(AE28-AE30)) -> 0.33 | AF29: 0.41 | AG29: =AG30+((($A29-$A30)/($A28-$A30))*(AG28-AG30)) -> 0.25 | AH29: 0.27 | AI29: =AI30+((($A29-$A30)/($A28-$A30))*(AI28-AI30)) -> 0.24 | AJ29: 0.2823529412 | AK29: =AK30+((($A29-$A30)/($A28-$A30))*(AK28-AK30)) -> 0
A30: 14 | B30: 0.32 | C30: 0.32 | D30: 0.27 | E30: 0.3 | F30: 0.24 | G30: 0.28 | H30: 0.22 | I30: 0.2588235294 | J30: 0 | K30: 0.28 | L30: 0.28 | M30: 0.25 | N30: 0.28 | O30: 0.22 | P30: 0.26 | Q30: 0.2 | R30: 0.2352941176 | S30: 0 | T30: 0.23 | U30: 0.23 | V30: 0.21 | W30: 0.22 | X30: 0.2 | Y30: 0.24 | Z30: 0.18 | AA30: 0.2117647059 | AB30: 0 | AC30: 0.2 | AD30: 0.2 | AE30: 0.19 | AF30: 0.2 | AG30: 0.18 | AH30: 0.2 | AI30: 0.17 | AJ30: 0.2 | AK30: 0
A31: =IF((AND(A30<$B$40,A32>$B$40)),$B$40,"0,0") -> 0,0 | B31: =B32+((($A31-$A32)/($A30-$A32))*(B30-B32)) -> 0.53 | C31: 0.53 | D31: =D32+((($A31-$A32)/($A30-$A32))*(D30-D32)) -> 0.41 | E31: 0.44 | F31: =F32+((($A31-$A32)/($A30-$A32))*(F30-F32)) -> 0.38 | G31: 0.42 | H31: =H32+((($A31-$A32)/($A30-$A32))*(H30-H32)) -> 0.36 | I31: 0.4235294118 | J31: =J32+((($A31-$A32)/($A30-$A32))*(J30-J32)) -> 0 | K31: =K32+((($A31-$A32)/($A30-$A32))*(K30-K32)) -> 0.49 | L31: 0.49 | M31: =M32+((($A31-$A32)/($A30-$A32))*(M30-M32)) -> 0.39 | N31: 0.42 | O31: =O32+((($A31-$A32)/($A30-$A32))*(O30-O32)) -> 0.36 | P31: 0.54 | Q31: =Q32+((($A31-$A32)/($A30-$A32))*(Q30-Q32)) -> 0.27 | R31: 0.3176470588 | S31: =S32+((($A31-$A32)/($A30-$A32))*(S30-S32)) -> 0 | T31: =T32+((($A31-$A32)/($A30-$A32))*(T30-T32)) -> 0.37 | U31: 0.37 | V31: =V32+((($A31-$A32)/($A30-$A32))*(V30-V32)) -> 0.28 | W31: 0.22 | X31: =X32+((($A31-$A32)/($A30-$A32))*(X30-X32)) -> 0.34 | Y31: 0.52 | Z31: =Z32+((($A31-$A32)/($A30-$A32))*(Z30-Z32)) -> 0.25 | AA31: 0.2941176471 | AB31: =AB32+((($A31-$A32)/($A30-$A32))*(AB30-AB32)) -> 0 | AC31: =AC32+((($A31-$A32)/($A30-$A32))*(AC30-AC32)) -> 0.27 | AD31: 0.27 | AE31: =AE32+((($A31-$A32)/($A30-$A32))*(AE30-AE32)) -> 0.33 | AF31: 0.34 | AG31: =AG32+((($A31-$A32)/($A30-$A32))*(AG30-AG32)) -> 0.32 | AH31: 0.48 | AI31: =AI32+((($A31-$A32)/($A30-$A32))*(AI30-AI32)) -> 0.24 | AJ31: 0.2823529412 | AK31: =AK32+((($A31-$A32)/($A30-$A32))*(AK30-AK32)) -> 0
A32: 16 | B32: 0.29 | C32: 0.29 | D32: 0.25 | E32: 0.28 | F32: 0.22 | G32: 0.26 | H32: 0.2 | I32: 0.2352941176 | J32: 0 | K32: 0.25 | L32: 0.25 | M32: 0.23 | N32: 0.26 | O32: 0.2 | P32: 0.22 | Q32: 0.19 | R32: 0.2235294118 | S32: 0 | T32: 0.21 | U32: 0.21 | V32: 0.2 | W32: 0.22 | X32: 0.18 | Y32: 0.2 | Z32: 0.17 | AA32: 0.2 | AB32: 0 | AC32: 0.19 | AD32: 0.19 | AE32: 0.17 | AF32: 0.18 | AG32: 0.16 | AH32: 0.16 | AI32: 0.16 | AJ32: 0.1882352941 | AK32: 0
A33: =IF((AND(A32<$B$40,A34>$B$40)),$B$40,"0,0") -> 0,0 | B33: =B34+((($A33-$A34)/($A32-$A34))*(B32-B34)) -> 0.53 | C33: 0.53 | D33: =D34+((($A33-$A34)/($A32-$A34))*(D32-D34)) -> 0.41 | E33: 0.44 | F33: =F34+((($A33-$A34)/($A32-$A34))*(F32-F34)) -> 0.38 | G33: 0.58 | H33: =H34+((($A33-$A34)/($A32-$A34))*(H32-H34)) -> 0.28 | I33: 0.3294117647 | J33: =J34+((($A33-$A34)/($A32-$A34))*(J32-J34)) -> 0 | K33: =K34+((($A33-$A34)/($A32-$A34))*(K32-K34)) -> 0.41 | L33: 0.41 | M33: =M34+((($A33-$A34)/($A32-$A34))*(M32-M34)) -> 0.39 | N33: 0.5 | O33: =O34+((($A33-$A34)/($A32-$A34))*(O32-O34)) -> 0.28 | P33: 0.3 | Q33: =Q34+((($A33-$A34)/($A32-$A34))*(Q32-Q34)) -> 0.27 | R33: 0.3176470588 | S33: =S34+((($A33-$A34)/($A32-$A34))*(S32-S34)) -> 0 | T33: =T34+((($A33-$A34)/($A32-$A34))*(T32-T34)) -> 0.29 | U33: 0.29 | V33: =V34+((($A33-$A34)/($A32-$A34))*(V32-V34)) -> 0.36 | W33: 0.46 | X33: =X34+((($A33-$A34)/($A32-$A34))*(X32-X34)) -> 0.26 | Y33: 0.28 | Z33: =Z34+((($A33-$A34)/($A32-$A34))*(Z32-Z34)) -> 0.25 | AA33: 0.2941176471 | AB33: =AB34+((($A33-$A34)/($A32-$A34))*(AB32-AB34)) -> 0 | AC33: =AC34+((($A33-$A34)/($A32-$A34))*(AC32-AC34)) -> 0.35 | AD33: 0.35 | AE33: =AE34+((($A33-$A34)/($A32-$A34))*(AE32-AE34)) -> 0.25 | AF33: 0.26 | AG33: =AG34+((($A33-$A34)/($A32-$A34))*(AG32-AG34)) -> 0.24 | AH33: 0.24 | AI33: =AI34+((($A33-$A34)/($A32-$A34))*(AI32-AI34)) -> 0.24 | AJ33: 0.2823529412 | AK33: =AK34+((($A33-$A34)/($A32-$A34))*(AK32-AK34)) -> 0
A34: 18 | B34: 0.26 | C34: 0.26 | D34: 0.23 | E34: 0.26 | F34: 0.2 | G34: 0.22 | H34: 0.19 | I34: 0.2235294118 | J34: 0 | K34: 0.23 | L34: 0.23 | M34: 0.21 | N34: 0.23 | O34: 0.19 | P34: 0.21 | Q34: 0.18 | R34: 0.2117647059 | S34: 0 | T34: 0.2 | U34: 0.2 | V34: 0.18 | W34: 0.19 | X34: 0.17 | Y34: 0.19 | Z34: 0.16 | AA34: 0.1882352941 | AB34: 0 | AC34: 0.17 | AD34: 0.17 | AE34: 0.16 | AF34: 0.17 | AG34: 0.15 | AH34: 0.15 | AI34: 0.15 | AJ34: 0.1764705882 | AK34: 0
